Workbook

Sheet Portada
A21: =+"Anexo A Datos " &Fecha!A1&" (Pliego Tarifario " & Fecha!T4&")" -> Anexo A Datos EDEMET (Pliego Tarifario Jul-Dic/2023)
J58: .

Sheet Fecha
A1: EDEMET | B1: 11 | H1: 12 | N1: 13 | T1: 14
A2: Períodos | B2: Fechas | H2: Fechas | N2: Fechas | T2: Fechas
A3: Mes Inicial | B3: 2022-01-01 | H3: 2022-07-01 | N3: 2023-01-01 | T3: 2023-07-01
A4: período p | B4: Ene-Jun/2022 | H4: Jul-Dic/2022 | N4: Ene-Jun/2023 | T4: Jul-Dic/2023
B5: Ene-Mar/2022 | H5: Jul-Sep/2022 | N5: Ene-Mar/2023 | T5: Jul-Sep/2023
A6: período p-1 | B6: Jul-Sep/2021 | H6: Ene-Mar/2022 | N6: Jul-Sep/2022 | T6: Ene-Mar/2023
B7: Jul-Dic/2021 | H7: Ene-Jun/2022 | N7: Jul-Dic/2022 | T7: Ene-Jun/2023
A8: período p-2 | B8: Ene-Jun/2021 | H8: Jul-Dic/2021 | N8: Ene-Jun/2022 | T8: Jul-Dic/2022
A9: período p-3 | B9: Jul-Dic/2020 | H9: Ene-Jun/2021 | N9: Jul-Dic/2021 | T9: Ene-Jun/2022
B10: 2020-07-01 | H10: 2021-01-01 | N10: 2021-07-01 | T10: 2022-01-01
B11: 2021-06-01 | H11: 2021-12-01 | N11: 2022-06-01 | T11: 2022-12-01
B12: jul/20-jun/21 | H12: ene/21-dic/21 | N12: jul/21-jun/22 | T12: ene/22-dic/22

Sheet Compras (p)
A1: COSTOS DE COMPRA DE ENERGÍA
A2: EDEMET
A4: Datos | B4: 2023-07-01 | C4: 2023-08-01 | D4: 2023-09-01 | E4: 2023-10-01 | F4: 2023-11-01 | G4: 2023-12-01
A5: Energía Facturada | B5: =+B7*(1-B6) -> 323077.4296 | C5: =+C7*(1-C6) -> 330067.9694 | D5: 319240.6927 | E5: 324959.5374 | F5: 305262.0134 | G5: 331159.3791
A6: Pérdidas | B6: 0.12 | C6: 0.12 | D6: 0.12 | E6: 0.12 | F6: 0.12 | G6: 0.12
A7: Energía Requerida Puesta en Red | B7: =+'GEN-522 Gen'!B8 * (1 + 4%) -> 367133.4428 | C7: =+'GEN-522 Gen'!C8 * (1 + 4%) -> 375077.238 | D7: =+'GEN-522 Gen'!D8 * (1 + 4%) -> 362773.5145 | E7: =+'GEN-522 Gen'!E8 * (1 + 4%) -> 369272.2016 | F7: =+'GEN-522 Gen'!F8 * (1 + 4%) -> 346888.6515 | G7: =+'GEN-522 Gen'!G8 * (1 + 4%) -> 376317.4762
A8: Generación Propia | B8: =+'GEN-502 Gen_P'!B9+'GEN-502 Gen_FP'!B9 -> 0 | C8: =+'GEN-502 Gen_P'!C9+'GEN-502 Gen_FP'!C9 -> 0 | D8: =+'GEN-502 Gen_P'!D9+'GEN-502 Gen_FP'!D9 -> 0 | E8: =+'GEN-502 Gen_P'!E9+'GEN-502 Gen_FP'!E9 -> 0 | F8: =+'GEN-502 Gen_P'!F9+'GEN-502 Gen_FP'!F9 -> 0 | G8: =+'GEN-502 Gen_P'!G9+'GEN-502 Gen_FP'!G9 -> 0
A9: Compras a Nivel de Distribución
A10: Compra de Energía GC | B10: =+('Ventas (p)'!B51+'Ventas (p)'!B99)/1000 -> 70969.0415 | C10: =+('Ventas (p)'!C51+'Ventas (p)'!C99)/1000 -> 70969.0415 | D10: =+('Ventas (p)'!D51+'Ventas (p)'!D99)/1000 -> 70969.0415 | E10: =+('Ventas (p)'!E51+'Ventas (p)'!E99)/1000 -> 70969.0415 | F10: =+('Ventas (p)'!F51+'Ventas (p)'!F99)/1000 -> 70969.0415 | G10: =+('Ventas (p)'!G51+'Ventas (p)'!G99)/1000 -> 70969.0415
A11: Energía del Mercado Mayorista | B11: =+B7-B8-B9 -> 367133.4428 | C11: 375077.238 | D11: 362773.5145 | E11: 369272.2016 | F11: 346888.6515 | G11: 376317.4762
A12: DMG de acuerdo al INFORME INDICATIVO DE DEMANDA 2023-2043, GOP‐2‐1‐2023
A14: Pérdidas de Transmisión | B14: 2023-07-01 | C14: 2023-08-01 | D14: 2023-09-01 | E14: 2023-10-01 | F14: 2023-11-01 | G14: 2023-12-01
A15: Energía Pérdidas de Transmisión (MWh) | B15: 11000 | C15: 11000 | D15: 11000 | E15: 11000 | F15: 11000 | G15: 11000
A16: Precio Medio de las Pérdidas (US$/MWh) | B16: =+AVERAGE('Compras (r)'!B16:G16) -> 84.49727846 | C16: =+B16 -> 84.49727846 | D16: =+C16 -> 84.49727846 | E16: 84.49727846 | F16: 84.49727846 | G16: 84.49727846
A17: Costo de las Pérdidas de Transmisión (B/.) | B17: =+B15*B16 -> 929470.0631 | C17: =+C15*C16 -> 929470.0631 | D17: 929470.0631 | E17: 929470.0631 | F17: 929470.0631 | G17: 929470.0631
A20: Precio del Combustible | B20: 2023-07-01 | C20: 2023-08-01 | D20: 2023-09-01 | E20: 2023-10-01 | F20: 2023-11-01 | G20: 2023-12-01
A21: GNL ($/MMBTU) | B21: 2.75 | C21: =+B21 -> 2.75 | D21: =+C21 -> 2.75 | E21: 2.75 | F21: 2.75 | G21: 2.75
A22: Diesel (US$/bl) | B22: 150 | C22: =+B22 -> 150 | D22: 150 | E22: 150 | F22: 150 | G22: 150
A23: Bunker C (US$/bl) | B23: 80 | C23: =+B23 -> 80 | D23: 80 | E23: 80 | F23: 80 | G23: 80
A27: Ajuste Potencia G.C. | B27: 2023-07-01 | C27: 2023-08-01 | D27: 2023-09-01 | E27: 2023-10-01 | F27: 2023-11-01 | G27: 2023-12-01
A28: Factor de Ajuste | B28: =+(1+B29)*(1+B30) -> 1.10399295 | C28: =+(1+C29)*(1+C30) -> 1.104951 | D28: 1.104951 | E28: 1.104951 | F28: 1.104951 | G28: 1.104951
A29: Reserva para Confiabilidad de Largo Plazo | B29: 0.0645 | C29: 0.0645 | D29: 0.0645 | E29: 0.0645 | F29: 0.0645 | G29: 0.0645
A30: Pérdidas Típicas en Punta | B30: 0.0371 | C30: 0.038 | D30: 0.038 | E30: 0.038 | F30: 0.038 | G30: 0.038

Sheet GEN-502 Pot
A1: INFORMACION PARA ACTUALIZAR: CARGO POR GENERACION
A2: =+'Compras (p)'!A2 -> EDEMET
A3: Porción de Potencia Contratada Mensual para atender Clientes Regulados (MW)
B4: POTENCIA CONTRATADA
A5: Detalle | B5: 2023-07-01 | C5: 2023-08-01 | D5: 2023-09-01 | E5: 2023-10-01 | F5: 2023-11-01 | G5: 2023-12-01 | H5: Promedio
A6: Demanda Máxima Mensual | B6: 825.23 | C6: 847.27 | D6: 835.62 | E6: 835.62 | F6: 825.98 | G6: 836.22 | H6: =+IF(SUM(B6:G6)>0,AVERAGE(B6:G6),0) -> 834.3233333
A7: Demanda Máxima de Generación (DMG) | B7: 858.43 | C7: 858.43 | D7: 858.43 | E7: 858.43 | F7: 858.43 | G7: 858.43 | H7: 858.43
A8: TOTAL | B8: =+B9+B15 -> 850.28937 | C8: 856.67457 | D8: 859.51937 | E8: 867.96937 | F8: 857.26937 | G8: 865.69937 | H8: 859.5702367
A9: Generación Propia
A15: Sub-Total Mercado Mayorista | B15: =+SUM(B16:B24) -> 850.28937 | C15: 856.67457 | D15: 859.51937 | E15: 867.96937 | F15: 857.26937 | G15: 865.69937 | H15: =+IF(SUM(B15:G15)>0,AVERAGE(B15:G15),0) -> 859.5702367
A16: Reserva de largo Plazo | B16: =+IF(B6-B24-B9<0,0,B6-B24-B9) -> 0 | C16: =+IF(C6-C24-C9<0,0,C6-C24-C9) -> 0 | D16: 0 | E16: 0 | F16: 0 | G16: 0 | H16: 0
A17: Compensacion de Potencia | H17: 0
A24: Sub-Total Contratos | B24: =+SUMIFS(B25:B90,'GEN-502 Pre_Pot'!$H$25:$H$90,">"&0) -> 850.28937 | C24: =+SUMIFS(C25:C90,'GEN-502 Pre_Pot'!$H$25:$H$90,">"&0) -> 856.67457 | D24: =+SUMIFS(D25:D90,'GEN-502 Pre_Pot'!$H$25:$H$90,">"&0) -> 859.51937 | E24: =+SUMIFS(E25:E90,'GEN-502 Pre_Pot'!$H$25:$H$90,">"&0) -> 867.96937 | F24: =+SUMIFS(F25:F90,'GEN-502 Pre_Pot'!$H$25:$H$90,">"&0) -> 857.26937 | G24: =+SUMIFS(G25:G90,'GEN-502 Pre_Pot'!$H$25:$H$90,">"&0) -> 865.69937 | H24: =+SUMIFS(H25:H90,'GEN-502 Pre_Pot'!$H$25:$H$90,">"&0) -> 885.6777367
A25: Hydro Caisan No. 05-08 (17,048) | B25: 17.048 | C25: 17.048 | D25: 17.048 | E25: 17.048 | F25: 17.048 | G25: 17.048 | H25: =+IF(SUM(B25:G25)>0,AVERAGE(B25:G25),0) -> 17.048
A26: Electrón Inv. No. 07-08 (34,65) | B26: 34.65 | C26: 34.65 | D26: 34.65 | E26: 34.65 | F26: 34.65 | G26: 34.65 | H26: 34.65
A27: Empresa Nacional de Energía No. 24-11 (Cesión) | B27: 6.667 | C27: 6.667 | D27: 6.667 | E27: 6.667 | F27: 6.667 | G27: 6.667 | H27: =+IF(SUM(B27:G27)>0,AVERAGE(B27:G27),0) -> 6.667
A28: Enel Fortuna No. 25-11 | B28: 19.68098 | C28: 19.68098 | D28: 19.68098 | E28: 19.68098 | F28: 19.68098 | G28: 19.68098 | H28: 19.68098
A29: Electrogeneradora del Istmo No. 26-11 | B29: 0.83338 | C29: 0.83338 | D29: 0.83338 | E29: 0.83338 | F29: 0.83338 | G29: 0.83338 | H29: 0.83338
A30: ESEPSA No. 27-11 | B30: 3.65352 | C30: 3.65352 | D30: 3.65352 | E30: 3.65352 | F30: 3.65352 | G30: 3.65352 | H30: 3.65352
A31: Pedregalito No. 28-11 | B31: 2.62546 | C31: 2.62546 | D31: 2.62546 | E31: 2.62546 | F31: 2.62546 | G31: 2.62546 | H31: 2.62546
A32: Río Chico No. 29-11 | B32: 1.61008 | C32: 1.61008 | D32: 1.61008 | E32: 1.61008 | F32: 1.61008 | G32: 1.61008 | H32: 1.61008
A33: Alto Valle No. 30-11 | B33: 1.53208 | C33: 1.53208 | D33: 1.53208 | E33: 1.53208 | F33: 1.53208 | G33: 1.53208 | H33: 1.53208
A34: Hidroecológica del Teribe No. 31-11 | B34: 6.667 | C34: 6.667 | D34: 6.667 | E34: 6.667 | F34: 6.667 | G34: 6.667 | H34: 6.667
A35: Desarrollos Hidroeléctricos Corp. No. 32-11 | B35: 1.26873 | C35: 1.26873 | D35: 1.26873 | E35: 1.26873 | F35: 1.26873 | G35: 1.26873 | H35: 1.26873
A36: Las Perlas Norte No. 33-11 | B36: 7.93373 | C36: 7.93373 | D36: 7.93373 | E36: 7.93373 | F36: 7.93373 | G36: 7.93373 | H36: 7.93373
A37: Hidroeléctrica San Lorenzo No. 34-11 | B37: 0.88871 | C37: 0.88871 | D37: 0.88871 | E37: 0.88871 | F37: 0.88871 | G37: 0.88871 | H37: 0.88871
A38: Caldera Energy Corp. No. 35-11 | B38: 2.0001 | C38: 2.0001 | D38: 2.0001 | E38: 2.0001 | F38: 2.0001 | G38: 2.0001 | H38: 2.0001
A39: PASO ANCHO No. 86-11 | B39: 2.08 | C39: 2.08 | D39: 2.12 | E39: 2.16 | F39: 2.12 | G39: 2.08 | H39: 2.106666667
A40: Hidroecológica del Teribe No. 87-11 | B40: 2.65 | C40: 2.6 | D40: 2.6 | E40: 2.65 | F40: 2.6 | G40: 2.6 | H40: 2.616666667
A41: Unión Eólica de Panamá (PE Nuevo Chagres) No. 15-12' | B41: 5.8824 | C41: 4.9515 | D41: 0.0058 | E41: 0.0059 | F41: 0.0058 | G41: 0.0058 | H41: 1.809533333
A42: Unión Eólica de Panamá (PE Rosa de los Vientos) No. 16-12' | B42: 0.0059 | C42: 0.0058 | D42: 0.0058 | E42: 0.0059 | F42: 0.0058 | G42: 0.0058 | H42: 0.005833333333
A43: Unión Eólica de Panamá (PE Portobelo Ballestillas) No. 17-12' | B43: 0.0059 | C43: 0.0058 | D43: 0.0058 | E43: 0.0059 | F43: 0.0058 | G43: 0.0058 | H43: 0.005833333333
A44: Unión Eólica de Panamá (PE Marañon) No. 18-12' | B44: 0.0059 | C44: 0.0058 | D44: 0.0058 | E44: 0.0059 | F44: 0.0058 | G44: 0.0058 | H44: 0.005833333333
A45: AES No. 117-12 | B45: 210 | C45: 210 | D45: 210 | E45: 210 | F45: 210 | G45: 210 | H45: =+IF(SUM(B45:G45)>0,AVERAGE(B45:G45),0) -> 210
A46: HIDRO PIEDRA No. 118-12 | B46: 1.0716 | C46: 1.0716 | D46: 1.0716 | E46: 1.0716 | F46: 1.0716 | G46: 1.0716 | H46: 1.0716
A47: Corp. Energ. Del Istmo No. 119-12 | B47: 5.286 | C47: 5.286 | D47: 5.286 | E47: 5.286 | F47: 5.286 | G47: 5.286 | H47: 5.286
A48: Saltos del Francolí No. 121-12 | B48: 0.553 | C48: 0.553 | D48: 0.553 | E48: 0.553 | F48: 0.553 | G48: 0.553 | H48: 0.553
A49: ISTMUS HYDRO POWER CORP. No.02-13 | B49: 2.3069 | C49: 2.1975 | D49: 2.3251 | E49: 2.0906 | F49: 2.0619 | G49: 2.0893 | H49: 2.17855
A50: CALDERA ENERGY CORP. No.03-13 | B50: 2.61 | C50: 4.64 | D50: 5.605 | E50: 7.54 | F50: 4.845 | G50: 1.45 | H50: 4.448333333
A51: ELECTROGENERADORA DEL ISTMO, S.A. No.04-13 | B51: 0.87 | C51: 1.45 | D51: 2.2125 | E51: 2.61 | F51: 1.8525 | G51: 0.725 | H51: 1.62
A52: FOUNTAIN INTERTRADE CORP. No.05-13 | B52: 10.9785 | C52: 12.2368 | D52: 18.036 | E52: 24.4155 | F52: 15.8136 | G52: 8.9994 | H52: 15.07996667
A53: HIDROIBERICA, S.A. No.06-13 | B53: 0.2378 | C53: 0.3828 | D53: 0.472 | E53: 0.5858 | F53: 0.5301 | G53: 0.4988 | H53: 0.4512166667
A54: NAVITAS INTERNACIONAL, S.A. No.07-13 | B54: 2.3161 | C54: 2.4534 | D54: 3.0377 | E54: 3.0701 | F54: 2.6309 | G54: 1.9807 | H54: 2.581483333
A55: HIDROECOLÓGICA DEL TERIBE, S.A. No.08-13 | B55: 0 | C55: 0 | D55: 0.59 | E55: 2.9 | F55: 1.14 | G55: 1.16 | H55: 0.965
A56: HIDRONORTH CORP. No.09-13 | B56: 0.2784 | C56: 0.3248 | D56: 0.4012 | E56: 0.3944 | F56: 0.3819 | G56: 0.29 | H56: 0.3451166667
A57: EMPRESA NACIONAL DE ENERGÍA, S.A. No.24-13 | B57: 1.1136 | C57: 1.8966 | D57: 1.9293 | E57: 1.4224 | F57: 1.8639 | G57: 1.2586 | H57: 1.580733333
A58: FUERZA ELÉCTRICA DEL ISTMO, S.A. No.25-13 | B58: 0.435 | C58: 0.435 | D58: 0.4425 | E58: 0.3262 | F58: 0.4275 | G58: 0.435 | H58: 0.4168666667
A59: CAFÉ DE ELETA, S.A. No.26-13 | B59: 0.13341 | C59: 0.1421 | D59: 0.13944 | E59: 0.14053 | F59: 0.20852 | G59: 0.15806 | H59: 0.1536766667
A60: ENERGÍA Y SERVICIOS DE PANAMÁ, S.A. No.27-13 | B60: 6.4598 | C60: 7.73853 | D60: 8.10823 | E60: 7.09506 | F60: 9.21091 | G60: 5.78805 | H60: 7.400096667
A61: GENERADORA PEDREGALITO, S.A. No.28-13 | B61: 2.68365 | C61: 3.43766 | D61: 3.49752 | E61: 4.07595 | F61: 4.11027 | G61: 1.96388 | H61: 3.294821667
A62: GENERADORA RIO CHICO, S.A. No.29-13 | B62: 1.65474 | C62: 2.11862 | D62: 2.15453 | E62: 2.51016 | F62: 2.53211 | G62: 1.21202 | H62: =+IF(SUM(B62:G62)>0,AVERAGE(B62:G62),0) -> 2.030363333
A63: GENERADORA ALTO VALLE, S.A. No.30-13 | B63: 2.36396 | C63: 3.09533 | D63: 3.16255 | E63: 3.32505 | F63: 2.95311 | G63: 1.51687 | H63: 2.736145
A64: HYDRO CAISÁN, S.A. No.31-13 | B64: 5.8747 | C64: 10.14727 | D64: 12.4265 | E64: 5.18202 | F64: 11.1841 | G64: 3.14302 | H64: 7.992935
A65: FERSA PANAMÁ, S.A. No 05-14 | B65: 7.02 | C65: 6 | D65: 7.98 | E65: 6.97 | F65: 11.07 | G65: 18.8 | H65: 9.64
A66: Panama Solar2 No. 07-15 | B66: 2.53 | C66: 2.44 | D66: 2.48 | E66: 2.45 | F66: 2.93 | G66: 3.59 | H66: 2.736666667
A67: Solpac Investment No. 08-15 | B67: 0.43 | C67: 0.42 | D67: 0.43 | E67: 0.43 | F67: 0.45 | G67: 0.53 | H67: 0.4483333333
A68: GAS NATURAL ATLÁNTICO No. 16-15 | B68: 196 | C68: 196 | D68: 196 | E68: 196 | F68: 196 | G68: 196 | H68: 196
A69: MARTANO INC No. 18-15 | B69: 196 | C69: 196 | D69: 196 | E69: 196 | F69: 196 | G69: 196 | H69: 196
A70: AUTORIDAD DEL CANAL DE PANAMÁ No. 27-21 | B70: 0.4963 | C70: 0.3054 | H70: =+IF(SUM(B70:G70)>0,AVERAGE(B70:G70),0) -> 0.40085
A71: GENERADORA DEL ATLÁNTICO, S.A. No. 29-21 | B71: 8.4 | C71: 7.2 | H71: =+IF(SUM(B71:G71)>0,AVERAGE(B71:G71),0) -> 7.8
A72: GENERADORA DEL ATLÁNTICO, S.A. No. 30-21 | B72: 1.05 | C72: 0.9 | H72: 0.975
A73: PANAM GENERATING LTD No. 31-21 | B73: 9.5872 | C73: 8.2176 | H73: 8.9024
A74: TROPITÉRMICA, S.A. No. 33-21 | B74: 0.0665 | C74: 0.057 | H74: 0.06175
A75: EMPRESA NACIONAL DE ENERGÍA, S.A. No. 02-23 | B75: 0.1936 | C75: 0 | D75: 0.0676 | E75: 0.2772 | F75: 0.0207 | G75: 0 | H75: 0.09318333333
A76: FOUNTAIN HYDRO POWER CORP No. 03-23 | B76: 2.2592 | C76: 0 | D76: 0 | E76: 0 | F76: 0 | G76: 0 | H76: 0.3765333333
A77: GENERADORA DEL ISTMO, S.A. No. 04-23 | B77: 0.96 | H77: 0.96
A78: HIDRO BOQUERÓN, S.A. No. 05-23 | B78: 0.11696 | C78: 0.102 | D78: 0.1056 | E78: 0.20104 | F78: 0.05343 | G78: 0 | H78: 0.096505
A79: HIDROIBÉRICA No. 06-23 | B79: 0.06178 | C79: 0.07631 | D79: 0.02356 | E79: 0.03001 | F79: 0.01567 | G79: 0.07347 | H79: 0.0468
A80: IDEAL PANAMÁ, S.A. No. 08-23 | B80: 1.6 | H80: 1.6
A81: SOLAR BOQUERÓN, S.A. No. 12-23 | B81: 0.03888 | C81: 0.0408 | D81: 0.01008 | E81: 0.01652 | F81: 0.00789 | G81: 0.03234 | H81: 0.02441833333
A82: AUTORIDAD DEL CANAL DE PANAMÁ No. 13-23 | B82: 20.5968 | C82: 20.6586 | D82: 14.5 | E82: 16 | F82: 14.385 | G82: 15.5 | H82: 16.94006667
A83: CELSIA CENTROAMÉRICA, S.A. No. 14-23 | B83: 61.7808 | C83: 59.2066 | D83: 37.3259 | E83: 41.1872 | F83: 38.613 | G83: 39.9001 | H83: 46.3356
A84: GENERADORA DEL ATLÁNTICO, S.A. No. 15-23 | B84: 0 | C84: 0 | D84: 29 | E84: 32 | F84: 27 | G84: 31 | H84: 19.83333333
A85: GENERADORA DEL ATLÁNTICO, S.A. No. 16-23 | D85: 5.8 | E85: 6.4 | F85: 6 | G85: 7.75 | H85: 6.4875
A86: PEDREGAL POWER, S. DE R.L. No. 17-23 | B86: 10.7424 | C86: 23 | D86: 9.3641 | E86: 3.9328 | F86: 10.902 | G86: 4.7399 | H86: 10.44686667
A87: PANAM GENERATING LTD No. 18-23 | D87: 20.01 | E87: 22.08 | F87: 15.9 | G87: 21.39 | H87: 19.845
A88: PANAM GENERATING LTD No. 19-23 | D88: 14.5 | E88: 16 | F88: 15 | G88: 15.5 | H88: 15.25
A89: SPARKLE POWER, S.A. No. 20-23 | B89: 21.6 | C89: 20.7 | D89: 13.05 | E89: 14.4 | F89: 13.5 | G89: 13.95 | H89: 16.2
A90: TROPITÉRMICA, S.A. No. 21-23 | B90: 0 | C90: 0.46 | H90: 0.23

Sheet GEN-502 Pre_Pot
A1: INFORMACION PARA ACTUALIZAR: CARGO POR GENERACION
A2: =+'Compras (p)'!A2 -> EDEMET
A3: Precio Mensual de la Potencia Contratada (B/./KW/Mes)
B4: PRECIO ESTIMADO DE POTENCIA
A5: Detalle | B5: 2023-07-01 | C5: 2023-08-01 | D5: 2023-09-01 | E5: 2023-10-01 | F5: 2023-11-01 | G5: 2023-12-01 | H5: Promedio
A8: TOTAL | B8: =+IF('GEN-502 Pot'!B8=0,0,'GEN-502 Cos_Pot'!B8/'GEN-502 Pot'!B8/1000) -> 21.95103277 | C8: =+IF('GEN-502 Pot'!C8=0,0,'GEN-502 Cos_Pot'!C8/'GEN-502 Pot'!C8/1000) -> 21.87637297 | D8: =+IF('GEN-502 Pot'!D8=0,0,'GEN-502 Cos_Pot'!D8/'GEN-502 Pot'!D8/1000) -> 21.97721152 | E8: =+IF('GEN-502 Pot'!E8=0,0,'GEN-502 Cos_Pot'!E8/'GEN-502 Pot'!E8/1000) -> 21.82627255 | F8: =+IF('GEN-502 Pot'!F8=0,0,'GEN-502 Cos_Pot'!F8/'GEN-502 Pot'!F8/1000) -> 22.00732877 | G8: =+IF('GEN-502 Pot'!G8=0,0,'GEN-502 Cos_Pot'!G8/'GEN-502 Pot'!G8/1000) -> 21.86667585 | H8: =+IF('GEN-502 Pot'!H8>0,'GEN-502 Cos_Pot'!H8/'GEN-502 Pot'!H8,0)/1000/6 -> 21.91719552
A9: Generación Propia | H9: =+IF('GEN-502 Pot'!H9>0,'GEN-502 Cos_Pot'!H9/'GEN-502 Pot'!H9,0)/1000/6 -> 0
A10: 0 | H10: =+IF('GEN-502 Pot'!H10>0,'GEN-502 Cos_Pot'!H10/'GEN-502 Pot'!H10,0)/1000/6 -> 0
A11: 0 | H11: =+IF('GEN-502 Pot'!H11>0,'GEN-502 Cos_Pot'!H11/'GEN-502 Pot'!H11,0)/1000/6 -> 0
A12: 0 | H12: =+IF('GEN-502 Pot'!H12>0,'GEN-502 Cos_Pot'!H12/'GEN-502 Pot'!H12,0)/1000/6 -> 0
A13: 0 | H13: =+IF('GEN-502 Pot'!H13>0,'GEN-502 Cos_Pot'!H13/'GEN-502 Pot'!H13,0)/1000/6 -> 0
A14: 0 | H14: =+IF('GEN-502 Pot'!H14>0,'GEN-502 Cos_Pot'!H14/'GEN-502 Pot'!H14,0)/1000/6 -> 0
A15: Sub-Total Mercado Mayorista | B15: =+IF('GEN-502 Pot'!B15=0,0,'GEN-502 Cos_Pot'!B15/'GEN-502 Pot'!B15/1000) -> 21.95103277 | C15: =+IF('GEN-502 Pot'!C15=0,0,'GEN-502 Cos_Pot'!C15/'GEN-502 Pot'!C15/1000) -> 21.87637297 | D15: =+IF('GEN-502 Pot'!D15=0,0,'GEN-502 Cos_Pot'!D15/'GEN-502 Pot'!D15/1000) -> 21.97721152 | E15: =+IF('GEN-502 Pot'!E15=0,0,'GEN-502 Cos_Pot'!E15/'GEN-502 Pot'!E15/1000) -> 21.82627255 | F15: =+IF('GEN-502 Pot'!F15=0,0,'GEN-502 Cos_Pot'!F15/'GEN-502 Pot'!F15/1000) -> 22.00732877 | G15: =+IF('GEN-502 Pot'!G15=0,0,'GEN-502 Cos_Pot'!G15/'GEN-502 Pot'!G15/1000) -> 21.86667585 | H15: =+IF('GEN-502 Pot'!H15>0,'GEN-502 Cos_Pot'!H15/'GEN-502 Pot'!H15,0)/1000/6 -> 21.91719552
A16: Reserva de largo Plazo | B16: 8.96 | C16: 8.96 | D16: 8.96 | E16: 8.96 | F16: 8.96 | G16: 8.96 | H16: =+IF('GEN-502 Pot'!H16>0,'GEN-502 Cos_Pot'!H16/'GEN-502 Pot'!H16,0)/1000/6 -> 0
A17: Compensacion de Potencia | H17: =+IF('GEN-502 Pot'!H17>0,'GEN-502 Cos_Pot'!H17/'GEN-502 Pot'!H17,0)/1000/6 -> 0
H18: =+IF('GEN-502 Pot'!H18>0,'GEN-502 Cos_Pot'!H18/'GEN-502 Pot'!H18,0)/1000/6 -> 0
H19: =+IF('GEN-502 Pot'!H19>0,'GEN-502 Cos_Pot'!H19/'GEN-502 Pot'!H19,0)/1000/6 -> 0
H20: =+IF('GEN-502 Pot'!H20>0,'GEN-502 Cos_Pot'!H20/'GEN-502 Pot'!H20,0)/1000/6 -> 0
H21: =+IF('GEN-502 Pot'!H21>0,'GEN-502 Cos_Pot'!H21/'GEN-502 Pot'!H21,0)/1000/6 -> 0
H22: =+IF('GEN-502 Pot'!H22>0,'GEN-502 Cos_Pot'!H22/'GEN-502 Pot'!H22,0)/1000/6 -> 0
H23: =+IF('GEN-502 Pot'!H23>0,'GEN-502 Cos_Pot'!H23/'GEN-502 Pot'!H23,0)/1000/6 -> 0
A24: Sub-Total Contratos | B24: =+IF('GEN-502 Pot'!B24=0,0,'GEN-502 Cos_Pot'!B24/'GEN-502 Pot'!B24/1000) -> 21.89049173 | C24: =+IF('GEN-502 Pot'!C24=0,0,'GEN-502 Cos_Pot'!C24/'GEN-502 Pot'!C24/1000) -> 21.81500136 | D24: =+IF('GEN-502 Pot'!D24=0,0,'GEN-502 Cos_Pot'!D24/'GEN-502 Pot'!D24/1000) -> 21.91600174 | E24: =+IF('GEN-502 Pot'!E24=0,0,'GEN-502 Cos_Pot'!E24/'GEN-502 Pot'!E24/1000) -> 21.76559813 | F24: =+IF('GEN-502 Pot'!F24=0,0,'GEN-502 Cos_Pot'!F24/'GEN-502 Pot'!F24/1000) -> 21.94583885 | G24: =+IF('GEN-502 Pot'!G24=0,0,'GEN-502 Cos_Pot'!G24/'GEN-502 Pot'!G24/1000) -> 21.80575444 | H24: =+IF('GEN-502 Pot'!H24>0,'GEN-502 Cos_Pot'!H24/'GEN-502 Pot'!H24,0)/1000/6 -> 21.21189768
A25: Hydro Caisan No. 05-08 (17,048) | B25: 31.62 | C25: 31.62 | D25: 31.62 | E25: 31.62 | F25: 31.62 | G25: 31.62 | H25: =+IF('GEN-502 Pot'!H25>0,'GEN-502 Cos_Pot'!H25/'GEN-502 Pot'!H25,0)/1000/6 -> 31.62
A26: Electrón Inv. No. 07-08 (34,65) | B26: 15 | C26: 15 | D26: 15 | E26: 15 | F26: 15 | G26: 15 | H26: =+IF('GEN-502 Pot'!H26>0,'GEN-502 Cos_Pot'!H26/'GEN-502 Pot'!H26,0)/1000/6 -> 15
A27: Empresa Nacional de Energía No. 24-11 (Cesión) | B27: 10.25 | C27: 10.25 | D27: 10.25 | E27: 10.25 | F27: 10.25 | G27: 10.25 | H27: =+IF('GEN-502 Pot'!H27>0,'GEN-502 Cos_Pot'!H27/'GEN-502 Pot'!H27,0)/1000/6 -> 10.25
A28: Enel Fortuna No. 25-11 | B28: 6.75 | C28: 6.75 | D28: 6.75 | E28: 6.75 | F28: 6.75 | G28: 6.75 | H28: =+IF('GEN-502 Pot'!H28>0,'GEN-502 Cos_Pot'!H28/'GEN-502 Pot'!H28,0)/1000/6 -> 6.75
A29: Electrogeneradora del Istmo No. 26-11 | B29: 25 | C29: 25 | D29: 25 | E29: 25 | F29: 25 | G29: 25 | H29: =+IF('GEN-502 Pot'!H29>0,'GEN-502 Cos_Pot'!H29/'GEN-502 Pot'!H29,0)/1000/6 -> 25
A30: ESEPSA No. 27-11 | B30: 11.5 | C30: 11.5 | D30: 11.5 | E30: 11.5 | F30: 11.5 | G30: 11.5 | H30: =+IF('GEN-502 Pot'!H30>0,'GEN-502 Cos_Pot'!H30/'GEN-502 Pot'!H30,0)/1000/6 -> 11.5
A31: Pedregalito No. 28-11 | B31: 30 | C31: 30 | D31: 30 | E31: 30 | F31: 30 | G31: 30 | H31: =+IF('GEN-502 Pot'!H31>0,'GEN-502 Cos_Pot'!H31/'GEN-502 Pot'!H31,0)/1000/6 -> 30
A32: Río Chico No. 29-11 | B32: 30 | C32: 30 | D32: 30 | E32: 30 | F32: 30 | G32: 30 | H32: =+IF('GEN-502 Pot'!H32>0,'GEN-502 Cos_Pot'!H32/'GEN-502 Pot'!H32,0)/1000/6 -> 30
A33: Alto Valle No. 30-11 | B33: 30 | C33: 30 | D33: 30 | E33: 30 | F33: 30 | G33: 30 | H33: =+IF('GEN-502 Pot'!H33>0,'GEN-502 Cos_Pot'!H33/'GEN-502 Pot'!H33,0)/1000/6 -> 30
A34: Hidroecológica del Teribe No. 31-11 | B34: 8.5 | C34: 8.5 | D34: 8.5 | E34: 8.5 | F34: 8.5 | G34: 8.5 | H34: =+IF('GEN-502 Pot'!H34>0,'GEN-502 Cos_Pot'!H34/'GEN-502 Pot'!H34,0)/1000/6 -> 8.5
A35: Desarrollos Hidroeléctricos Corp. No. 32-11 | B35: 10.35 | C35: 10.35 | D35: 10.35 | E35: 10.35 | F35: 10.35 | G35: 10.35 | H35: =+IF('GEN-502 Pot'!H35>0,'GEN-502 Cos_Pot'!H35/'GEN-502 Pot'!H35,0)/1000/6 -> 10.35
A36: Las Perlas Norte No. 33-11 | B36: 9 | C36: 9 | D36: 9 | E36: 9 | F36: 9 | G36: 9 | H36: =+IF('GEN-502 Pot'!H36>0,'GEN-502 Cos_Pot'!H36/'GEN-502 Pot'!H36,0)/1000/6 -> 9
A37: Hidroeléctrica San Lorenzo No. 34-11 | B37: 15 | C37: 15 | D37: 15 | E37: 15 | F37: 15 | G37: 15 | H37: =+IF('GEN-502 Pot'!H37>0,'GEN-502 Cos_Pot'!H37/'GEN-502 Pot'!H37,0)/1000/6 -> 15
A38: Caldera Energy Corp. No. 35-11 | B38: 25 | C38: 25 | D38: 25 | E38: 25 | F38: 25 | G38: 25 | H38: =+IF('GEN-502 Pot'!H38>0,'GEN-502 Cos_Pot'!H38/'GEN-502 Pot'!H38,0)/1000/6 -> 25
A39: PASO ANCHO No. 86-11 | H39: =+IF('GEN-502 Pot'!H39>0,'GEN-502 Cos_Pot'!H39/'GEN-502 Pot'!H39,0)/1000/6 -> 0
A40: Hidroecológica del Teribe No. 87-11 | H40: =+IF('GEN-502 Pot'!H40>0,'GEN-502 Cos_Pot'!H40/'GEN-502 Pot'!H40,0)/1000/6 -> 0
A41: Unión Eólica de Panamá (PE Nuevo Chagres) No. 15-12' | H41: =+IF('GEN-502 Pot'!H41>0,'GEN-502 Cos_Pot'!H41/'GEN-502 Pot'!H41,0)/1000/6 -> 0
A42: Unión Eólica de Panamá (PE Rosa de los Vientos) No. 16-12' | H42: =+IF('GEN-502 Pot'!H42>0,'GEN-502 Cos_Pot'!H42/'GEN-502 Pot'!H42,0)/1000/6 -> 0
A43: Unión Eólica de Panamá (PE Portobelo Ballestillas) No. 17-12' | H43: =+IF('GEN-502 Pot'!H43>0,'GEN-502 Cos_Pot'!H43/'GEN-502 Pot'!H43,0)/1000/6 -> 0
A44: Unión Eólica de Panamá (PE Marañon) No. 18-12' | H44: =+IF('GEN-502 Pot'!H44>0,'GEN-502 Cos_Pot'!H44/'GEN-502 Pot'!H44,0)/1000/6 -> 0
A45: AES No. 117-12 | B45: 10 | C45: 10 | D45: 10 | E45: 10 | F45: 10 | G45: 10 | H45: =+IF('GEN-502 Pot'!H45>0,'GEN-502 Cos_Pot'!H45/'GEN-502 Pot'!H45,0)/1000/6 -> 10
A46: HIDRO PIEDRA No. 118-12 | B46: 9.56 | C46: 9.56 | D46: 9.56 | E46: 9.56 | F46: 9.56 | G46: 9.56 | H46: =+IF('GEN-502 Pot'!H46>0,'GEN-502 Cos_Pot'!H46/'GEN-502 Pot'!H46,0)/1000/6 -> 9.56
A47: Corp. Energ. Del Istmo No. 119-12 | B47: 8.9 | C47: 8.9 | D47: 8.9 | E47: 8.9 | F47: 8.9 | G47: 8.9 | H47: =+IF('GEN-502 Pot'!H47>0,'GEN-502 Cos_Pot'!H47/'GEN-502 Pot'!H47,0)/1000/6 -> 8.9
A48: Saltos del Francolí No. 121-12 | B48: 13.53 | C48: 13.53 | D48: 13.53 | E48: 13.53 | F48: 13.53 | G48: 13.53 | H48: =+IF('GEN-502 Pot'!H48>0,'GEN-502 Cos_Pot'!H48/'GEN-502 Pot'!H48,0)/1000/6 -> 13.53
A49: ISTMUS HYDRO POWER CORP. No.02-13 | H49: =+IF('GEN-502 Pot'!H49>0,'GEN-502 Cos_Pot'!H49/'GEN-502 Pot'!H49,0)/1000/6 -> 0
A50: CALDERA ENERGY CORP. No.03-13 | H50: =+IF('GEN-502 Pot'!H50>0,'GEN-502 Cos_Pot'!H50/'GEN-502 Pot'!H50,0)/1000/6 -> 0
A51: ELECTROGENERADORA DEL ISTMO, S.A. No.04-13 | H51: =+IF('GEN-502 Pot'!H51>0,'GEN-502 Cos_Pot'!H51/'GEN-502 Pot'!H51,0)/1000/6 -> 0
A52: FOUNTAIN INTERTRADE CORP. No.05-13 | H52: =+IF('GEN-502 Pot'!H52>0,'GEN-502 Cos_Pot'!H52/'GEN-502 Pot'!H52,0)/1000/6 -> 0
A53: HIDROIBERICA, S.A. No.06-13 | H53: =+IF('GEN-502 Pot'!H53>0,'GEN-502 Cos_Pot'!H53/'GEN-502 Pot'!H53,0)/1000/6 -> 0
A54: NAVITAS INTERNACIONAL, S.A. No.07-13 | H54: =+IF('GEN-502 Pot'!H54>0,'GEN-502 Cos_Pot'!H54/'GEN-502 Pot'!H54,0)/1000/6 -> 0
A55: HIDROECOLÓGICA DEL TERIBE, S.A. No.08-13 | H55: =+IF('GEN-502 Pot'!H55>0,'GEN-502 Cos_Pot'!H55/'GEN-502 Pot'!H55,0)/1000/6 -> 0
A56: HIDRONORTH CORP. No.09-13 | H56: =+IF('GEN-502 Pot'!H56>0,'GEN-502 Cos_Pot'!H56/'GEN-502 Pot'!H56,0)/1000/6 -> 0
A57: EMPRESA NACIONAL DE ENERGÍA, S.A. No.24-13 | H57: =+IF('GEN-502 Pot'!H57>0,'GEN-502 Cos_Pot'!H57/'GEN-502 Pot'!H57,0)/1000/6 -> 0
A58: FUERZA ELÉCTRICA DEL ISTMO, S.A. No.25-13 | H58: =+IF('GEN-502 Pot'!H58>0,'GEN-502 Cos_Pot'!H58/'GEN-502 Pot'!H58,0)/1000/6 -> 0
A59: CAFÉ DE ELETA, S.A. No.26-13 | H59: =+IF('GEN-502 Pot'!H59>0,'GEN-502 Cos_Pot'!H59/'GEN-502 Pot'!H59,0)/1000/6 -> 0
A60: ENERGÍA Y SERVICIOS DE PANAMÁ, S.A. No.27-13 | H60: =+IF('GEN-502 Pot'!H60>0,'GEN-502 Cos_Pot'!H60/'GEN-502 Pot'!H60,0)/1000/6 -> 0
A61: GENERADORA PEDREGALITO, S.A. No.28-13 | H61: =+IF('GEN-502 Pot'!H61>0,'GEN-502 Cos_Pot'!H61/'GEN-502 Pot'!H61,0)/1000/6 -> 0
A62: GENERADORA RIO CHICO, S.A. No.29-13 | H62: =+IF('GEN-502 Pot'!H62>0,'GEN-502 Cos_Pot'!H62/'GEN-502 Pot'!H62,0)/1000/6 -> 0
A63: GENERADORA ALTO VALLE, S.A. No.30-13 | H63: =+IF('GEN-502 Pot'!H63>0,'GEN-502 Cos_Pot'!H63/'GEN-502 Pot'!H63,0)/1000/6 -> 0
A64: HYDRO CAISÁN, S.A. No.31-13 | H64: =+IF('GEN-502 Pot'!H64>0,'GEN-502 Cos_Pot'!H64/'GEN-502 Pot'!H64,0)/1000/6 -> 0
A65: FERSA PANAMÁ, S.A. No 05-14 | H65: =+IF('GEN-502 Pot'!H65>0,'GEN-502 Cos_Pot'!H65/'GEN-502 Pot'!H65,0)/1000/6 -> 0
A66: Panama Solar2 No. 07-15 | H66: =+IF('GEN-502 Pot'!H66>0,'GEN-502 Cos_Pot'!H66/'GEN-502 Pot'!H66,0)/1000/6 -> 0
A67: Solpac Investment No. 08-15 | H67: =+IF('GEN-502 Pot'!H67>0,'GEN-502 Cos_Pot'!H67/'GEN-502 Pot'!H67,0)/1000/6 -> 0
A68: GAS NATURAL ATLÁNTICO No. 16-15 | B68: 38.83 | C68: 38.83 | D68: 38.83 | E68: 38.83 | F68: 38.83 | G68: 38.83 | H68: =+IF('GEN-502 Pot'!H68>0,'GEN-502 Cos_Pot'!H68/'GEN-502 Pot'!H68,0)/1000/6 -> 38.83
A69: MARTANO INC No. 18-15 | B69: 32.09 | C69: 32.09 | D69: 32.09 | E69: 32.09 | F69: 32.09 | G69: 32.09 | H69: =+IF('GEN-502 Pot'!H69>0,'GEN-502 Cos_Pot'!H69/'GEN-502 Pot'!H69,0)/1000/6 -> 32.09
A70: AUTORIDAD DEL CANAL DE PANAMÁ No. 27-21 | B70: 6.409 | C70: 6.409 | H70: =+IF('GEN-502 Pot'!H70>0,'GEN-502 Cos_Pot'!H70/'GEN-502 Pot'!H70,0)/1000/6 -> 2.136333333
A71: GENERADORA DEL ATLÁNTICO, S.A. No. 29-21 | B71: 4.75 | C71: 4.75 | H71: =+IF('GEN-502 Pot'!H71>0,'GEN-502 Cos_Pot'!H71/'GEN-502 Pot'!H71,0)/1000/6 -> 1.583333333
A72: GENERADORA DEL ATLÁNTICO, S.A. No. 30-21 | B72: 6.25 | C72: 6.25 | H72: =+IF('GEN-502 Pot'!H72>0,'GEN-502 Cos_Pot'!H72/'GEN-502 Pot'!H72,0)/1000/6 -> 2.083333333
A73: PANAM GENERATING LTD No. 31-21 | B73: 6.392 | C73: 6.392 | H73: =+IF('GEN-502 Pot'!H73>0,'GEN-502 Cos_Pot'!H73/'GEN-502 Pot'!H73,0)/1000/6 -> 2.130666667
A74: TROPITÉRMICA, S.A. No. 33-21 | B74: 5.25 | C74: 5.25 | H74: =+IF('GEN-502 Pot'!H74>0,'GEN-502 Cos_Pot'!H74/'GEN-502 Pot'!H74,0)/1000/6 -> 1.75
A75: EMPRESA NACIONAL DE ENERGÍA, S.A. No. 02-23 | H75: =+IF('GEN-502 Pot'!H75>0,'GEN-502 Cos_Pot'!H75/'GEN-502 Pot'!H75,0)/1000/6 -> 0
A76: FOUNTAIN HYDRO POWER CORP No. 03-23 | H76: =+IF('GEN-502 Pot'!H76>0,'GEN-502 Cos_Pot'!H76/'GEN-502 Pot'!H76,0)/1000/6 -> 0
A77: GENERADORA DEL ISTMO, S.A. No. 04-23 | H77: =+IF('GEN-502 Pot'!H77>0,'GEN-502 Cos_Pot'!H77/'GEN-502 Pot'!H77,0)/1000/6 -> 0
A78: HIDRO BOQUERÓN, S.A. No. 05-23 | H78: =+IF('GEN-502 Pot'!H78>0,'GEN-502 Cos_Pot'!H78/'GEN-502 Pot'!H78,0)/1000/6 -> 0
A79: HIDROIBÉRICA No. 06-23 | H79: =+IF('GEN-502 Pot'!H79>0,'GEN-502 Cos_Pot'!H79/'GEN-502 Pot'!H79,0)/1000/6 -> 0
A80: IDEAL PANAMÁ, S.A. No. 08-23 | H80: =+IF('GEN-502 Pot'!H80>0,'GEN-502 Cos_Pot'!H80/'GEN-502 Pot'!H80,0)/1000/6 -> 0
A81: SOLAR BOQUERÓN, S.A. No. 12-23 | H81: =+IF('GEN-502 Pot'!H81>0,'GEN-502 Cos_Pot'!H81/'GEN-502 Pot'!H81,0)/1000/6 -> 0
A82: AUTORIDAD DEL CANAL DE PANAMÁ No. 13-23 | B82: 7.5 | C82: 7.5 | D82: 7.5 | E82: 7.5 | F82: 7.5 | G82: 7.5 | H82: =+IF('GEN-502 Pot'!H82>0,'GEN-502 Cos_Pot'!H82/'GEN-502 Pot'!H82,0)/1000/6 -> 7.5
A83: CELSIA CENTROAMÉRICA, S.A. No. 14-23 | B83: 5.97 | C83: 5.97 | D83: 5.97 | E83: 5.97 | F83: 5.97 | G83: 5.97 | H83: =+IF('GEN-502 Pot'!H83>0,'GEN-502 Cos_Pot'!H83/'GEN-502 Pot'!H83,0)/1000/6 -> 5.97
A84: GENERADORA DEL ATLÁNTICO, S.A. No. 15-23 | B84: 0 | C84: 0 | D84: 8.25 | E84: 8.25 | F84: 8.25 | G84: 8.25 | H84: =+IF('GEN-502 Pot'!H84>0,'GEN-502 Cos_Pot'!H84/'GEN-502 Pot'!H84,0)/1000/6 -> 8.25
A85: GENERADORA DEL ATLÁNTICO, S.A. No. 16-23 | D85: 7.99 | E85: 7.99 | F85: 7.99 | G85: 7.99 | H85: =+IF('GEN-502 Pot'!H85>0,'GEN-502 Cos_Pot'!H85/'GEN-502 Pot'!H85,0)/1000/6 -> 5.326666667
A86: PEDREGAL POWER, S. DE R.L. No. 17-23 | B86: 8.785 | C86: 8.785 | D86: 8.785 | E86: 8.785 | F86: 8.785 | G86: 8.785 | H86: =+IF('GEN-502 Pot'!H86>0,'GEN-502 Cos_Pot'!H86/'GEN-502 Pot'!H86,0)/1000/6 -> 8.785
A87: PANAM GENERATING LTD No. 18-23 | D87: 8.75 | E87: 8.75 | F87: 8.75 | G87: 8.75 | H87: =+IF('GEN-502 Pot'!H87>0,'GEN-502 Cos_Pot'!H87/'GEN-502 Pot'!H87,0)/1000/6 -> 5.833333333
A88: PANAM GENERATING LTD No. 19-23 | D88: 8.65 | E88: 8.65 | F88: 8.65 | G88: 8.65 | H88: =+IF('GEN-502 Pot'!H88>0,'GEN-502 Cos_Pot'!H88/'GEN-502 Pot'!H88,0)/1000/6 -> 5.766666667
A89: SPARKLE POWER, S.A. No. 20-23 | B89: 5.5 | C89: 5.5 | D89: 5.5 | E89: 5.5 | F89: 5.5 | G89: 5.5 | H89: =+IF('GEN-502 Pot'!H89>0,'GEN-502 Cos_Pot'!H89/'GEN-502 Pot'!H89,0)/1000/6 -> 5.5
A90: TROPITÉRMICA, S.A. No. 21-23 | B90: 0 | C90: 8.568 | H90: =+IF('GEN-502 Pot'!H90>0,'GEN-502 Cos_Pot'!H90/'GEN-502 Pot'!H90,0)/1000/6 -> 2.856

Sheet GEN-502 Cos_Pot
A1: INFORMACION PARA ACTUALIZAR: CARGO POR GENERACION
A2: =+'Compras (p)'!A2 -> EDEMET
A3: Estimación de Facturación Mensual de Potencia para suministrar Clientes Regulados (B/.)
B4: ESTIMACION DEL COSTO DE POTENCIA
A5: Detalle | B5: 2023-07-01 | C5: 2023-08-01 | D5: 2023-09-01 | E5: 2023-10-01 | F5: 2023-11-01 | G5: 2023-12-01 | H5: Total
A8: TOTAL COSTO DE POTENCIA | B8: =+B9+B15 -> 18664729.83 | C8: 18740932.41 | D8: 18889839 | E8: 18944536.04 | F8: 18866208.87 | G8: 18929967.51 | H8: =+SUM(B8:G8) -> 113036213.7
A9: Generación Propia | B9: 0 | C9: 0 | D9: 0 | E9: 0 | F9: 0 | G9: 0 | H9: 0
A10: 0 | B10: 0 | C10: 0 | D10: 0 | E10: 0 | F10: 0 | G10: 0 | H10: 0
A11: 0 | B11: 0 | C11: 0 | D11: 0 | E11: 0 | F11: 0 | G11: 0 | H11: 0
A12: 0 | B12: 0 | C12: 0 | D12: 0 | E12: 0 | F12: 0 | G12: 0 | H12: 0
A13: 0 | H13: 0
A14: 0 | H14: 0
A15: Sub-Total Mercado Mayorista | B15: =+SUM(B16:B24) -> 18664729.83 | C15: 18740932.41 | D15: 18889839 | E15: 18944536.04 | F15: 18866208.87 | G15: 18929967.51 | H15: 113036213.7
A16: Reserva de largo Plazo | B16: =+'GEN-502 Pot'!B16*'GEN-502 Pre_Pot'!B16 -> 0 | C16: =+'GEN-502 Pot'!C16*'GEN-502 Pre_Pot'!C16 -> 0 | D16: =+'GEN-502 Pot'!D16*'GEN-502 Pre_Pot'!D16 -> 0 | E16: =+'GEN-502 Pot'!E16*'GEN-502 Pre_Pot'!E16 -> 0 | F16: =+'GEN-502 Pot'!F16*'GEN-502 Pre_Pot'!F16 -> 0 | G16: =+'GEN-502 Pot'!G16*'GEN-502 Pre_Pot'!G16 -> 0 | H16: 0
A17: Compensacion de Potencia | B17: 697.4052419 | C17: 1795.503786 | D17: 1830.994972 | E17: 1883.538116 | F17: 1933.420225 | G17: 1959.623922 | H17: 10100.48626
A18: Seguimiento de la Demanda | B18: 50780 | C18: 50780 | D18: 50780 | E18: 50780 | F18: 50780 | G18: 50780 | H18: 304680
H19: 0
H20: 0
H21: 0
H22: 0
H23: 0
A24: Sub-Total Contratos | B24: =+SUM('GEN-502 Cos_Pot'!B25:B107) -> 18613252.42 | C24: =+SUM('GEN-502 Cos_Pot'!C25:C107) -> 18688356.91 | D24: =+SUM('GEN-502 Cos_Pot'!D25:D107) -> 18837228.01 | E24: =+SUM('GEN-502 Cos_Pot'!E25:E107) -> 18891872.5 | F24: =+SUM('GEN-502 Cos_Pot'!F25:F107) -> 18813495.45 | G24: =+SUM('GEN-502 Cos_Pot'!G25:G107) -> 18877227.88 | H24: 112721433.2
A25: =+'GEN-502 Pot'!A25 -> Hydro Caisan No. 05-08 (17,048) | B25: =+'GEN-502 Pot'!B25*'GEN-502 Pre_Pot'!B25*1000 -> 539057.76 | C25: =+'GEN-502 Pot'!C25*'GEN-502 Pre_Pot'!C25*1000 -> 539057.76 | D25: =+'GEN-502 Pot'!D25*'GEN-502 Pre_Pot'!D25*1000 -> 539057.76 | E25: =+'GEN-502 Pot'!E25*'GEN-502 Pre_Pot'!E25*1000 -> 539057.76 | F25: =+'GEN-502 Pot'!F25*'GEN-502 Pre_Pot'!F25*1000 -> 539057.76 | G25: =+'GEN-502 Pot'!G25*'GEN-502 Pre_Pot'!G25*1000 -> 539057.76 | H25: 3234346.56
A26: =+'GEN-502 Pot'!A26 -> Electrón Inv. No. 07-08 (34,65) | B26: =+'GEN-502 Pot'!B26*'GEN-502 Pre_Pot'!B26*1000 -> 519750 | C26: =+'GEN-502 Pot'!C26*'GEN-502 Pre_Pot'!C26*1000 -> 519750 | D26: =+'GEN-502 Pot'!D26*'GEN-502 Pre_Pot'!D26*1000 -> 519750 | E26: =+'GEN-502 Pot'!E26*'GEN-502 Pre_Pot'!E26*1000 -> 519750 | F26: =+'GEN-502 Pot'!F26*'GEN-502 Pre_Pot'!F26*1000 -> 519750 | G26: =+'GEN-502 Pot'!G26*'GEN-502 Pre_Pot'!G26*1000 -> 519750 | H26: 3118500
A27: =+'GEN-502 Pot'!A27 -> Empresa Nacional de Energía No. 24-11 (Cesión) | B27: =+'GEN-502 Pot'!B27*'GEN-502 Pre_Pot'!B27*1000 -> 68336.75 | C27: =+'GEN-502 Pot'!C27*'GEN-502 Pre_Pot'!C27*1000 -> 68336.75 | D27: =+'GEN-502 Pot'!D27*'GEN-502 Pre_Pot'!D27*1000 -> 68336.75 | E27: =+'GEN-502 Pot'!E27*'GEN-502 Pre_Pot'!E27*1000 -> 68336.75 | F27: =+'GEN-502 Pot'!F27*'GEN-502 Pre_Pot'!F27*1000 -> 68336.75 | G27: =+'GEN-502 Pot'!G27*'GEN-502 Pre_Pot'!G27*1000 -> 68336.75 | H27: =+SUM(B27:G27) -> 410020.5
A28: =+'GEN-502 Pot'!A28 -> Enel Fortuna No. 25-11 | B28: =+'GEN-502 Pot'!B28*'GEN-502 Pre_Pot'!B28*1000 -> 132846.615 | C28: =+'GEN-502 Pot'!C28*'GEN-502 Pre_Pot'!C28*1000 -> 132846.615 | D28: =+'GEN-502 Pot'!D28*'GEN-502 Pre_Pot'!D28*1000 -> 132846.615 | E28: =+'GEN-502 Pot'!E28*'GEN-502 Pre_Pot'!E28*1000 -> 132846.615 | F28: =+'GEN-502 Pot'!F28*'GEN-502 Pre_Pot'!F28*1000 -> 132846.615 | G28: =+'GEN-502 Pot'!G28*'GEN-502 Pre_Pot'!G28*1000 -> 132846.615 | H28: 797079.69
A29: =+'GEN-502 Pot'!A29 -> Electrogeneradora del Istmo No. 26-11 | B29: =+'GEN-502 Pot'!B29*'GEN-502 Pre_Pot'!B29*1000 -> 20834.5 | C29: =+'GEN-502 Pot'!C29*'GEN-502 Pre_Pot'!C29*1000 -> 20834.5 | D29: =+'GEN-502 Pot'!D29*'GEN-502 Pre_Pot'!D29*1000 -> 20834.5 | E29: =+'GEN-502 Pot'!E29*'GEN-502 Pre_Pot'!E29*1000 -> 20834.5 | F29: =+'GEN-502 Pot'!F29*'GEN-502 Pre_Pot'!F29*1000 -> 20834.5 | G29: =+'GEN-502 Pot'!G29*'GEN-502 Pre_Pot'!G29*1000 -> 20834.5 | H29: 125007
A30: =+'GEN-502 Pot'!A30 -> ESEPSA No. 27-11 | B30: =+'GEN-502 Pot'!B30*'GEN-502 Pre_Pot'!B30*1000 -> 42015.48 | C30: =+'GEN-502 Pot'!C30*'GEN-502 Pre_Pot'!C30*1000 -> 42015.48 | D30: =+'GEN-502 Pot'!D30*'GEN-502 Pre_Pot'!D30*1000 -> 42015.48 | E30: =+'GEN-502 Pot'!E30*'GEN-502 Pre_Pot'!E30*1000 -> 42015.48 | F30: =+'GEN-502 Pot'!F30*'GEN-502 Pre_Pot'!F30*1000 -> 42015.48 | G30: =+'GEN-502 Pot'!G30*'GEN-502 Pre_Pot'!G30*1000 -> 42015.48 | H30: 252092.88
A31: =+'GEN-502 Pot'!A31 -> Pedregalito No. 28-11 | B31: =+'GEN-502 Pot'!B31*'GEN-502 Pre_Pot'!B31*1000 -> 78763.8 | C31: =+'GEN-502 Pot'!C31*'GEN-502 Pre_Pot'!C31*1000 -> 78763.8 | D31: =+'GEN-502 Pot'!D31*'GEN-502 Pre_Pot'!D31*1000 -> 78763.8 | E31: =+'GEN-502 Pot'!E31*'GEN-502 Pre_Pot'!E31*1000 -> 78763.8 | F31: =+'GEN-502 Pot'!F31*'GEN-502 Pre_Pot'!F31*1000 -> 78763.8 | G31: =+'GEN-502 Pot'!G31*'GEN-502 Pre_Pot'!G31*1000 -> 78763.8 | H31: 472582.8
A32: =+'GEN-502 Pot'!A32 -> Río Chico No. 29-11 | B32: =+'GEN-502 Pot'!B32*'GEN-502 Pre_Pot'!B32*1000 -> 48302.4 | C32: =+'GEN-502 Pot'!C32*'GEN-502 Pre_Pot'!C32*1000 -> 48302.4 | D32: =+'GEN-502 Pot'!D32*'GEN-502 Pre_Pot'!D32*1000 -> 48302.4 | E32: =+'GEN-502 Pot'!E32*'GEN-502 Pre_Pot'!E32*1000 -> 48302.4 | F32: =+'GEN-502 Pot'!F32*'GEN-502 Pre_Pot'!F32*1000 -> 48302.4 | G32: =+'GEN-502 Pot'!G32*'GEN-502 Pre_Pot'!G32*1000 -> 48302.4 | H32: 289814.4
A33: =+'GEN-502 Pot'!A33 -> Alto Valle No. 30-11 | B33: =+'GEN-502 Pot'!B33*'GEN-502 Pre_Pot'!B33*1000 -> 45962.4 | C33: =+'GEN-502 Pot'!C33*'GEN-502 Pre_Pot'!C33*1000 -> 45962.4 | D33: =+'GEN-502 Pot'!D33*'GEN-502 Pre_Pot'!D33*1000 -> 45962.4 | E33: =+'GEN-502 Pot'!E33*'GEN-502 Pre_Pot'!E33*1000 -> 45962.4 | F33: =+'GEN-502 Pot'!F33*'GEN-502 Pre_Pot'!F33*1000 -> 45962.4 | G33: =+'GEN-502 Pot'!G33*'GEN-502 Pre_Pot'!G33*1000 -> 45962.4 | H33: 275774.4
A34: =+'GEN-502 Pot'!A34 -> Hidroecológica del Teribe No. 31-11 | B34: =+'GEN-502 Pot'!B34*'GEN-502 Pre_Pot'!B34*1000 -> 56669.5 | C34: =+'GEN-502 Pot'!C34*'GEN-502 Pre_Pot'!C34*1000 -> 56669.5 | D34: =+'GEN-502 Pot'!D34*'GEN-502 Pre_Pot'!D34*1000 -> 56669.5 | E34: =+'GEN-502 Pot'!E34*'GEN-502 Pre_Pot'!E34*1000 -> 56669.5 | F34: =+'GEN-502 Pot'!F34*'GEN-502 Pre_Pot'!F34*1000 -> 56669.5 | G34: =+'GEN-502 Pot'!G34*'GEN-502 Pre_Pot'!G34*1000 -> 56669.5 | H34: 340017
A35: =+'GEN-502 Pot'!A35 -> Desarrollos Hidroeléctricos Corp. No. 32-11 | B35: =+'GEN-502 Pot'!B35*'GEN-502 Pre_Pot'!B35*1000 -> 13131.3555 | C35: =+'GEN-502 Pot'!C35*'GEN-502 Pre_Pot'!C35*1000 -> 13131.3555 | D35: =+'GEN-502 Pot'!D35*'GEN-502 Pre_Pot'!D35*1000 -> 13131.3555 | E35: =+'GEN-502 Pot'!E35*'GEN-502 Pre_Pot'!E35*1000 -> 13131.3555 | F35: =+'GEN-502 Pot'!F35*'GEN-502 Pre_Pot'!F35*1000 -> 13131.3555 | G35: =+'GEN-502 Pot'!G35*'GEN-502 Pre_Pot'!G35*1000 -> 13131.3555 | H35: 78788.133
A36: =+'GEN-502 Pot'!A36 -> Las Perlas Norte No. 33-11 | B36: =+'GEN-502 Pot'!B36*'GEN-502 Pre_Pot'!B36*1000 -> 71403.57 | C36: =+'GEN-502 Pot'!C36*'GEN-502 Pre_Pot'!C36*1000 -> 71403.57 | D36: =+'GEN-502 Pot'!D36*'GEN-502 Pre_Pot'!D36*1000 -> 71403.57 | E36: =+'GEN-502 Pot'!E36*'GEN-502 Pre_Pot'!E36*1000 -> 71403.57 | F36: =+'GEN-502 Pot'!F36*'GEN-502 Pre_Pot'!F36*1000 -> 71403.57 | G36: =+'GEN-502 Pot'!G36*'GEN-502 Pre_Pot'!G36*1000 -> 71403.57 | H36: 428421.42
A37: =+'GEN-502 Pot'!A37 -> Hidroeléctrica San Lorenzo No. 34-11 | B37: =+'GEN-502 Pot'!B37*'GEN-502 Pre_Pot'!B37*1000 -> 13330.65 | C37: =+'GEN-502 Pot'!C37*'GEN-502 Pre_Pot'!C37*1000 -> 13330.65 | D37: =+'GEN-502 Pot'!D37*'GEN-502 Pre_Pot'!D37*1000 -> 13330.65 | E37: =+'GEN-502 Pot'!E37*'GEN-502 Pre_Pot'!E37*1000 -> 13330.65 | F37: =+'GEN-502 Pot'!F37*'GEN-502 Pre_Pot'!F37*1000 -> 13330.65 | G37: =+'GEN-502 Pot'!G37*'GEN-502 Pre_Pot'!G37*1000 -> 13330.65 | H37: 79983.9
A38: =+'GEN-502 Pot'!A38 -> Caldera Energy Corp. No. 35-11 | B38: =+'GEN-502 Pot'!B38*'GEN-502 Pre_Pot'!B38*1000 -> 50002.5 | C38: =+'GEN-502 Pot'!C38*'GEN-502 Pre_Pot'!C38*1000 -> 50002.5 | D38: =+'GEN-502 Pot'!D38*'GEN-502 Pre_Pot'!D38*1000 -> 50002.5 | E38: =+'GEN-502 Pot'!E38*'GEN-502 Pre_Pot'!E38*1000 -> 50002.5 | F38: =+'GEN-502 Pot'!F38*'GEN-502 Pre_Pot'!F38*1000 -> 50002.5 | G38: =+'GEN-502 Pot'!G38*'GEN-502 Pre_Pot'!G38*1000 -> 50002.5 | H38: 300015
A39: =+'GEN-502 Pot'!A39 -> PASO ANCHO No. 86-11 | H39: 0
A40: =+'GEN-502 Pot'!A40 -> Hidroecológica del Teribe No. 87-11 | H40: 0
A41: =+'GEN-502 Pot'!A41 -> Unión Eólica de Panamá (PE Nuevo Chagres) No. 15-12' | H41: =+SUM(B41:G41) -> 0
A42: =+'GEN-502 Pot'!A42 -> Unión Eólica de Panamá (PE Rosa de los Vientos) No. 16-12' | H42: 0
A43: =+'GEN-502 Pot'!A43 -> Unión Eólica de Panamá (PE Portobelo Ballestillas) No. 17-12' | H43: 0
A44: =+'GEN-502 Pot'!A44 -> Unión Eólica de Panamá (PE Marañon) No. 18-12' | H44: 0
A45: =+'GEN-502 Pot'!A45 -> AES No. 117-12 | B45: =+'GEN-502 Pot'!B45*'GEN-502 Pre_Pot'!B45*1000 -> 2100000 | C45: =+'GEN-502 Pot'!C45*'GEN-502 Pre_Pot'!C45*1000 -> 2100000 | D45: =+'GEN-502 Pot'!D45*'GEN-502 Pre_Pot'!D45*1000 -> 2100000 | E45: =+'GEN-502 Pot'!E45*'GEN-502 Pre_Pot'!E45*1000 -> 2100000 | F45: =+'GEN-502 Pot'!F45*'GEN-502 Pre_Pot'!F45*1000 -> 2100000 | G45: =+'GEN-502 Pot'!G45*'GEN-502 Pre_Pot'!G45*1000 -> 2100000 | H45: 12600000
A46: =+'GEN-502 Pot'!A46 -> HIDRO PIEDRA No. 118-12 | B46: =+'GEN-502 Pot'!B46*'GEN-502 Pre_Pot'!B46*1000 -> 10244.496 | C46: =+'GEN-502 Pot'!C46*'GEN-502 Pre_Pot'!C46*1000 -> 10244.496 | D46: =+'GEN-502 Pot'!D46*'GEN-502 Pre_Pot'!D46*1000 -> 10244.496 | E46: =+'GEN-502 Pot'!E46*'GEN-502 Pre_Pot'!E46*1000 -> 10244.496 | F46: =+'GEN-502 Pot'!F46*'GEN-502 Pre_Pot'!F46*1000 -> 10244.496 | G46: =+'GEN-502 Pot'!G46*'GEN-502 Pre_Pot'!G46*1000 -> 10244.496 | H46: 61466.976
A47: =+'GEN-502 Pot'!A47 -> Corp. Energ. Del Istmo No. 119-12 | B47: =+'GEN-502 Pot'!B47*'GEN-502 Pre_Pot'!B47*1000 -> 47045.4 | C47: =+'GEN-502 Pot'!C47*'GEN-502 Pre_Pot'!C47*1000 -> 47045.4 | D47: =+'GEN-502 Pot'!D47*'GEN-502 Pre_Pot'!D47*1000 -> 47045.4 | E47: =+'GEN-502 Pot'!E47*'GEN-502 Pre_Pot'!E47*1000 -> 47045.4 | F47: =+'GEN-502 Pot'!F47*'GEN-502 Pre_Pot'!F47*1000 -> 47045.4 | G47: =+'GEN-502 Pot'!G47*'GEN-502 Pre_Pot'!G47*1000 -> 47045.4 | H47: 282272.4
A48: =+'GEN-502 Pot'!A48 -> Saltos del Francolí No. 121-12 | B48: =+'GEN-502 Pot'!B48*'GEN-502 Pre_Pot'!B48*1000 -> 7482.09 | C48: =+'GEN-502 Pot'!C48*'GEN-502 Pre_Pot'!C48*1000 -> 7482.09 | D48: =+'GEN-502 Pot'!D48*'GEN-502 Pre_Pot'!D48*1000 -> 7482.09 | E48: =+'GEN-502 Pot'!E48*'GEN-502 Pre_Pot'!E48*1000 -> 7482.09 | F48: =+'GEN-502 Pot'!F48*'GEN-502 Pre_Pot'!F48*1000 -> 7482.09 | G48: =+'GEN-502 Pot'!G48*'GEN-502 Pre_Pot'!G48*1000 -> 7482.09 | H48: 44892.54
A49: =+'GEN-502 Pot'!A49 -> ISTMUS HYDRO POWER CORP. No.02-13 | H49: =+SUM(B49:G49) -> 0
A50: =+'GEN-502 Pot'!A50 -> CALDERA ENERGY CORP. No.03-13 | H50: 0
A51: =+'GEN-502 Pot'!A51 -> ELECTROGENERADORA DEL ISTMO, S.A. No.04-13 | H51: 0
A52: =+'GEN-502 Pot'!A52 -> FOUNTAIN INTERTRADE CORP. No.05-13 | H52: 0
A53: =+'GEN-502 Pot'!A53 -> HIDROIBERICA, S.A. No.06-13 | H53: 0
A54: =+'GEN-502 Pot'!A54 -> NAVITAS INTERNACIONAL, S.A. No.07-13 | H54: 0
A55: =+'GEN-502 Pot'!A55 -> HIDROECOLÓGICA DEL TERIBE, S.A. No.08-13 | H55: 0
A56: =+'GEN-502 Pot'!A56 -> HIDRONORTH CORP. No.09-13 | H56: 0
A57: =+'GEN-502 Pot'!A57 -> EMPRESA NACIONAL DE ENERGÍA, S.A. No.24-13 | H57: 0
A58: =+'GEN-502 Pot'!A58 -> FUERZA ELÉCTRICA DEL ISTMO, S.A. No.25-13 | H58: 0
A59: =+'GEN-502 Pot'!A59 -> CAFÉ DE ELETA, S.A. No.26-13 | H59: 0
A60: =+'GEN-502 Pot'!A60 -> ENERGÍA Y SERVICIOS DE PANAMÁ, S.A. No.27-13 | H60: 0
A61: =+'GEN-502 Pot'!A61 -> GENERADORA PEDREGALITO, S.A. No.28-13 | H61: 0
A62: =+'GEN-502 Pot'!A62 -> GENERADORA RIO CHICO, S.A. No.29-13 | H62: 0
A63: =+'GEN-502 Pot'!A63 -> GENERADORA ALTO VALLE, S.A. No.30-13 | H63: 0
A64: =+'GEN-502 Pot'!A64 -> HYDRO CAISÁN, S.A. No.31-13 | H64: 0
A65: =+'GEN-502 Pot'!A65 -> FERSA PANAMÁ, S.A. No 05-14 | H65: 0
A66: =+'GEN-502 Pot'!A66 -> Panama Solar2 No. 07-15 | H66: 0
A67: =+'GEN-502 Pot'!A67 -> Solpac Investment No. 08-15 | H67: 0
A68: =+'GEN-502 Pot'!A68 -> GAS NATURAL ATLÁNTICO No. 16-15 | B68: =+'GEN-502 Pot'!B68*'GEN-502 Pre_Pot'!B68*1000 -> 7610680 | C68: =+'GEN-502 Pot'!C68*'GEN-502 Pre_Pot'!C68*1000 -> 7610680 | D68: =+'GEN-502 Pot'!D68*'GEN-502 Pre_Pot'!D68*1000 -> 7610680 | E68: =+'GEN-502 Pot'!E68*'GEN-502 Pre_Pot'!E68*1000 -> 7610680 | F68: =+'GEN-502 Pot'!F68*'GEN-502 Pre_Pot'!F68*1000 -> 7610680 | G68: =+'GEN-502 Pot'!G68*'GEN-502 Pre_Pot'!G68*1000 -> 7610680 | H68: 45664080
A69: =+'GEN-502 Pot'!A69 -> MARTANO INC No. 18-15 | B69: =+'GEN-502 Pot'!B69*'GEN-502 Pre_Pot'!B69*1000 -> 6289640 | C69: =+'GEN-502 Pot'!C69*'GEN-502 Pre_Pot'!C69*1000 -> 6289640 | D69: =+'GEN-502 Pot'!D69*'GEN-502 Pre_Pot'!D69*1000 -> 6289640 | E69: =+'GEN-502 Pot'!E69*'GEN-502 Pre_Pot'!E69*1000 -> 6289640 | F69: =+'GEN-502 Pot'!F69*'GEN-502 Pre_Pot'!F69*1000 -> 6289640 | G69: =+'GEN-502 Pot'!G69*'GEN-502 Pre_Pot'!G69*1000 -> 6289640 | H69: 37737840
A70: =+'GEN-502 Pot'!A70 -> AUTORIDAD DEL CANAL DE PANAMÁ No. 27-21 | B70: =+'GEN-502 Pot'!B70*'GEN-502 Pre_Pot'!B70*1000 -> 3180.7867 | C70: =+'GEN-502 Pot'!C70*'GEN-502 Pre_Pot'!C70*1000 -> 1957.3086 | H70: =+SUM(B70:G70) -> 5138.0953
A71: =+'GEN-502 Pot'!A71 -> GENERADORA DEL ATLÁNTICO, S.A. No. 29-21 | B71: =+'GEN-502 Pot'!B71*'GEN-502 Pre_Pot'!B71*1000 -> 39900 | C71: =+'GEN-502 Pot'!C71*'GEN-502 Pre_Pot'!C71*1000 -> 34200 | H71: 74100
A72: =+'GEN-502 Pot'!A72 -> GENERADORA DEL ATLÁNTICO, S.A. No. 30-21 | B72: =+'GEN-502 Pot'!B72*'GEN-502 Pre_Pot'!B72*1000 -> 6562.5 | C72: =+'GEN-502 Pot'!C72*'GEN-502 Pre_Pot'!C72*1000 -> 5625 | H72: 12187.5
A73: =+'GEN-502 Pot'!A73 -> PANAM GENERATING LTD No. 31-21 | B73: =+'GEN-502 Pot'!B73*'GEN-502 Pre_Pot'!B73*1000 -> 61281.3824 | C73: =+'GEN-502 Pot'!C73*'GEN-502 Pre_Pot'!C73*1000 -> 52526.8992 | H73: 113808.2816
A74: =+'GEN-502 Pot'!A74 -> TROPITÉRMICA, S.A. No. 33-21 | B74: =+'GEN-502 Pot'!B74*'GEN-502 Pre_Pot'!B74*1000 -> 349.125 | C74: =+'GEN-502 Pot'!C74*'GEN-502 Pre_Pot'!C74*1000 -> 299.25 | H74: 648.375
A75: =+'GEN-502 Pot'!A75 -> EMPRESA NACIONAL DE ENERGÍA, S.A. No. 02-23 | H75: 0
A76: =+'GEN-502 Pot'!A76 -> FOUNTAIN HYDRO POWER CORP No. 03-23 | H76: 0
A77: =+'GEN-502 Pot'!A77 -> GENERADORA DEL ISTMO, S.A. No. 04-23 | H77: 0
A78: =+'GEN-502 Pot'!A78 -> HIDRO BOQUERÓN, S.A. No. 05-23 | H78: 0
A79: =+'GEN-502 Pot'!A79 -> HIDROIBÉRICA No. 06-23 | H79: 0
A80: =+'GEN-502 Pot'!A80 -> IDEAL PANAMÁ, S.A. No. 08-23 | H80: 0
A81: =+'GEN-502 Pot'!A81 -> SOLAR BOQUERÓN, S.A. No. 12-23 | H81: 0
A82: =+'GEN-502 Pot'!A82 -> AUTORIDAD DEL CANAL DE PANAMÁ No. 13-23 | B82: =+'GEN-502 Pot'!B82*'GEN-502 Pre_Pot'!B82*1000 -> 154476 | C82: =+'GEN-502 Pot'!C82*'GEN-502 Pre_Pot'!C82*1000 -> 154939.5 | D82: =+'GEN-502 Pot'!D82*'GEN-502 Pre_Pot'!D82*1000 -> 108750 | E82: =+'GEN-502 Pot'!E82*'GEN-502 Pre_Pot'!E82*1000 -> 120000 | F82: =+'GEN-502 Pot'!F82*'GEN-502 Pre_Pot'!F82*1000 -> 107887.5 | G82: =+'GEN-502 Pot'!G82*'GEN-502 Pre_Pot'!G82*1000 -> 116250 | H82: 762303
A83: =+'GEN-502 Pot'!A83 -> CELSIA CENTROAMÉRICA, S.A. No. 14-23 | B83: =+'GEN-502 Pot'!B83*'GEN-502 Pre_Pot'!B83*1000 -> 368831.376 | C83: =+'GEN-502 Pot'!C83*'GEN-502 Pre_Pot'!C83*1000 -> 353463.402 | D83: =+'GEN-502 Pot'!D83*'GEN-502 Pre_Pot'!D83*1000 -> 222835.623 | E83: =+'GEN-502 Pot'!E83*'GEN-502 Pre_Pot'!E83*1000 -> 245887.584 | F83: =+'GEN-502 Pot'!F83*'GEN-502 Pre_Pot'!F83*1000 -> 230519.61 | G83: =+'GEN-502 Pot'!G83*'GEN-502 Pre_Pot'!G83*1000 -> 238203.597 | H83: 1659741.192
A84: =+'GEN-502 Pot'!A84 -> GENERADORA DEL ATLÁNTICO, S.A. No. 15-23 | B84: =+'GEN-502 Pot'!B84*'GEN-502 Pre_Pot'!B84*1000 -> 0 | C84: =+'GEN-502 Pot'!C84*'GEN-502 Pre_Pot'!C84*1000 -> 0 | D84: =+'GEN-502 Pot'!D84*'GEN-502 Pre_Pot'!D84*1000 -> 239250 | E84: =+'GEN-502 Pot'!E84*'GEN-502 Pre_Pot'!E84*1000 -> 264000 | F84: =+'GEN-502 Pot'!F84*'GEN-502 Pre_Pot'!F84*1000 -> 222750 | G84: =+'GEN-502 Pot'!G84*'GEN-502 Pre_Pot'!G84*1000 -> 255750 | H84: 981750
A85: =+'GEN-502 Pot'!A85 -> GENERADORA DEL ATLÁNTICO, S.A. No. 16-23 | D85: =+'GEN-502 Pot'!D85*'GEN-502 Pre_Pot'!D85*1000 -> 46342 | E85: =+'GEN-502 Pot'!E85*'GEN-502 Pre_Pot'!E85*1000 -> 51136 | F85: =+'GEN-502 Pot'!F85*'GEN-502 Pre_Pot'!F85*1000 -> 47940 | G85: =+'GEN-502 Pot'!G85*'GEN-502 Pre_Pot'!G85*1000 -> 61922.5 | H85: 207340.5
A86: =+'GEN-502 Pot'!A86 -> PEDREGAL POWER, S. DE R.L. No. 17-23 | B86: =+'GEN-502 Pot'!B86*'GEN-502 Pre_Pot'!B86*1000 -> 94371.984 | C86: =+'GEN-502 Pot'!C86*'GEN-502 Pre_Pot'!C86*1000 -> 202055 | D86: =+'GEN-502 Pot'!D86*'GEN-502 Pre_Pot'!D86*1000 -> 82263.6185 | E86: =+'GEN-502 Pot'!E86*'GEN-502 Pre_Pot'!E86*1000 -> 34549.648 | F86: =+'GEN-502 Pot'!F86*'GEN-502 Pre_Pot'!F86*1000 -> 95774.07 | G86: =+'GEN-502 Pot'!G86*'GEN-502 Pre_Pot'!G86*1000 -> 41640.0215 | H86: 550654.342
A87: =+'GEN-502 Pot'!A87 -> PANAM GENERATING LTD No. 18-23 | D87: =+'GEN-502 Pot'!D87*'GEN-502 Pre_Pot'!D87*1000 -> 175087.5 | E87: =+'GEN-502 Pot'!E87*'GEN-502 Pre_Pot'!E87*1000 -> 193200 | F87: =+'GEN-502 Pot'!F87*'GEN-502 Pre_Pot'!F87*1000 -> 139125 | G87: =+'GEN-502 Pot'!G87*'GEN-502 Pre_Pot'!G87*1000 -> 187162.5 | H87: 694575
A88: =+'GEN-502 Pot'!A88 -> PANAM GENERATING LTD No. 19-23 | D88: =+'GEN-502 Pot'!D88*'GEN-502 Pre_Pot'!D88*1000 -> 125425 | E88: =+'GEN-502 Pot'!E88*'GEN-502 Pre_Pot'!E88*1000 -> 138400 | F88: =+'GEN-502 Pot'!F88*'GEN-502 Pre_Pot'!F88*1000 -> 129750 | G88: =+'GEN-502 Pot'!G88*'GEN-502 Pre_Pot'!G88*1000 -> 134075 | H88: 527650
A89: =+'GEN-502 Pot'!A89 -> SPARKLE POWER, S.A. No. 20-23 | B89: =+'GEN-502 Pot'!B89*'GEN-502 Pre_Pot'!B89*1000 -> 118800 | C89: =+'GEN-502 Pot'!C89*'GEN-502 Pre_Pot'!C89*1000 -> 113850 | D89: =+'GEN-502 Pot'!D89*'GEN-502 Pre_Pot'!D89*1000 -> 71775 | E89: =+'GEN-502 Pot'!E89*'GEN-502 Pre_Pot'!E89*1000 -> 79200 | F89: =+'GEN-502 Pot'!F89*'GEN-502 Pre_Pot'!F89*1000 -> 74250 | G89: =+'GEN-502 Pot'!G89*'GEN-502 Pre_Pot'!G89*1000 -> 76725 | H89: 534600
A90: =+'GEN-502 Pot'!A90 -> TROPITÉRMICA, S.A. No. 21-23 | B90: =+'GEN-502 Pot'!B90*'GEN-502 Pre_Pot'!B90*1000 -> 0 | C90: =+'GEN-502 Pot'!C90*'GEN-502 Pre_Pot'!C90*1000 -> 3941.28 | H90: 3941.28

Sheet GEN-502 Gen
A1: INFORMACION PARA ACTUALIZAR: CARGO POR GENERACION
A2: =+'Compras (p)'!A2 -> EDEMET
A3: Compra Mensual de Energía para atender Clientes Regulados (MWh)
B4: COMPRA DE ENERGIA
A5: Detalle | B5: 2023-07-01 | C5: 2023-08-01 | D5: 2023-09-01 | E5: 2023-10-01 | F5: 2023-11-01 | G5: 2023-12-01 | H5: Total
A7: Generación en Punta
A8: Total Compra de Energía | B8: =+B9+B15 -> 367133.4428 | C8: 375077.238 | D8: 362773.5145 | E8: 369272.2016 | F8: 346888.6515 | G8: 376317.4762 | H8: =+SUM(B8:G8) -> 2197462.524
A9: Generación Propia | H9: 0
H10: 0
H11: 0
H12: 0
H13: 0
H14: 0
A15: Sub-Total Mercado Mayorista | B15: =+SUM(B16:B24) -> 367133.4428 | C15: 375077.238 | D15: 362773.5145 | E15: 369272.2016 | F15: 346888.6515 | G15: 376317.4762 | H15: 2197462.524
A16: Mercado Ocasional | B16: =+'GEN-502 Gen_P'!B16+'GEN-502 Gen_FP'!B16 -> -3267.069014 | C16: =+'GEN-502 Gen_P'!C16+'GEN-502 Gen_FP'!C16 -> 4023.739179 | D16: =+'GEN-502 Gen_P'!D16+'GEN-502 Gen_FP'!D16 -> -5250.461536 | E16: =+'GEN-502 Gen_P'!E16+'GEN-502 Gen_FP'!E16 -> -6526.220594 | F16: =+'GEN-502 Gen_P'!F16+'GEN-502 Gen_FP'!F16 -> -9421.448575 | G16: =+'GEN-502 Gen_P'!G16+'GEN-502 Gen_FP'!G16 -> 4399.97553 | H16: -16041.48501
A17: Energía Transferencia ACP | B17: =+'GEN-502 Gen_P'!B17+'GEN-502 Gen_FP'!B17 -> 0 | C17: =+'GEN-502 Gen_P'!C17+'GEN-502 Gen_FP'!C17 -> 0 | D17: =+'GEN-502 Gen_P'!D17+'GEN-502 Gen_FP'!D17 -> 0 | E17: =+'GEN-502 Gen_P'!E17+'GEN-502 Gen_FP'!E17 -> 0 | F17: =+'GEN-502 Gen_P'!F17+'GEN-502 Gen_FP'!F17 -> 0 | G17: =+'GEN-502 Gen_P'!G17+'GEN-502 Gen_FP'!G17 -> 0 | H17: 0
H18: 0
H19: 0
H20: 0
H21: 0
H22: 0
H23: 0
A24: Sub-Total Contratros | B24: =+SUM(B25:B107) -> 370400.5118 | C24: 371053.4988 | D24: 368023.976 | E24: 375798.4221 | F24: 356310.1001 | G24: 371917.5007 | H24: 2213504.009
A25: =+'GEN-502 Gen_P'!A25 -> Hydro Caisan No. 05-08 (17,048) | B25: =+'GEN-502 Gen_P'!B25+'GEN-502 Gen_FP'!B25 -> 8073.61511 | C25: =+'GEN-502 Gen_P'!C25+'GEN-502 Gen_FP'!C25 -> 8033.743888 | D25: =+'GEN-502 Gen_P'!D25+'GEN-502 Gen_FP'!D25 -> 7878.541897 | E25: =+'GEN-502 Gen_P'!E25+'GEN-502 Gen_FP'!E25 -> 8019.677279 | F25: =+'GEN-502 Gen_P'!F25+'GEN-502 Gen_FP'!F25 -> 7621.48612 | G25: =+'GEN-502 Gen_P'!G25+'GEN-502 Gen_FP'!G25 -> 8166.819169 | H25: 47793.88346
A26: =+'GEN-502 Gen_P'!A26 -> Electrón Inv. No. 07-08 (34,65) | B26: =+'GEN-502 Gen_P'!B26+'GEN-502 Gen_FP'!B26 -> 16409.5943 | C26: =+'GEN-502 Gen_P'!C26+'GEN-502 Gen_FP'!C26 -> 16328.55618 | D26: =+'GEN-502 Gen_P'!D26+'GEN-502 Gen_FP'!D26 -> 16013.10868 | E26: =+'GEN-502 Gen_P'!E26+'GEN-502 Gen_FP'!E26 -> 16299.96584 | F26: =+'GEN-502 Gen_P'!F26+'GEN-502 Gen_FP'!F26 -> 15490.64371 | G26: =+'GEN-502 Gen_P'!G26+'GEN-502 Gen_FP'!G26 -> 16599.03122 | H26: 97140.89993
A27: =+'GEN-502 Gen_P'!A27 -> Empresa Nacional de Energía No. 24-11 (Cesión) | B27: =+'GEN-502 Gen_P'!B27+'GEN-502 Gen_FP'!B27 -> 3157.36696 | C27: =+'GEN-502 Gen_P'!C27+'GEN-502 Gen_FP'!C27 -> 3141.774431 | D27: =+'GEN-502 Gen_P'!D27+'GEN-502 Gen_FP'!D27 -> 3081.079237 | E27: =+'GEN-502 Gen_P'!E27+'GEN-502 Gen_FP'!E27 -> 3136.27337 | F27: =+'GEN-502 Gen_P'!F27+'GEN-502 Gen_FP'!F27 -> 2980.551851 | G27: =+'GEN-502 Gen_P'!G27+'GEN-502 Gen_FP'!G27 -> 3193.816483 | H27: =+SUM(B27:G27) -> 18690.86233
A28: =+'GEN-502 Gen_P'!A28 -> Enel Fortuna No. 25-11 | B28: =+'GEN-502 Gen_P'!B28+'GEN-502 Gen_FP'!B28 -> 9320.545372 | C28: =+'GEN-502 Gen_P'!C28+'GEN-502 Gen_FP'!C28 -> 9274.516235 | D28: =+'GEN-502 Gen_P'!D28+'GEN-502 Gen_FP'!D28 -> 9095.344058 | E28: =+'GEN-502 Gen_P'!E28+'GEN-502 Gen_FP'!E28 -> 9258.277108 | F28: =+'GEN-502 Gen_P'!F28+'GEN-502 Gen_FP'!F28 -> 8798.587277 | G28: =+'GEN-502 Gen_P'!G28+'GEN-502 Gen_FP'!G28 -> 9428.144342 | H28: 55175.41439
A29: =+'GEN-502 Gen_P'!A29 -> Electrogeneradora del Istmo No. 26-11 | B29: =+'GEN-502 Gen_P'!B29+'GEN-502 Gen_FP'!B29 -> 394.6732379 | C29: =+'GEN-502 Gen_P'!C29+'GEN-502 Gen_FP'!C29 -> 392.7241601 | D29: =+'GEN-502 Gen_P'!D29+'GEN-502 Gen_FP'!D29 -> 385.1372153 | E29: =+'GEN-502 Gen_P'!E29+'GEN-502 Gen_FP'!E29 -> 392.0365234 | F29: =+'GEN-502 Gen_P'!F29+'GEN-502 Gen_FP'!F29 -> 372.5712167 | G29: =+'GEN-502 Gen_P'!G29+'GEN-502 Gen_FP'!G29 -> 399.2294556 | H29: 2336.371809
A30: =+'GEN-502 Gen_P'!A30 -> ESEPSA No. 27-11 | B30: =+'GEN-502 Gen_P'!B30+'GEN-502 Gen_FP'!B30 -> 1730.238989 | C30: =+'GEN-502 Gen_P'!C30+'GEN-502 Gen_FP'!C30 -> 1721.694273 | D30: =+'GEN-502 Gen_P'!D30+'GEN-502 Gen_FP'!D30 -> 1688.43327 | E30: =+'GEN-502 Gen_P'!E30+'GEN-502 Gen_FP'!E30 -> 1718.679689 | F30: =+'GEN-502 Gen_P'!F30+'GEN-502 Gen_FP'!F30 -> 1633.344203 | G30: =+'GEN-502 Gen_P'!G30+'GEN-502 Gen_FP'!G30 -> 1750.213349 | H30: 10242.60377
A31: =+'GEN-502 Gen_P'!A31 -> Pedregalito No. 28-11 | B31: =+'GEN-502 Gen_P'!B31+'GEN-502 Gen_FP'!B31 -> 1243.36893 | C31: =+'GEN-502 Gen_P'!C31+'GEN-502 Gen_FP'!C31 -> 1237.228603 | D31: =+'GEN-502 Gen_P'!D31+'GEN-502 Gen_FP'!D31 -> 1213.326878 | E31: =+'GEN-502 Gen_P'!E31+'GEN-502 Gen_FP'!E31 -> 1235.062289 | F31: =+'GEN-502 Gen_P'!F31+'GEN-502 Gen_FP'!F31 -> 1173.739263 | G31: =+'GEN-502 Gen_P'!G31+'GEN-502 Gen_FP'!G31 -> 1257.722727 | H31: 7360.44869
A32: =+'GEN-502 Gen_P'!A32 -> Río Chico No. 29-11 | B32: =+'GEN-502 Gen_P'!B32+'GEN-502 Gen_FP'!B32 -> 762.5038841 | C32: =+'GEN-502 Gen_P'!C32+'GEN-502 Gen_FP'!C32 -> 758.7382895 | D32: =+'GEN-502 Gen_P'!D32+'GEN-502 Gen_FP'!D32 -> 744.0804046 | E32: =+'GEN-502 Gen_P'!E32+'GEN-502 Gen_FP'!E32 -> 757.4097837 | F32: =+'GEN-502 Gen_P'!F32+'GEN-502 Gen_FP'!F32 -> 719.8030485 | G32: =+'GEN-502 Gen_P'!G32+'GEN-502 Gen_FP'!G32 -> 771.3064411 | H32: 4513.841852
A33: =+'GEN-502 Gen_P'!A33 -> Alto Valle No. 30-11 | B33: =+'GEN-502 Gen_P'!B33+'GEN-502 Gen_FP'!B33 -> 725.5645376 | C33: =+'GEN-502 Gen_P'!C33+'GEN-502 Gen_FP'!C33 -> 721.9813665 | D33: =+'GEN-502 Gen_P'!D33+'GEN-502 Gen_FP'!D33 -> 708.0335799 | E33: =+'GEN-502 Gen_P'!E33+'GEN-502 Gen_FP'!E33 -> 720.7172199 | F33: =+'GEN-502 Gen_P'!F33+'GEN-502 Gen_FP'!F33 -> 684.9323354 | G33: =+'GEN-502 Gen_P'!G33+'GEN-502 Gen_FP'!G33 -> 733.9406566 | H33: 4295.169696
A34: =+'GEN-502 Gen_P'!A34 -> Hidroecológica del Teribe No. 31-11 | B34: =+'GEN-502 Gen_P'!B34+'GEN-502 Gen_FP'!B34 -> 3157.36696 | C34: =+'GEN-502 Gen_P'!C34+'GEN-502 Gen_FP'!C34 -> 3141.774431 | D34: =+'GEN-502 Gen_P'!D34+'GEN-502 Gen_FP'!D34 -> 3081.079237 | E34: =+'GEN-502 Gen_P'!E34+'GEN-502 Gen_FP'!E34 -> 3136.27337 | F34: =+'GEN-502 Gen_P'!F34+'GEN-502 Gen_FP'!F34 -> 2980.551851 | G34: =+'GEN-502 Gen_P'!G34+'GEN-502 Gen_FP'!G34 -> 3193.816483 | H34: 18690.86233
A35: =+'GEN-502 Gen_P'!A35 -> Desarrollos Hidroeléctricos Corp. No. 32-11 | B35: =+'GEN-502 Gen_P'!B35+'GEN-502 Gen_FP'!B35 -> 600.8468852 | C35: =+'GEN-502 Gen_P'!C35+'GEN-502 Gen_FP'!C35 -> 597.8796271 | D35: =+'GEN-502 Gen_P'!D35+'GEN-502 Gen_FP'!D35 -> 586.3293325 | E35: =+'GEN-502 Gen_P'!E35+'GEN-502 Gen_FP'!E35 -> 596.8327753 | F35: =+'GEN-502 Gen_P'!F35+'GEN-502 Gen_FP'!F35 -> 567.1989726 | G35: =+'GEN-502 Gen_P'!G35+'GEN-502 Gen_FP'!G35 -> 607.7832288 | H35: 3556.870822
A36: =+'GEN-502 Gen_P'!A36 -> Las Perlas Norte No. 33-11 | B36: =+'GEN-502 Gen_P'!B36+'GEN-502 Gen_FP'!B36 -> 3757.266683 | C36: =+'GEN-502 Gen_P'!C36+'GEN-502 Gen_FP'!C36 -> 3738.711573 | D36: =+'GEN-502 Gen_P'!D36+'GEN-502 Gen_FP'!D36 -> 3666.484292 | E36: =+'GEN-502 Gen_P'!E36+'GEN-502 Gen_FP'!E36 -> 3732.165311 | F36: =+'GEN-502 Gen_P'!F36+'GEN-502 Gen_FP'!F36 -> 3546.856703 | G36: =+'GEN-502 Gen_P'!G36+'GEN-502 Gen_FP'!G36 -> 3800.641615 | H36: 22242.12618
A37: =+'GEN-502 Gen_P'!A37 -> Hidroeléctrica San Lorenzo No. 34-11 | B37: =+'GEN-502 Gen_P'!B37+'GEN-502 Gen_FP'!B37 -> 420.8764949 | C37: =+'GEN-502 Gen_P'!C37+'GEN-502 Gen_FP'!C37 -> 418.7980133 | D37: =+'GEN-502 Gen_P'!D37+'GEN-502 Gen_FP'!D37 -> 410.7073539 | E37: =+'GEN-502 Gen_P'!E37+'GEN-502 Gen_FP'!E37 -> 418.0647228 | F37: =+'GEN-502 Gen_P'!F37+'GEN-502 Gen_FP'!F37 -> 397.30707 | G37: =+'GEN-502 Gen_P'!G37+'GEN-502 Gen_FP'!G37 -> 425.7352102 | H37: 2491.488865
A38: =+'GEN-502 Gen_P'!A38 -> Caldera Energy Corp. No. 35-11 | B38: =+'GEN-502 Gen_P'!B38+'GEN-502 Gen_FP'!B38 -> 947.2100881 | C38: =+'GEN-502 Gen_P'!C38+'GEN-502 Gen_FP'!C38 -> 942.5323293 | D38: =+'GEN-502 Gen_P'!D38+'GEN-502 Gen_FP'!D38 -> 924.323771 | E38: =+'GEN-502 Gen_P'!E38+'GEN-502 Gen_FP'!E38 -> 940.8820111 | F38: =+'GEN-502 Gen_P'!F38+'GEN-502 Gen_FP'!F38 -> 894.1655554 | G38: =+'GEN-502 Gen_P'!G38+'GEN-502 Gen_FP'!G38 -> 958.1449449 | H38: 5607.2587
A39: =+'GEN-502 Gen_P'!A39 -> PASO ANCHO No. 86-11 | B39: =+'GEN-502 Gen_P'!B39+'GEN-502 Gen_FP'!B39 -> 985.0492391 | C39: =+'GEN-502 Gen_P'!C39+'GEN-502 Gen_FP'!C39 -> 980.1846132 | D39: =+'GEN-502 Gen_P'!D39+'GEN-502 Gen_FP'!D39 -> 979.7342106 | E39: =+'GEN-502 Gen_P'!E39+'GEN-502 Gen_FP'!E39 -> 1016.101767 | F39: =+'GEN-502 Gen_P'!F39+'GEN-502 Gen_FP'!F39 -> 947.7681003 | G39: =+'GEN-502 Gen_P'!G39+'GEN-502 Gen_FP'!G39 -> 996.4209217 | H39: 5905.258852
A40: =+'GEN-502 Gen_P'!A40 -> Hidroecológica del Teribe No. 87-11 | B40: =+'GEN-502 Gen_P'!B40+'GEN-502 Gen_FP'!B40 -> 1254.990617 | C40: =+'GEN-502 Gen_P'!C40+'GEN-502 Gen_FP'!C40 -> 1225.230767 | D40: =+'GEN-502 Gen_P'!D40+'GEN-502 Gen_FP'!D40 -> 1201.560824 | E40: =+'GEN-502 Gen_P'!E40+'GEN-502 Gen_FP'!E40 -> 1246.606334 | F40: =+'GEN-502 Gen_P'!F40+'GEN-502 Gen_FP'!F40 -> 1162.357104 | G40: =+'GEN-502 Gen_P'!G40+'GEN-502 Gen_FP'!G40 -> 1245.526152 | H40: 7336.271799
A41: =+'GEN-502 Gen_P'!A41 -> Unión Eólica de Panamá (PE Nuevo Chagres) No. 15-12' | B41: =+'GEN-502 Gen_P'!B41+'GEN-502 Gen_FP'!B41 -> 2785.795021 | C41: =+'GEN-502 Gen_P'!C41+'GEN-502 Gen_FP'!C41 -> 2333.357746 | D41: =+'GEN-502 Gen_P'!D41+'GEN-502 Gen_FP'!D41 -> 2.680404916 | E41: =+'GEN-502 Gen_P'!E41+'GEN-502 Gen_FP'!E41 -> 2.77546316 | F41: =+'GEN-502 Gen_P'!F41+'GEN-502 Gen_FP'!F41 -> 2.592950463 | G41: =+'GEN-502 Gen_P'!G41+'GEN-502 Gen_FP'!G41 -> 2.778481416 | H41: =+SUM(B41:G41) -> 5129.980068
A42: =+'GEN-502 Gen_P'!A42 -> Unión Eólica de Panamá (PE Rosa de los Vientos) No. 16-12' | B42: =+'GEN-502 Gen_P'!B42+'GEN-502 Gen_FP'!B42 -> 2.794130053 | C42: =+'GEN-502 Gen_P'!C42+'GEN-502 Gen_FP'!C42 -> 2.733207095 | D42: =+'GEN-502 Gen_P'!D42+'GEN-502 Gen_FP'!D42 -> 2.680404916 | E42: =+'GEN-502 Gen_P'!E42+'GEN-502 Gen_FP'!E42 -> 2.77546316 | F42: =+'GEN-502 Gen_P'!F42+'GEN-502 Gen_FP'!F42 -> 2.592950463 | G42: =+'GEN-502 Gen_P'!G42+'GEN-502 Gen_FP'!G42 -> 2.778481416 | H42: 16.3546371
A43: =+'GEN-502 Gen_P'!A43 -> Unión Eólica de Panamá (PE Portobelo Ballestillas) No. 17-12' | B43: =+'GEN-502 Gen_P'!B43+'GEN-502 Gen_FP'!B43 -> 2.794130053 | C43: =+'GEN-502 Gen_P'!C43+'GEN-502 Gen_FP'!C43 -> 2.733207095 | D43: =+'GEN-502 Gen_P'!D43+'GEN-502 Gen_FP'!D43 -> 2.680404916 | E43: =+'GEN-502 Gen_P'!E43+'GEN-502 Gen_FP'!E43 -> 2.77546316 | F43: =+'GEN-502 Gen_P'!F43+'GEN-502 Gen_FP'!F43 -> 2.592950463 | G43: =+'GEN-502 Gen_P'!G43+'GEN-502 Gen_FP'!G43 -> 2.778481416 | H43: 16.3546371
A44: =+'GEN-502 Gen_P'!A44 -> Unión Eólica de Panamá (PE Marañon) No. 18-12' | B44: =+'GEN-502 Gen_P'!B44+'GEN-502 Gen_FP'!B44 -> 2.794130053 | C44: =+'GEN-502 Gen_P'!C44+'GEN-502 Gen_FP'!C44 -> 2.733207095 | D44: =+'GEN-502 Gen_P'!D44+'GEN-502 Gen_FP'!D44 -> 2.680404916 | E44: =+'GEN-502 Gen_P'!E44+'GEN-502 Gen_FP'!E44 -> 2.77546316 | F44: =+'GEN-502 Gen_P'!F44+'GEN-502 Gen_FP'!F44 -> 2.592950463 | G44: =+'GEN-502 Gen_P'!G44+'GEN-502 Gen_FP'!G44 -> 2.778481416 | H44: 16.3546371
A45: =+'GEN-502 Gen_P'!A45 -> AES No. 117-12 | B45: =+'GEN-502 Gen_P'!B45+'GEN-502 Gen_FP'!B45 -> 99452.08664 | C45: =+'GEN-502 Gen_P'!C45+'GEN-502 Gen_FP'!C45 -> 98960.94653 | D45: =+'GEN-502 Gen_P'!D45+'GEN-502 Gen_FP'!D45 -> 97049.1435 | E45: =+'GEN-502 Gen_P'!E45+'GEN-502 Gen_FP'!E45 -> 98787.67178 | F45: =+'GEN-502 Gen_P'!F45+'GEN-502 Gen_FP'!F45 -> 93882.68918 | G45: =+'GEN-502 Gen_P'!G45+'GEN-502 Gen_FP'!G45 -> 100600.1892 | H45: 588732.7268
A46: =+'GEN-502 Gen_P'!A46 -> HIDRO PIEDRA No. 118-12 | B46: =+'GEN-502 Gen_P'!B46+'GEN-502 Gen_FP'!B46 -> 507.4897907 | C46: =+'GEN-502 Gen_P'!C46+'GEN-502 Gen_FP'!C46 -> 504.9835729 | D46: =+'GEN-502 Gen_P'!D46+'GEN-502 Gen_FP'!D46 -> 495.2279151 | E46: =+'GEN-502 Gen_P'!E46+'GEN-502 Gen_FP'!E46 -> 504.0993766 | F46: =+'GEN-502 Gen_P'!F46+'GEN-502 Gen_FP'!F46 -> 479.0699511 | G46: =+'GEN-502 Gen_P'!G46+'GEN-502 Gen_FP'!G46 -> 513.3483941 | H46: 3004.219
A47: =+'GEN-502 Gen_P'!A47 -> Corp. Energ. Del Istmo No. 119-12 | B47: =+'GEN-502 Gen_P'!B47+'GEN-502 Gen_FP'!B47 -> 2503.351095 | C47: =+'GEN-502 Gen_P'!C47+'GEN-502 Gen_FP'!C47 -> 2490.988397 | D47: =+'GEN-502 Gen_P'!D47+'GEN-502 Gen_FP'!D47 -> 2442.865584 | E47: =+'GEN-502 Gen_P'!E47+'GEN-502 Gen_FP'!E47 -> 2486.626824 | F47: =+'GEN-502 Gen_P'!F47+'GEN-502 Gen_FP'!F47 -> 2363.161405 | G47: =+'GEN-502 Gen_P'!G47+'GEN-502 Gen_FP'!G47 -> 2532.250477 | H47: 14819.24378
A48: =+'GEN-502 Gen_P'!A48 -> Saltos del Francolí No. 121-12 | B48: =+'GEN-502 Gen_P'!B48+'GEN-502 Gen_FP'!B48 -> 261.8904948 | C48: =+'GEN-502 Gen_P'!C48+'GEN-502 Gen_FP'!C48 -> 260.5971592 | D48: =+'GEN-502 Gen_P'!D48+'GEN-502 Gen_FP'!D48 -> 255.5627445 | E48: =+'GEN-502 Gen_P'!E48+'GEN-502 Gen_FP'!E48 -> 260.140869 | F48: =+'GEN-502 Gen_P'!F48+'GEN-502 Gen_FP'!F48 -> 247.2244148 | G48: =+'GEN-502 Gen_P'!G48+'GEN-502 Gen_FP'!G48 -> 264.9138316 | H48: 1550.329514
A49: =+'GEN-502 Gen_P'!A49 -> ISTMUS HYDRO POWER CORP. No.02-13 | B49: =+'GEN-502 Gen_P'!B49+'GEN-502 Gen_FP'!B49 -> 1092.504851 | C49: =+'GEN-502 Gen_P'!C49+'GEN-502 Gen_FP'!C49 -> 1035.555619 | D49: =+'GEN-502 Gen_P'!D49+'GEN-502 Gen_FP'!D49 -> 1074.518874 | E49: =+'GEN-502 Gen_P'!E49+'GEN-502 Gen_FP'!E49 -> 983.4547935 | F49: =+'GEN-502 Gen_P'!F49+'GEN-502 Gen_FP'!F49 -> 921.7938896 | G49: =+'GEN-502 Gen_P'!G49+'GEN-502 Gen_FP'!G49 -> 1000.876073 | H49: =+SUM(B49:G49) -> 6108.7041
A50: =+'GEN-502 Gen_P'!A50 -> CALDERA ENERGY CORP. No.03-13 | B50: =+'GEN-502 Gen_P'!B50+'GEN-502 Gen_FP'!B50 -> 1236.047363 | C50: =+'GEN-502 Gen_P'!C50+'GEN-502 Gen_FP'!C50 -> 2186.565676 | D50: =+'GEN-502 Gen_P'!D50+'GEN-502 Gen_FP'!D50 -> 2590.287854 | E50: =+'GEN-502 Gen_P'!E50+'GEN-502 Gen_FP'!E50 -> 3546.947835 | F50: =+'GEN-502 Gen_P'!F50+'GEN-502 Gen_FP'!F50 -> 2166.007757 | G50: =+'GEN-502 Gen_P'!G50+'GEN-502 Gen_FP'!G50 -> 694.620354 | H50: 12420.47684
A51: =+'GEN-502 Gen_P'!A51 -> ELECTROGENERADORA DEL ISTMO, S.A. No.04-13 | B51: =+'GEN-502 Gen_P'!B51+'GEN-502 Gen_FP'!B51 -> 412.0157875 | C51: =+'GEN-502 Gen_P'!C51+'GEN-502 Gen_FP'!C51 -> 683.3017736 | D51: =+'GEN-502 Gen_P'!D51+'GEN-502 Gen_FP'!D51 -> 1022.482048 | E51: =+'GEN-502 Gen_P'!E51+'GEN-502 Gen_FP'!E51 -> 1227.789635 | F51: =+'GEN-502 Gen_P'!F51+'GEN-502 Gen_FP'!F51 -> 828.1794367 | G51: =+'GEN-502 Gen_P'!G51+'GEN-502 Gen_FP'!G51 -> 347.310177 | H51: 4521.078857
A52: =+'GEN-502 Gen_P'!A52 -> FOUNTAIN INTERTRADE CORP. No.05-13 | B52: =+'GEN-502 Gen_P'!B52+'GEN-502 Gen_FP'!B52 -> 5199.213015 | C52: =+'GEN-502 Gen_P'!C52+'GEN-502 Gen_FP'!C52 -> 5766.501478 | D52: =+'GEN-502 Gen_P'!D52+'GEN-502 Gen_FP'!D52 -> 8335.13501 | E52: =+'GEN-502 Gen_P'!E52+'GEN-502 Gen_FP'!E52 -> 11485.4781 | F52: =+'GEN-502 Gen_P'!F52+'GEN-502 Gen_FP'!F52 -> 7069.634731 | G52: =+'GEN-502 Gen_P'!G52+'GEN-502 Gen_FP'!G52 -> 4311.149251 | H52: 42167.11158
A53: =+'GEN-502 Gen_P'!A53 -> HIDROIBERICA, S.A. No.06-13 | B53: =+'GEN-502 Gen_P'!B53+'GEN-502 Gen_FP'!B53 -> 112.6176486 | C53: =+'GEN-502 Gen_P'!C53+'GEN-502 Gen_FP'!C53 -> 180.3916682 | D53: =+'GEN-502 Gen_P'!D53+'GEN-502 Gen_FP'!D53 -> 218.1295035 | E53: =+'GEN-502 Gen_P'!E53+'GEN-502 Gen_FP'!E53 -> 275.5705625 | F53: =+'GEN-502 Gen_P'!F53+'GEN-502 Gen_FP'!F53 -> 236.9867311 | G53: =+'GEN-502 Gen_P'!G53+'GEN-502 Gen_FP'!G53 -> 238.9494018 | H53: 1262.645516
A54: =+'GEN-502 Gen_P'!A54 -> NAVITAS INTERNACIONAL, S.A. No.07-13 | B54: =+'GEN-502 Gen_P'!B54+'GEN-502 Gen_FP'!B54 -> 1096.861799 | C54: =+'GEN-502 Gen_P'!C54+'GEN-502 Gen_FP'!C54 -> 1156.146601 | D54: =+'GEN-502 Gen_P'!D54+'GEN-502 Gen_FP'!D54 -> 1403.838968 | E54: =+'GEN-502 Gen_P'!E54+'GEN-502 Gen_FP'!E54 -> 1444.22872 | F54: =+'GEN-502 Gen_P'!F54+'GEN-502 Gen_FP'!F54 -> 1176.171271 | G54: =+'GEN-502 Gen_P'!G54+'GEN-502 Gen_FP'!G54 -> 948.8514036 | H54: 7226.098763
A55: =+'GEN-502 Gen_P'!A55 -> HIDROECOLÓGICA DEL TERIBE, S.A. No.08-13 | B55: =+'GEN-502 Gen_P'!B55+'GEN-502 Gen_FP'!B55 -> 0 | C55: =+'GEN-502 Gen_P'!C55+'GEN-502 Gen_FP'!C55 -> 0 | D55: =+'GEN-502 Gen_P'!D55+'GEN-502 Gen_FP'!D55 -> 272.6618794 | E55: =+'GEN-502 Gen_P'!E55+'GEN-502 Gen_FP'!E55 -> 1364.210706 | F55: =+'GEN-502 Gen_P'!F55+'GEN-502 Gen_FP'!F55 -> 509.6488841 | G55: =+'GEN-502 Gen_P'!G55+'GEN-502 Gen_FP'!G55 -> 555.6962832 | H55: 2702.217752
A56: =+'GEN-502 Gen_P'!A56 -> HIDRONORTH CORP. No.09-13 | B56: =+'GEN-502 Gen_P'!B56+'GEN-502 Gen_FP'!B56 -> 131.845052 | C56: =+'GEN-502 Gen_P'!C56+'GEN-502 Gen_FP'!C56 -> 153.0595973 | D56: =+'GEN-502 Gen_P'!D56+'GEN-502 Gen_FP'!D56 -> 185.410078 | E56: =+'GEN-502 Gen_P'!E56+'GEN-502 Gen_FP'!E56 -> 185.532656 | F56: =+'GEN-502 Gen_P'!F56+'GEN-502 Gen_FP'!F56 -> 170.7323762 | G56: =+'GEN-502 Gen_P'!G56+'GEN-502 Gen_FP'!G56 -> 138.9240708 | H56: 965.5038302
A57: =+'GEN-502 Gen_P'!A57 -> EMPRESA NACIONAL DE ENERGÍA, S.A. No.24-13 | B57: =+'GEN-502 Gen_P'!B57+'GEN-502 Gen_FP'!B57 -> 527.380208 | C57: =+'GEN-502 Gen_P'!C57+'GEN-502 Gen_FP'!C57 -> 893.7587199 | D57: =+'GEN-502 Gen_P'!D57+'GEN-502 Gen_FP'!D57 -> 891.6043455 | E57: =+'GEN-502 Gen_P'!E57+'GEN-502 Gen_FP'!E57 -> 669.1218302 | F57: =+'GEN-502 Gen_P'!F57+'GEN-502 Gen_FP'!F57 -> 833.2759255 | G57: =+'GEN-502 Gen_P'!G57+'GEN-502 Gen_FP'!G57 -> 602.9304673 | H57: 4418.071496
A58: =+'GEN-502 Gen_P'!A58 -> FUERZA ELÉCTRICA DEL ISTMO, S.A. No.25-13 | B58: =+'GEN-502 Gen_P'!B58+'GEN-502 Gen_FP'!B58 -> 206.0078938 | C58: =+'GEN-502 Gen_P'!C58+'GEN-502 Gen_FP'!C58 -> 204.9905321 | D58: =+'GEN-502 Gen_P'!D58+'GEN-502 Gen_FP'!D58 -> 204.4964095 | E58: =+'GEN-502 Gen_P'!E58+'GEN-502 Gen_FP'!E58 -> 153.4501835 | F58: =+'GEN-502 Gen_P'!F58+'GEN-502 Gen_FP'!F58 -> 191.1183315 | G58: =+'GEN-502 Gen_P'!G58+'GEN-502 Gen_FP'!G58 -> 208.3861062 | H58: 1168.449457
A59: =+'GEN-502 Gen_P'!A59 -> CAFÉ DE ELETA, S.A. No.26-13 | B59: =+'GEN-502 Gen_P'!B59+'GEN-502 Gen_FP'!B59 -> 63.1804899 | C59: =+'GEN-502 Gen_P'!C59+'GEN-502 Gen_FP'!C59 -> 66.96357382 | D59: =+'GEN-502 Gen_P'!D59+'GEN-502 Gen_FP'!D59 -> 64.44063128 | E59: =+'GEN-502 Gen_P'!E59+'GEN-502 Gen_FP'!E59 -> 66.10776912 | F59: =+'GEN-502 Gen_P'!F59+'GEN-502 Gen_FP'!F59 -> 93.22103975 | G59: =+'GEN-502 Gen_P'!G59+'GEN-502 Gen_FP'!G59 -> 75.71840908 | H59: 429.6319129
A60: =+'GEN-502 Gen_P'!A60 -> ENERGÍA Y SERVICIOS DE PANAMÁ, S.A. No.27-13 | B60: =+'GEN-502 Gen_P'!B60+'GEN-502 Gen_FP'!B60 -> 3059.240901 | C60: =+'GEN-502 Gen_P'!C60+'GEN-502 Gen_FP'!C60 -> 3646.725017 | D60: =+'GEN-502 Gen_P'!D60+'GEN-502 Gen_FP'!D60 -> 3747.127509 | E60: =+'GEN-502 Gen_P'!E60+'GEN-502 Gen_FP'!E60 -> 3337.640279 | F60: =+'GEN-502 Gen_P'!F60+'GEN-502 Gen_FP'!F60 -> 4117.833336 | G60: =+'GEN-502 Gen_P'!G60+'GEN-502 Gen_FP'!G60 -> 2772.756786 | H60: 20681.32383
A61: =+'GEN-502 Gen_P'!A61 -> GENERADORA PEDREGALITO, S.A. No.28-13 | B61: =+'GEN-502 Gen_P'!B61+'GEN-502 Gen_FP'!B61 -> 1270.92663 | C61: =+'GEN-502 Gen_P'!C61+'GEN-502 Gen_FP'!C61 -> 1619.971845 | D61: =+'GEN-502 Gen_P'!D61+'GEN-502 Gen_FP'!D61 -> 1616.339621 | E61: =+'GEN-502 Gen_P'!E61+'GEN-502 Gen_FP'!E61 -> 1917.398147 | F61: =+'GEN-502 Gen_P'!F61+'GEN-502 Gen_FP'!F61 -> 1837.539052 | G61: =+'GEN-502 Gen_P'!G61+'GEN-502 Gen_FP'!G61 -> 940.7938075 | H61: 9202.969102
A62: =+'GEN-502 Gen_P'!A62 -> GENERADORA RIO CHICO, S.A. No.29-13 | B62: =+'GEN-502 Gen_P'!B62+'GEN-502 Gen_FP'!B62 -> 783.6540279 | C62: =+'GEN-502 Gen_P'!C62+'GEN-502 Gen_FP'!C62 -> 998.3840025 | D62: =+'GEN-502 Gen_P'!D62+'GEN-502 Gen_FP'!D62 -> 995.6918626 | E62: =+'GEN-502 Gen_P'!E62+'GEN-502 Gen_FP'!E62 -> 1180.823153 | F62: =+'GEN-502 Gen_P'!F62+'GEN-502 Gen_FP'!F62 -> 1132.006172 | G62: =+'GEN-502 Gen_P'!G62+'GEN-502 Gen_FP'!G62 -> 580.6163872 | H62: 5671.175605
A63: =+'GEN-502 Gen_P'!A63 -> GENERADORA ALTO VALLE, S.A. No.30-13 | B63: =+'GEN-502 Gen_P'!B63+'GEN-502 Gen_FP'!B63 -> 1119.527404 | C63: =+'GEN-502 Gen_P'!C63+'GEN-502 Gen_FP'!C63 -> 1458.651365 | D63: =+'GEN-502 Gen_P'!D63+'GEN-502 Gen_FP'!D63 -> 1461.536994 | E63: =+'GEN-502 Gen_P'!E63+'GEN-502 Gen_FP'!E63 -> 1564.161657 | F63: =+'GEN-502 Gen_P'!F63+'GEN-502 Gen_FP'!F63 -> 1320.218611 | G63: =+'GEN-502 Gen_P'!G63+'GEN-502 Gen_FP'!G63 -> 726.6543286 | H63: 7650.750359
A64: =+'GEN-502 Gen_P'!A64 -> HYDRO CAISÁN, S.A. No.31-13 | B64: =+'GEN-502 Gen_P'!B64+'GEN-502 Gen_FP'!B64 -> 2782.148445 | C64: =+'GEN-502 Gen_P'!C64+'GEN-502 Gen_FP'!C64 -> 4781.825923 | D64: =+'GEN-502 Gen_P'!D64+'GEN-502 Gen_FP'!D64 -> 5742.767532 | E64: =+'GEN-502 Gen_P'!E64+'GEN-502 Gen_FP'!E64 -> 2437.712814 | F64: =+'GEN-502 Gen_P'!F64+'GEN-502 Gen_FP'!F64 -> 4999.968495 | G64: =+'GEN-502 Gen_P'!G64+'GEN-502 Gen_FP'!G64 -> 1505.659079 | H64: 22250.08229
A65: =+'GEN-502 Gen_P'!A65 -> FERSA PANAMÁ, S.A. No 05-14 | B65: =+'GEN-502 Gen_P'!B65+'GEN-502 Gen_FP'!B65 -> 3324.541182 | C65: =+'GEN-502 Gen_P'!C65+'GEN-502 Gen_FP'!C65 -> 2827.455615 | D65: =+'GEN-502 Gen_P'!D65+'GEN-502 Gen_FP'!D65 -> 3687.867453 | E65: =+'GEN-502 Gen_P'!E65+'GEN-502 Gen_FP'!E65 -> 3278.809868 | F65: =+'GEN-502 Gen_P'!F65+'GEN-502 Gen_FP'!F65 -> 4948.958901 | G65: =+'GEN-502 Gen_P'!G65+'GEN-502 Gen_FP'!G65 -> 9006.112177 | H65: 27073.7452
A66: =+'GEN-502 Gen_P'!A66 -> Panama Solar2 No. 07-15 | B66: =+'GEN-502 Gen_P'!B66+'GEN-502 Gen_FP'!B66 -> 1198.160853 | C66: =+'GEN-502 Gen_P'!C66+'GEN-502 Gen_FP'!C66 -> 1149.83195 | D66: =+'GEN-502 Gen_P'!D66+'GEN-502 Gen_FP'!D66 -> 1146.104171 | E66: =+'GEN-502 Gen_P'!E66+'GEN-502 Gen_FP'!E66 -> 1152.522837 | F66: =+'GEN-502 Gen_P'!F66+'GEN-502 Gen_FP'!F66 -> 1309.887044 | G66: =+'GEN-502 Gen_P'!G66+'GEN-502 Gen_FP'!G66 -> 1719.784187 | H66: 7676.291043
A67: =+'GEN-502 Gen_P'!A67 -> Solpac Investment No. 08-15 | B67: =+'GEN-502 Gen_P'!B67+'GEN-502 Gen_FP'!B67 -> 203.6399869 | C67: =+'GEN-502 Gen_P'!C67+'GEN-502 Gen_FP'!C67 -> 197.9218931 | D67: =+'GEN-502 Gen_P'!D67+'GEN-502 Gen_FP'!D67 -> 198.7196748 | E67: =+'GEN-502 Gen_P'!E67+'GEN-502 Gen_FP'!E67 -> 202.2795184 | F67: =+'GEN-502 Gen_P'!F67+'GEN-502 Gen_FP'!F67 -> 201.1771911 | G67: =+'GEN-502 Gen_P'!G67+'GEN-502 Gen_FP'!G67 -> 253.8957156 | H67: 1257.63398
A68: =+'GEN-502 Gen_P'!A68 -> GAS NATURAL ATLÁNTICO No. 16-15 | B68: =+'GEN-502 Gen_P'!B68+'GEN-502 Gen_FP'!B68 -> 92821.94753 | C68: =+'GEN-502 Gen_P'!C68+'GEN-502 Gen_FP'!C68 -> 92363.55009 | D68: =+'GEN-502 Gen_P'!D68+'GEN-502 Gen_FP'!D68 -> 90579.2006 | E68: =+'GEN-502 Gen_P'!E68+'GEN-502 Gen_FP'!E68 -> 92201.827 | F68: =+'GEN-502 Gen_P'!F68+'GEN-502 Gen_FP'!F68 -> 87623.84323 | G68: =+'GEN-502 Gen_P'!G68+'GEN-502 Gen_FP'!G68 -> 93893.50993 | H68: 549483.8784
A69: =+'GEN-502 Gen_P'!A69 -> MARTANO INC No. 18-15 | B69: =+'GEN-502 Gen_P'!B69+'GEN-502 Gen_FP'!B69 -> 92821.94753 | C69: =+'GEN-502 Gen_P'!C69+'GEN-502 Gen_FP'!C69 -> 92363.55009 | D69: =+'GEN-502 Gen_P'!D69+'GEN-502 Gen_FP'!D69 -> 90579.2006 | E69: =+'GEN-502 Gen_P'!E69+'GEN-502 Gen_FP'!E69 -> 92201.827 | F69: =+'GEN-502 Gen_P'!F69+'GEN-502 Gen_FP'!F69 -> 87623.84323 | G69: =+'GEN-502 Gen_P'!G69+'GEN-502 Gen_FP'!G69 -> 93893.50993 | H69: 549483.8784
A70: =+'GEN-502 Gen_P'!A70 -> AUTORIDAD DEL CANAL DE PANAMÁ No. 27-21 | B70: =+'GEN-502 Gen_P'!B70+'GEN-502 Gen_FP'!B70 -> 0 | C70: =+'GEN-502 Gen_P'!C70+'GEN-502 Gen_FP'!C70 -> 0 | D70: =+'GEN-502 Gen_P'!D70+'GEN-502 Gen_FP'!D70 -> 0 | E70: =+'GEN-502 Gen_P'!E70+'GEN-502 Gen_FP'!E70 -> 0 | F70: =+'GEN-502 Gen_P'!F70+'GEN-502 Gen_FP'!F70 -> 0 | G70: =+'GEN-502 Gen_P'!G70+'GEN-502 Gen_FP'!G70 -> 0 | H70: =+SUM(B70:G70) -> 0
A71: =+'GEN-502 Gen_P'!A71 -> GENERADORA DEL ATLÁNTICO, S.A. No. 29-21 | B71: =+'GEN-502 Gen_P'!B71+'GEN-502 Gen_FP'!B71 -> 0 | C71: =+'GEN-502 Gen_P'!C71+'GEN-502 Gen_FP'!C71 -> 0 | D71: =+'GEN-502 Gen_P'!D71+'GEN-502 Gen_FP'!D71 -> 0 | E71: =+'GEN-502 Gen_P'!E71+'GEN-502 Gen_FP'!E71 -> 0 | F71: =+'GEN-502 Gen_P'!F71+'GEN-502 Gen_FP'!F71 -> 0 | G71: =+'GEN-502 Gen_P'!G71+'GEN-502 Gen_FP'!G71 -> 0 | H71: 0
A72: =+'GEN-502 Gen_P'!A72 -> GENERADORA DEL ATLÁNTICO, S.A. No. 30-21 | B72: =+'GEN-502 Gen_P'!B72+'GEN-502 Gen_FP'!B72 -> 0 | C72: =+'GEN-502 Gen_P'!C72+'GEN-502 Gen_FP'!C72 -> 0 | D72: =+'GEN-502 Gen_P'!D72+'GEN-502 Gen_FP'!D72 -> 0 | E72: =+'GEN-502 Gen_P'!E72+'GEN-502 Gen_FP'!E72 -> 0 | F72: =+'GEN-502 Gen_P'!F72+'GEN-502 Gen_FP'!F72 -> 0 | G72: =+'GEN-502 Gen_P'!G72+'GEN-502 Gen_FP'!G72 -> 0 | H72: 0
A73: =+'GEN-502 Gen_P'!A73 -> PANAM GENERATING LTD No. 31-21 | B73: =+'GEN-502 Gen_P'!B73+'GEN-502 Gen_FP'!B73 -> 0 | C73: =+'GEN-502 Gen_P'!C73+'GEN-502 Gen_FP'!C73 -> 0 | D73: =+'GEN-502 Gen_P'!D73+'GEN-502 Gen_FP'!D73 -> 0 | E73: =+'GEN-502 Gen_P'!E73+'GEN-502 Gen_FP'!E73 -> 0 | F73: =+'GEN-502 Gen_P'!F73+'GEN-502 Gen_FP'!F73 -> 0 | G73: =+'GEN-502 Gen_P'!G73+'GEN-502 Gen_FP'!G73 -> 0 | H73: 0
A74: =+'GEN-502 Gen_P'!A74 -> TROPITÉRMICA, S.A. No. 33-21 | B74: =+'GEN-502 Gen_P'!B74+'GEN-502 Gen_FP'!B74 -> 0 | C74: =+'GEN-502 Gen_P'!C74+'GEN-502 Gen_FP'!C74 -> 0 | D74: =+'GEN-502 Gen_P'!D74+'GEN-502 Gen_FP'!D74 -> 0 | E74: =+'GEN-502 Gen_P'!E74+'GEN-502 Gen_FP'!E74 -> 0 | F74: =+'GEN-502 Gen_P'!F74+'GEN-502 Gen_FP'!F74 -> 0 | G74: =+'GEN-502 Gen_P'!G74+'GEN-502 Gen_FP'!G74 -> 0 | H74: 0
A75: =+'GEN-502 Gen_P'!A75 -> EMPRESA NACIONAL DE ENERGÍA, S.A. No. 02-23 | B75: =+'GEN-502 Gen_P'!B75+'GEN-502 Gen_FP'!B75 -> 91.68535226 | C75: =+'GEN-502 Gen_P'!C75+'GEN-502 Gen_FP'!C75 -> 0 | D75: =+'GEN-502 Gen_P'!D75+'GEN-502 Gen_FP'!D75 -> 31.24058143 | E75: =+'GEN-502 Gen_P'!E75+'GEN-502 Gen_FP'!E75 -> 130.3997268 | F75: =+'GEN-502 Gen_P'!F75+'GEN-502 Gen_FP'!F75 -> 9.254150791 | G75: =+'GEN-502 Gen_P'!G75+'GEN-502 Gen_FP'!G75 -> 0 | H75: 262.5798112
A76: =+'GEN-502 Gen_P'!A76 -> FOUNTAIN HYDRO POWER CORP No. 03-23 | B76: =+'GEN-502 Gen_P'!B76+'GEN-502 Gen_FP'!B76 -> 1069.91502 | C76: =+'GEN-502 Gen_P'!C76+'GEN-502 Gen_FP'!C76 -> 0 | D76: =+'GEN-502 Gen_P'!D76+'GEN-502 Gen_FP'!D76 -> 0 | E76: =+'GEN-502 Gen_P'!E76+'GEN-502 Gen_FP'!E76 -> 0 | F76: =+'GEN-502 Gen_P'!F76+'GEN-502 Gen_FP'!F76 -> 0 | G76: =+'GEN-502 Gen_P'!G76+'GEN-502 Gen_FP'!G76 -> 0 | H76: 1069.91502
A77: =+'GEN-502 Gen_P'!A77 -> GENERADORA DEL ISTMO, S.A. No. 04-23 | B77: =+'GEN-502 Gen_P'!B77+'GEN-502 Gen_FP'!B77 -> 454.6381104 | C77: =+'GEN-502 Gen_P'!C77+'GEN-502 Gen_FP'!C77 -> 0 | D77: =+'GEN-502 Gen_P'!D77+'GEN-502 Gen_FP'!D77 -> 0 | E77: =+'GEN-502 Gen_P'!E77+'GEN-502 Gen_FP'!E77 -> 0 | F77: =+'GEN-502 Gen_P'!F77+'GEN-502 Gen_FP'!F77 -> 0 | G77: =+'GEN-502 Gen_P'!G77+'GEN-502 Gen_FP'!G77 -> 0 | H77: 454.6381104
A78: =+'GEN-502 Gen_P'!A78 -> HIDRO BOQUERÓN, S.A. No. 05-23 | B78: =+'GEN-502 Gen_P'!B78+'GEN-502 Gen_FP'!B78 -> 55.39007645 | C78: =+'GEN-502 Gen_P'!C78+'GEN-502 Gen_FP'!C78 -> 48.06674546 | D78: =+'GEN-502 Gen_P'!D78+'GEN-502 Gen_FP'!D78 -> 48.80185502 | E78: =+'GEN-502 Gen_P'!E78+'GEN-502 Gen_FP'!E78 -> 94.57273112 | F78: =+'GEN-502 Gen_P'!F78+'GEN-502 Gen_FP'!F78 -> 23.88643849 | G78: =+'GEN-502 Gen_P'!G78+'GEN-502 Gen_FP'!G78 -> 0 | H78: 270.7178465
A79: =+'GEN-502 Gen_P'!A79 -> HIDROIBÉRICA No. 06-23 | B79: =+'GEN-502 Gen_P'!B79+'GEN-502 Gen_FP'!B79 -> 29.25785673 | C79: =+'GEN-502 Gen_P'!C79+'GEN-502 Gen_FP'!C79 -> 35.960523 | D79: =+'GEN-502 Gen_P'!D79+'GEN-502 Gen_FP'!D79 -> 10.88798962 | E79: =+'GEN-502 Gen_P'!E79+'GEN-502 Gen_FP'!E79 -> 14.11722872 | F79: =+'GEN-502 Gen_P'!F79+'GEN-502 Gen_FP'!F79 -> 7.005436854 | G79: =+'GEN-502 Gen_P'!G79+'GEN-502 Gen_FP'!G79 -> 35.19569477 | H79: 132.4247297
A80: =+'GEN-502 Gen_P'!A80 -> IDEAL PANAMÁ, S.A. No. 08-23 | B80: =+'GEN-502 Gen_P'!B80+'GEN-502 Gen_FP'!B80 -> 757.7301839 | C80: =+'GEN-502 Gen_P'!C80+'GEN-502 Gen_FP'!C80 -> 0 | D80: =+'GEN-502 Gen_P'!D80+'GEN-502 Gen_FP'!D80 -> 0 | E80: =+'GEN-502 Gen_P'!E80+'GEN-502 Gen_FP'!E80 -> 0 | F80: =+'GEN-502 Gen_P'!F80+'GEN-502 Gen_FP'!F80 -> 0 | G80: =+'GEN-502 Gen_P'!G80+'GEN-502 Gen_FP'!G80 -> 0 | H80: 757.7301839
A81: =+'GEN-502 Gen_P'!A81 -> SOLAR BOQUERÓN, S.A. No. 12-23 | B81: =+'GEN-502 Gen_P'!B81+'GEN-502 Gen_FP'!B81 -> 18.41284347 | C81: =+'GEN-502 Gen_P'!C81+'GEN-502 Gen_FP'!C81 -> 19.22669818 | D81: =+'GEN-502 Gen_P'!D81+'GEN-502 Gen_FP'!D81 -> 4.658358888 | E81: =+'GEN-502 Gen_P'!E81+'GEN-502 Gen_FP'!E81 -> 7.771296847 | F81: =+'GEN-502 Gen_P'!F81+'GEN-502 Gen_FP'!F81 -> 3.527306751 | G81: =+'GEN-502 Gen_P'!G81+'GEN-502 Gen_FP'!G81 -> 15.49242914 | H81: 69.08893328
A82: =+'GEN-502 Gen_P'!A82 -> AUTORIDAD DEL CANAL DE PANAMÁ No. 13-23 | B82: =+'GEN-502 Gen_P'!B82+'GEN-502 Gen_FP'!B82 -> 0 | C82: =+'GEN-502 Gen_P'!C82+'GEN-502 Gen_FP'!C82 -> 0 | D82: =+'GEN-502 Gen_P'!D82+'GEN-502 Gen_FP'!D82 -> 0 | E82: =+'GEN-502 Gen_P'!E82+'GEN-502 Gen_FP'!E82 -> 0 | F82: =+'GEN-502 Gen_P'!F82+'GEN-502 Gen_FP'!F82 -> 0 | G82: =+'GEN-502 Gen_P'!G82+'GEN-502 Gen_FP'!G82 -> 0 | H82: 0
A83: =+'GEN-502 Gen_P'!A83 -> CELSIA CENTROAMÉRICA, S.A. No. 14-23 | B83: =+'GEN-502 Gen_P'!B83+'GEN-502 Gen_FP'!B83 -> 0 | C83: =+'GEN-502 Gen_P'!C83+'GEN-502 Gen_FP'!C83 -> 0 | D83: =+'GEN-502 Gen_P'!D83+'GEN-502 Gen_FP'!D83 -> 0 | E83: =+'GEN-502 Gen_P'!E83+'GEN-502 Gen_FP'!E83 -> 0 | F83: =+'GEN-502 Gen_P'!F83+'GEN-502 Gen_FP'!F83 -> 0 | G83: =+'GEN-502 Gen_P'!G83+'GEN-502 Gen_FP'!G83 -> 0 | H83: 0
A84: =+'GEN-502 Gen_P'!A84 -> GENERADORA DEL ATLÁNTICO, S.A. No. 15-23 | B84: =+'GEN-502 Gen_P'!B84+'GEN-502 Gen_FP'!B84 -> 0 | C84: =+'GEN-502 Gen_P'!C84+'GEN-502 Gen_FP'!C84 -> 0 | D84: =+'GEN-502 Gen_P'!D84+'GEN-502 Gen_FP'!D84 -> 0 | E84: =+'GEN-502 Gen_P'!E84+'GEN-502 Gen_FP'!E84 -> 0 | F84: =+'GEN-502 Gen_P'!F84+'GEN-502 Gen_FP'!F84 -> 0 | G84: =+'GEN-502 Gen_P'!G84+'GEN-502 Gen_FP'!G84 -> 0 | H84: 0
A85: =+'GEN-502 Gen_P'!A85 -> GENERADORA DEL ATLÁNTICO, S.A. No. 16-23 | B85: =+'GEN-502 Gen_P'!B85+'GEN-502 Gen_FP'!B85 -> 0 | C85: =+'GEN-502 Gen_P'!C85+'GEN-502 Gen_FP'!C85 -> 0 | D85: =+'GEN-502 Gen_P'!D85+'GEN-502 Gen_FP'!D85 -> 0 | E85: =+'GEN-502 Gen_P'!E85+'GEN-502 Gen_FP'!E85 -> 0 | F85: =+'GEN-502 Gen_P'!F85+'GEN-502 Gen_FP'!F85 -> 0 | G85: =+'GEN-502 Gen_P'!G85+'GEN-502 Gen_FP'!G85 -> 0 | H85: 0
A86: =+'GEN-502 Gen_P'!A86 -> PEDREGAL POWER, S. DE R.L. No. 17-23 | B86: =+'GEN-502 Gen_P'!B86+'GEN-502 Gen_FP'!B86 -> 0 | C86: =+'GEN-502 Gen_P'!C86+'GEN-502 Gen_FP'!C86 -> 0 | D86: =+'GEN-502 Gen_P'!D86+'GEN-502 Gen_FP'!D86 -> 0 | E86: =+'GEN-502 Gen_P'!E86+'GEN-502 Gen_FP'!E86 -> 0 | F86: =+'GEN-502 Gen_P'!F86+'GEN-502 Gen_FP'!F86 -> 0 | G86: =+'GEN-502 Gen_P'!G86+'GEN-502 Gen_FP'!G86 -> 0 | H86: 0
A87: =+'GEN-502 Gen_P'!A87 -> PANAM GENERATING LTD No. 18-23 | B87: =+'GEN-502 Gen_P'!B87+'GEN-502 Gen_FP'!B87 -> 0 | C87: =+'GEN-502 Gen_P'!C87+'GEN-502 Gen_FP'!C87 -> 0 | D87: =+'GEN-502 Gen_P'!D87+'GEN-502 Gen_FP'!D87 -> 0 | E87: =+'GEN-502 Gen_P'!E87+'GEN-502 Gen_FP'!E87 -> 0 | F87: =+'GEN-502 Gen_P'!F87+'GEN-502 Gen_FP'!F87 -> 0 | G87: =+'GEN-502 Gen_P'!G87+'GEN-502 Gen_FP'!G87 -> 0 | H87: 0
A88: =+'GEN-502 Gen_P'!A88 -> PANAM GENERATING LTD No. 19-23 | B88: =+'GEN-502 Gen_P'!B88+'GEN-502 Gen_FP'!B88 -> 0 | C88: =+'GEN-502 Gen_P'!C88+'GEN-502 Gen_FP'!C88 -> 0 | D88: =+'GEN-502 Gen_P'!D88+'GEN-502 Gen_FP'!D88 -> 0 | E88: =+'GEN-502 Gen_P'!E88+'GEN-502 Gen_FP'!E88 -> 0 | F88: =+'GEN-502 Gen_P'!F88+'GEN-502 Gen_FP'!F88 -> 0 | G88: =+'GEN-502 Gen_P'!G88+'GEN-502 Gen_FP'!G88 -> 0 | H88: 0
A89: =+'GEN-502 Gen_P'!A89 -> SPARKLE POWER, S.A. No. 20-23 | B89: =+'GEN-502 Gen_P'!B89+'GEN-502 Gen_FP'!B89 -> 0 | C89: =+'GEN-502 Gen_P'!C89+'GEN-502 Gen_FP'!C89 -> 0 | D89: =+'GEN-502 Gen_P'!D89+'GEN-502 Gen_FP'!D89 -> 0 | E89: =+'GEN-502 Gen_P'!E89+'GEN-502 Gen_FP'!E89 -> 0 | F89: =+'GEN-502 Gen_P'!F89+'GEN-502 Gen_FP'!F89 -> 0 | G89: =+'GEN-502 Gen_P'!G89+'GEN-502 Gen_FP'!G89 -> 0 | H89: 0
A90: =+'GEN-502 Gen_P'!A90 -> TROPITÉRMICA, S.A. No. 21-23 | B90: =+'GEN-502 Gen_P'!B90+'GEN-502 Gen_FP'!B90 -> 0 | C90: =+'GEN-502 Gen_P'!C90+'GEN-502 Gen_FP'!C90 -> 0 | D90: =+'GEN-502 Gen_P'!D90+'GEN-502 Gen_FP'!D90 -> 0 | E90: =+'GEN-502 Gen_P'!E90+'GEN-502 Gen_FP'!E90 -> 0 | F90: =+'GEN-502 Gen_P'!F90+'GEN-502 Gen_FP'!F90 -> 0 | G90: =+'GEN-502 Gen_P'!G90+'GEN-502 Gen_FP'!G90 -> 0 | H90: 0

Sheet GEN-502 Pre_Gen
A1: INFORMACION PARA ACTUALIZAR: CARGO POR GENERACION
A2: =+'Compras (p)'!A2 -> EDEMET
A3: Precio Mensual de la Energía (B/./MWh)
B4: PRECIO ENERGIA
A5: Detalle | B5: 2023-07-01 | C5: 2023-08-01 | D5: 2023-09-01 | E5: 2023-10-01 | F5: 2023-11-01 | G5: 2023-12-01 | H5: Promedio
A8: TOTAL | B8: =+'GEN-502 Cos_Gen'!B8/'GEN-502 Gen'!B8 -> 58.24282801 | C8: =+'GEN-502 Cos_Gen'!C8/'GEN-502 Gen'!C8 -> 59.7752465 | D8: =+'GEN-502 Cos_Gen'!D8/'GEN-502 Gen'!D8 -> 59.51552766 | E8: =+'GEN-502 Cos_Gen'!E8/'GEN-502 Gen'!E8 -> 59.6411877 | F8: =+'GEN-502 Cos_Gen'!F8/'GEN-502 Gen'!F8 -> 58.68711797 | G8: =+'GEN-502 Cos_Gen'!G8/'GEN-502 Gen'!G8 -> 57.77009676 | H8: =+IF('GEN-502 Gen'!H8>0,'GEN-502 Cos_Gen'!H8/'GEN-502 Gen'!H8,0) -> 58.93866445
A9: Generación Propia | H9: =+IF('GEN-502 Gen'!H9>0,'GEN-502 Cos_Gen'!H9/'GEN-502 Gen'!H9,0) -> 0
H10: =+IF('GEN-502 Gen'!H10>0,'GEN-502 Cos_Gen'!H10/'GEN-502 Gen'!H10,0) -> 0
H11: =+IF('GEN-502 Gen'!H11>0,'GEN-502 Cos_Gen'!H11/'GEN-502 Gen'!H11,0) -> 0
H12: =+IF('GEN-502 Gen'!H12>0,'GEN-502 Cos_Gen'!H12/'GEN-502 Gen'!H12,0) -> 0
H13: =+IF('GEN-502 Gen'!H13>0,'GEN-502 Cos_Gen'!H13/'GEN-502 Gen'!H13,0) -> 0
H14: =+IF('GEN-502 Gen'!H14>0,'GEN-502 Cos_Gen'!H14/'GEN-502 Gen'!H14,0) -> 0
A15: Sub-Total Mercado Mayorista | B15: =+'GEN-502 Cos_Gen'!B15/'GEN-502 Gen'!B15 -> 58.24282801 | C15: =+'GEN-502 Cos_Gen'!C15/'GEN-502 Gen'!C15 -> 59.7752465 | D15: =+'GEN-502 Cos_Gen'!D15/'GEN-502 Gen'!D15 -> 59.51552766 | E15: =+'GEN-502 Cos_Gen'!E15/'GEN-502 Gen'!E15 -> 59.6411877 | F15: =+'GEN-502 Cos_Gen'!F15/'GEN-502 Gen'!F15 -> 58.68711797 | G15: =+'GEN-502 Cos_Gen'!G15/'GEN-502 Gen'!G15 -> 57.77009676 | H15: =+IF('GEN-502 Gen'!H15>0,'GEN-502 Cos_Gen'!H15/'GEN-502 Gen'!H15,0) -> 58.93866445
A16: Mercado Ocasional | B16: =+'GEN-502 Cos_Gen'!B16/'GEN-502 Gen'!B16 -> 100 | C16: =+'GEN-502 Cos_Gen'!C16/'GEN-502 Gen'!C16 -> 100 | D16: =+'GEN-502 Cos_Gen'!D16/'GEN-502 Gen'!D16 -> 100 | E16: =+'GEN-502 Cos_Gen'!E16/'GEN-502 Gen'!E16 -> 100 | F16: =+'GEN-502 Cos_Gen'!F16/'GEN-502 Gen'!F16 -> 100 | G16: =+'GEN-502 Cos_Gen'!G16/'GEN-502 Gen'!G16 -> 100 | H16: =+IF('GEN-502 Gen'!H16<>0,'GEN-502 Cos_Gen'!H16/'GEN-502 Gen'!H16,0) -> 100
H17: =+IF('GEN-502 Gen'!H17>0,'GEN-502 Cos_Gen'!H17/'GEN-502 Gen'!H17,0) -> 0
H18: =+IF('GEN-502 Gen'!H18>0,'GEN-502 Cos_Gen'!H18/'GEN-502 Gen'!H18,0) -> 0
H19: =+IF('GEN-502 Gen'!H19>0,'GEN-502 Cos_Gen'!H19/'GEN-502 Gen'!H19,0) -> 0
H20: =+IF('GEN-502 Gen'!H20>0,'GEN-502 Cos_Gen'!H20/'GEN-502 Gen'!H20,0) -> 0
H21: =+IF('GEN-502 Gen'!H21>0,'GEN-502 Cos_Gen'!H21/'GEN-502 Gen'!H21,0) -> 0
H22: =+IF('GEN-502 Gen'!H22>0,'GEN-502 Cos_Gen'!H22/'GEN-502 Gen'!H22,0) -> 0
H23: =+IF('GEN-502 Gen'!H23>0,'GEN-502 Cos_Gen'!H23/'GEN-502 Gen'!H23,0) -> 0
A24: Sub-Total Contratos | B24: =+'GEN-502 Cos_Gen'!B24/'GEN-502 Gen'!B24 -> 56.37476657 | C24: =+'GEN-502 Cos_Gen'!C24/'GEN-502 Gen'!C24 -> 57.15429111 | D24: =+'GEN-502 Cos_Gen'!D24/'GEN-502 Gen'!D24 -> 58.07791812 | E24: =+'GEN-502 Cos_Gen'!E24/'GEN-502 Gen'!E24 -> 58.31440368 | F24: =+'GEN-502 Cos_Gen'!F24/'GEN-502 Gen'!F24 -> 58.01533781 | G24: =+'GEN-502 Cos_Gen'!G24/'GEN-502 Gen'!G24 -> 55.72406111 | H24: =+IF('GEN-502 Gen'!H24>0,'GEN-502 Cos_Gen'!H24/'GEN-502 Gen'!H24,0) -> 57.27266503
A25: =+'GEN-502 Gen_P'!A25 -> Hydro Caisan No. 05-08 (17,048) | B25: =+IFERROR('GEN-502 Cos_Gen'!B25/'GEN-502 Gen'!B25,0) -> 30.6 | C25: =+IFERROR('GEN-502 Cos_Gen'!C25/'GEN-502 Gen'!C25,0) -> 30.6 | D25: =+IFERROR('GEN-502 Cos_Gen'!D25/'GEN-502 Gen'!D25,0) -> 30.6 | E25: =+IFERROR('GEN-502 Cos_Gen'!E25/'GEN-502 Gen'!E25,0) -> 30.6 | F25: =+IFERROR('GEN-502 Cos_Gen'!F25/'GEN-502 Gen'!F25,0) -> 30.6 | G25: =+IFERROR('GEN-502 Cos_Gen'!G25/'GEN-502 Gen'!G25,0) -> 30.6 | H25: =+IF('GEN-502 Gen'!H25>0,'GEN-502 Cos_Gen'!H25/'GEN-502 Gen'!H25,0) -> 30.6
A26: =+'GEN-502 Gen_P'!A26 -> Electrón Inv. No. 07-08 (34,65) | B26: =+IFERROR('GEN-502 Cos_Gen'!B26/'GEN-502 Gen'!B26,0) -> 69.5 | C26: =+IFERROR('GEN-502 Cos_Gen'!C26/'GEN-502 Gen'!C26,0) -> 69.5 | D26: =+IFERROR('GEN-502 Cos_Gen'!D26/'GEN-502 Gen'!D26,0) -> 69.5 | E26: =+IFERROR('GEN-502 Cos_Gen'!E26/'GEN-502 Gen'!E26,0) -> 69.5 | F26: =+IFERROR('GEN-502 Cos_Gen'!F26/'GEN-502 Gen'!F26,0) -> 69.5 | G26: =+IFERROR('GEN-502 Cos_Gen'!G26/'GEN-502 Gen'!G26,0) -> 69.5 | H26: =+IF('GEN-502 Gen'!H26>0,'GEN-502 Cos_Gen'!H26/'GEN-502 Gen'!H26,0) -> 69.5
A27: =+'GEN-502 Gen_P'!A27 -> Empresa Nacional de Energía No. 24-11 (Cesión) | B27: =+IFERROR('GEN-502 Cos_Gen'!B27/'GEN-502 Gen'!B27,0) -> 79.7 | C27: =+IFERROR('GEN-502 Cos_Gen'!C27/'GEN-502 Gen'!C27,0) -> 79.7 | D27: =+IFERROR('GEN-502 Cos_Gen'!D27/'GEN-502 Gen'!D27,0) -> 79.7 | E27: =+IFERROR('GEN-502 Cos_Gen'!E27/'GEN-502 Gen'!E27,0) -> 79.7 | F27: =+IFERROR('GEN-502 Cos_Gen'!F27/'GEN-502 Gen'!F27,0) -> 79.7 | G27: =+IFERROR('GEN-502 Cos_Gen'!G27/'GEN-502 Gen'!G27,0) -> 79.7 | H27: =+IF('GEN-502 Gen'!H27>0,'GEN-502 Cos_Gen'!H27/'GEN-502 Gen'!H27,0) -> 79.7
A28: =+'GEN-502 Gen_P'!A28 -> Enel Fortuna No. 25-11 | B28: =+IFERROR('GEN-502 Cos_Gen'!B28/'GEN-502 Gen'!B28,0) -> 95.8 | C28: =+IFERROR('GEN-502 Cos_Gen'!C28/'GEN-502 Gen'!C28,0) -> 95.8 | D28: =+IFERROR('GEN-502 Cos_Gen'!D28/'GEN-502 Gen'!D28,0) -> 95.8 | E28: =+IFERROR('GEN-502 Cos_Gen'!E28/'GEN-502 Gen'!E28,0) -> 95.8 | F28: =+IFERROR('GEN-502 Cos_Gen'!F28/'GEN-502 Gen'!F28,0) -> 95.8 | G28: =+IFERROR('GEN-502 Cos_Gen'!G28/'GEN-502 Gen'!G28,0) -> 95.8 | H28: =+IF('GEN-502 Gen'!H28>0,'GEN-502 Cos_Gen'!H28/'GEN-502 Gen'!H28,0) -> 95.8
A29: =+'GEN-502 Gen_P'!A29 -> Electrogeneradora del Istmo No. 26-11 | B29: =+IFERROR('GEN-502 Cos_Gen'!B29/'GEN-502 Gen'!B29,0) -> 63.3 | C29: =+IFERROR('GEN-502 Cos_Gen'!C29/'GEN-502 Gen'!C29,0) -> 63.3 | D29: =+IFERROR('GEN-502 Cos_Gen'!D29/'GEN-502 Gen'!D29,0) -> 63.3 | E29: =+IFERROR('GEN-502 Cos_Gen'!E29/'GEN-502 Gen'!E29,0) -> 63.3 | F29: =+IFERROR('GEN-502 Cos_Gen'!F29/'GEN-502 Gen'!F29,0) -> 63.3 | G29: =+IFERROR('GEN-502 Cos_Gen'!G29/'GEN-502 Gen'!G29,0) -> 63.3 | H29: =+IF('GEN-502 Gen'!H29>0,'GEN-502 Cos_Gen'!H29/'GEN-502 Gen'!H29,0) -> 63.3
A30: =+'GEN-502 Gen_P'!A30 -> ESEPSA No. 27-11 | B30: =+IFERROR('GEN-502 Cos_Gen'!B30/'GEN-502 Gen'!B30,0) -> 91 | C30: =+IFERROR('GEN-502 Cos_Gen'!C30/'GEN-502 Gen'!C30,0) -> 91 | D30: =+IFERROR('GEN-502 Cos_Gen'!D30/'GEN-502 Gen'!D30,0) -> 91 | E30: =+IFERROR('GEN-502 Cos_Gen'!E30/'GEN-502 Gen'!E30,0) -> 91 | F30: =+IFERROR('GEN-502 Cos_Gen'!F30/'GEN-502 Gen'!F30,0) -> 91 | G30: =+IFERROR('GEN-502 Cos_Gen'!G30/'GEN-502 Gen'!G30,0) -> 91 | H30: =+IF('GEN-502 Gen'!H30>0,'GEN-502 Cos_Gen'!H30/'GEN-502 Gen'!H30,0) -> 91
A31: =+'GEN-502 Gen_P'!A31 -> Pedregalito No. 28-11 | B31: =+IFERROR('GEN-502 Cos_Gen'!B31/'GEN-502 Gen'!B31,0) -> 54.2 | C31: =+IFERROR('GEN-502 Cos_Gen'!C31/'GEN-502 Gen'!C31,0) -> 54.2 | D31: =+IFERROR('GEN-502 Cos_Gen'!D31/'GEN-502 Gen'!D31,0) -> 54.2 | E31: =+IFERROR('GEN-502 Cos_Gen'!E31/'GEN-502 Gen'!E31,0) -> 54.2 | F31: =+IFERROR('GEN-502 Cos_Gen'!F31/'GEN-502 Gen'!F31,0) -> 54.2 | G31: =+IFERROR('GEN-502 Cos_Gen'!G31/'GEN-502 Gen'!G31,0) -> 54.2 | H31: =+IF('GEN-502 Gen'!H31>0,'GEN-502 Cos_Gen'!H31/'GEN-502 Gen'!H31,0) -> 54.2
A32: =+'GEN-502 Gen_P'!A32 -> Río Chico No. 29-11 | B32: =+IFERROR('GEN-502 Cos_Gen'!B32/'GEN-502 Gen'!B32,0) -> 54.2 | C32: =+IFERROR('GEN-502 Cos_Gen'!C32/'GEN-502 Gen'!C32,0) -> 54.2 | D32: =+IFERROR('GEN-502 Cos_Gen'!D32/'GEN-502 Gen'!D32,0) -> 54.2 | E32: =+IFERROR('GEN-502 Cos_Gen'!E32/'GEN-502 Gen'!E32,0) -> 54.2 | F32: =+IFERROR('GEN-502 Cos_Gen'!F32/'GEN-502 Gen'!F32,0) -> 54.2 | G32: =+IFERROR('GEN-502 Cos_Gen'!G32/'GEN-502 Gen'!G32,0) -> 54.2 | H32: =+IF('GEN-502 Gen'!H32>0,'GEN-502 Cos_Gen'!H32/'GEN-502 Gen'!H32,0) -> 54.2
A33: =+'GEN-502 Gen_P'!A33 -> Alto Valle No. 30-11 | B33: =+IFERROR('GEN-502 Cos_Gen'!B33/'GEN-502 Gen'!B33,0) -> 54.2 | C33: =+IFERROR('GEN-502 Cos_Gen'!C33/'GEN-502 Gen'!C33,0) -> 54.2 | D33: =+IFERROR('GEN-502 Cos_Gen'!D33/'GEN-502 Gen'!D33,0) -> 54.2 | E33: =+IFERROR('GEN-502 Cos_Gen'!E33/'GEN-502 Gen'!E33,0) -> 54.2 | F33: =+IFERROR('GEN-502 Cos_Gen'!F33/'GEN-502 Gen'!F33,0) -> 54.2 | G33: =+IFERROR('GEN-502 Cos_Gen'!G33/'GEN-502 Gen'!G33,0) -> 54.2 | H33: =+IF('GEN-502 Gen'!H33>0,'GEN-502 Cos_Gen'!H33/'GEN-502 Gen'!H33,0) -> 54.2
A34: =+'GEN-502 Gen_P'!A34 -> Hidroecológica del Teribe No. 31-11 | B34: =+IFERROR('GEN-502 Cos_Gen'!B34/'GEN-502 Gen'!B34,0) -> 102.1 | C34: =+IFERROR('GEN-502 Cos_Gen'!C34/'GEN-502 Gen'!C34,0) -> 102.1 | D34: =+IFERROR('GEN-502 Cos_Gen'!D34/'GEN-502 Gen'!D34,0) -> 102.1 | E34: =+IFERROR('GEN-502 Cos_Gen'!E34/'GEN-502 Gen'!E34,0) -> 102.1 | F34: =+IFERROR('GEN-502 Cos_Gen'!F34/'GEN-502 Gen'!F34,0) -> 102.1 | G34: =+IFERROR('GEN-502 Cos_Gen'!G34/'GEN-502 Gen'!G34,0) -> 102.1 | H34: =+IF('GEN-502 Gen'!H34>0,'GEN-502 Cos_Gen'!H34/'GEN-502 Gen'!H34,0) -> 102.1
A35: =+'GEN-502 Gen_P'!A35 -> Desarrollos Hidroeléctricos Corp. No. 32-11 | B35: =+IFERROR('GEN-502 Cos_Gen'!B35/'GEN-502 Gen'!B35,0) -> 96.5 | C35: =+IFERROR('GEN-502 Cos_Gen'!C35/'GEN-502 Gen'!C35,0) -> 96.5 | D35: =+IFERROR('GEN-502 Cos_Gen'!D35/'GEN-502 Gen'!D35,0) -> 96.5 | E35: =+IFERROR('GEN-502 Cos_Gen'!E35/'GEN-502 Gen'!E35,0) -> 96.5 | F35: =+IFERROR('GEN-502 Cos_Gen'!F35/'GEN-502 Gen'!F35,0) -> 96.5 | G35: =+IFERROR('GEN-502 Cos_Gen'!G35/'GEN-502 Gen'!G35,0) -> 96.5 | H35: =+IF('GEN-502 Gen'!H35>0,'GEN-502 Cos_Gen'!H35/'GEN-502 Gen'!H35,0) -> 96.5
A36: =+'GEN-502 Gen_P'!A36 -> Las Perlas Norte No. 33-11 | B36: =+IFERROR('GEN-502 Cos_Gen'!B36/'GEN-502 Gen'!B36,0) -> 100.8 | C36: =+IFERROR('GEN-502 Cos_Gen'!C36/'GEN-502 Gen'!C36,0) -> 100.8 | D36: =+IFERROR('GEN-502 Cos_Gen'!D36/'GEN-502 Gen'!D36,0) -> 100.8 | E36: =+IFERROR('GEN-502 Cos_Gen'!E36/'GEN-502 Gen'!E36,0) -> 100.8 | F36: =+IFERROR('GEN-502 Cos_Gen'!F36/'GEN-502 Gen'!F36,0) -> 100.8 | G36: =+IFERROR('GEN-502 Cos_Gen'!G36/'GEN-502 Gen'!G36,0) -> 100.8 | H36: =+IF('GEN-502 Gen'!H36>0,'GEN-502 Cos_Gen'!H36/'GEN-502 Gen'!H36,0) -> 100.8
A37: =+'GEN-502 Gen_P'!A37 -> Hidroeléctrica San Lorenzo No. 34-11 | B37: =+IFERROR('GEN-502 Cos_Gen'!B37/'GEN-502 Gen'!B37,0) -> 89.5 | C37: =+IFERROR('GEN-502 Cos_Gen'!C37/'GEN-502 Gen'!C37,0) -> 89.5 | D37: =+IFERROR('GEN-502 Cos_Gen'!D37/'GEN-502 Gen'!D37,0) -> 89.5 | E37: =+IFERROR('GEN-502 Cos_Gen'!E37/'GEN-502 Gen'!E37,0) -> 89.5 | F37: =+IFERROR('GEN-502 Cos_Gen'!F37/'GEN-502 Gen'!F37,0) -> 89.5 | G37: =+IFERROR('GEN-502 Cos_Gen'!G37/'GEN-502 Gen'!G37,0) -> 89.5 | H37: =+IF('GEN-502 Gen'!H37>0,'GEN-502 Cos_Gen'!H37/'GEN-502 Gen'!H37,0) -> 89.5
A38: =+'GEN-502 Gen_P'!A38 -> Caldera Energy Corp. No. 35-11 | B38: =+IFERROR('GEN-502 Cos_Gen'!B38/'GEN-502 Gen'!B38,0) -> 63.3 | C38: =+IFERROR('GEN-502 Cos_Gen'!C38/'GEN-502 Gen'!C38,0) -> 63.3 | D38: =+IFERROR('GEN-502 Cos_Gen'!D38/'GEN-502 Gen'!D38,0) -> 63.3 | E38: =+IFERROR('GEN-502 Cos_Gen'!E38/'GEN-502 Gen'!E38,0) -> 63.3 | F38: =+IFERROR('GEN-502 Cos_Gen'!F38/'GEN-502 Gen'!F38,0) -> 63.3 | G38: =+IFERROR('GEN-502 Cos_Gen'!G38/'GEN-502 Gen'!G38,0) -> 63.3 | H38: =+IF('GEN-502 Gen'!H38>0,'GEN-502 Cos_Gen'!H38/'GEN-502 Gen'!H38,0) -> 63.3
A39: =+'GEN-502 Gen_P'!A39 -> PASO ANCHO No. 86-11 | B39: =+IFERROR('GEN-502 Cos_Gen'!B39/'GEN-502 Gen'!B39,0) -> 99.9 | C39: =+IFERROR('GEN-502 Cos_Gen'!C39/'GEN-502 Gen'!C39,0) -> 99.9 | D39: =+IFERROR('GEN-502 Cos_Gen'!D39/'GEN-502 Gen'!D39,0) -> 99.9 | E39: =+IFERROR('GEN-502 Cos_Gen'!E39/'GEN-502 Gen'!E39,0) -> 99.9 | F39: =+IFERROR('GEN-502 Cos_Gen'!F39/'GEN-502 Gen'!F39,0) -> 99.9 | G39: =+IFERROR('GEN-502 Cos_Gen'!G39/'GEN-502 Gen'!G39,0) -> 99.9 | H39: =+IF('GEN-502 Gen'!H39>0,'GEN-502 Cos_Gen'!H39/'GEN-502 Gen'!H39,0) -> 99.9
A40: =+'GEN-502 Gen_P'!A40 -> Hidroecológica del Teribe No. 87-11 | B40: =+IFERROR('GEN-502 Cos_Gen'!B40/'GEN-502 Gen'!B40,0) -> 111 | C40: =+IFERROR('GEN-502 Cos_Gen'!C40/'GEN-502 Gen'!C40,0) -> 111 | D40: =+IFERROR('GEN-502 Cos_Gen'!D40/'GEN-502 Gen'!D40,0) -> 111 | E40: =+IFERROR('GEN-502 Cos_Gen'!E40/'GEN-502 Gen'!E40,0) -> 111 | F40: =+IFERROR('GEN-502 Cos_Gen'!F40/'GEN-502 Gen'!F40,0) -> 111 | G40: =+IFERROR('GEN-502 Cos_Gen'!G40/'GEN-502 Gen'!G40,0) -> 111 | H40: =+IF('GEN-502 Gen'!H40>0,'GEN-502 Cos_Gen'!H40/'GEN-502 Gen'!H40,0) -> 111
A41: =+'GEN-502 Gen_P'!A41 -> Unión Eólica de Panamá (PE Nuevo Chagres) No. 15-12' | B41: =+IFERROR('GEN-502 Cos_Gen'!B41/'GEN-502 Gen'!B41,0) -> 95 | C41: =+IFERROR('GEN-502 Cos_Gen'!C41/'GEN-502 Gen'!C41,0) -> 95 | D41: =+IFERROR('GEN-502 Cos_Gen'!D41/'GEN-502 Gen'!D41,0) -> 95 | E41: =+IFERROR('GEN-502 Cos_Gen'!E41/'GEN-502 Gen'!E41,0) -> 95 | F41: =+IFERROR('GEN-502 Cos_Gen'!F41/'GEN-502 Gen'!F41,0) -> 95 | G41: =+IFERROR('GEN-502 Cos_Gen'!G41/'GEN-502 Gen'!G41,0) -> 95 | H41: =+IF('GEN-502 Gen'!H41>0,'GEN-502 Cos_Gen'!H41/'GEN-502 Gen'!H41,0) -> 95
A42: =+'GEN-502 Gen_P'!A42 -> Unión Eólica de Panamá (PE Rosa de los Vientos) No. 16-12' | B42: =+IFERROR('GEN-502 Cos_Gen'!B42/'GEN-502 Gen'!B42,0) -> 98 | C42: =+IFERROR('GEN-502 Cos_Gen'!C42/'GEN-502 Gen'!C42,0) -> 98 | D42: =+IFERROR('GEN-502 Cos_Gen'!D42/'GEN-502 Gen'!D42,0) -> 98 | E42: =+IFERROR('GEN-502 Cos_Gen'!E42/'GEN-502 Gen'!E42,0) -> 98 | F42: =+IFERROR('GEN-502 Cos_Gen'!F42/'GEN-502 Gen'!F42,0) -> 98 | G42: =+IFERROR('GEN-502 Cos_Gen'!G42/'GEN-502 Gen'!G42,0) -> 98 | H42: =+IF('GEN-502 Gen'!H42>0,'GEN-502 Cos_Gen'!H42/'GEN-502 Gen'!H42,0) -> 98
A43: =+'GEN-502 Gen_P'!A43 -> Unión Eólica de Panamá (PE Portobelo Ballestillas) No. 17-12' | B43: =+IFERROR('GEN-502 Cos_Gen'!B43/'GEN-502 Gen'!B43,0) -> 108 | C43: =+IFERROR('GEN-502 Cos_Gen'!C43/'GEN-502 Gen'!C43,0) -> 108 | D43: =+IFERROR('GEN-502 Cos_Gen'!D43/'GEN-502 Gen'!D43,0) -> 108 | E43: =+IFERROR('GEN-502 Cos_Gen'!E43/'GEN-502 Gen'!E43,0) -> 108 | F43: =+IFERROR('GEN-502 Cos_Gen'!F43/'GEN-502 Gen'!F43,0) -> 108 | G43: =+IFERROR('GEN-502 Cos_Gen'!G43/'GEN-502 Gen'!G43,0) -> 108 | H43: =+IF('GEN-502 Gen'!H43>0,'GEN-502 Cos_Gen'!H43/'GEN-502 Gen'!H43,0) -> 108
A44: =+'GEN-502 Gen_P'!A44 -> Unión Eólica de Panamá (PE Marañon) No. 18-12' | B44: =+IFERROR('GEN-502 Cos_Gen'!B44/'GEN-502 Gen'!B44,0) -> 110 | C44: =+IFERROR('GEN-502 Cos_Gen'!C44/'GEN-502 Gen'!C44,0) -> 110 | D44: =+IFERROR('GEN-502 Cos_Gen'!D44/'GEN-502 Gen'!D44,0) -> 110 | E44: =+IFERROR('GEN-502 Cos_Gen'!E44/'GEN-502 Gen'!E44,0) -> 110 | F44: =+IFERROR('GEN-502 Cos_Gen'!F44/'GEN-502 Gen'!F44,0) -> 110 | G44: =+IFERROR('GEN-502 Cos_Gen'!G44/'GEN-502 Gen'!G44,0) -> 110 | H44: =+IF('GEN-502 Gen'!H44>0,'GEN-502 Cos_Gen'!H44/'GEN-502 Gen'!H44,0) -> 110
A45: =+'GEN-502 Gen_P'!A45 -> AES No. 117-12 | B45: =+IFERROR('GEN-502 Cos_Gen'!B45/'GEN-502 Gen'!B45,0) -> 88.7 | C45: =+IFERROR('GEN-502 Cos_Gen'!C45/'GEN-502 Gen'!C45,0) -> 88.7 | D45: =+IFERROR('GEN-502 Cos_Gen'!D45/'GEN-502 Gen'!D45,0) -> 88.7 | E45: =+IFERROR('GEN-502 Cos_Gen'!E45/'GEN-502 Gen'!E45,0) -> 88.7 | F45: =+IFERROR('GEN-502 Cos_Gen'!F45/'GEN-502 Gen'!F45,0) -> 88.7 | G45: =+IFERROR('GEN-502 Cos_Gen'!G45/'GEN-502 Gen'!G45,0) -> 88.7 | H45: =+IF('GEN-502 Gen'!H45>0,'GEN-502 Cos_Gen'!H45/'GEN-502 Gen'!H45,0) -> 88.7
A46: =+'GEN-502 Gen_P'!A46 -> HIDRO PIEDRA No. 118-12 | B46: =+IFERROR('GEN-502 Cos_Gen'!B46/'GEN-502 Gen'!B46,0) -> 100 | C46: =+IFERROR('GEN-502 Cos_Gen'!C46/'GEN-502 Gen'!C46,0) -> 100 | D46: =+IFERROR('GEN-502 Cos_Gen'!D46/'GEN-502 Gen'!D46,0) -> 100 | E46: =+IFERROR('GEN-502 Cos_Gen'!E46/'GEN-502 Gen'!E46,0) -> 100 | F46: =+IFERROR('GEN-502 Cos_Gen'!F46/'GEN-502 Gen'!F46,0) -> 100 | G46: =+IFERROR('GEN-502 Cos_Gen'!G46/'GEN-502 Gen'!G46,0) -> 100 | H46: =+IF('GEN-502 Gen'!H46>0,'GEN-502 Cos_Gen'!H46/'GEN-502 Gen'!H46,0) -> 100
A47: =+'GEN-502 Gen_P'!A47 -> Corp. Energ. Del Istmo No. 119-12 | B47: =+IFERROR('GEN-502 Cos_Gen'!B47/'GEN-502 Gen'!B47,0) -> 100 | C47: =+IFERROR('GEN-502 Cos_Gen'!C47/'GEN-502 Gen'!C47,0) -> 100 | D47: =+IFERROR('GEN-502 Cos_Gen'!D47/'GEN-502 Gen'!D47,0) -> 100 | E47: =+IFERROR('GEN-502 Cos_Gen'!E47/'GEN-502 Gen'!E47,0) -> 100 | F47: =+IFERROR('GEN-502 Cos_Gen'!F47/'GEN-502 Gen'!F47,0) -> 100 | G47: =+IFERROR('GEN-502 Cos_Gen'!G47/'GEN-502 Gen'!G47,0) -> 100 | H47: =+IF('GEN-502 Gen'!H47>0,'GEN-502 Cos_Gen'!H47/'GEN-502 Gen'!H47,0) -> 100
A48: =+'GEN-502 Gen_P'!A48 -> Saltos del Francolí No. 121-12 | B48: =+IFERROR('GEN-502 Cos_Gen'!B48/'GEN-502 Gen'!B48,0) -> 103.5 | C48: =+IFERROR('GEN-502 Cos_Gen'!C48/'GEN-502 Gen'!C48,0) -> 103.5 | D48: =+IFERROR('GEN-502 Cos_Gen'!D48/'GEN-502 Gen'!D48,0) -> 103.5 | E48: =+IFERROR('GEN-502 Cos_Gen'!E48/'GEN-502 Gen'!E48,0) -> 103.5 | F48: =+IFERROR('GEN-502 Cos_Gen'!F48/'GEN-502 Gen'!F48,0) -> 103.5 | G48: =+IFERROR('GEN-502 Cos_Gen'!G48/'GEN-502 Gen'!G48,0) -> 103.5 | H48: =+IF('GEN-502 Gen'!H48>0,'GEN-502 Cos_Gen'!H48/'GEN-502 Gen'!H48,0) -> 103.5
A49: =+'GEN-502 Gen_P'!A49 -> ISTMUS HYDRO POWER CORP. No.02-13 | B49: =+IFERROR('GEN-502 Cos_Gen'!B49/'GEN-502 Gen'!B49,0) -> 120 | C49: =+IFERROR('GEN-502 Cos_Gen'!C49/'GEN-502 Gen'!C49,0) -> 120 | D49: =+IFERROR('GEN-502 Cos_Gen'!D49/'GEN-502 Gen'!D49,0) -> 120 | E49: =+IFERROR('GEN-502 Cos_Gen'!E49/'GEN-502 Gen'!E49,0) -> 120 | F49: =+IFERROR('GEN-502 Cos_Gen'!F49/'GEN-502 Gen'!F49,0) -> 120 | G49: =+IFERROR('GEN-502 Cos_Gen'!G49/'GEN-502 Gen'!G49,0) -> 120 | H49: =+IF('GEN-502 Gen'!H49>0,'GEN-502 Cos_Gen'!H49/'GEN-502 Gen'!H49,0) -> 120
A50: =+'GEN-502 Gen_P'!A50 -> CALDERA ENERGY CORP. No.03-13 | B50: =+IFERROR('GEN-502 Cos_Gen'!B50/'GEN-502 Gen'!B50,0) -> 122.5 | C50: =+IFERROR('GEN-502 Cos_Gen'!C50/'GEN-502 Gen'!C50,0) -> 122.5 | D50: =+IFERROR('GEN-502 Cos_Gen'!D50/'GEN-502 Gen'!D50,0) -> 122.5 | E50: =+IFERROR('GEN-502 Cos_Gen'!E50/'GEN-502 Gen'!E50,0) -> 122.5 | F50: =+IFERROR('GEN-502 Cos_Gen'!F50/'GEN-502 Gen'!F50,0) -> 122.5 | G50: =+IFERROR('GEN-502 Cos_Gen'!G50/'GEN-502 Gen'!G50,0) -> 122.5 | H50: =+IF('GEN-502 Gen'!H50>0,'GEN-502 Cos_Gen'!H50/'GEN-502 Gen'!H50,0) -> 122.5
A51: =+'GEN-502 Gen_P'!A51 -> ELECTROGENERADORA DEL ISTMO, S.A. No.04-13 | B51: =+IFERROR('GEN-502 Cos_Gen'!B51/'GEN-502 Gen'!B51,0) -> 125 | C51: =+IFERROR('GEN-502 Cos_Gen'!C51/'GEN-502 Gen'!C51,0) -> 125 | D51: =+IFERROR('GEN-502 Cos_Gen'!D51/'GEN-502 Gen'!D51,0) -> 125 | E51: =+IFERROR('GEN-502 Cos_Gen'!E51/'GEN-502 Gen'!E51,0) -> 125 | F51: =+IFERROR('GEN-502 Cos_Gen'!F51/'GEN-502 Gen'!F51,0) -> 125 | G51: =+IFERROR('GEN-502 Cos_Gen'!G51/'GEN-502 Gen'!G51,0) -> 125 | H51: =+IF('GEN-502 Gen'!H51>0,'GEN-502 Cos_Gen'!H51/'GEN-502 Gen'!H51,0) -> 125
A52: =+'GEN-502 Gen_P'!A52 -> FOUNTAIN INTERTRADE CORP. No.05-13 | B52: =+IFERROR('GEN-502 Cos_Gen'!B52/'GEN-502 Gen'!B52,0) -> 132.3 | C52: =+IFERROR('GEN-502 Cos_Gen'!C52/'GEN-502 Gen'!C52,0) -> 132.3 | D52: =+IFERROR('GEN-502 Cos_Gen'!D52/'GEN-502 Gen'!D52,0) -> 132.3 | E52: =+IFERROR('GEN-502 Cos_Gen'!E52/'GEN-502 Gen'!E52,0) -> 132.3 | F52: =+IFERROR('GEN-502 Cos_Gen'!F52/'GEN-502 Gen'!F52,0) -> 132.3 | G52: =+IFERROR('GEN-502 Cos_Gen'!G52/'GEN-502 Gen'!G52,0) -> 132.3 | H52: =+IF('GEN-502 Gen'!H52>0,'GEN-502 Cos_Gen'!H52/'GEN-502 Gen'!H52,0) -> 132.3
A53: =+'GEN-502 Gen_P'!A53 -> HIDROIBERICA, S.A. No.06-13 | B53: =+IFERROR('GEN-502 Cos_Gen'!B53/'GEN-502 Gen'!B53,0) -> 90 | C53: =+IFERROR('GEN-502 Cos_Gen'!C53/'GEN-502 Gen'!C53,0) -> 90 | D53: =+IFERROR('GEN-502 Cos_Gen'!D53/'GEN-502 Gen'!D53,0) -> 90 | E53: =+IFERROR('GEN-502 Cos_Gen'!E53/'GEN-502 Gen'!E53,0) -> 90 | F53: =+IFERROR('GEN-502 Cos_Gen'!F53/'GEN-502 Gen'!F53,0) -> 90 | G53: =+IFERROR('GEN-502 Cos_Gen'!G53/'GEN-502 Gen'!G53,0) -> 90 | H53: =+IF('GEN-502 Gen'!H53>0,'GEN-502 Cos_Gen'!H53/'GEN-502 Gen'!H53,0) -> 90
A54: =+'GEN-502 Gen_P'!A54 -> NAVITAS INTERNACIONAL, S.A. No.07-13 | B54: =+IFERROR('GEN-502 Cos_Gen'!B54/'GEN-502 Gen'!B54,0) -> 85 | C54: =+IFERROR('GEN-502 Cos_Gen'!C54/'GEN-502 Gen'!C54,0) -> 85 | D54: =+IFERROR('GEN-502 Cos_Gen'!D54/'GEN-502 Gen'!D54,0) -> 85 | E54: =+IFERROR('GEN-502 Cos_Gen'!E54/'GEN-502 Gen'!E54,0) -> 85 | F54: =+IFERROR('GEN-502 Cos_Gen'!F54/'GEN-502 Gen'!F54,0) -> 85 | G54: =+IFERROR('GEN-502 Cos_Gen'!G54/'GEN-502 Gen'!G54,0) -> 85 | H54: =+IF('GEN-502 Gen'!H54>0,'GEN-502 Cos_Gen'!H54/'GEN-502 Gen'!H54,0) -> 85
A55: =+'GEN-502 Gen_P'!A55 -> HIDROECOLÓGICA DEL TERIBE, S.A. No.08-13 | B55: =+IFERROR('GEN-502 Cos_Gen'!B55/'GEN-502 Gen'!B55,0) -> 0 | C55: =+IFERROR('GEN-502 Cos_Gen'!C55/'GEN-502 Gen'!C55,0) -> 0 | D55: =+IFERROR('GEN-502 Cos_Gen'!D55/'GEN-502 Gen'!D55,0) -> 136 | E55: =+IFERROR('GEN-502 Cos_Gen'!E55/'GEN-502 Gen'!E55,0) -> 136 | F55: =+IFERROR('GEN-502 Cos_Gen'!F55/'GEN-502 Gen'!F55,0) -> 136 | G55: =+IFERROR('GEN-502 Cos_Gen'!G55/'GEN-502 Gen'!G55,0) -> 136 | H55: =+IF('GEN-502 Gen'!H55>0,'GEN-502 Cos_Gen'!H55/'GEN-502 Gen'!H55,0) -> 136
A56: =+'GEN-502 Gen_P'!A56 -> HIDRONORTH CORP. No.09-13 | B56: =+IFERROR('GEN-502 Cos_Gen'!B56/'GEN-502 Gen'!B56,0) -> 140 | C56: =+IFERROR('GEN-502 Cos_Gen'!C56/'GEN-502 Gen'!C56,0) -> 140 | D56: =+IFERROR('GEN-502 Cos_Gen'!D56/'GEN-502 Gen'!D56,0) -> 140 | E56: =+IFERROR('GEN-502 Cos_Gen'!E56/'GEN-502 Gen'!E56,0) -> 140 | F56: =+IFERROR('GEN-502 Cos_Gen'!F56/'GEN-502 Gen'!F56,0) -> 140 | G56: =+IFERROR('GEN-502 Cos_Gen'!G56/'GEN-502 Gen'!G56,0) -> 140 | H56: =+IF('GEN-502 Gen'!H56>0,'GEN-502 Cos_Gen'!H56/'GEN-502 Gen'!H56,0) -> 140
A57: =+'GEN-502 Gen_P'!A57 -> EMPRESA NACIONAL DE ENERGÍA, S.A. No.24-13 | B57: =+IFERROR('GEN-502 Cos_Gen'!B57/'GEN-502 Gen'!B57,0) -> 127.5 | C57: =+IFERROR('GEN-502 Cos_Gen'!C57/'GEN-502 Gen'!C57,0) -> 127.5 | D57: =+IFERROR('GEN-502 Cos_Gen'!D57/'GEN-502 Gen'!D57,0) -> 127.5 | E57: =+IFERROR('GEN-502 Cos_Gen'!E57/'GEN-502 Gen'!E57,0) -> 127.5 | F57: =+IFERROR('GEN-502 Cos_Gen'!F57/'GEN-502 Gen'!F57,0) -> 127.5 | G57: =+IFERROR('GEN-502 Cos_Gen'!G57/'GEN-502 Gen'!G57,0) -> 127.5 | H57: =+IF('GEN-502 Gen'!H57>0,'GEN-502 Cos_Gen'!H57/'GEN-502 Gen'!H57,0) -> 127.5
A58: =+'GEN-502 Gen_P'!A58 -> FUERZA ELÉCTRICA DEL ISTMO, S.A. No.25-13 | B58: =+IFERROR('GEN-502 Cos_Gen'!B58/'GEN-502 Gen'!B58,0) -> 127.6 | C58: =+IFERROR('GEN-502 Cos_Gen'!C58/'GEN-502 Gen'!C58,0) -> 127.6 | D58: =+IFERROR('GEN-502 Cos_Gen'!D58/'GEN-502 Gen'!D58,0) -> 127.6 | E58: =+IFERROR('GEN-502 Cos_Gen'!E58/'GEN-502 Gen'!E58,0) -> 127.6 | F58: =+IFERROR('GEN-502 Cos_Gen'!F58/'GEN-502 Gen'!F58,0) -> 127.6 | G58: =+IFERROR('GEN-502 Cos_Gen'!G58/'GEN-502 Gen'!G58,0) -> 127.6 | H58: =+IF('GEN-502 Gen'!H58>0,'GEN-502 Cos_Gen'!H58/'GEN-502 Gen'!H58,0) -> 127.6
A59: =+'GEN-502 Gen_P'!A59 -> CAFÉ DE ELETA, S.A. No.26-13 | B59: =+IFERROR('GEN-502 Cos_Gen'!B59/'GEN-502 Gen'!B59,0) -> 128 | C59: =+IFERROR('GEN-502 Cos_Gen'!C59/'GEN-502 Gen'!C59,0) -> 128 | D59: =+IFERROR('GEN-502 Cos_Gen'!D59/'GEN-502 Gen'!D59,0) -> 128 | E59: =+IFERROR('GEN-502 Cos_Gen'!E59/'GEN-502 Gen'!E59,0) -> 128 | F59: =+IFERROR('GEN-502 Cos_Gen'!F59/'GEN-502 Gen'!F59,0) -> 128 | G59: =+IFERROR('GEN-502 Cos_Gen'!G59/'GEN-502 Gen'!G59,0) -> 128 | H59: =+IF('GEN-502 Gen'!H59>0,'GEN-502 Cos_Gen'!H59/'GEN-502 Gen'!H59,0) -> 128
A60: =+'GEN-502 Gen_P'!A60 -> ENERGÍA Y SERVICIOS DE PANAMÁ, S.A. No.27-13 | B60: =+IFERROR('GEN-502 Cos_Gen'!B60/'GEN-502 Gen'!B60,0) -> 132.5 | C60: =+IFERROR('GEN-502 Cos_Gen'!C60/'GEN-502 Gen'!C60,0) -> 132.5 | D60: =+IFERROR('GEN-502 Cos_Gen'!D60/'GEN-502 Gen'!D60,0) -> 132.5 | E60: =+IFERROR('GEN-502 Cos_Gen'!E60/'GEN-502 Gen'!E60,0) -> 132.5 | F60: =+IFERROR('GEN-502 Cos_Gen'!F60/'GEN-502 Gen'!F60,0) -> 132.5 | G60: =+IFERROR('GEN-502 Cos_Gen'!G60/'GEN-502 Gen'!G60,0) -> 132.5 | H60: =+IF('GEN-502 Gen'!H60>0,'GEN-502 Cos_Gen'!H60/'GEN-502 Gen'!H60,0) -> 132.5
A61: =+'GEN-502 Gen_P'!A61 -> GENERADORA PEDREGALITO, S.A. No.28-13 | B61: =+IFERROR('GEN-502 Cos_Gen'!B61/'GEN-502 Gen'!B61,0) -> 132 | C61: =+IFERROR('GEN-502 Cos_Gen'!C61/'GEN-502 Gen'!C61,0) -> 132 | D61: =+IFERROR('GEN-502 Cos_Gen'!D61/'GEN-502 Gen'!D61,0) -> 132 | E61: =+IFERROR('GEN-502 Cos_Gen'!E61/'GEN-502 Gen'!E61,0) -> 132 | F61: =+IFERROR('GEN-502 Cos_Gen'!F61/'GEN-502 Gen'!F61,0) -> 132 | G61: =+IFERROR('GEN-502 Cos_Gen'!G61/'GEN-502 Gen'!G61,0) -> 132 | H61: =+IF('GEN-502 Gen'!H61>0,'GEN-502 Cos_Gen'!H61/'GEN-502 Gen'!H61,0) -> 132
A62: =+'GEN-502 Gen_P'!A62 -> GENERADORA RIO CHICO, S.A. No.29-13 | B62: =+IFERROR('GEN-502 Cos_Gen'!B62/'GEN-502 Gen'!B62,0) -> 132 | C62: =+IFERROR('GEN-502 Cos_Gen'!C62/'GEN-502 Gen'!C62,0) -> 132 | D62: =+IFERROR('GEN-502 Cos_Gen'!D62/'GEN-502 Gen'!D62,0) -> 132 | E62: =+IFERROR('GEN-502 Cos_Gen'!E62/'GEN-502 Gen'!E62,0) -> 132 | F62: =+IFERROR('GEN-502 Cos_Gen'!F62/'GEN-502 Gen'!F62,0) -> 132 | G62: =+IFERROR('GEN-502 Cos_Gen'!G62/'GEN-502 Gen'!G62,0) -> 132 | H62: =+IF('GEN-502 Gen'!H62>0,'GEN-502 Cos_Gen'!H62/'GEN-502 Gen'!H62,0) -> 132
A63: =+'GEN-502 Gen_P'!A63 -> GENERADORA ALTO VALLE, S.A. No.30-13 | B63: =+IFERROR('GEN-502 Cos_Gen'!B63/'GEN-502 Gen'!B63,0) -> 132.5 | C63: =+IFERROR('GEN-502 Cos_Gen'!C63/'GEN-502 Gen'!C63,0) -> 132.5 | D63: =+IFERROR('GEN-502 Cos_Gen'!D63/'GEN-502 Gen'!D63,0) -> 132.5 | E63: =+IFERROR('GEN-502 Cos_Gen'!E63/'GEN-502 Gen'!E63,0) -> 132.5 | F63: =+IFERROR('GEN-502 Cos_Gen'!F63/'GEN-502 Gen'!F63,0) -> 132.5 | G63: =+IFERROR('GEN-502 Cos_Gen'!G63/'GEN-502 Gen'!G63,0) -> 132.5 | H63: =+IF('GEN-502 Gen'!H63>0,'GEN-502 Cos_Gen'!H63/'GEN-502 Gen'!H63,0) -> 132.5
A64: =+'GEN-502 Gen_P'!A64 -> HYDRO CAISÁN, S.A. No.31-13 | B64: =+IFERROR('GEN-502 Cos_Gen'!B64/'GEN-502 Gen'!B64,0) -> 132.5 | C64: =+IFERROR('GEN-502 Cos_Gen'!C64/'GEN-502 Gen'!C64,0) -> 132.5 | D64: =+IFERROR('GEN-502 Cos_Gen'!D64/'GEN-502 Gen'!D64,0) -> 132.5 | E64: =+IFERROR('GEN-502 Cos_Gen'!E64/'GEN-502 Gen'!E64,0) -> 132.5 | F64: =+IFERROR('GEN-502 Cos_Gen'!F64/'GEN-502 Gen'!F64,0) -> 132.5 | G64: =+IFERROR('GEN-502 Cos_Gen'!G64/'GEN-502 Gen'!G64,0) -> 132.5 | H64: =+IF('GEN-502 Gen'!H64>0,'GEN-502 Cos_Gen'!H64/'GEN-502 Gen'!H64,0) -> 132.5
A65: =+'GEN-502 Gen_P'!A65 -> FERSA PANAMÁ, S.A. No 05-14 | B65: =+IFERROR('GEN-502 Cos_Gen'!B65/'GEN-502 Gen'!B65,0) -> 95 | C65: =+IFERROR('GEN-502 Cos_Gen'!C65/'GEN-502 Gen'!C65,0) -> 95 | D65: =+IFERROR('GEN-502 Cos_Gen'!D65/'GEN-502 Gen'!D65,0) -> 95 | E65: =+IFERROR('GEN-502 Cos_Gen'!E65/'GEN-502 Gen'!E65,0) -> 95 | F65: =+IFERROR('GEN-502 Cos_Gen'!F65/'GEN-502 Gen'!F65,0) -> 95 | G65: =+IFERROR('GEN-502 Cos_Gen'!G65/'GEN-502 Gen'!G65,0) -> 95 | H65: =+IF('GEN-502 Gen'!H65>0,'GEN-502 Cos_Gen'!H65/'GEN-502 Gen'!H65,0) -> 95
A66: =+'GEN-502 Gen_P'!A66 -> Panama Solar2 No. 07-15 | B66: =+IFERROR('GEN-502 Cos_Gen'!B66/'GEN-502 Gen'!B66,0) -> 86 | C66: =+IFERROR('GEN-502 Cos_Gen'!C66/'GEN-502 Gen'!C66,0) -> 86 | D66: =+IFERROR('GEN-502 Cos_Gen'!D66/'GEN-502 Gen'!D66,0) -> 86 | E66: =+IFERROR('GEN-502 Cos_Gen'!E66/'GEN-502 Gen'!E66,0) -> 86 | F66: =+IFERROR('GEN-502 Cos_Gen'!F66/'GEN-502 Gen'!F66,0) -> 86 | G66: =+IFERROR('GEN-502 Cos_Gen'!G66/'GEN-502 Gen'!G66,0) -> 86 | H66: =+IF('GEN-502 Gen'!H66>0,'GEN-502 Cos_Gen'!H66/'GEN-502 Gen'!H66,0) -> 86
A67: =+'GEN-502 Gen_P'!A67 -> Solpac Investment No. 08-15 | B67: =+IFERROR('GEN-502 Cos_Gen'!B67/'GEN-502 Gen'!B67,0) -> 104.8 | C67: =+IFERROR('GEN-502 Cos_Gen'!C67/'GEN-502 Gen'!C67,0) -> 104.8 | D67: =+IFERROR('GEN-502 Cos_Gen'!D67/'GEN-502 Gen'!D67,0) -> 104.8 | E67: =+IFERROR('GEN-502 Cos_Gen'!E67/'GEN-502 Gen'!E67,0) -> 104.8 | F67: =+IFERROR('GEN-502 Cos_Gen'!F67/'GEN-502 Gen'!F67,0) -> 104.8 | G67: =+IFERROR('GEN-502 Cos_Gen'!G67/'GEN-502 Gen'!G67,0) -> 104.8 | H67: =+IF('GEN-502 Gen'!H67>0,'GEN-502 Cos_Gen'!H67/'GEN-502 Gen'!H67,0) -> 104.8
A68: =+'GEN-502 Gen_P'!A68 -> GAS NATURAL ATLÁNTICO No. 16-15 | B68: =+IFERROR('GEN-502 Cos_Gen'!B68/'GEN-502 Gen'!B68,0) -> 26.398 | C68: =+IFERROR('GEN-502 Cos_Gen'!C68/'GEN-502 Gen'!C68,0) -> 26.398 | D68: =+IFERROR('GEN-502 Cos_Gen'!D68/'GEN-502 Gen'!D68,0) -> 26.398 | E68: =+IFERROR('GEN-502 Cos_Gen'!E68/'GEN-502 Gen'!E68,0) -> 26.398 | F68: =+IFERROR('GEN-502 Cos_Gen'!F68/'GEN-502 Gen'!F68,0) -> 26.398 | G68: =+IFERROR('GEN-502 Cos_Gen'!G68/'GEN-502 Gen'!G68,0) -> 26.398 | H68: =+IF('GEN-502 Gen'!H68>0,'GEN-502 Cos_Gen'!H68/'GEN-502 Gen'!H68,0) -> 26.398
A69: =+'GEN-502 Gen_P'!A69 -> MARTANO INC No. 18-15 | B69: =+IFERROR('GEN-502 Cos_Gen'!B69/'GEN-502 Gen'!B69,0) -> 20.9 | C69: =+IFERROR('GEN-502 Cos_Gen'!C69/'GEN-502 Gen'!C69,0) -> 20.9 | D69: =+IFERROR('GEN-502 Cos_Gen'!D69/'GEN-502 Gen'!D69,0) -> 20.9 | E69: =+IFERROR('GEN-502 Cos_Gen'!E69/'GEN-502 Gen'!E69,0) -> 20.9 | F69: =+IFERROR('GEN-502 Cos_Gen'!F69/'GEN-502 Gen'!F69,0) -> 20.9 | G69: =+IFERROR('GEN-502 Cos_Gen'!G69/'GEN-502 Gen'!G69,0) -> 20.9 | H69: =+IF('GEN-502 Gen'!H69>0,'GEN-502 Cos_Gen'!H69/'GEN-502 Gen'!H69,0) -> 20.9
A70: =+'GEN-502 Gen_P'!A70 -> AUTORIDAD DEL CANAL DE PANAMÁ No. 27-21 | B70: =+IFERROR('GEN-502 Cos_Gen'!B70/'GEN-502 Gen'!B70,0) -> 0 | C70: =+IFERROR('GEN-502 Cos_Gen'!C70/'GEN-502 Gen'!C70,0) -> 0 | D70: =+IFERROR('GEN-502 Cos_Gen'!D70/'GEN-502 Gen'!D70,0) -> 0 | E70: =+IFERROR('GEN-502 Cos_Gen'!E70/'GEN-502 Gen'!E70,0) -> 0 | F70: =+IFERROR('GEN-502 Cos_Gen'!F70/'GEN-502 Gen'!F70,0) -> 0 | G70: =+IFERROR('GEN-502 Cos_Gen'!G70/'GEN-502 Gen'!G70,0) -> 0 | H70: =+IF('GEN-502 Gen'!H70>0,'GEN-502 Cos_Gen'!H70/'GEN-502 Gen'!H70,0) -> 0
A71: =+'GEN-502 Gen_P'!A71 -> GENERADORA DEL ATLÁNTICO, S.A. No. 29-21 | B71: =+IFERROR('GEN-502 Cos_Gen'!B71/'GEN-502 Gen'!B71,0) -> 0 | C71: =+IFERROR('GEN-502 Cos_Gen'!C71/'GEN-502 Gen'!C71,0) -> 0 | D71: =+IFERROR('GEN-502 Cos_Gen'!D71/'GEN-502 Gen'!D71,0) -> 0 | E71: =+IFERROR('GEN-502 Cos_Gen'!E71/'GEN-502 Gen'!E71,0) -> 0 | F71: =+IFERROR('GEN-502 Cos_Gen'!F71/'GEN-502 Gen'!F71,0) -> 0 | G71: =+IFERROR('GEN-502 Cos_Gen'!G71/'GEN-502 Gen'!G71,0) -> 0 | H71: =+IF('GEN-502 Gen'!H71>0,'GEN-502 Cos_Gen'!H71/'GEN-502 Gen'!H71,0) -> 0
A72: =+'GEN-502 Gen_P'!A72 -> GENERADORA DEL ATLÁNTICO, S.A. No. 30-21 | B72: =+IFERROR('GEN-502 Cos_Gen'!B72/'GEN-502 Gen'!B72,0) -> 0 | C72: =+IFERROR('GEN-502 Cos_Gen'!C72/'GEN-502 Gen'!C72,0) -> 0 | D72: =+IFERROR('GEN-502 Cos_Gen'!D72/'GEN-502 Gen'!D72,0) -> 0 | E72: =+IFERROR('GEN-502 Cos_Gen'!E72/'GEN-502 Gen'!E72,0) -> 0 | F72: =+IFERROR('GEN-502 Cos_Gen'!F72/'GEN-502 Gen'!F72,0) -> 0 | G72: =+IFERROR('GEN-502 Cos_Gen'!G72/'GEN-502 Gen'!G72,0) -> 0 | H72: =+IF('GEN-502 Gen'!H72>0,'GEN-502 Cos_Gen'!H72/'GEN-502 Gen'!H72,0) -> 0
A73: =+'GEN-502 Gen_P'!A73 -> PANAM GENERATING LTD No. 31-21 | B73: =+IFERROR('GEN-502 Cos_Gen'!B73/'GEN-502 Gen'!B73,0) -> 0 | C73: =+IFERROR('GEN-502 Cos_Gen'!C73/'GEN-502 Gen'!C73,0) -> 0 | D73: =+IFERROR('GEN-502 Cos_Gen'!D73/'GEN-502 Gen'!D73,0) -> 0 | E73: =+IFERROR('GEN-502 Cos_Gen'!E73/'GEN-502 Gen'!E73,0) -> 0 | F73: =+IFERROR('GEN-502 Cos_Gen'!F73/'GEN-502 Gen'!F73,0) -> 0 | G73: =+IFERROR('GEN-502 Cos_Gen'!G73/'GEN-502 Gen'!G73,0) -> 0 | H73: =+IF('GEN-502 Gen'!H73>0,'GEN-502 Cos_Gen'!H73/'GEN-502 Gen'!H73,0) -> 0
A74: =+'GEN-502 Gen_P'!A74 -> TROPITÉRMICA, S.A. No. 33-21 | B74: =+IFERROR('GEN-502 Cos_Gen'!B74/'GEN-502 Gen'!B74,0) -> 0 | C74: =+IFERROR('GEN-502 Cos_Gen'!C74/'GEN-502 Gen'!C74,0) -> 0 | D74: =+IFERROR('GEN-502 Cos_Gen'!D74/'GEN-502 Gen'!D74,0) -> 0 | E74: =+IFERROR('GEN-502 Cos_Gen'!E74/'GEN-502 Gen'!E74,0) -> 0 | F74: =+IFERROR('GEN-502 Cos_Gen'!F74/'GEN-502 Gen'!F74,0) -> 0 | G74: =+IFERROR('GEN-502 Cos_Gen'!G74/'GEN-502 Gen'!G74,0) -> 0 | H74: =+IF('GEN-502 Gen'!H74>0,'GEN-502 Cos_Gen'!H74/'GEN-502 Gen'!H74,0) -> 0
A75: =+'GEN-502 Gen_P'!A75 -> EMPRESA NACIONAL DE ENERGÍA, S.A. No. 02-23 | B75: =+IFERROR('GEN-502 Cos_Gen'!B75/'GEN-502 Gen'!B75,0) -> 110.7 | C75: =+IFERROR('GEN-502 Cos_Gen'!C75/'GEN-502 Gen'!C75,0) -> 0 | D75: =+IFERROR('GEN-502 Cos_Gen'!D75/'GEN-502 Gen'!D75,0) -> 73.8 | E75: =+IFERROR('GEN-502 Cos_Gen'!E75/'GEN-502 Gen'!E75,0) -> 73.8 | F75: =+IFERROR('GEN-502 Cos_Gen'!F75/'GEN-502 Gen'!F75,0) -> 73.8 | G75: =+IFERROR('GEN-502 Cos_Gen'!G75/'GEN-502 Gen'!G75,0) -> 0 | H75: =+IF('GEN-502 Gen'!H75>0,'GEN-502 Cos_Gen'!H75/'GEN-502 Gen'!H75,0) -> 86.68442353
A76: =+'GEN-502 Gen_P'!A76 -> FOUNTAIN HYDRO POWER CORP No. 03-23 | B76: =+IFERROR('GEN-502 Cos_Gen'!B76/'GEN-502 Gen'!B76,0) -> 105 | C76: =+IFERROR('GEN-502 Cos_Gen'!C76/'GEN-502 Gen'!C76,0) -> 0 | D76: =+IFERROR('GEN-502 Cos_Gen'!D76/'GEN-502 Gen'!D76,0) -> 0 | E76: =+IFERROR('GEN-502 Cos_Gen'!E76/'GEN-502 Gen'!E76,0) -> 0 | F76: =+IFERROR('GEN-502 Cos_Gen'!F76/'GEN-502 Gen'!F76,0) -> 0 | G76: =+IFERROR('GEN-502 Cos_Gen'!G76/'GEN-502 Gen'!G76,0) -> 0 | H76: =+IF('GEN-502 Gen'!H76>0,'GEN-502 Cos_Gen'!H76/'GEN-502 Gen'!H76,0) -> 105
A77: =+'GEN-502 Gen_P'!A77 -> GENERADORA DEL ISTMO, S.A. No. 04-23 | B77: =+IFERROR('GEN-502 Cos_Gen'!B77/'GEN-502 Gen'!B77,0) -> 90.63 | C77: =+IFERROR('GEN-502 Cos_Gen'!C77/'GEN-502 Gen'!C77,0) -> 0 | D77: =+IFERROR('GEN-502 Cos_Gen'!D77/'GEN-502 Gen'!D77,0) -> 0 | E77: =+IFERROR('GEN-502 Cos_Gen'!E77/'GEN-502 Gen'!E77,0) -> 0 | F77: =+IFERROR('GEN-502 Cos_Gen'!F77/'GEN-502 Gen'!F77,0) -> 0 | G77: =+IFERROR('GEN-502 Cos_Gen'!G77/'GEN-502 Gen'!G77,0) -> 0 | H77: =+IF('GEN-502 Gen'!H77>0,'GEN-502 Cos_Gen'!H77/'GEN-502 Gen'!H77,0) -> 90.63
A78: =+'GEN-502 Gen_P'!A78 -> HIDRO BOQUERÓN, S.A. No. 05-23 | B78: =+IFERROR('GEN-502 Cos_Gen'!B78/'GEN-502 Gen'!B78,0) -> 74.5 | C78: =+IFERROR('GEN-502 Cos_Gen'!C78/'GEN-502 Gen'!C78,0) -> 74.5 | D78: =+IFERROR('GEN-502 Cos_Gen'!D78/'GEN-502 Gen'!D78,0) -> 74.5 | E78: =+IFERROR('GEN-502 Cos_Gen'!E78/'GEN-502 Gen'!E78,0) -> 74.5 | F78: =+IFERROR('GEN-502 Cos_Gen'!F78/'GEN-502 Gen'!F78,0) -> 74.5 | G78: =+IFERROR('GEN-502 Cos_Gen'!G78/'GEN-502 Gen'!G78,0) -> 0 | H78: =+IF('GEN-502 Gen'!H78>0,'GEN-502 Cos_Gen'!H78/'GEN-502 Gen'!H78,0) -> 74.5
A79: =+'GEN-502 Gen_P'!A79 -> HIDROIBÉRICA No. 06-23 | B79: =+IFERROR('GEN-502 Cos_Gen'!B79/'GEN-502 Gen'!B79,0) -> 80 | C79: =+IFERROR('GEN-502 Cos_Gen'!C79/'GEN-502 Gen'!C79,0) -> 80 | D79: =+IFERROR('GEN-502 Cos_Gen'!D79/'GEN-502 Gen'!D79,0) -> 80 | E79: =+IFERROR('GEN-502 Cos_Gen'!E79/'GEN-502 Gen'!E79,0) -> 80 | F79: =+IFERROR('GEN-502 Cos_Gen'!F79/'GEN-502 Gen'!F79,0) -> 80 | G79: =+IFERROR('GEN-502 Cos_Gen'!G79/'GEN-502 Gen'!G79,0) -> 80 | H79: =+IF('GEN-502 Gen'!H79>0,'GEN-502 Cos_Gen'!H79/'GEN-502 Gen'!H79,0) -> 80
A80: =+'GEN-502 Gen_P'!A80 -> IDEAL PANAMÁ, S.A. No. 08-23 | B80: =+IFERROR('GEN-502 Cos_Gen'!B80/'GEN-502 Gen'!B80,0) -> 90 | C80: =+IFERROR('GEN-502 Cos_Gen'!C80/'GEN-502 Gen'!C80,0) -> 0 | D80: =+IFERROR('GEN-502 Cos_Gen'!D80/'GEN-502 Gen'!D80,0) -> 0 | E80: =+IFERROR('GEN-502 Cos_Gen'!E80/'GEN-502 Gen'!E80,0) -> 0 | F80: =+IFERROR('GEN-502 Cos_Gen'!F80/'GEN-502 Gen'!F80,0) -> 0 | G80: =+IFERROR('GEN-502 Cos_Gen'!G80/'GEN-502 Gen'!G80,0) -> 0 | H80: =+IF('GEN-502 Gen'!H80>0,'GEN-502 Cos_Gen'!H80/'GEN-502 Gen'!H80,0) -> 90
A81: =+'GEN-502 Gen_P'!A81 -> SOLAR BOQUERÓN, S.A. No. 12-23 | B81: =+IFERROR('GEN-502 Cos_Gen'!B81/'GEN-502 Gen'!B81,0) -> 78.5 | C81: =+IFERROR('GEN-502 Cos_Gen'!C81/'GEN-502 Gen'!C81,0) -> 78.5 | D81: =+IFERROR('GEN-502 Cos_Gen'!D81/'GEN-502 Gen'!D81,0) -> 78.5 | E81: =+IFERROR('GEN-502 Cos_Gen'!E81/'GEN-502 Gen'!E81,0) -> 78.5 | F81: =+IFERROR('GEN-502 Cos_Gen'!F81/'GEN-502 Gen'!F81,0) -> 78.5 | G81: =+IFERROR('GEN-502 Cos_Gen'!G81/'GEN-502 Gen'!G81,0) -> 78.5 | H81: =+IF('GEN-502 Gen'!H81>0,'GEN-502 Cos_Gen'!H81/'GEN-502 Gen'!H81,0) -> 78.5
A82: =+'GEN-502 Gen_P'!A82 -> AUTORIDAD DEL CANAL DE PANAMÁ No. 13-23 | B82: =+IFERROR('GEN-502 Cos_Gen'!B82/'GEN-502 Gen'!B82,0) -> 0 | C82: =+IFERROR('GEN-502 Cos_Gen'!C82/'GEN-502 Gen'!C82,0) -> 0 | D82: =+IFERROR('GEN-502 Cos_Gen'!D82/'GEN-502 Gen'!D82,0) -> 0 | E82: =+IFERROR('GEN-502 Cos_Gen'!E82/'GEN-502 Gen'!E82,0) -> 0 | F82: =+IFERROR('GEN-502 Cos_Gen'!F82/'GEN-502 Gen'!F82,0) -> 0 | G82: =+IFERROR('GEN-502 Cos_Gen'!G82/'GEN-502 Gen'!G82,0) -> 0 | H82: =+IF('GEN-502 Gen'!H82>0,'GEN-502 Cos_Gen'!H82/'GEN-502 Gen'!H82,0) -> 0
A83: =+'GEN-502 Gen_P'!A83 -> CELSIA CENTROAMÉRICA, S.A. No. 14-23 | B83: =+IFERROR('GEN-502 Cos_Gen'!B83/'GEN-502 Gen'!B83,0) -> 0 | C83: =+IFERROR('GEN-502 Cos_Gen'!C83/'GEN-502 Gen'!C83,0) -> 0 | D83: =+IFERROR('GEN-502 Cos_Gen'!D83/'GEN-502 Gen'!D83,0) -> 0 | E83: =+IFERROR('GEN-502 Cos_Gen'!E83/'GEN-502 Gen'!E83,0) -> 0 | F83: =+IFERROR('GEN-502 Cos_Gen'!F83/'GEN-502 Gen'!F83,0) -> 0 | G83: =+IFERROR('GEN-502 Cos_Gen'!G83/'GEN-502 Gen'!G83,0) -> 0 | H83: =+IF('GEN-502 Gen'!H83>0,'GEN-502 Cos_Gen'!H83/'GEN-502 Gen'!H83,0) -> 0
A84: =+'GEN-502 Gen_P'!A84 -> GENERADORA DEL ATLÁNTICO, S.A. No. 15-23 | B84: =+IFERROR('GEN-502 Cos_Gen'!B84/'GEN-502 Gen'!B84,0) -> 0 | C84: =+IFERROR('GEN-502 Cos_Gen'!C84/'GEN-502 Gen'!C84,0) -> 0 | D84: =+IFERROR('GEN-502 Cos_Gen'!D84/'GEN-502 Gen'!D84,0) -> 0 | E84: =+IFERROR('GEN-502 Cos_Gen'!E84/'GEN-502 Gen'!E84,0) -> 0 | F84: =+IFERROR('GEN-502 Cos_Gen'!F84/'GEN-502 Gen'!F84,0) -> 0 | G84: =+IFERROR('GEN-502 Cos_Gen'!G84/'GEN-502 Gen'!G84,0) -> 0 | H84: =+IF('GEN-502 Gen'!H84>0,'GEN-502 Cos_Gen'!H84/'GEN-502 Gen'!H84,0) -> 0
A85: =+'GEN-502 Gen_P'!A85 -> GENERADORA DEL ATLÁNTICO, S.A. No. 16-23 | B85: =+IFERROR('GEN-502 Cos_Gen'!B85/'GEN-502 Gen'!B85,0) -> 0 | C85: =+IFERROR('GEN-502 Cos_Gen'!C85/'GEN-502 Gen'!C85,0) -> 0 | D85: =+IFERROR('GEN-502 Cos_Gen'!D85/'GEN-502 Gen'!D85,0) -> 0 | E85: =+IFERROR('GEN-502 Cos_Gen'!E85/'GEN-502 Gen'!E85,0) -> 0 | F85: =+IFERROR('GEN-502 Cos_Gen'!F85/'GEN-502 Gen'!F85,0) -> 0 | G85: =+IFERROR('GEN-502 Cos_Gen'!G85/'GEN-502 Gen'!G85,0) -> 0 | H85: =+IF('GEN-502 Gen'!H85>0,'GEN-502 Cos_Gen'!H85/'GEN-502 Gen'!H85,0) -> 0
A86: =+'GEN-502 Gen_P'!A86 -> PEDREGAL POWER, S. DE R.L. No. 17-23 | B86: =+IFERROR('GEN-502 Cos_Gen'!B86/'GEN-502 Gen'!B86,0) -> 0 | C86: =+IFERROR('GEN-502 Cos_Gen'!C86/'GEN-502 Gen'!C86,0) -> 0 | D86: =+IFERROR('GEN-502 Cos_Gen'!D86/'GEN-502 Gen'!D86,0) -> 0 | E86: =+IFERROR('GEN-502 Cos_Gen'!E86/'GEN-502 Gen'!E86,0) -> 0 | F86: =+IFERROR('GEN-502 Cos_Gen'!F86/'GEN-502 Gen'!F86,0) -> 0 | G86: =+IFERROR('GEN-502 Cos_Gen'!G86/'GEN-502 Gen'!G86,0) -> 0 | H86: =+IF('GEN-502 Gen'!H86>0,'GEN-502 Cos_Gen'!H86/'GEN-502 Gen'!H86,0) -> 0
A87: =+'GEN-502 Gen_P'!A87 -> PANAM GENERATING LTD No. 18-23 | B87: =+IFERROR('GEN-502 Cos_Gen'!B87/'GEN-502 Gen'!B87,0) -> 0 | C87: =+IFERROR('GEN-502 Cos_Gen'!C87/'GEN-502 Gen'!C87,0) -> 0 | D87: =+IFERROR('GEN-502 Cos_Gen'!D87/'GEN-502 Gen'!D87,0) -> 0 | E87: =+IFERROR('GEN-502 Cos_Gen'!E87/'GEN-502 Gen'!E87,0) -> 0 | F87: =+IFERROR('GEN-502 Cos_Gen'!F87/'GEN-502 Gen'!F87,0) -> 0 | G87: =+IFERROR('GEN-502 Cos_Gen'!G87/'GEN-502 Gen'!G87,0) -> 0 | H87: =+IF('GEN-502 Gen'!H87>0,'GEN-502 Cos_Gen'!H87/'GEN-502 Gen'!H87,0) -> 0
A88: =+'GEN-502 Gen_P'!A88 -> PANAM GENERATING LTD No. 19-23 | B88: =+IFERROR('GEN-502 Cos_Gen'!B88/'GEN-502 Gen'!B88,0) -> 0 | C88: =+IFERROR('GEN-502 Cos_Gen'!C88/'GEN-502 Gen'!C88,0) -> 0 | D88: =+IFERROR('GEN-502 Cos_Gen'!D88/'GEN-502 Gen'!D88,0) -> 0 | E88: =+IFERROR('GEN-502 Cos_Gen'!E88/'GEN-502 Gen'!E88,0) -> 0 | F88: =+IFERROR('GEN-502 Cos_Gen'!F88/'GEN-502 Gen'!F88,0) -> 0 | G88: =+IFERROR('GEN-502 Cos_Gen'!G88/'GEN-502 Gen'!G88,0) -> 0 | H88: =+IF('GEN-502 Gen'!H88>0,'GEN-502 Cos_Gen'!H88/'GEN-502 Gen'!H88,0) -> 0
A89: =+'GEN-502 Gen_P'!A89 -> SPARKLE POWER, S.A. No. 20-23 | B89: =+IFERROR('GEN-502 Cos_Gen'!B89/'GEN-502 Gen'!B89,0) -> 0 | C89: =+IFERROR('GEN-502 Cos_Gen'!C89/'GEN-502 Gen'!C89,0) -> 0 | D89: =+IFERROR('GEN-502 Cos_Gen'!D89/'GEN-502 Gen'!D89,0) -> 0 | E89: =+IFERROR('GEN-502 Cos_Gen'!E89/'GEN-502 Gen'!E89,0) -> 0 | F89: =+IFERROR('GEN-502 Cos_Gen'!F89/'GEN-502 Gen'!F89,0) -> 0 | G89: =+IFERROR('GEN-502 Cos_Gen'!G89/'GEN-502 Gen'!G89,0) -> 0 | H89: =+IF('GEN-502 Gen'!H89>0,'GEN-502 Cos_Gen'!H89/'GEN-502 Gen'!H89,0) -> 0
A90: =+'GEN-502 Gen_P'!A90 -> TROPITÉRMICA, S.A. No. 21-23 | B90: =+IFERROR('GEN-502 Cos_Gen'!B90/'GEN-502 Gen'!B90,0) -> 0 | C90: =+IFERROR('GEN-502 Cos_Gen'!C90/'GEN-502 Gen'!C90,0) -> 0 | D90: =+IFERROR('GEN-502 Cos_Gen'!D90/'GEN-502 Gen'!D90,0) -> 0 | E90: =+IFERROR('GEN-502 Cos_Gen'!E90/'GEN-502 Gen'!E90,0) -> 0 | F90: =+IFERROR('GEN-502 Cos_Gen'!F90/'GEN-502 Gen'!F90,0) -> 0 | G90: =+IFERROR('GEN-502 Cos_Gen'!G90/'GEN-502 Gen'!G90,0) -> 0 | H90: =+IF('GEN-502 Gen'!H90>0,'GEN-502 Cos_Gen'!H90/'GEN-502 Gen'!H90,0) -> 0

Sheet GEN-502 Cos_Gen
A1: INFORMACION PARA ACTUALIZAR: CARGO POR GENERACION
A2: =+'Compras (p)'!A2 -> EDEMET
A3: Compra Mensual de Energía para atender Clientes Regulados (B/.)
B4: COMPRA DE ENERGIA
A5: Detalle | B5: 2023-07-01 | C5: 2023-08-01 | D5: 2023-09-01 | E5: 2023-10-01 | F5: 2023-11-01 | G5: 2023-12-01 | H5: Total
A7: Generación en Punta
A8: Total Compra de Energía | B8: =+B9+B15 -> 21382889.96 | C8: 22420334.36 | D8: 21590657.13 | E8: 22023832.68 | F8: 20357895.22 | G8: 21739897.01 | H8: =+SUM(B8:G8) -> 129515506.4
A9: Generación Propia | H9: 0
H10: 0
H11: 0
H12: 0
H13: 0
H14: 0
A15: Sub-Total Mercado Mayorista | B15: =+SUM(B16:B22,-B23,B24) -> 21382889.96 | C15: =+SUM(C16:C22,-C23,C24) -> 22420334.36 | D15: 21590657.13 | E15: 22023832.68 | F15: 20357895.22 | G15: 21739897.01 | H15: 129515506.4
A16: =+'GEN-502 Cos_Gen_P'!A16 -> Mercado Ocasional | B16: =+'GEN-502 Cos_Gen_P'!B16+'GEN-502 Cos_Gen_FP'!B16 -> -326706.9014 | C16: =+'GEN-502 Cos_Gen_P'!C16+'GEN-502 Cos_Gen_FP'!C16 -> 402373.9179 | D16: =+'GEN-502 Cos_Gen_P'!D16+'GEN-502 Cos_Gen_FP'!D16 -> -525046.1536 | E16: =+'GEN-502 Cos_Gen_P'!E16+'GEN-502 Cos_Gen_FP'!E16 -> -652622.0594 | F16: =+'GEN-502 Cos_Gen_P'!F16+'GEN-502 Cos_Gen_FP'!F16 -> -942144.8575 | G16: =+'GEN-502 Cos_Gen_P'!G16+'GEN-502 Cos_Gen_FP'!G16 -> 439997.553 | H16: -1604148.501
A17: =+'GEN-502 Cos_Gen_P'!A17 -> Servicios Auxiliares de Corto Plazo | B17: =+'GEN-502 Cos_Gen_P'!B17+'GEN-502 Cos_Gen_FP'!B17 -> 279620.7619 | C17: =+'GEN-502 Cos_Gen_P'!C17+'GEN-502 Cos_Gen_FP'!C17 -> 284243.2076 | D17: =+'GEN-502 Cos_Gen_P'!D17+'GEN-502 Cos_Gen_FP'!D17 -> 289635.1341 | E17: =+'GEN-502 Cos_Gen_P'!E17+'GEN-502 Cos_Gen_FP'!E17 -> 304389.6511 | F17: =+'GEN-502 Cos_Gen_P'!F17+'GEN-502 Cos_Gen_FP'!F17 -> 304371.4412 | G17: =+'GEN-502 Cos_Gen_P'!G17+'GEN-502 Cos_Gen_FP'!G17 -> 305354.4888 | H17: 1767614.685
A18: =+'GEN-502 Cos_Gen_P'!A18 -> Generación Obligada | B18: =+'GEN-502 Cos_Gen_P'!B18+'GEN-502 Cos_Gen_FP'!B18 -> 70196.95 | C18: =+'GEN-502 Cos_Gen_P'!C18+'GEN-502 Cos_Gen_FP'!C18 -> 52000.44174 | D18: =+'GEN-502 Cos_Gen_P'!D18+'GEN-502 Cos_Gen_FP'!D18 -> 42840.97174 | E18: =+'GEN-502 Cos_Gen_P'!E18+'GEN-502 Cos_Gen_FP'!E18 -> 34886.5584 | F18: =+'GEN-502 Cos_Gen_P'!F18+'GEN-502 Cos_Gen_FP'!F18 -> 49963.17977 | G18: =+'GEN-502 Cos_Gen_P'!G18+'GEN-502 Cos_Gen_FP'!G18 -> 65805.94602 | H18: 315694.0477
A19: =+'GEN-502 Cos_Gen_P'!A19 -> Costos relacionados con el Mercado Regional | B19: =+'GEN-502 Cos_Gen_P'!B19+'GEN-502 Cos_Gen_FP'!B19 -> 0 | C19: =+'GEN-502 Cos_Gen_P'!C19+'GEN-502 Cos_Gen_FP'!C19 -> 0 | D19: =+'GEN-502 Cos_Gen_P'!D19+'GEN-502 Cos_Gen_FP'!D19 -> 0 | E19: =+'GEN-502 Cos_Gen_P'!E19+'GEN-502 Cos_Gen_FP'!E19 -> 0 | F19: =+'GEN-502 Cos_Gen_P'!F19+'GEN-502 Cos_Gen_FP'!F19 -> 0 | G19: =+'GEN-502 Cos_Gen_P'!G19+'GEN-502 Cos_Gen_FP'!G19 -> 0 | H19: 0
A20: =+'GEN-502 Cos_Gen_P'!A20 -> Otros Costos | B20: =+'GEN-502 Cos_Gen_P'!B20+'GEN-502 Cos_Gen_FP'!B20 -> 490975.22 | C20: =+'GEN-502 Cos_Gen_P'!C20+'GEN-502 Cos_Gen_FP'!C20 -> 486855.5583 | D20: =+'GEN-502 Cos_Gen_P'!D20+'GEN-502 Cos_Gen_FP'!D20 -> 421599.2917 | E20: =+'GEN-502 Cos_Gen_P'!E20+'GEN-502 Cos_Gen_FP'!E20 -> 435156.0975 | F20: =+'GEN-502 Cos_Gen_P'!F20+'GEN-502 Cos_Gen_FP'!F20 -> 286693.0858 | G20: =+'GEN-502 Cos_Gen_P'!G20+'GEN-502 Cos_Gen_FP'!G20 -> 216423.9491 | H20: 2337703.202
A21: =+'GEN-502 Cos_Gen_P'!A21 -> Costos de Fianzas | B21: =+'GEN-502 Cos_Gen_P'!B21+'GEN-502 Cos_Gen_FP'!B21 -> 0 | C21: =+'GEN-502 Cos_Gen_P'!C21+'GEN-502 Cos_Gen_FP'!C21 -> 0 | D21: =+'GEN-502 Cos_Gen_P'!D21+'GEN-502 Cos_Gen_FP'!D21 -> 0 | E21: =+'GEN-502 Cos_Gen_P'!E21+'GEN-502 Cos_Gen_FP'!E21 -> 0 | F21: =+'GEN-502 Cos_Gen_P'!F21+'GEN-502 Cos_Gen_FP'!F21 -> 0 | G21: =+'GEN-502 Cos_Gen_P'!G21+'GEN-502 Cos_Gen_FP'!G21 -> 0 | H21: 0
A22: =+'GEN-502 Cos_Gen_P'!A22 -> Costos de Autoabastecimiento autorizados por ASEP | B22: =+'GEN-502 Cos_Gen_P'!B22+'GEN-502 Cos_Gen_FP'!B22 -> 0 | C22: =+'GEN-502 Cos_Gen_P'!C22+'GEN-502 Cos_Gen_FP'!C22 -> 0 | D22: =+'GEN-502 Cos_Gen_P'!D22+'GEN-502 Cos_Gen_FP'!D22 -> 0 | E22: =+'GEN-502 Cos_Gen_P'!E22+'GEN-502 Cos_Gen_FP'!E22 -> 0 | F22: =+'GEN-502 Cos_Gen_P'!F22+'GEN-502 Cos_Gen_FP'!F22 -> 0 | G22: =+'GEN-502 Cos_Gen_P'!G22+'GEN-502 Cos_Gen_FP'!G22 -> 0 | H22: 0
A23: =+'GEN-502 Cos_Gen_P'!A23 -> Menos - Transacciones Esporádicas (CUSPT) | B23: =+'GEN-502 Cos_Gen_P'!B23+'GEN-502 Cos_Gen_FP'!B23 -> 12438.45625 | C23: =+'GEN-502 Cos_Gen_P'!C23+'GEN-502 Cos_Gen_FP'!C23 -> 12438.45625 | D23: =+'GEN-502 Cos_Gen_P'!D23+'GEN-502 Cos_Gen_FP'!D23 -> 12438.45625 | E23: =+'GEN-502 Cos_Gen_P'!E23+'GEN-502 Cos_Gen_FP'!E23 -> 12438.45625 | F23: =+'GEN-502 Cos_Gen_P'!F23+'GEN-502 Cos_Gen_FP'!F23 -> 12438.45625 | G23: =+'GEN-502 Cos_Gen_P'!G23+'GEN-502 Cos_Gen_FP'!G23 -> 12438.45625 | H23: 74630.7375
A24: Sub-Total Contratros | B24: =+SUM(B25:B107) -> 20881242.39 | C24: 21207299.69 | D24: 21374066.35 | E24: 21914460.89 | F24: 20671450.82 | G24: 20724753.53 | H24: 126773273.7
A25: =+'GEN-502 Gen_P'!A25 -> Hydro Caisan No. 05-08 (17,048) | B25: =+'GEN-502 Cos_Gen_P'!B25+'GEN-502 Cos_Gen_FP'!B25 -> 247052.6224 | C25: =+'GEN-502 Cos_Gen_P'!C25+'GEN-502 Cos_Gen_FP'!C25 -> 245832.563 | D25: =+'GEN-502 Cos_Gen_P'!D25+'GEN-502 Cos_Gen_FP'!D25 -> 241083.382 | E25: =+'GEN-502 Cos_Gen_P'!E25+'GEN-502 Cos_Gen_FP'!E25 -> 245402.1247 | F25: =+'GEN-502 Cos_Gen_P'!F25+'GEN-502 Cos_Gen_FP'!F25 -> 233217.4753 | G25: =+'GEN-502 Cos_Gen_P'!G25+'GEN-502 Cos_Gen_FP'!G25 -> 249904.6666 | H25: 1462492.834
A26: =+'GEN-502 Gen_P'!A26 -> Electrón Inv. No. 07-08 (34,65) | B26: =+'GEN-502 Cos_Gen_P'!B26+'GEN-502 Cos_Gen_FP'!B26 -> 1140466.804 | C26: =+'GEN-502 Cos_Gen_P'!C26+'GEN-502 Cos_Gen_FP'!C26 -> 1134834.654 | D26: =+'GEN-502 Cos_Gen_P'!D26+'GEN-502 Cos_Gen_FP'!D26 -> 1112911.053 | E26: =+'GEN-502 Cos_Gen_P'!E26+'GEN-502 Cos_Gen_FP'!E26 -> 1132847.626 | F26: =+'GEN-502 Cos_Gen_P'!F26+'GEN-502 Cos_Gen_FP'!F26 -> 1076599.738 | G26: =+'GEN-502 Cos_Gen_P'!G26+'GEN-502 Cos_Gen_FP'!G26 -> 1153632.67 | H26: 6751292.545
A27: =+'GEN-502 Gen_P'!A27 -> Empresa Nacional de Energía No. 24-11 (Cesión) | B27: =+'GEN-502 Cos_Gen_P'!B27+'GEN-502 Cos_Gen_FP'!B27 -> 251642.1467 | C27: =+'GEN-502 Cos_Gen_P'!C27+'GEN-502 Cos_Gen_FP'!C27 -> 250399.4221 | D27: =+'GEN-502 Cos_Gen_P'!D27+'GEN-502 Cos_Gen_FP'!D27 -> 245562.0152 | E27: =+'GEN-502 Cos_Gen_P'!E27+'GEN-502 Cos_Gen_FP'!E27 -> 249960.9876 | F27: =+'GEN-502 Cos_Gen_P'!F27+'GEN-502 Cos_Gen_FP'!F27 -> 237549.9825 | G27: =+'GEN-502 Cos_Gen_P'!G27+'GEN-502 Cos_Gen_FP'!G27 -> 254547.1737 | H27: =+SUM(B27:G27) -> 1489661.728
A28: =+'GEN-502 Gen_P'!A28 -> Enel Fortuna No. 25-11 | B28: =+'GEN-502 Cos_Gen_P'!B28+'GEN-502 Cos_Gen_FP'!B28 -> 892908.2467 | C28: =+'GEN-502 Cos_Gen_P'!C28+'GEN-502 Cos_Gen_FP'!C28 -> 888498.6553 | D28: =+'GEN-502 Cos_Gen_P'!D28+'GEN-502 Cos_Gen_FP'!D28 -> 871333.9608 | E28: =+'GEN-502 Cos_Gen_P'!E28+'GEN-502 Cos_Gen_FP'!E28 -> 886942.9469 | F28: =+'GEN-502 Cos_Gen_P'!F28+'GEN-502 Cos_Gen_FP'!F28 -> 842904.6611 | G28: =+'GEN-502 Cos_Gen_P'!G28+'GEN-502 Cos_Gen_FP'!G28 -> 903216.2279 | H28: 5285804.699
A29: =+'GEN-502 Gen_P'!A29 -> Electrogeneradora del Istmo No. 26-11 | B29: =+'GEN-502 Cos_Gen_P'!B29+'GEN-502 Cos_Gen_FP'!B29 -> 24982.81596 | C29: =+'GEN-502 Cos_Gen_P'!C29+'GEN-502 Cos_Gen_FP'!C29 -> 24859.43933 | D29: =+'GEN-502 Cos_Gen_P'!D29+'GEN-502 Cos_Gen_FP'!D29 -> 24379.18573 | E29: =+'GEN-502 Cos_Gen_P'!E29+'GEN-502 Cos_Gen_FP'!E29 -> 24815.91193 | F29: =+'GEN-502 Cos_Gen_P'!F29+'GEN-502 Cos_Gen_FP'!F29 -> 23583.75802 | G29: =+'GEN-502 Cos_Gen_P'!G29+'GEN-502 Cos_Gen_FP'!G29 -> 25271.22454 | H29: 147892.3355
A30: =+'GEN-502 Gen_P'!A30 -> ESEPSA No. 27-11 | B30: =+'GEN-502 Cos_Gen_P'!B30+'GEN-502 Cos_Gen_FP'!B30 -> 157451.748 | C30: =+'GEN-502 Cos_Gen_P'!C30+'GEN-502 Cos_Gen_FP'!C30 -> 156674.1789 | D30: =+'GEN-502 Cos_Gen_P'!D30+'GEN-502 Cos_Gen_FP'!D30 -> 153647.4276 | E30: =+'GEN-502 Cos_Gen_P'!E30+'GEN-502 Cos_Gen_FP'!E30 -> 156399.8517 | F30: =+'GEN-502 Cos_Gen_P'!F30+'GEN-502 Cos_Gen_FP'!F30 -> 148634.3224 | G30: =+'GEN-502 Cos_Gen_P'!G30+'GEN-502 Cos_Gen_FP'!G30 -> 159269.4147 | H30: 932076.9433
A31: =+'GEN-502 Gen_P'!A31 -> Pedregalito No. 28-11 | B31: =+'GEN-502 Cos_Gen_P'!B31+'GEN-502 Cos_Gen_FP'!B31 -> 67390.59603 | C31: =+'GEN-502 Cos_Gen_P'!C31+'GEN-502 Cos_Gen_FP'!C31 -> 67057.79029 | D31: =+'GEN-502 Cos_Gen_P'!D31+'GEN-502 Cos_Gen_FP'!D31 -> 65762.31676 | E31: =+'GEN-502 Cos_Gen_P'!E31+'GEN-502 Cos_Gen_FP'!E31 -> 66940.37608 | F31: =+'GEN-502 Cos_Gen_P'!F31+'GEN-502 Cos_Gen_FP'!F31 -> 63616.66803 | G31: =+'GEN-502 Cos_Gen_P'!G31+'GEN-502 Cos_Gen_FP'!G31 -> 68168.57182 | H31: 398936.319
A32: =+'GEN-502 Gen_P'!A32 -> Río Chico No. 29-11 | B32: =+'GEN-502 Cos_Gen_P'!B32+'GEN-502 Cos_Gen_FP'!B32 -> 41327.71052 | C32: =+'GEN-502 Cos_Gen_P'!C32+'GEN-502 Cos_Gen_FP'!C32 -> 41123.61529 | D32: =+'GEN-502 Cos_Gen_P'!D32+'GEN-502 Cos_Gen_FP'!D32 -> 40329.15793 | E32: =+'GEN-502 Cos_Gen_P'!E32+'GEN-502 Cos_Gen_FP'!E32 -> 41051.61028 | F32: =+'GEN-502 Cos_Gen_P'!F32+'GEN-502 Cos_Gen_FP'!F32 -> 39013.32523 | G32: =+'GEN-502 Cos_Gen_P'!G32+'GEN-502 Cos_Gen_FP'!G32 -> 41804.80911 | H32: 244650.2284
A33: =+'GEN-502 Gen_P'!A33 -> Alto Valle No. 30-11 | B33: =+'GEN-502 Cos_Gen_P'!B33+'GEN-502 Cos_Gen_FP'!B33 -> 39325.59794 | C33: =+'GEN-502 Cos_Gen_P'!C33+'GEN-502 Cos_Gen_FP'!C33 -> 39131.39006 | D33: =+'GEN-502 Cos_Gen_P'!D33+'GEN-502 Cos_Gen_FP'!D33 -> 38375.42003 | E33: =+'GEN-502 Cos_Gen_P'!E33+'GEN-502 Cos_Gen_FP'!E33 -> 39062.87332 | F33: =+'GEN-502 Cos_Gen_P'!F33+'GEN-502 Cos_Gen_FP'!F33 -> 37123.33258 | G33: =+'GEN-502 Cos_Gen_P'!G33+'GEN-502 Cos_Gen_FP'!G33 -> 39779.58359 | H33: 232798.1975
A34: =+'GEN-502 Gen_P'!A34 -> Hidroecológica del Teribe No. 31-11 | B34: =+'GEN-502 Cos_Gen_P'!B34+'GEN-502 Cos_Gen_FP'!B34 -> 322367.1666 | C34: =+'GEN-502 Cos_Gen_P'!C34+'GEN-502 Cos_Gen_FP'!C34 -> 320775.1694 | D34: =+'GEN-502 Cos_Gen_P'!D34+'GEN-502 Cos_Gen_FP'!D34 -> 314578.1901 | E34: =+'GEN-502 Cos_Gen_P'!E34+'GEN-502 Cos_Gen_FP'!E34 -> 320213.5111 | F34: =+'GEN-502 Cos_Gen_P'!F34+'GEN-502 Cos_Gen_FP'!F34 -> 304314.344 | G34: =+'GEN-502 Cos_Gen_P'!G34+'GEN-502 Cos_Gen_FP'!G34 -> 326088.6629 | H34: 1908337.044
A35: =+'GEN-502 Gen_P'!A35 -> Desarrollos Hidroeléctricos Corp. No. 32-11 | B35: =+'GEN-502 Cos_Gen_P'!B35+'GEN-502 Cos_Gen_FP'!B35 -> 57981.72442 | C35: =+'GEN-502 Cos_Gen_P'!C35+'GEN-502 Cos_Gen_FP'!C35 -> 57695.38401 | D35: =+'GEN-502 Cos_Gen_P'!D35+'GEN-502 Cos_Gen_FP'!D35 -> 56580.78059 | E35: =+'GEN-502 Cos_Gen_P'!E35+'GEN-502 Cos_Gen_FP'!E35 -> 57594.36282 | F35: =+'GEN-502 Cos_Gen_P'!F35+'GEN-502 Cos_Gen_FP'!F35 -> 54734.70085 | G35: =+'GEN-502 Cos_Gen_P'!G35+'GEN-502 Cos_Gen_FP'!G35 -> 58651.08158 | H35: 343238.0343
A36: =+'GEN-502 Gen_P'!A36 -> Las Perlas Norte No. 33-11 | B36: =+'GEN-502 Cos_Gen_P'!B36+'GEN-502 Cos_Gen_FP'!B36 -> 378732.4816 | C36: =+'GEN-502 Cos_Gen_P'!C36+'GEN-502 Cos_Gen_FP'!C36 -> 376862.1265 | D36: =+'GEN-502 Cos_Gen_P'!D36+'GEN-502 Cos_Gen_FP'!D36 -> 369581.6166 | E36: =+'GEN-502 Cos_Gen_P'!E36+'GEN-502 Cos_Gen_FP'!E36 -> 376202.2633 | F36: =+'GEN-502 Cos_Gen_P'!F36+'GEN-502 Cos_Gen_FP'!F36 -> 357523.1557 | G36: =+'GEN-502 Cos_Gen_P'!G36+'GEN-502 Cos_Gen_FP'!G36 -> 383104.6748 | H36: 2242006.319
A37: =+'GEN-502 Gen_P'!A37 -> Hidroeléctrica San Lorenzo No. 34-11 | B37: =+'GEN-502 Cos_Gen_P'!B37+'GEN-502 Cos_Gen_FP'!B37 -> 37668.44629 | C37: =+'GEN-502 Cos_Gen_P'!C37+'GEN-502 Cos_Gen_FP'!C37 -> 37482.42219 | D37: =+'GEN-502 Cos_Gen_P'!D37+'GEN-502 Cos_Gen_FP'!D37 -> 36758.30817 | E37: =+'GEN-502 Cos_Gen_P'!E37+'GEN-502 Cos_Gen_FP'!E37 -> 37416.79269 | F37: =+'GEN-502 Cos_Gen_P'!F37+'GEN-502 Cos_Gen_FP'!F37 -> 35558.98277 | G37: =+'GEN-502 Cos_Gen_P'!G37+'GEN-502 Cos_Gen_FP'!G37 -> 38103.30132 | H37: 222988.2534
A38: =+'GEN-502 Gen_P'!A38 -> Caldera Energy Corp. No. 35-11 | B38: =+'GEN-502 Cos_Gen_P'!B38+'GEN-502 Cos_Gen_FP'!B38 -> 59958.39857 | C38: =+'GEN-502 Cos_Gen_P'!C38+'GEN-502 Cos_Gen_FP'!C38 -> 59662.29644 | D38: =+'GEN-502 Cos_Gen_P'!D38+'GEN-502 Cos_Gen_FP'!D38 -> 58509.69471 | E38: =+'GEN-502 Cos_Gen_P'!E38+'GEN-502 Cos_Gen_FP'!E38 -> 59557.8313 | F38: =+'GEN-502 Cos_Gen_P'!F38+'GEN-502 Cos_Gen_FP'!F38 -> 56600.67965 | G38: =+'GEN-502 Cos_Gen_P'!G38+'GEN-502 Cos_Gen_FP'!G38 -> 60650.57501 | H38: 354939.4757
A39: =+'GEN-502 Gen_P'!A39 -> PASO ANCHO No. 86-11 | B39: =+'GEN-502 Cos_Gen_P'!B39+'GEN-502 Cos_Gen_FP'!B39 -> 98406.41899 | C39: =+'GEN-502 Cos_Gen_P'!C39+'GEN-502 Cos_Gen_FP'!C39 -> 97920.44286 | D39: =+'GEN-502 Cos_Gen_P'!D39+'GEN-502 Cos_Gen_FP'!D39 -> 97875.44764 | E39: =+'GEN-502 Cos_Gen_P'!E39+'GEN-502 Cos_Gen_FP'!E39 -> 101508.5665 | F39: =+'GEN-502 Cos_Gen_P'!F39+'GEN-502 Cos_Gen_FP'!F39 -> 94682.03322 | G39: =+'GEN-502 Cos_Gen_P'!G39+'GEN-502 Cos_Gen_FP'!G39 -> 99542.45007 | H39: 589935.3593
A40: =+'GEN-502 Gen_P'!A40 -> Hidroecológica del Teribe No. 87-11 | B40: =+'GEN-502 Cos_Gen_P'!B40+'GEN-502 Cos_Gen_FP'!B40 -> 139303.9585 | C40: =+'GEN-502 Cos_Gen_P'!C40+'GEN-502 Cos_Gen_FP'!C40 -> 136000.6151 | D40: =+'GEN-502 Cos_Gen_P'!D40+'GEN-502 Cos_Gen_FP'!D40 -> 133373.2515 | E40: =+'GEN-502 Cos_Gen_P'!E40+'GEN-502 Cos_Gen_FP'!E40 -> 138373.3031 | F40: =+'GEN-502 Cos_Gen_P'!F40+'GEN-502 Cos_Gen_FP'!F40 -> 129021.6386 | G40: =+'GEN-502 Cos_Gen_P'!G40+'GEN-502 Cos_Gen_FP'!G40 -> 138253.4029 | H40: 814326.1696
A41: =+'GEN-502 Gen_P'!A41 -> Unión Eólica de Panamá (PE Nuevo Chagres) No. 15-12' | B41: =+'GEN-502 Cos_Gen_P'!B41+'GEN-502 Cos_Gen_FP'!B41 -> 264650.527 | C41: =+'GEN-502 Cos_Gen_P'!C41+'GEN-502 Cos_Gen_FP'!C41 -> 221668.9859 | D41: =+'GEN-502 Cos_Gen_P'!D41+'GEN-502 Cos_Gen_FP'!D41 -> 254.638467 | E41: =+'GEN-502 Cos_Gen_P'!E41+'GEN-502 Cos_Gen_FP'!E41 -> 263.6690002 | F41: =+'GEN-502 Cos_Gen_P'!F41+'GEN-502 Cos_Gen_FP'!F41 -> 246.330294 | G41: =+'GEN-502 Cos_Gen_P'!G41+'GEN-502 Cos_Gen_FP'!G41 -> 263.9557345 | H41: =+SUM(B41:G41) -> 487348.1064
A42: =+'GEN-502 Gen_P'!A42 -> Unión Eólica de Panamá (PE Rosa de los Vientos) No. 16-12' | B42: =+'GEN-502 Cos_Gen_P'!B42+'GEN-502 Cos_Gen_FP'!B42 -> 273.8247452 | C42: =+'GEN-502 Cos_Gen_P'!C42+'GEN-502 Cos_Gen_FP'!C42 -> 267.8542953 | D42: =+'GEN-502 Cos_Gen_P'!D42+'GEN-502 Cos_Gen_FP'!D42 -> 262.6796817 | E42: =+'GEN-502 Cos_Gen_P'!E42+'GEN-502 Cos_Gen_FP'!E42 -> 271.9953896 | F42: =+'GEN-502 Cos_Gen_P'!F42+'GEN-502 Cos_Gen_FP'!F42 -> 254.1091454 | G42: =+'GEN-502 Cos_Gen_P'!G42+'GEN-502 Cos_Gen_FP'!G42 -> 272.2911788 | H42: 1602.754436
A43: =+'GEN-502 Gen_P'!A43 -> Unión Eólica de Panamá (PE Portobelo Ballestillas) No. 17-12' | B43: =+'GEN-502 Cos_Gen_P'!B43+'GEN-502 Cos_Gen_FP'!B43 -> 301.7660458 | C43: =+'GEN-502 Cos_Gen_P'!C43+'GEN-502 Cos_Gen_FP'!C43 -> 295.1863662 | D43: =+'GEN-502 Cos_Gen_P'!D43+'GEN-502 Cos_Gen_FP'!D43 -> 289.4837309 | E43: =+'GEN-502 Cos_Gen_P'!E43+'GEN-502 Cos_Gen_FP'!E43 -> 299.7500212 | F43: =+'GEN-502 Cos_Gen_P'!F43+'GEN-502 Cos_Gen_FP'!F43 -> 280.03865 | G43: =+'GEN-502 Cos_Gen_P'!G43+'GEN-502 Cos_Gen_FP'!G43 -> 300.0759929 | H43: 1766.300807
A44: =+'GEN-502 Gen_P'!A44 -> Unión Eólica de Panamá (PE Marañon) No. 18-12' | B44: =+'GEN-502 Cos_Gen_P'!B44+'GEN-502 Cos_Gen_FP'!B44 -> 307.3543059 | C44: =+'GEN-502 Cos_Gen_P'!C44+'GEN-502 Cos_Gen_FP'!C44 -> 300.6527804 | D44: =+'GEN-502 Cos_Gen_P'!D44+'GEN-502 Cos_Gen_FP'!D44 -> 294.8445407 | E44: =+'GEN-502 Cos_Gen_P'!E44+'GEN-502 Cos_Gen_FP'!E44 -> 305.3009476 | F44: =+'GEN-502 Cos_Gen_P'!F44+'GEN-502 Cos_Gen_FP'!F44 -> 285.2245509 | G44: =+'GEN-502 Cos_Gen_P'!G44+'GEN-502 Cos_Gen_FP'!G44 -> 305.6329558 | H44: 1799.010081
A45: =+'GEN-502 Gen_P'!A45 -> AES No. 117-12 | B45: =+'GEN-502 Cos_Gen_P'!B45+'GEN-502 Cos_Gen_FP'!B45 -> 8821400.085 | C45: =+'GEN-502 Cos_Gen_P'!C45+'GEN-502 Cos_Gen_FP'!C45 -> 8777835.957 | D45: =+'GEN-502 Cos_Gen_P'!D45+'GEN-502 Cos_Gen_FP'!D45 -> 8608259.028 | E45: =+'GEN-502 Cos_Gen_P'!E45+'GEN-502 Cos_Gen_FP'!E45 -> 8762466.487 | F45: =+'GEN-502 Cos_Gen_P'!F45+'GEN-502 Cos_Gen_FP'!F45 -> 8327394.53 | G45: =+'GEN-502 Cos_Gen_P'!G45+'GEN-502 Cos_Gen_FP'!G45 -> 8923236.783 | H45: 52220592.87
A46: =+'GEN-502 Gen_P'!A46 -> HIDRO PIEDRA No. 118-12 | B46: =+'GEN-502 Cos_Gen_P'!B46+'GEN-502 Cos_Gen_FP'!B46 -> 50748.97907 | C46: =+'GEN-502 Cos_Gen_P'!C46+'GEN-502 Cos_Gen_FP'!C46 -> 50498.35729 | D46: =+'GEN-502 Cos_Gen_P'!D46+'GEN-502 Cos_Gen_FP'!D46 -> 49522.79151 | E46: =+'GEN-502 Cos_Gen_P'!E46+'GEN-502 Cos_Gen_FP'!E46 -> 50409.93766 | F46: =+'GEN-502 Cos_Gen_P'!F46+'GEN-502 Cos_Gen_FP'!F46 -> 47906.99511 | G46: =+'GEN-502 Cos_Gen_P'!G46+'GEN-502 Cos_Gen_FP'!G46 -> 51334.83941 | H46: 300421.9
A47: =+'GEN-502 Gen_P'!A47 -> Corp. Energ. Del Istmo No. 119-12 | B47: =+'GEN-502 Cos_Gen_P'!B47+'GEN-502 Cos_Gen_FP'!B47 -> 250335.1095 | C47: =+'GEN-502 Cos_Gen_P'!C47+'GEN-502 Cos_Gen_FP'!C47 -> 249098.8397 | D47: =+'GEN-502 Cos_Gen_P'!D47+'GEN-502 Cos_Gen_FP'!D47 -> 244286.5584 | E47: =+'GEN-502 Cos_Gen_P'!E47+'GEN-502 Cos_Gen_FP'!E47 -> 248662.6824 | F47: =+'GEN-502 Cos_Gen_P'!F47+'GEN-502 Cos_Gen_FP'!F47 -> 236316.1405 | G47: =+'GEN-502 Cos_Gen_P'!G47+'GEN-502 Cos_Gen_FP'!G47 -> 253225.0477 | H47: 1481924.378
A48: =+'GEN-502 Gen_P'!A48 -> Saltos del Francolí No. 121-12 | B48: =+'GEN-502 Cos_Gen_P'!B48+'GEN-502 Cos_Gen_FP'!B48 -> 27105.66621 | C48: =+'GEN-502 Cos_Gen_P'!C48+'GEN-502 Cos_Gen_FP'!C48 -> 26971.80598 | D48: =+'GEN-502 Cos_Gen_P'!D48+'GEN-502 Cos_Gen_FP'!D48 -> 26450.74406 | E48: =+'GEN-502 Cos_Gen_P'!E48+'GEN-502 Cos_Gen_FP'!E48 -> 26924.57994 | F48: =+'GEN-502 Cos_Gen_P'!F48+'GEN-502 Cos_Gen_FP'!F48 -> 25587.72694 | G48: =+'GEN-502 Cos_Gen_P'!G48+'GEN-502 Cos_Gen_FP'!G48 -> 27418.58157 | H48: 160459.1047
A49: =+'GEN-502 Gen_P'!A49 -> ISTMUS HYDRO POWER CORP. No.02-13 | B49: =+'GEN-502 Cos_Gen_P'!B49+'GEN-502 Cos_Gen_FP'!B49 -> 131100.5821 | C49: =+'GEN-502 Cos_Gen_P'!C49+'GEN-502 Cos_Gen_FP'!C49 -> 124266.6743 | D49: =+'GEN-502 Cos_Gen_P'!D49+'GEN-502 Cos_Gen_FP'!D49 -> 128942.2649 | E49: =+'GEN-502 Cos_Gen_P'!E49+'GEN-502 Cos_Gen_FP'!E49 -> 118014.5752 | F49: =+'GEN-502 Cos_Gen_P'!F49+'GEN-502 Cos_Gen_FP'!F49 -> 110615.2668 | G49: =+'GEN-502 Cos_Gen_P'!G49+'GEN-502 Cos_Gen_FP'!G49 -> 120105.1287 | H49: =+SUM(B49:G49) -> 733044.492
A50: =+'GEN-502 Gen_P'!A50 -> CALDERA ENERGY CORP. No.03-13 | B50: =+'GEN-502 Cos_Gen_P'!B50+'GEN-502 Cos_Gen_FP'!B50 -> 151415.8019 | C50: =+'GEN-502 Cos_Gen_P'!C50+'GEN-502 Cos_Gen_FP'!C50 -> 267854.2953 | D50: =+'GEN-502 Cos_Gen_P'!D50+'GEN-502 Cos_Gen_FP'!D50 -> 317310.2621 | E50: =+'GEN-502 Cos_Gen_P'!E50+'GEN-502 Cos_Gen_FP'!E50 -> 434501.1097 | F50: =+'GEN-502 Cos_Gen_P'!F50+'GEN-502 Cos_Gen_FP'!F50 -> 265335.9503 | G50: =+'GEN-502 Cos_Gen_P'!G50+'GEN-502 Cos_Gen_FP'!G50 -> 85090.99337 | H50: 1521508.413
A51: =+'GEN-502 Gen_P'!A51 -> ELECTROGENERADORA DEL ISTMO, S.A. No.04-13 | B51: =+'GEN-502 Cos_Gen_P'!B51+'GEN-502 Cos_Gen_FP'!B51 -> 51501.97344 | C51: =+'GEN-502 Cos_Gen_P'!C51+'GEN-502 Cos_Gen_FP'!C51 -> 85412.72171 | D51: =+'GEN-502 Cos_Gen_P'!D51+'GEN-502 Cos_Gen_FP'!D51 -> 127810.2559 | E51: =+'GEN-502 Cos_Gen_P'!E51+'GEN-502 Cos_Gen_FP'!E51 -> 153473.7044 | F51: =+'GEN-502 Cos_Gen_P'!F51+'GEN-502 Cos_Gen_FP'!F51 -> 103522.4296 | G51: =+'GEN-502 Cos_Gen_P'!G51+'GEN-502 Cos_Gen_FP'!G51 -> 43413.77213 | H51: 565134.8572
A52: =+'GEN-502 Gen_P'!A52 -> FOUNTAIN INTERTRADE CORP. No.05-13 | B52: =+'GEN-502 Cos_Gen_P'!B52+'GEN-502 Cos_Gen_FP'!B52 -> 687855.8819 | C52: =+'GEN-502 Cos_Gen_P'!C52+'GEN-502 Cos_Gen_FP'!C52 -> 762908.1456 | D52: =+'GEN-502 Cos_Gen_P'!D52+'GEN-502 Cos_Gen_FP'!D52 -> 1102738.362 | E52: =+'GEN-502 Cos_Gen_P'!E52+'GEN-502 Cos_Gen_FP'!E52 -> 1519528.752 | F52: =+'GEN-502 Cos_Gen_P'!F52+'GEN-502 Cos_Gen_FP'!F52 -> 935312.675 | G52: =+'GEN-502 Cos_Gen_P'!G52+'GEN-502 Cos_Gen_FP'!G52 -> 570365.0459 | H52: 5578708.863
A53: =+'GEN-502 Gen_P'!A53 -> HIDROIBERICA, S.A. No.06-13 | B53: =+'GEN-502 Cos_Gen_P'!B53+'GEN-502 Cos_Gen_FP'!B53 -> 10135.58837 | C53: =+'GEN-502 Cos_Gen_P'!C53+'GEN-502 Cos_Gen_FP'!C53 -> 16235.25014 | D53: =+'GEN-502 Cos_Gen_P'!D53+'GEN-502 Cos_Gen_FP'!D53 -> 19631.65531 | E53: =+'GEN-502 Cos_Gen_P'!E53+'GEN-502 Cos_Gen_FP'!E53 -> 24801.35063 | F53: =+'GEN-502 Cos_Gen_P'!F53+'GEN-502 Cos_Gen_FP'!F53 -> 21328.8058 | G53: =+'GEN-502 Cos_Gen_P'!G53+'GEN-502 Cos_Gen_FP'!G53 -> 21505.44616 | H53: 113638.0964
A54: =+'GEN-502 Gen_P'!A54 -> NAVITAS INTERNACIONAL, S.A. No.07-13 | B54: =+'GEN-502 Cos_Gen_P'!B54+'GEN-502 Cos_Gen_FP'!B54 -> 93233.25295 | C54: =+'GEN-502 Cos_Gen_P'!C54+'GEN-502 Cos_Gen_FP'!C54 -> 98272.46108 | D54: =+'GEN-502 Cos_Gen_P'!D54+'GEN-502 Cos_Gen_FP'!D54 -> 119326.3123 | E54: =+'GEN-502 Cos_Gen_P'!E54+'GEN-502 Cos_Gen_FP'!E54 -> 122759.4412 | F54: =+'GEN-502 Cos_Gen_P'!F54+'GEN-502 Cos_Gen_FP'!F54 -> 99974.55806 | G54: =+'GEN-502 Cos_Gen_P'!G54+'GEN-502 Cos_Gen_FP'!G54 -> 80652.36931 | H54: 614218.3948
A55: =+'GEN-502 Gen_P'!A55 -> HIDROECOLÓGICA DEL TERIBE, S.A. No.08-13 | B55: =+'GEN-502 Cos_Gen_P'!B55+'GEN-502 Cos_Gen_FP'!B55 -> 0 | C55: =+'GEN-502 Cos_Gen_P'!C55+'GEN-502 Cos_Gen_FP'!C55 -> 0 | D55: =+'GEN-502 Cos_Gen_P'!D55+'GEN-502 Cos_Gen_FP'!D55 -> 37082.01559 | E55: =+'GEN-502 Cos_Gen_P'!E55+'GEN-502 Cos_Gen_FP'!E55 -> 185532.656 | F55: =+'GEN-502 Cos_Gen_P'!F55+'GEN-502 Cos_Gen_FP'!F55 -> 69312.24824 | G55: =+'GEN-502 Cos_Gen_P'!G55+'GEN-502 Cos_Gen_FP'!G55 -> 75574.69452 | H55: 367501.6143
A56: =+'GEN-502 Gen_P'!A56 -> HIDRONORTH CORP. No.09-13 | B56: =+'GEN-502 Cos_Gen_P'!B56+'GEN-502 Cos_Gen_FP'!B56 -> 18458.30728 | C56: =+'GEN-502 Cos_Gen_P'!C56+'GEN-502 Cos_Gen_FP'!C56 -> 21428.34362 | D56: =+'GEN-502 Cos_Gen_P'!D56+'GEN-502 Cos_Gen_FP'!D56 -> 25957.41091 | E56: =+'GEN-502 Cos_Gen_P'!E56+'GEN-502 Cos_Gen_FP'!E56 -> 25974.57183 | F56: =+'GEN-502 Cos_Gen_P'!F56+'GEN-502 Cos_Gen_FP'!F56 -> 23902.53267 | G56: =+'GEN-502 Cos_Gen_P'!G56+'GEN-502 Cos_Gen_FP'!G56 -> 19449.36991 | H56: 135170.5362
A57: =+'GEN-502 Gen_P'!A57 -> EMPRESA NACIONAL DE ENERGÍA, S.A. No.24-13 | B57: =+'GEN-502 Cos_Gen_P'!B57+'GEN-502 Cos_Gen_FP'!B57 -> 67240.97652 | C57: =+'GEN-502 Cos_Gen_P'!C57+'GEN-502 Cos_Gen_FP'!C57 -> 113954.2368 | D57: =+'GEN-502 Cos_Gen_P'!D57+'GEN-502 Cos_Gen_FP'!D57 -> 113679.554 | E57: =+'GEN-502 Cos_Gen_P'!E57+'GEN-502 Cos_Gen_FP'!E57 -> 85313.03335 | F57: =+'GEN-502 Cos_Gen_P'!F57+'GEN-502 Cos_Gen_FP'!F57 -> 106242.6805 | G57: =+'GEN-502 Cos_Gen_P'!G57+'GEN-502 Cos_Gen_FP'!G57 -> 76873.63458 | H57: 563304.1158
A58: =+'GEN-502 Gen_P'!A58 -> FUERZA ELÉCTRICA DEL ISTMO, S.A. No.25-13 | B58: =+'GEN-502 Cos_Gen_P'!B58+'GEN-502 Cos_Gen_FP'!B58 -> 26286.60724 | C58: =+'GEN-502 Cos_Gen_P'!C58+'GEN-502 Cos_Gen_FP'!C58 -> 26156.79189 | D58: =+'GEN-502 Cos_Gen_P'!D58+'GEN-502 Cos_Gen_FP'!D58 -> 26093.74185 | E58: =+'GEN-502 Cos_Gen_P'!E58+'GEN-502 Cos_Gen_FP'!E58 -> 19580.24342 | F58: =+'GEN-502 Cos_Gen_P'!F58+'GEN-502 Cos_Gen_FP'!F58 -> 24386.69911 | G58: =+'GEN-502 Cos_Gen_P'!G58+'GEN-502 Cos_Gen_FP'!G58 -> 26590.06715 | H58: 149094.1507
A59: =+'GEN-502 Gen_P'!A59 -> CAFÉ DE ELETA, S.A. No.26-13 | B59: =+'GEN-502 Cos_Gen_P'!B59+'GEN-502 Cos_Gen_FP'!B59 -> 8087.102707 | C59: =+'GEN-502 Cos_Gen_P'!C59+'GEN-502 Cos_Gen_FP'!C59 -> 8571.337449 | D59: =+'GEN-502 Cos_Gen_P'!D59+'GEN-502 Cos_Gen_FP'!D59 -> 8248.400804 | E59: =+'GEN-502 Cos_Gen_P'!E59+'GEN-502 Cos_Gen_FP'!E59 -> 8461.794448 | F59: =+'GEN-502 Cos_Gen_P'!F59+'GEN-502 Cos_Gen_FP'!F59 -> 11932.29309 | G59: =+'GEN-502 Cos_Gen_P'!G59+'GEN-502 Cos_Gen_FP'!G59 -> 9691.956362 | H59: 54992.88486
A60: =+'GEN-502 Gen_P'!A60 -> ENERGÍA Y SERVICIOS DE PANAMÁ, S.A. No.27-13 | B60: =+'GEN-502 Cos_Gen_P'!B60+'GEN-502 Cos_Gen_FP'!B60 -> 405349.4194 | C60: =+'GEN-502 Cos_Gen_P'!C60+'GEN-502 Cos_Gen_FP'!C60 -> 483191.0647 | D60: =+'GEN-502 Cos_Gen_P'!D60+'GEN-502 Cos_Gen_FP'!D60 -> 496494.3949 | E60: =+'GEN-502 Cos_Gen_P'!E60+'GEN-502 Cos_Gen_FP'!E60 -> 442237.337 | F60: =+'GEN-502 Cos_Gen_P'!F60+'GEN-502 Cos_Gen_FP'!F60 -> 545612.917 | G60: =+'GEN-502 Cos_Gen_P'!G60+'GEN-502 Cos_Gen_FP'!G60 -> 367390.2742 | H60: 2740275.407
A61: =+'GEN-502 Gen_P'!A61 -> GENERADORA PEDREGALITO, S.A. No.28-13 | B61: =+'GEN-502 Cos_Gen_P'!B61+'GEN-502 Cos_Gen_FP'!B61 -> 167762.3152 | C61: =+'GEN-502 Cos_Gen_P'!C61+'GEN-502 Cos_Gen_FP'!C61 -> 213836.2835 | D61: =+'GEN-502 Cos_Gen_P'!D61+'GEN-502 Cos_Gen_FP'!D61 -> 213356.8299 | E61: =+'GEN-502 Cos_Gen_P'!E61+'GEN-502 Cos_Gen_FP'!E61 -> 253096.5554 | F61: =+'GEN-502 Cos_Gen_P'!F61+'GEN-502 Cos_Gen_FP'!F61 -> 242555.1548 | G61: =+'GEN-502 Cos_Gen_P'!G61+'GEN-502 Cos_Gen_FP'!G61 -> 124184.7826 | H61: 1214791.921
A62: =+'GEN-502 Gen_P'!A62 -> GENERADORA RIO CHICO, S.A. No.29-13 | B62: =+'GEN-502 Cos_Gen_P'!B62+'GEN-502 Cos_Gen_FP'!B62 -> 103442.3317 | C62: =+'GEN-502 Cos_Gen_P'!C62+'GEN-502 Cos_Gen_FP'!C62 -> 131786.6883 | D62: =+'GEN-502 Cos_Gen_P'!D62+'GEN-502 Cos_Gen_FP'!D62 -> 131431.3259 | E62: =+'GEN-502 Cos_Gen_P'!E62+'GEN-502 Cos_Gen_FP'!E62 -> 155868.6562 | F62: =+'GEN-502 Cos_Gen_P'!F62+'GEN-502 Cos_Gen_FP'!F62 -> 149424.8147 | G62: =+'GEN-502 Cos_Gen_P'!G62+'GEN-502 Cos_Gen_FP'!G62 -> 76641.36312 | H62: 748595.1799
A63: =+'GEN-502 Gen_P'!A63 -> GENERADORA ALTO VALLE, S.A. No.30-13 | B63: =+'GEN-502 Cos_Gen_P'!B63+'GEN-502 Cos_Gen_FP'!B63 -> 148337.381 | C63: =+'GEN-502 Cos_Gen_P'!C63+'GEN-502 Cos_Gen_FP'!C63 -> 193271.3058 | D63: =+'GEN-502 Cos_Gen_P'!D63+'GEN-502 Cos_Gen_FP'!D63 -> 193653.6517 | E63: =+'GEN-502 Cos_Gen_P'!E63+'GEN-502 Cos_Gen_FP'!E63 -> 207251.4196 | F63: =+'GEN-502 Cos_Gen_P'!F63+'GEN-502 Cos_Gen_FP'!F63 -> 174928.9659 | G63: =+'GEN-502 Cos_Gen_P'!G63+'GEN-502 Cos_Gen_FP'!G63 -> 96281.69854 | H63: 1013724.423
A64: =+'GEN-502 Gen_P'!A64 -> HYDRO CAISÁN, S.A. No.31-13 | B64: =+'GEN-502 Cos_Gen_P'!B64+'GEN-502 Cos_Gen_FP'!B64 -> 368634.6689 | C64: =+'GEN-502 Cos_Gen_P'!C64+'GEN-502 Cos_Gen_FP'!C64 -> 633591.9348 | D64: =+'GEN-502 Cos_Gen_P'!D64+'GEN-502 Cos_Gen_FP'!D64 -> 760916.698 | E64: =+'GEN-502 Cos_Gen_P'!E64+'GEN-502 Cos_Gen_FP'!E64 -> 322996.9479 | F64: =+'GEN-502 Cos_Gen_P'!F64+'GEN-502 Cos_Gen_FP'!F64 -> 662495.8257 | G64: =+'GEN-502 Cos_Gen_P'!G64+'GEN-502 Cos_Gen_FP'!G64 -> 199499.828 | H64: 2948135.903
A65: =+'GEN-502 Gen_P'!A65 -> FERSA PANAMÁ, S.A. No 05-14 | B65: =+'GEN-502 Cos_Gen_P'!B65+'GEN-502 Cos_Gen_FP'!B65 -> 315831.4123 | C65: =+'GEN-502 Cos_Gen_P'!C65+'GEN-502 Cos_Gen_FP'!C65 -> 268608.2834 | D65: =+'GEN-502 Cos_Gen_P'!D65+'GEN-502 Cos_Gen_FP'!D65 -> 350347.408 | E65: =+'GEN-502 Cos_Gen_P'!E65+'GEN-502 Cos_Gen_FP'!E65 -> 311486.9375 | F65: =+'GEN-502 Cos_Gen_P'!F65+'GEN-502 Cos_Gen_FP'!F65 -> 470151.0956 | G65: =+'GEN-502 Cos_Gen_P'!G65+'GEN-502 Cos_Gen_FP'!G65 -> 855580.6568 | H65: 2572005.794
A66: =+'GEN-502 Gen_P'!A66 -> Panama Solar2 No. 07-15 | B66: =+'GEN-502 Cos_Gen_P'!B66+'GEN-502 Cos_Gen_FP'!B66 -> 103041.8334 | C66: =+'GEN-502 Cos_Gen_P'!C66+'GEN-502 Cos_Gen_FP'!C66 -> 98885.54771 | D66: =+'GEN-502 Cos_Gen_P'!D66+'GEN-502 Cos_Gen_FP'!D66 -> 98564.95869 | E66: =+'GEN-502 Cos_Gen_P'!E66+'GEN-502 Cos_Gen_FP'!E66 -> 99116.96402 | F66: =+'GEN-502 Cos_Gen_P'!F66+'GEN-502 Cos_Gen_FP'!F66 -> 112650.2858 | G66: =+'GEN-502 Cos_Gen_P'!G66+'GEN-502 Cos_Gen_FP'!G66 -> 147901.4401 | H66: 660161.0297
A67: =+'GEN-502 Gen_P'!A67 -> Solpac Investment No. 08-15 | B67: =+'GEN-502 Cos_Gen_P'!B67+'GEN-502 Cos_Gen_FP'!B67 -> 21341.47063 | C67: =+'GEN-502 Cos_Gen_P'!C67+'GEN-502 Cos_Gen_FP'!C67 -> 20742.21439 | D67: =+'GEN-502 Cos_Gen_P'!D67+'GEN-502 Cos_Gen_FP'!D67 -> 20825.82192 | E67: =+'GEN-502 Cos_Gen_P'!E67+'GEN-502 Cos_Gen_FP'!E67 -> 21198.89353 | F67: =+'GEN-502 Cos_Gen_P'!F67+'GEN-502 Cos_Gen_FP'!F67 -> 21083.36963 | G67: =+'GEN-502 Cos_Gen_P'!G67+'GEN-502 Cos_Gen_FP'!G67 -> 26608.271 | H67: 131800.0411
A68: =+'GEN-502 Gen_P'!A68 -> GAS NATURAL ATLÁNTICO No. 16-15 | B68: =+'GEN-502 Cos_Gen_P'!B68+'GEN-502 Cos_Gen_FP'!B68 -> 2450313.771 | C68: =+'GEN-502 Cos_Gen_P'!C68+'GEN-502 Cos_Gen_FP'!C68 -> 2438212.995 | D68: =+'GEN-502 Cos_Gen_P'!D68+'GEN-502 Cos_Gen_FP'!D68 -> 2391109.737 | E68: =+'GEN-502 Cos_Gen_P'!E68+'GEN-502 Cos_Gen_FP'!E68 -> 2433943.829 | F68: =+'GEN-502 Cos_Gen_P'!F68+'GEN-502 Cos_Gen_FP'!F68 -> 2313094.214 | G68: =+'GEN-502 Cos_Gen_P'!G68+'GEN-502 Cos_Gen_FP'!G68 -> 2478600.875 | H68: 14505275.42
A69: =+'GEN-502 Gen_P'!A69 -> MARTANO INC No. 18-15 | B69: =+'GEN-502 Cos_Gen_P'!B69+'GEN-502 Cos_Gen_FP'!B69 -> 1939978.703 | C69: =+'GEN-502 Cos_Gen_P'!C69+'GEN-502 Cos_Gen_FP'!C69 -> 1930398.197 | D69: =+'GEN-502 Cos_Gen_P'!D69+'GEN-502 Cos_Gen_FP'!D69 -> 1893105.293 | E69: =+'GEN-502 Cos_Gen_P'!E69+'GEN-502 Cos_Gen_FP'!E69 -> 1927018.184 | F69: =+'GEN-502 Cos_Gen_P'!F69+'GEN-502 Cos_Gen_FP'!F69 -> 1831338.324 | G69: =+'GEN-502 Cos_Gen_P'!G69+'GEN-502 Cos_Gen_FP'!G69 -> 1962374.357 | H69: 11484213.06
A70: =+'GEN-502 Gen_P'!A70 -> AUTORIDAD DEL CANAL DE PANAMÁ No. 27-21 | B70: =+'GEN-502 Cos_Gen_P'!B70+'GEN-502 Cos_Gen_FP'!B70 -> 0 | C70: =+'GEN-502 Cos_Gen_P'!C70+'GEN-502 Cos_Gen_FP'!C70 -> 0 | D70: =+'GEN-502 Cos_Gen_P'!D70+'GEN-502 Cos_Gen_FP'!D70 -> 0 | E70: =+'GEN-502 Cos_Gen_P'!E70+'GEN-502 Cos_Gen_FP'!E70 -> 0 | F70: =+'GEN-502 Cos_Gen_P'!F70+'GEN-502 Cos_Gen_FP'!F70 -> 0 | G70: =+'GEN-502 Cos_Gen_P'!G70+'GEN-502 Cos_Gen_FP'!G70 -> 0 | H70: =+SUM(B70:G70) -> 0
A71: =+'GEN-502 Gen_P'!A71 -> GENERADORA DEL ATLÁNTICO, S.A. No. 29-21 | B71: =+'GEN-502 Cos_Gen_P'!B71+'GEN-502 Cos_Gen_FP'!B71 -> 0 | C71: =+'GEN-502 Cos_Gen_P'!C71+'GEN-502 Cos_Gen_FP'!C71 -> 0 | D71: =+'GEN-502 Cos_Gen_P'!D71+'GEN-502 Cos_Gen_FP'!D71 -> 0 | E71: =+'GEN-502 Cos_Gen_P'!E71+'GEN-502 Cos_Gen_FP'!E71 -> 0 | F71: =+'GEN-502 Cos_Gen_P'!F71+'GEN-502 Cos_Gen_FP'!F71 -> 0 | G71: =+'GEN-502 Cos_Gen_P'!G71+'GEN-502 Cos_Gen_FP'!G71 -> 0 | H71: 0
A72: =+'GEN-502 Gen_P'!A72 -> GENERADORA DEL ATLÁNTICO, S.A. No. 30-21 | B72: =+'GEN-502 Cos_Gen_P'!B72+'GEN-502 Cos_Gen_FP'!B72 -> 0 | C72: =+'GEN-502 Cos_Gen_P'!C72+'GEN-502 Cos_Gen_FP'!C72 -> 0 | D72: =+'GEN-502 Cos_Gen_P'!D72+'GEN-502 Cos_Gen_FP'!D72 -> 0 | E72: =+'GEN-502 Cos_Gen_P'!E72+'GEN-502 Cos_Gen_FP'!E72 -> 0 | F72: =+'GEN-502 Cos_Gen_P'!F72+'GEN-502 Cos_Gen_FP'!F72 -> 0 | G72: =+'GEN-502 Cos_Gen_P'!G72+'GEN-502 Cos_Gen_FP'!G72 -> 0 | H72: 0
A73: =+'GEN-502 Gen_P'!A73 -> PANAM GENERATING LTD No. 31-21 | B73: =+'GEN-502 Cos_Gen_P'!B73+'GEN-502 Cos_Gen_FP'!B73 -> 0 | C73: =+'GEN-502 Cos_Gen_P'!C73+'GEN-502 Cos_Gen_FP'!C73 -> 0 | D73: =+'GEN-502 Cos_Gen_P'!D73+'GEN-502 Cos_Gen_FP'!D73 -> 0 | E73: =+'GEN-502 Cos_Gen_P'!E73+'GEN-502 Cos_Gen_FP'!E73 -> 0 | F73: =+'GEN-502 Cos_Gen_P'!F73+'GEN-502 Cos_Gen_FP'!F73 -> 0 | G73: =+'GEN-502 Cos_Gen_P'!G73+'GEN-502 Cos_Gen_FP'!G73 -> 0 | H73: 0
A74: =+'GEN-502 Gen_P'!A74 -> TROPITÉRMICA, S.A. No. 33-21 | B74: =+'GEN-502 Cos_Gen_P'!B74+'GEN-502 Cos_Gen_FP'!B74 -> 0 | C74: =+'GEN-502 Cos_Gen_P'!C74+'GEN-502 Cos_Gen_FP'!C74 -> 0 | D74: =+'GEN-502 Cos_Gen_P'!D74+'GEN-502 Cos_Gen_FP'!D74 -> 0 | E74: =+'GEN-502 Cos_Gen_P'!E74+'GEN-502 Cos_Gen_FP'!E74 -> 0 | F74: =+'GEN-502 Cos_Gen_P'!F74+'GEN-502 Cos_Gen_FP'!F74 -> 0 | G74: =+'GEN-502 Cos_Gen_P'!G74+'GEN-502 Cos_Gen_FP'!G74 -> 0 | H74: 0
A75: =+'GEN-502 Gen_P'!A75 -> EMPRESA NACIONAL DE ENERGÍA, S.A. No. 02-23 | B75: =+'GEN-502 Cos_Gen_P'!B75+'GEN-502 Cos_Gen_FP'!B75 -> 10149.56849 | C75: =+'GEN-502 Cos_Gen_P'!C75+'GEN-502 Cos_Gen_FP'!C75 -> 0 | D75: =+'GEN-502 Cos_Gen_P'!D75+'GEN-502 Cos_Gen_FP'!D75 -> 2305.55491 | E75: =+'GEN-502 Cos_Gen_P'!E75+'GEN-502 Cos_Gen_FP'!E75 -> 9623.499835 | F75: =+'GEN-502 Cos_Gen_P'!F75+'GEN-502 Cos_Gen_FP'!F75 -> 682.9563283 | G75: =+'GEN-502 Cos_Gen_P'!G75+'GEN-502 Cos_Gen_FP'!G75 -> 0 | H75: 22761.57957
A76: =+'GEN-502 Gen_P'!A76 -> FOUNTAIN HYDRO POWER CORP No. 03-23 | B76: =+'GEN-502 Cos_Gen_P'!B76+'GEN-502 Cos_Gen_FP'!B76 -> 112341.0771 | C76: =+'GEN-502 Cos_Gen_P'!C76+'GEN-502 Cos_Gen_FP'!C76 -> 0 | D76: =+'GEN-502 Cos_Gen_P'!D76+'GEN-502 Cos_Gen_FP'!D76 -> 0 | E76: =+'GEN-502 Cos_Gen_P'!E76+'GEN-502 Cos_Gen_FP'!E76 -> 0 | F76: =+'GEN-502 Cos_Gen_P'!F76+'GEN-502 Cos_Gen_FP'!F76 -> 0 | G76: =+'GEN-502 Cos_Gen_P'!G76+'GEN-502 Cos_Gen_FP'!G76 -> 0 | H76: 112341.0771
A77: =+'GEN-502 Gen_P'!A77 -> GENERADORA DEL ISTMO, S.A. No. 04-23 | B77: =+'GEN-502 Cos_Gen_P'!B77+'GEN-502 Cos_Gen_FP'!B77 -> 41203.85194 | C77: =+'GEN-502 Cos_Gen_P'!C77+'GEN-502 Cos_Gen_FP'!C77 -> 0 | D77: =+'GEN-502 Cos_Gen_P'!D77+'GEN-502 Cos_Gen_FP'!D77 -> 0 | E77: =+'GEN-502 Cos_Gen_P'!E77+'GEN-502 Cos_Gen_FP'!E77 -> 0 | F77: =+'GEN-502 Cos_Gen_P'!F77+'GEN-502 Cos_Gen_FP'!F77 -> 0 | G77: =+'GEN-502 Cos_Gen_P'!G77+'GEN-502 Cos_Gen_FP'!G77 -> 0 | H77: 41203.85194
A78: =+'GEN-502 Gen_P'!A78 -> HIDRO BOQUERÓN, S.A. No. 05-23 | B78: =+'GEN-502 Cos_Gen_P'!B78+'GEN-502 Cos_Gen_FP'!B78 -> 4126.560695 | C78: =+'GEN-502 Cos_Gen_P'!C78+'GEN-502 Cos_Gen_FP'!C78 -> 3580.972536 | D78: =+'GEN-502 Cos_Gen_P'!D78+'GEN-502 Cos_Gen_FP'!D78 -> 3635.738199 | E78: =+'GEN-502 Cos_Gen_P'!E78+'GEN-502 Cos_Gen_FP'!E78 -> 7045.668469 | F78: =+'GEN-502 Cos_Gen_P'!F78+'GEN-502 Cos_Gen_FP'!F78 -> 1779.539667 | G78: =+'GEN-502 Cos_Gen_P'!G78+'GEN-502 Cos_Gen_FP'!G78 -> 0 | H78: 20168.47957
A79: =+'GEN-502 Gen_P'!A79 -> HIDROIBÉRICA No. 06-23 | B79: =+'GEN-502 Cos_Gen_P'!B79+'GEN-502 Cos_Gen_FP'!B79 -> 2340.628538 | C79: =+'GEN-502 Cos_Gen_P'!C79+'GEN-502 Cos_Gen_FP'!C79 -> 2876.84184 | D79: =+'GEN-502 Cos_Gen_P'!D79+'GEN-502 Cos_Gen_FP'!D79 -> 871.0391698 | E79: =+'GEN-502 Cos_Gen_P'!E79+'GEN-502 Cos_Gen_FP'!E79 -> 1129.378297 | F79: =+'GEN-502 Cos_Gen_P'!F79+'GEN-502 Cos_Gen_FP'!F79 -> 560.4349484 | G79: =+'GEN-502 Cos_Gen_P'!G79+'GEN-502 Cos_Gen_FP'!G79 -> 2815.655581 | H79: 10593.97837
A80: =+'GEN-502 Gen_P'!A80 -> IDEAL PANAMÁ, S.A. No. 08-23 | B80: =+'GEN-502 Cos_Gen_P'!B80+'GEN-502 Cos_Gen_FP'!B80 -> 68195.71655 | C80: =+'GEN-502 Cos_Gen_P'!C80+'GEN-502 Cos_Gen_FP'!C80 -> 0 | D80: =+'GEN-502 Cos_Gen_P'!D80+'GEN-502 Cos_Gen_FP'!D80 -> 0 | E80: =+'GEN-502 Cos_Gen_P'!E80+'GEN-502 Cos_Gen_FP'!E80 -> 0 | F80: =+'GEN-502 Cos_Gen_P'!F80+'GEN-502 Cos_Gen_FP'!F80 -> 0 | G80: =+'GEN-502 Cos_Gen_P'!G80+'GEN-502 Cos_Gen_FP'!G80 -> 0 | H80: 68195.71655
A81: =+'GEN-502 Gen_P'!A81 -> SOLAR BOQUERÓN, S.A. No. 12-23 | B81: =+'GEN-502 Cos_Gen_P'!B81+'GEN-502 Cos_Gen_FP'!B81 -> 1445.408212 | C81: =+'GEN-502 Cos_Gen_P'!C81+'GEN-502 Cos_Gen_FP'!C81 -> 1509.295807 | D81: =+'GEN-502 Cos_Gen_P'!D81+'GEN-502 Cos_Gen_FP'!D81 -> 365.6811727 | E81: =+'GEN-502 Cos_Gen_P'!E81+'GEN-502 Cos_Gen_FP'!E81 -> 610.0468025 | F81: =+'GEN-502 Cos_Gen_P'!F81+'GEN-502 Cos_Gen_FP'!F81 -> 276.8935799 | G81: =+'GEN-502 Cos_Gen_P'!G81+'GEN-502 Cos_Gen_FP'!G81 -> 1216.155687 | H81: 5423.481262
A82: =+'GEN-502 Gen_P'!A82 -> AUTORIDAD DEL CANAL DE PANAMÁ No. 13-23 | B82: =+'GEN-502 Cos_Gen_P'!B82+'GEN-502 Cos_Gen_FP'!B82 -> 0 | C82: =+'GEN-502 Cos_Gen_P'!C82+'GEN-502 Cos_Gen_FP'!C82 -> 0 | D82: =+'GEN-502 Cos_Gen_P'!D82+'GEN-502 Cos_Gen_FP'!D82 -> 0 | E82: =+'GEN-502 Cos_Gen_P'!E82+'GEN-502 Cos_Gen_FP'!E82 -> 0 | F82: =+'GEN-502 Cos_Gen_P'!F82+'GEN-502 Cos_Gen_FP'!F82 -> 0 | G82: =+'GEN-502 Cos_Gen_P'!G82+'GEN-502 Cos_Gen_FP'!G82 -> 0 | H82: 0
A83: =+'GEN-502 Gen_P'!A83 -> CELSIA CENTROAMÉRICA, S.A. No. 14-23 | B83: =+'GEN-502 Cos_Gen_P'!B83+'GEN-502 Cos_Gen_FP'!B83 -> 0 | C83: =+'GEN-502 Cos_Gen_P'!C83+'GEN-502 Cos_Gen_FP'!C83 -> 0 | D83: =+'GEN-502 Cos_Gen_P'!D83+'GEN-502 Cos_Gen_FP'!D83 -> 0 | E83: =+'GEN-502 Cos_Gen_P'!E83+'GEN-502 Cos_Gen_FP'!E83 -> 0 | F83: =+'GEN-502 Cos_Gen_P'!F83+'GEN-502 Cos_Gen_FP'!F83 -> 0 | G83: =+'GEN-502 Cos_Gen_P'!G83+'GEN-502 Cos_Gen_FP'!G83 -> 0 | H83: 0
A84: =+'GEN-502 Gen_P'!A84 -> GENERADORA DEL ATLÁNTICO, S.A. No. 15-23 | B84: =+'GEN-502 Cos_Gen_P'!B84+'GEN-502 Cos_Gen_FP'!B84 -> 0 | C84: =+'GEN-502 Cos_Gen_P'!C84+'GEN-502 Cos_Gen_FP'!C84 -> 0 | D84: =+'GEN-502 Cos_Gen_P'!D84+'GEN-502 Cos_Gen_FP'!D84 -> 0 | E84: =+'GEN-502 Cos_Gen_P'!E84+'GEN-502 Cos_Gen_FP'!E84 -> 0 | F84: =+'GEN-502 Cos_Gen_P'!F84+'GEN-502 Cos_Gen_FP'!F84 -> 0 | G84: =+'GEN-502 Cos_Gen_P'!G84+'GEN-502 Cos_Gen_FP'!G84 -> 0 | H84: 0
A85: =+'GEN-502 Gen_P'!A85 -> GENERADORA DEL ATLÁNTICO, S.A. No. 16-23 | B85: =+'GEN-502 Cos_Gen_P'!B85+'GEN-502 Cos_Gen_FP'!B85 -> 0 | C85: =+'GEN-502 Cos_Gen_P'!C85+'GEN-502 Cos_Gen_FP'!C85 -> 0 | D85: =+'GEN-502 Cos_Gen_P'!D85+'GEN-502 Cos_Gen_FP'!D85 -> 0 | E85: =+'GEN-502 Cos_Gen_P'!E85+'GEN-502 Cos_Gen_FP'!E85 -> 0 | F85: =+'GEN-502 Cos_Gen_P'!F85+'GEN-502 Cos_Gen_FP'!F85 -> 0 | G85: =+'GEN-502 Cos_Gen_P'!G85+'GEN-502 Cos_Gen_FP'!G85 -> 0 | H85: 0
A86: =+'GEN-502 Gen_P'!A86 -> PEDREGAL POWER, S. DE R.L. No. 17-23 | B86: =+'GEN-502 Cos_Gen_P'!B86+'GEN-502 Cos_Gen_FP'!B86 -> 0 | C86: =+'GEN-502 Cos_Gen_P'!C86+'GEN-502 Cos_Gen_FP'!C86 -> 0 | D86: =+'GEN-502 Cos_Gen_P'!D86+'GEN-502 Cos_Gen_FP'!D86 -> 0 | E86: =+'GEN-502 Cos_Gen_P'!E86+'GEN-502 Cos_Gen_FP'!E86 -> 0 | F86: =+'GEN-502 Cos_Gen_P'!F86+'GEN-502 Cos_Gen_FP'!F86 -> 0 | G86: =+'GEN-502 Cos_Gen_P'!G86+'GEN-502 Cos_Gen_FP'!G86 -> 0 | H86: 0
A87: =+'GEN-502 Gen_P'!A87 -> PANAM GENERATING LTD No. 18-23 | B87: =+'GEN-502 Cos_Gen_P'!B87+'GEN-502 Cos_Gen_FP'!B87 -> 0 | C87: =+'GEN-502 Cos_Gen_P'!C87+'GEN-502 Cos_Gen_FP'!C87 -> 0 | D87: =+'GEN-502 Cos_Gen_P'!D87+'GEN-502 Cos_Gen_FP'!D87 -> 0 | E87: =+'GEN-502 Cos_Gen_P'!E87+'GEN-502 Cos_Gen_FP'!E87 -> 0 | F87: =+'GEN-502 Cos_Gen_P'!F87+'GEN-502 Cos_Gen_FP'!F87 -> 0 | G87: =+'GEN-502 Cos_Gen_P'!G87+'GEN-502 Cos_Gen_FP'!G87 -> 0 | H87: 0
A88: =+'GEN-502 Gen_P'!A88 -> PANAM GENERATING LTD No. 19-23 | B88: =+'GEN-502 Cos_Gen_P'!B88+'GEN-502 Cos_Gen_FP'!B88 -> 0 | C88: =+'GEN-502 Cos_Gen_P'!C88+'GEN-502 Cos_Gen_FP'!C88 -> 0 | D88: =+'GEN-502 Cos_Gen_P'!D88+'GEN-502 Cos_Gen_FP'!D88 -> 0 | E88: =+'GEN-502 Cos_Gen_P'!E88+'GEN-502 Cos_Gen_FP'!E88 -> 0 | F88: =+'GEN-502 Cos_Gen_P'!F88+'GEN-502 Cos_Gen_FP'!F88 -> 0 | G88: =+'GEN-502 Cos_Gen_P'!G88+'GEN-502 Cos_Gen_FP'!G88 -> 0 | H88: 0
A89: =+'GEN-502 Gen_P'!A89 -> SPARKLE POWER, S.A. No. 20-23 | B89: =+'GEN-502 Cos_Gen_P'!B89+'GEN-502 Cos_Gen_FP'!B89 -> 0 | C89: =+'GEN-502 Cos_Gen_P'!C89+'GEN-502 Cos_Gen_FP'!C89 -> 0 | D89: =+'GEN-502 Cos_Gen_P'!D89+'GEN-502 Cos_Gen_FP'!D89 -> 0 | E89: =+'GEN-502 Cos_Gen_P'!E89+'GEN-502 Cos_Gen_FP'!E89 -> 0 | F89: =+'GEN-502 Cos_Gen_P'!F89+'GEN-502 Cos_Gen_FP'!F89 -> 0 | G89: =+'GEN-502 Cos_Gen_P'!G89+'GEN-502 Cos_Gen_FP'!G89 -> 0 | H89: 0
A90: =+'GEN-502 Gen_P'!A90 -> TROPITÉRMICA, S.A. No. 21-23 | B90: =+'GEN-502 Cos_Gen_P'!B90+'GEN-502 Cos_Gen_FP'!B90 -> 0 | C90: =+'GEN-502 Cos_Gen_P'!C90+'GEN-502 Cos_Gen_FP'!C90 -> 0 | D90: =+'GEN-502 Cos_Gen_P'!D90+'GEN-502 Cos_Gen_FP'!D90 -> 0 | E90: =+'GEN-502 Cos_Gen_P'!E90+'GEN-502 Cos_Gen_FP'!E90 -> 0 | F90: =+'GEN-502 Cos_Gen_P'!F90+'GEN-502 Cos_Gen_FP'!F90 -> 0 | G90: =+'GEN-502 Cos_Gen_P'!G90+'GEN-502 Cos_Gen_FP'!G90 -> 0 | H90: 0

Sheet GEN-502 Gen_P
A1: INFORMACION PARA ACTUALIZAR: CARGO POR GENERACION
A2: =+'Compras (p)'!A2 -> EDEMET
A3: Porción de Compra Mensual de Energía en Horas de Punta para atender Clientes Regulados (MWh)
B4: ESTIMACION DE COMPRA DE ENERGIA HORAS DE PUNTA
A5: Detalle | B5: 2023-07-01 | C5: 2023-08-01 | D5: 2023-09-01 | E5: 2023-10-01 | F5: 2023-11-01 | G5: 2023-12-01 | H5: Total
A7: Generación en Punta | B7: 0.2732383728 | C7: 0.2732383728 | D7: 0.2732383728 | E7: 0.2732383728 | F7: 0.2732383728 | G7: 0.2732383728
A8: Total Compra de Energía en Horas de Punta | B8: =+B9+B15 -> 100314.9445 | C8: 102485.4942 | D8: 99123.64478 | E8: 100899.3355 | F8: 94783.29068 | G8: 102824.3748 | H8: =+SUM(B8:G8) -> 600431.0844
A9: Generación Propia | B9: 0 | C9: 0 | D9: 0 | E9: 0 | F9: 0 | G9: 0 | H9: 0
A10: 0 | H10: 0
A11: 0 | H11: 0
A12: 0 | H12: 0
A13: 0 | H13: 0
A14: 0 | H14: 0
A15: Sub-Total Mercado Mayorista | B15: =+SUM(B16:B24) -> 100314.9445 | C15: 102485.4942 | D15: 99123.64478 | E15: 100899.3355 | F15: 94783.29068 | G15: 102824.3748 | H15: 600431.0844
A16: Mercado Ocasional | B16: =+'Compras (p)'!B11*B7-B24 -> -892.688621 | C16: =+'Compras (p)'!C11*C7-C24 -> 1099.439946 | D16: =+'Compras (p)'!D11*D7-D24 -> -1434.627566 | E16: =+'Compras (p)'!E11*E7-E24 -> -1783.213895 | F16: =+'Compras (p)'!F11*F7-F24 -> -2574.301278 | G16: =+'Compras (p)'!G11*G7-G24 -> 1202.242154 | H16: -4383.149261
H17: 0
H18: 0
H19: 0
H20: 0
H21: 0
H22: 0
H23: 0
A24: Sub-Total Contratros | B24: =+SUM(B25:B107) -> 101207.6331 | C24: 101386.0542 | D24: 100558.2723 | E24: 102682.5494 | F24: 97357.59196 | G24: 101622.1327 | H24: 604814.2337
A25: =+'GEN-502 Pot'!A25 -> Hydro Caisan No. 05-08 (17,048) | B25: =+'Compras (p)'!B$11*'GEN-502 Pot'!B25*B$7/('GEN-502 Pot'!B$6/1.0645) -> 2206.021455 | C25: =+'Compras (p)'!C$11*'GEN-502 Pot'!C25*C$7/('GEN-502 Pot'!C$6/1.0645) -> 2195.127107 | D25: =+'Compras (p)'!D$11*'GEN-502 Pot'!D25*D$7/('GEN-502 Pot'!D$6/1.0645) -> 2152.719968 | E25: =+'Compras (p)'!E$11*'GEN-502 Pot'!E25*E$7/('GEN-502 Pot'!E$6/1.0645) -> 2191.28357 | F25: =+'Compras (p)'!F$11*'GEN-502 Pot'!F25*F$7/('GEN-502 Pot'!F$6/1.0645) -> 2082.482465 | G25: =+'Compras (p)'!G$11*'GEN-502 Pot'!G25*G$7/('GEN-502 Pot'!G$6/1.0645) -> 2231.488381 | H25: 13059.12295
A26: =+'GEN-502 Pot'!A26 -> Electrón Inv. No. 07-08 (34,65) | B26: =+'Compras (p)'!B$11*'GEN-502 Pot'!B26*B$7/('GEN-502 Pot'!B$6/1.0645) -> 4483.730843 | C26: =+'Compras (p)'!C$11*'GEN-502 Pot'!C26*C$7/('GEN-502 Pot'!C$6/1.0645) -> 4461.588119 | D26: =+'Compras (p)'!D$11*'GEN-502 Pot'!D26*D$7/('GEN-502 Pot'!D$6/1.0645) -> 4375.395758 | E26: =+'Compras (p)'!E$11*'GEN-502 Pot'!E26*E$7/('GEN-502 Pot'!E$6/1.0645) -> 4453.776144 | F26: =+'Compras (p)'!F$11*'GEN-502 Pot'!F26*F$7/('GEN-502 Pot'!F$6/1.0645) -> 4232.638282 | G26: =+'Compras (p)'!G$11*'GEN-502 Pot'!G26*G$7/('GEN-502 Pot'!G$6/1.0645) -> 4535.49228 | H26: 26542.62143
A27: =+'GEN-502 Pot'!A27 -> Empresa Nacional de Energía No. 24-11 (Cesión) | B27: =+'Compras (p)'!B$11*'GEN-502 Pot'!B27*B$7/('GEN-502 Pot'!B$6/1.0645) -> 862.7138104 | C27: =+'Compras (p)'!C$11*'GEN-502 Pot'!C27*C$7/('GEN-502 Pot'!C$6/1.0645) -> 858.4533331 | D27: =+'Compras (p)'!D$11*'GEN-502 Pot'!D27*D$7/('GEN-502 Pot'!D$6/1.0645) -> 841.869077 | E27: =+'Compras (p)'!E$11*'GEN-502 Pot'!E27*E$7/('GEN-502 Pot'!E$6/1.0645) -> 856.9502323 | F27: =+'Compras (p)'!F$11*'GEN-502 Pot'!F27*F$7/('GEN-502 Pot'!F$6/1.0645) -> 814.4011378 | G27: =+'Compras (p)'!G$11*'GEN-502 Pot'!G27*G$7/('GEN-502 Pot'!G$6/1.0645) -> 872.6732188 | H27: =+SUM(B27:G27) -> 5107.060809
A28: =+'GEN-502 Pot'!A28 -> Enel Fortuna No. 25-11 | B28: =+'Compras (p)'!B$11*'GEN-502 Pot'!B28*B$7/('GEN-502 Pot'!B$6/1.0645) -> 2546.730651 | C28: =+'Compras (p)'!C$11*'GEN-502 Pot'!C28*C$7/('GEN-502 Pot'!C$6/1.0645) -> 2534.153724 | D28: =+'Compras (p)'!D$11*'GEN-502 Pot'!D28*D$7/('GEN-502 Pot'!D$6/1.0645) -> 2485.19701 | E28: =+'Compras (p)'!E$11*'GEN-502 Pot'!E28*E$7/('GEN-502 Pot'!E$6/1.0645) -> 2529.716572 | F28: =+'Compras (p)'!F$11*'GEN-502 Pot'!F28*F$7/('GEN-502 Pot'!F$6/1.0645) -> 2404.11167 | G28: =+'Compras (p)'!G$11*'GEN-502 Pot'!G28*G$7/('GEN-502 Pot'!G$6/1.0645) -> 2576.130818 | H28: 15076.04045
A29: =+'GEN-502 Pot'!A29 -> Electrogeneradora del Istmo No. 26-11 | B29: =+'Compras (p)'!B$11*'GEN-502 Pot'!B29*B$7/('GEN-502 Pot'!B$6/1.0645) -> 107.8398733 | C29: =+'Compras (p)'!C$11*'GEN-502 Pot'!C29*C$7/('GEN-502 Pot'!C$6/1.0645) -> 107.3073104 | D29: =+'Compras (p)'!D$11*'GEN-502 Pot'!D29*D$7/('GEN-502 Pot'!D$6/1.0645) -> 105.234266 | E29: =+'Compras (p)'!E$11*'GEN-502 Pot'!E29*E$7/('GEN-502 Pot'!E$6/1.0645) -> 107.1194217 | F29: =+'Compras (p)'!F$11*'GEN-502 Pot'!F29*F$7/('GEN-502 Pot'!F$6/1.0645) -> 101.800753 | G29: =+'Compras (p)'!G$11*'GEN-502 Pot'!G29*G$7/('GEN-502 Pot'!G$6/1.0645) -> 109.0848068 | H29: 638.3864313
A30: =+'GEN-502 Pot'!A30 -> ESEPSA No. 27-11 | B30: =+'Compras (p)'!B$11*'GEN-502 Pot'!B30*B$7/('GEN-502 Pot'!B$6/1.0645) -> 472.7676857 | C30: =+'Compras (p)'!C$11*'GEN-502 Pot'!C30*C$7/('GEN-502 Pot'!C$6/1.0645) -> 470.4329416 | D30: =+'Compras (p)'!D$11*'GEN-502 Pot'!D30*D$7/('GEN-502 Pot'!D$6/1.0645) -> 461.3447593 | E30: =+'Compras (p)'!E$11*'GEN-502 Pot'!E30*E$7/('GEN-502 Pot'!E$6/1.0645) -> 469.6092414 | F30: =+'Compras (p)'!F$11*'GEN-502 Pot'!F30*F$7/('GEN-502 Pot'!F$6/1.0645) -> 446.2923121 | G30: =+'Compras (p)'!G$11*'GEN-502 Pot'!G30*G$7/('GEN-502 Pot'!G$6/1.0645) -> 478.2254475 | H30: 2798.672388
A31: =+'GEN-502 Pot'!A31 -> Pedregalito No. 28-11 | B31: =+'Compras (p)'!B$11*'GEN-502 Pot'!B31*B$7/('GEN-502 Pot'!B$6/1.0645) -> 339.7361033 | C31: =+'Compras (p)'!C$11*'GEN-502 Pot'!C31*C$7/('GEN-502 Pot'!C$6/1.0645) -> 338.0583303 | D31: =+'Compras (p)'!D$11*'GEN-502 Pot'!D31*D$7/('GEN-502 Pot'!D$6/1.0645) -> 331.5274617 | E31: =+'Compras (p)'!E$11*'GEN-502 Pot'!E31*E$7/('GEN-502 Pot'!E$6/1.0645) -> 337.4664102 | F31: =+'Compras (p)'!F$11*'GEN-502 Pot'!F31*F$7/('GEN-502 Pot'!F$6/1.0645) -> 320.7106062 | G31: =+'Compras (p)'!G$11*'GEN-502 Pot'!G31*G$7/('GEN-502 Pot'!G$6/1.0645) -> 343.6581114 | H31: 2011.157023
A32: =+'GEN-502 Pot'!A32 -> Río Chico No. 29-11 | B32: =+'Compras (p)'!B$11*'GEN-502 Pot'!B32*B$7/('GEN-502 Pot'!B$6/1.0645) -> 208.3453205 | C32: =+'Compras (p)'!C$11*'GEN-502 Pot'!C32*C$7/('GEN-502 Pot'!C$6/1.0645) -> 207.3164156 | D32: =+'Compras (p)'!D$11*'GEN-502 Pot'!D32*D$7/('GEN-502 Pot'!D$6/1.0645) -> 203.311319 | E32: =+'Compras (p)'!E$11*'GEN-502 Pot'!E32*E$7/('GEN-502 Pot'!E$6/1.0645) -> 206.9534168 | F32: =+'Compras (p)'!F$11*'GEN-502 Pot'!F32*F$7/('GEN-502 Pot'!F$6/1.0645) -> 196.6778137 | G32: =+'Compras (p)'!G$11*'GEN-502 Pot'!G32*G$7/('GEN-502 Pot'!G$6/1.0645) -> 210.7505169 | H32: 1233.354802
A33: =+'GEN-502 Pot'!A33 -> Alto Valle No. 30-11 | B33: =+'Compras (p)'!B$11*'GEN-502 Pot'!B33*B$7/('GEN-502 Pot'!B$6/1.0645) -> 198.2520736 | C33: =+'Compras (p)'!C$11*'GEN-502 Pot'!C33*C$7/('GEN-502 Pot'!C$6/1.0645) -> 197.2730137 | D33: =+'Compras (p)'!D$11*'GEN-502 Pot'!D33*D$7/('GEN-502 Pot'!D$6/1.0645) -> 193.4619432 | E33: =+'Compras (p)'!E$11*'GEN-502 Pot'!E33*E$7/('GEN-502 Pot'!E$6/1.0645) -> 196.9276004 | F33: =+'Compras (p)'!F$11*'GEN-502 Pot'!F33*F$7/('GEN-502 Pot'!F$6/1.0645) -> 187.1497968 | G33: =+'Compras (p)'!G$11*'GEN-502 Pot'!G33*G$7/('GEN-502 Pot'!G$6/1.0645) -> 200.5407507 | H33: 1173.605178
A34: =+'GEN-502 Pot'!A34 -> Hidroecológica del Teribe No. 31-11 | B34: =+'Compras (p)'!B$11*'GEN-502 Pot'!B34*B$7/('GEN-502 Pot'!B$6/1.0645) -> 862.7138104 | C34: =+'Compras (p)'!C$11*'GEN-502 Pot'!C34*C$7/('GEN-502 Pot'!C$6/1.0645) -> 858.4533331 | D34: =+'Compras (p)'!D$11*'GEN-502 Pot'!D34*D$7/('GEN-502 Pot'!D$6/1.0645) -> 841.869077 | E34: =+'Compras (p)'!E$11*'GEN-502 Pot'!E34*E$7/('GEN-502 Pot'!E$6/1.0645) -> 856.9502323 | F34: =+'Compras (p)'!F$11*'GEN-502 Pot'!F34*F$7/('GEN-502 Pot'!F$6/1.0645) -> 814.4011378 | G34: =+'Compras (p)'!G$11*'GEN-502 Pot'!G34*G$7/('GEN-502 Pot'!G$6/1.0645) -> 872.6732188 | H34: 5107.060809
A35: =+'GEN-502 Pot'!A35 -> Desarrollos Hidroeléctricos Corp. No. 32-11 | B35: =+'Compras (p)'!B$11*'GEN-502 Pot'!B35*B$7/('GEN-502 Pot'!B$6/1.0645) -> 164.1744252 | C35: =+'Compras (p)'!C$11*'GEN-502 Pot'!C35*C$7/('GEN-502 Pot'!C$6/1.0645) -> 163.3636564 | D35: =+'Compras (p)'!D$11*'GEN-502 Pot'!D35*D$7/('GEN-502 Pot'!D$6/1.0645) -> 160.2076727 | E35: =+'Compras (p)'!E$11*'GEN-502 Pot'!E35*E$7/('GEN-502 Pot'!E$6/1.0645) -> 163.0776164 | F35: =+'Compras (p)'!F$11*'GEN-502 Pot'!F35*F$7/('GEN-502 Pot'!F$6/1.0645) -> 154.9805243 | G35: =+'Compras (p)'!G$11*'GEN-502 Pot'!G35*G$7/('GEN-502 Pot'!G$6/1.0645) -> 166.0697004 | H35: 971.8735954
A36: =+'GEN-502 Pot'!A36 -> Las Perlas Norte No. 33-11 | B36: =+'Compras (p)'!B$11*'GEN-502 Pot'!B36*B$7/('GEN-502 Pot'!B$6/1.0645) -> 1026.629434 | C36: =+'Compras (p)'!C$11*'GEN-502 Pot'!C36*C$7/('GEN-502 Pot'!C$6/1.0645) -> 1021.559466 | D36: =+'Compras (p)'!D$11*'GEN-502 Pot'!D36*D$7/('GEN-502 Pot'!D$6/1.0645) -> 1001.824202 | E36: =+'Compras (p)'!E$11*'GEN-502 Pot'!E36*E$7/('GEN-502 Pot'!E$6/1.0645) -> 1019.770776 | F36: =+'Compras (p)'!F$11*'GEN-502 Pot'!F36*F$7/('GEN-502 Pot'!F$6/1.0645) -> 969.137354 | G36: =+'Compras (p)'!G$11*'GEN-502 Pot'!G36*G$7/('GEN-502 Pot'!G$6/1.0645) -> 1038.48113 | H36: 6077.402363
A37: =+'GEN-502 Pot'!A37 -> Hidroeléctrica San Lorenzo No. 34-11 | B37: =+'Compras (p)'!B$11*'GEN-502 Pot'!B37*B$7/('GEN-502 Pot'!B$6/1.0645) -> 114.9996086 | C37: =+'Compras (p)'!C$11*'GEN-502 Pot'!C37*C$7/('GEN-502 Pot'!C$6/1.0645) -> 114.4316877 | D37: =+'Compras (p)'!D$11*'GEN-502 Pot'!D37*D$7/('GEN-502 Pot'!D$6/1.0645) -> 112.2210091 | E37: =+'Compras (p)'!E$11*'GEN-502 Pot'!E37*E$7/('GEN-502 Pot'!E$6/1.0645) -> 114.2313246 | F37: =+'Compras (p)'!F$11*'GEN-502 Pot'!F37*F$7/('GEN-502 Pot'!F$6/1.0645) -> 108.5595373 | G37: =+'Compras (p)'!G$11*'GEN-502 Pot'!G37*G$7/('GEN-502 Pot'!G$6/1.0645) -> 116.3271961 | H37: 680.7703633
A38: =+'GEN-502 Pot'!A38 -> Caldera Energy Corp. No. 35-11 | B38: =+'Compras (p)'!B$11*'GEN-502 Pot'!B38*B$7/('GEN-502 Pot'!B$6/1.0645) -> 258.8141431 | C38: =+'Compras (p)'!C$11*'GEN-502 Pot'!C38*C$7/('GEN-502 Pot'!C$6/1.0645) -> 257.5359999 | D38: =+'Compras (p)'!D$11*'GEN-502 Pot'!D38*D$7/('GEN-502 Pot'!D$6/1.0645) -> 252.5607231 | E38: =+'Compras (p)'!E$11*'GEN-502 Pot'!E38*E$7/('GEN-502 Pot'!E$6/1.0645) -> 257.0850697 | F38: =+'Compras (p)'!F$11*'GEN-502 Pot'!F38*F$7/('GEN-502 Pot'!F$6/1.0645) -> 244.3203413 | G38: =+'Compras (p)'!G$11*'GEN-502 Pot'!G38*G$7/('GEN-502 Pot'!G$6/1.0645) -> 261.8019656 | H38: 1532.118243
A39: =+'GEN-502 Pot'!A39 -> PASO ANCHO No. 86-11 | B39: =+'Compras (p)'!B$11*'GEN-502 Pot'!B39*B$7/('GEN-502 Pot'!B$6/1.0645) -> 269.1532512 | C39: =+'Compras (p)'!C$11*'GEN-502 Pot'!C39*C$7/('GEN-502 Pot'!C$6/1.0645) -> 267.8240487 | D39: =+'Compras (p)'!D$11*'GEN-502 Pot'!D39*D$7/('GEN-502 Pot'!D$6/1.0645) -> 267.7009814 | E39: =+'Compras (p)'!E$11*'GEN-502 Pot'!E39*E$7/('GEN-502 Pot'!E$6/1.0645) -> 277.6379934 | F39: =+'Compras (p)'!F$11*'GEN-502 Pot'!F39*F$7/('GEN-502 Pot'!F$6/1.0645) -> 258.9666135 | G39: =+'Compras (p)'!G$11*'GEN-502 Pot'!G39*G$7/('GEN-502 Pot'!G$6/1.0645) -> 272.2604312 | H39: 1613.543319
A40: =+'GEN-502 Pot'!A40 -> Hidroecológica del Teribe No. 87-11 | B40: =+'Compras (p)'!B$11*'GEN-502 Pot'!B40*B$7/('GEN-502 Pot'!B$6/1.0645) -> 342.9115941 | C40: =+'Compras (p)'!C$11*'GEN-502 Pot'!C40*C$7/('GEN-502 Pot'!C$6/1.0645) -> 334.7800609 | D40: =+'Compras (p)'!D$11*'GEN-502 Pot'!D40*D$7/('GEN-502 Pot'!D$6/1.0645) -> 328.3125244 | E40: =+'Compras (p)'!E$11*'GEN-502 Pot'!E40*E$7/('GEN-502 Pot'!E$6/1.0645) -> 340.6206863 | F40: =+'Compras (p)'!F$11*'GEN-502 Pot'!F40*F$7/('GEN-502 Pot'!F$6/1.0645) -> 317.6005637 | G40: =+'Compras (p)'!G$11*'GEN-502 Pot'!G40*G$7/('GEN-502 Pot'!G$6/1.0645) -> 340.325539 | H40: 2004.550968
A41: =+'GEN-502 Pot'!A41 -> Unión Eólica de Panamá (PE Nuevo Chagres) No. 15-12' | B41: =+'Compras (p)'!B$11*'GEN-502 Pot'!B41*B$7/('GEN-502 Pot'!B$6/1.0645) -> 761.1860985 | C41: =+'Compras (p)'!C$11*'GEN-502 Pot'!C41*C$7/('GEN-502 Pot'!C$6/1.0645) -> 637.5628737 | D41: =+'Compras (p)'!D$11*'GEN-502 Pot'!D41*D$7/('GEN-502 Pot'!D$6/1.0645) -> 0.7323894775 | E41: =+'Compras (p)'!E$11*'GEN-502 Pot'!E41*E$7/('GEN-502 Pot'!E$6/1.0645) -> 0.7583630374 | F41: =+'Compras (p)'!F$11*'GEN-502 Pot'!F41*F$7/('GEN-502 Pot'!F$6/1.0645) -> 0.7084935652 | G41: =+'Compras (p)'!G$11*'GEN-502 Pot'!G41*G$7/('GEN-502 Pot'!G$6/1.0645) -> 0.7591877409 | H41: =+SUM(B41:G41) -> 1401.707406
A42: =+'GEN-502 Pot'!A42 -> Unión Eólica de Panamá (PE Rosa de los Vientos) No. 16-12' | B42: =+'Compras (p)'!B$11*'GEN-502 Pot'!B42*B$7/('GEN-502 Pot'!B$6/1.0645) -> 0.7634635491 | C42: =+'Compras (p)'!C$11*'GEN-502 Pot'!C42*C$7/('GEN-502 Pot'!C$6/1.0645) -> 0.746817059 | D42: =+'Compras (p)'!D$11*'GEN-502 Pot'!D42*D$7/('GEN-502 Pot'!D$6/1.0645) -> 0.7323894775 | E42: =+'Compras (p)'!E$11*'GEN-502 Pot'!E42*E$7/('GEN-502 Pot'!E$6/1.0645) -> 0.7583630374 | F42: =+'Compras (p)'!F$11*'GEN-502 Pot'!F42*F$7/('GEN-502 Pot'!F$6/1.0645) -> 0.7084935652 | G42: =+'Compras (p)'!G$11*'GEN-502 Pot'!G42*G$7/('GEN-502 Pot'!G$6/1.0645) -> 0.7591877409 | H42: 4.468714429
A43: =+'GEN-502 Pot'!A43 -> Unión Eólica de Panamá (PE Portobelo Ballestillas) No. 17-12' | B43: =+'Compras (p)'!B$11*'GEN-502 Pot'!B43*B$7/('GEN-502 Pot'!B$6/1.0645) -> 0.7634635491 | C43: =+'Compras (p)'!C$11*'GEN-502 Pot'!C43*C$7/('GEN-502 Pot'!C$6/1.0645) -> 0.746817059 | D43: =+'Compras (p)'!D$11*'GEN-502 Pot'!D43*D$7/('GEN-502 Pot'!D$6/1.0645) -> 0.7323894775 | E43: =+'Compras (p)'!E$11*'GEN-502 Pot'!E43*E$7/('GEN-502 Pot'!E$6/1.0645) -> 0.7583630374 | F43: =+'Compras (p)'!F$11*'GEN-502 Pot'!F43*F$7/('GEN-502 Pot'!F$6/1.0645) -> 0.7084935652 | G43: =+'Compras (p)'!G$11*'GEN-502 Pot'!G43*G$7/('GEN-502 Pot'!G$6/1.0645) -> 0.7591877409 | H43: 4.468714429
A44: =+'GEN-502 Pot'!A44 -> Unión Eólica de Panamá (PE Marañon) No. 18-12' | B44: =+'Compras (p)'!B$11*'GEN-502 Pot'!B44*B$7/('GEN-502 Pot'!B$6/1.0645) -> 0.7634635491 | C44: =+'Compras (p)'!C$11*'GEN-502 Pot'!C44*C$7/('GEN-502 Pot'!C$6/1.0645) -> 0.746817059 | D44: =+'Compras (p)'!D$11*'GEN-502 Pot'!D44*D$7/('GEN-502 Pot'!D$6/1.0645) -> 0.7323894775 | E44: =+'Compras (p)'!E$11*'GEN-502 Pot'!E44*E$7/('GEN-502 Pot'!E$6/1.0645) -> 0.7583630374 | F44: =+'Compras (p)'!F$11*'GEN-502 Pot'!F44*F$7/('GEN-502 Pot'!F$6/1.0645) -> 0.7084935652 | G44: =+'Compras (p)'!G$11*'GEN-502 Pot'!G44*G$7/('GEN-502 Pot'!G$6/1.0645) -> 0.7591877409 | H44: 4.468714429
A45: =+'GEN-502 Pot'!A45 -> AES No. 117-12 | B45: =+'Compras (p)'!B$11*'GEN-502 Pot'!B45*B$7/('GEN-502 Pot'!B$6/1.0645) -> 27174.12632 | C45: =+'Compras (p)'!C$11*'GEN-502 Pot'!C45*C$7/('GEN-502 Pot'!C$6/1.0645) -> 27039.928 | D45: =+'Compras (p)'!D$11*'GEN-502 Pot'!D45*D$7/('GEN-502 Pot'!D$6/1.0645) -> 26517.55005 | E45: =+'Compras (p)'!E$11*'GEN-502 Pot'!E45*E$7/('GEN-502 Pot'!E$6/1.0645) -> 26992.58269 | F45: =+'Compras (p)'!F$11*'GEN-502 Pot'!F45*F$7/('GEN-502 Pot'!F$6/1.0645) -> 25652.35322 | G45: =+'Compras (p)'!G$11*'GEN-502 Pot'!G45*G$7/('GEN-502 Pot'!G$6/1.0645) -> 27487.832 | H45: 160864.3723
A46: =+'GEN-502 Pot'!A46 -> HIDRO PIEDRA No. 118-12 | B46: =+'Compras (p)'!B$11*'GEN-502 Pot'!B46*B$7/('GEN-502 Pot'!B$6/1.0645) -> 138.6656846 | C46: =+'Compras (p)'!C$11*'GEN-502 Pot'!C46*C$7/('GEN-502 Pot'!C$6/1.0645) -> 137.9808897 | D46: =+'Compras (p)'!D$11*'GEN-502 Pot'!D46*D$7/('GEN-502 Pot'!D$6/1.0645) -> 135.3152697 | E46: =+'Compras (p)'!E$11*'GEN-502 Pot'!E46*E$7/('GEN-502 Pot'!E$6/1.0645) -> 137.7392934 | F46: =+'Compras (p)'!F$11*'GEN-502 Pot'!F46*F$7/('GEN-502 Pot'!F$6/1.0645) -> 130.9002939 | G46: =+'Compras (p)'!G$11*'GEN-502 Pot'!G46*G$7/('GEN-502 Pot'!G$6/1.0645) -> 140.2664799 | H46: 820.8679111
A47: =+'GEN-502 Pot'!A47 -> Corp. Energ. Del Istmo No. 119-12 | B47: =+'Compras (p)'!B$11*'GEN-502 Pot'!B47*B$7/('GEN-502 Pot'!B$6/1.0645) -> 684.0115797 | C47: =+'Compras (p)'!C$11*'GEN-502 Pot'!C47*C$7/('GEN-502 Pot'!C$6/1.0645) -> 680.6336162 | D47: =+'Compras (p)'!D$11*'GEN-502 Pot'!D47*D$7/('GEN-502 Pot'!D$6/1.0645) -> 667.4846169 | E47: =+'Compras (p)'!E$11*'GEN-502 Pot'!E47*E$7/('GEN-502 Pot'!E$6/1.0645) -> 679.4418671 | F47: =+'Compras (p)'!F$11*'GEN-502 Pot'!F47*F$7/('GEN-502 Pot'!F$6/1.0645) -> 645.7063768 | G47: =+'Compras (p)'!G$11*'GEN-502 Pot'!G47*G$7/('GEN-502 Pot'!G$6/1.0645) -> 691.9079997 | H47: 4049.186056
A48: =+'GEN-502 Pot'!A48 -> Saltos del Francolí No. 121-12 | B48: =+'Compras (p)'!B$11*'GEN-502 Pot'!B48*B$7/('GEN-502 Pot'!B$6/1.0645) -> 71.55853265 | C48: =+'Compras (p)'!C$11*'GEN-502 Pot'!C48*C$7/('GEN-502 Pot'!C$6/1.0645) -> 71.20514373 | D48: =+'Compras (p)'!D$11*'GEN-502 Pot'!D48*D$7/('GEN-502 Pot'!D$6/1.0645) -> 69.82954846 | E48: =+'Compras (p)'!E$11*'GEN-502 Pot'!E48*E$7/('GEN-502 Pot'!E$6/1.0645) -> 71.08046775 | F48: =+'Compras (p)'!F$11*'GEN-502 Pot'!F48*F$7/('GEN-502 Pot'!F$6/1.0645) -> 67.55119682 | G48: =+'Compras (p)'!G$11*'GEN-502 Pot'!G48*G$7/('GEN-502 Pot'!G$6/1.0645) -> 72.38462426 | H48: 423.6095137
A49: =+'GEN-502 Pot'!A49 -> ISTMUS HYDRO POWER CORP. No.02-13 | B49: =+'Compras (p)'!B$11*'GEN-502 Pot'!B49*B$7/('GEN-502 Pot'!B$6/1.0645) -> 298.5142477 | C49: =+'Compras (p)'!C$11*'GEN-502 Pot'!C49*C$7/('GEN-502 Pot'!C$6/1.0645) -> 282.9535323 | D49: =+'Compras (p)'!D$11*'GEN-502 Pot'!D49*D$7/('GEN-502 Pot'!D$6/1.0645) -> 293.5997887 | E49: =+'Compras (p)'!E$11*'GEN-502 Pot'!E49*E$7/('GEN-502 Pot'!E$6/1.0645) -> 268.7175875 | F49: =+'Compras (p)'!F$11*'GEN-502 Pot'!F49*F$7/('GEN-502 Pot'!F$6/1.0645) -> 251.8694624 | G49: =+'Compras (p)'!G$11*'GEN-502 Pot'!G49*G$7/('GEN-502 Pot'!G$6/1.0645) -> 273.4777495 | H49: =+SUM(B49:G49) -> 1669.132368
A50: =+'GEN-502 Pot'!A50 -> CALDERA ENERGY CORP. No.03-13 | B50: =+'Compras (p)'!B$11*'GEN-502 Pot'!B50*B$7/('GEN-502 Pot'!B$6/1.0645) -> 337.73557 | C50: =+'Compras (p)'!C$11*'GEN-502 Pot'!C50*C$7/('GEN-502 Pot'!C$6/1.0645) -> 597.4536472 | D50: =+'Compras (p)'!D$11*'GEN-502 Pot'!D50*D$7/('GEN-502 Pot'!D$6/1.0645) -> 707.7660382 | E50: =+'Compras (p)'!E$11*'GEN-502 Pot'!E50*E$7/('GEN-502 Pot'!E$6/1.0645) -> 969.1622546 | F50: =+'Compras (p)'!F$11*'GEN-502 Pot'!F50*F$7/('GEN-502 Pot'!F$6/1.0645) -> 591.8364351 | G50: =+'Compras (p)'!G$11*'GEN-502 Pot'!G50*G$7/('GEN-502 Pot'!G$6/1.0645) -> 189.7969352 | H50: 3393.75088
A51: =+'GEN-502 Pot'!A51 -> ELECTROGENERADORA DEL ISTMO, S.A. No.04-13 | B51: =+'Compras (p)'!B$11*'GEN-502 Pot'!B51*B$7/('GEN-502 Pot'!B$6/1.0645) -> 112.5785233 | C51: =+'Compras (p)'!C$11*'GEN-502 Pot'!C51*C$7/('GEN-502 Pot'!C$6/1.0645) -> 186.7042647 | D51: =+'Compras (p)'!D$11*'GEN-502 Pot'!D51*D$7/('GEN-502 Pot'!D$6/1.0645) -> 279.3813309 | E51: =+'Compras (p)'!E$11*'GEN-502 Pot'!E51*E$7/('GEN-502 Pot'!E$6/1.0645) -> 335.479242 | F51: =+'Compras (p)'!F$11*'GEN-502 Pot'!F51*F$7/('GEN-502 Pot'!F$6/1.0645) -> 226.2904016 | G51: =+'Compras (p)'!G$11*'GEN-502 Pot'!G51*G$7/('GEN-502 Pot'!G$6/1.0645) -> 94.89846762 | H51: 1235.33223
A52: =+'GEN-502 Pot'!A52 -> FOUNTAIN INTERTRADE CORP. No.05-13 | B52: =+'Compras (p)'!B$11*'GEN-502 Pot'!B52*B$7/('GEN-502 Pot'!B$6/1.0645) -> 1420.624504 | C52: =+'Compras (p)'!C$11*'GEN-502 Pot'!C52*C$7/('GEN-502 Pot'!C$6/1.0645) -> 1575.629481 | D52: =+'Compras (p)'!D$11*'GEN-502 Pot'!D52*D$7/('GEN-502 Pot'!D$6/1.0645) -> 2277.478727 | E52: =+'Compras (p)'!E$11*'GEN-502 Pot'!E52*E$7/('GEN-502 Pot'!E$6/1.0645) -> 3138.273346 | F52: =+'Compras (p)'!F$11*'GEN-502 Pot'!F52*F$7/('GEN-502 Pot'!F$6/1.0645) -> 1931.69549 | G52: =+'Compras (p)'!G$11*'GEN-502 Pot'!G52*G$7/('GEN-502 Pot'!G$6/1.0645) -> 1177.971406 | H52: 11521.67295
A53: =+'GEN-502 Pot'!A53 -> HIDROIBERICA, S.A. No.06-13 | B53: =+'Compras (p)'!B$11*'GEN-502 Pot'!B53*B$7/('GEN-502 Pot'!B$6/1.0645) -> 30.77146305 | C53: =+'Compras (p)'!C$11*'GEN-502 Pot'!C53*C$7/('GEN-502 Pot'!C$6/1.0645) -> 49.28992589 | D53: =+'Compras (p)'!D$11*'GEN-502 Pot'!D53*D$7/('GEN-502 Pot'!D$6/1.0645) -> 59.60135058 | E53: =+'Compras (p)'!E$11*'GEN-502 Pot'!E53*E$7/('GEN-502 Pot'!E$6/1.0645) -> 75.29645209 | F53: =+'Compras (p)'!F$11*'GEN-502 Pot'!F53*F$7/('GEN-502 Pot'!F$6/1.0645) -> 64.75386878 | G53: =+'Compras (p)'!G$11*'GEN-502 Pot'!G53*G$7/('GEN-502 Pot'!G$6/1.0645) -> 65.29014572 | H53: 345.0032061
A54: =+'GEN-502 Pot'!A54 -> NAVITAS INTERNACIONAL, S.A. No.07-13 | B54: =+'Compras (p)'!B$11*'GEN-502 Pot'!B54*B$7/('GEN-502 Pot'!B$6/1.0645) -> 299.7047332 | C54: =+'Compras (p)'!C$11*'GEN-502 Pot'!C54*C$7/('GEN-502 Pot'!C$6/1.0645) -> 315.9036159 | D54: =+'Compras (p)'!D$11*'GEN-502 Pot'!D54*D$7/('GEN-502 Pot'!D$6/1.0645) -> 383.5826752 | E54: =+'Compras (p)'!E$11*'GEN-502 Pot'!E54*E$7/('GEN-502 Pot'!E$6/1.0645) -> 394.6187053 | F54: =+'Compras (p)'!F$11*'GEN-502 Pot'!F54*F$7/('GEN-502 Pot'!F$6/1.0645) -> 321.3751243 | G54: =+'Compras (p)'!G$11*'GEN-502 Pot'!G54*G$7/('GEN-502 Pot'!G$6/1.0645) -> 259.2626135 | H54: 1974.447467
A55: =+'GEN-502 Pot'!A55 -> HIDROECOLÓGICA DEL TERIBE, S.A. No.08-13 | B55: =+'Compras (p)'!B$11*'GEN-502 Pot'!B55*B$7/('GEN-502 Pot'!B$6/1.0645) -> 0 | C55: =+'Compras (p)'!C$11*'GEN-502 Pot'!C55*C$7/('GEN-502 Pot'!C$6/1.0645) -> 0 | D55: =+'Compras (p)'!D$11*'GEN-502 Pot'!D55*D$7/('GEN-502 Pot'!D$6/1.0645) -> 74.50168823 | E55: =+'Compras (p)'!E$11*'GEN-502 Pot'!E55*E$7/('GEN-502 Pot'!E$6/1.0645) -> 372.7547133 | F55: =+'Compras (p)'!F$11*'GEN-502 Pot'!F55*F$7/('GEN-502 Pot'!F$6/1.0645) -> 139.2556318 | G55: =+'Compras (p)'!G$11*'GEN-502 Pot'!G55*G$7/('GEN-502 Pot'!G$6/1.0645) -> 151.8375482 | H55: 738.3495815
A56: =+'GEN-502 Pot'!A56 -> HIDRONORTH CORP. No.09-13 | B56: =+'Compras (p)'!B$11*'GEN-502 Pot'!B56*B$7/('GEN-502 Pot'!B$6/1.0645) -> 36.02512747 | C56: =+'Compras (p)'!C$11*'GEN-502 Pot'!C56*C$7/('GEN-502 Pot'!C$6/1.0645) -> 41.8217553 | D56: =+'Compras (p)'!D$11*'GEN-502 Pot'!D56*D$7/('GEN-502 Pot'!D$6/1.0645) -> 50.661148 | E56: =+'Compras (p)'!E$11*'GEN-502 Pot'!E56*E$7/('GEN-502 Pot'!E$6/1.0645) -> 50.69464101 | F56: =+'Compras (p)'!F$11*'GEN-502 Pot'!F56*F$7/('GEN-502 Pot'!F$6/1.0645) -> 46.65063665 | G56: =+'Compras (p)'!G$11*'GEN-502 Pot'!G56*G$7/('GEN-502 Pot'!G$6/1.0645) -> 37.95938705 | H56: 263.8126955
A57: =+'GEN-502 Pot'!A57 -> EMPRESA NACIONAL DE ENERGÍA, S.A. No.24-13 | B57: =+'Compras (p)'!B$11*'GEN-502 Pot'!B57*B$7/('GEN-502 Pot'!B$6/1.0645) -> 144.1005099 | C57: =+'Compras (p)'!C$11*'GEN-502 Pot'!C57*C$7/('GEN-502 Pot'!C$6/1.0645) -> 244.2091783 | D57: =+'Compras (p)'!D$11*'GEN-502 Pot'!D57*D$7/('GEN-502 Pot'!D$6/1.0645) -> 243.6205205 | E57: =+'Compras (p)'!E$11*'GEN-502 Pot'!E57*E$7/('GEN-502 Pot'!E$6/1.0645) -> 182.8297601 | F57: =+'Compras (p)'!F$11*'GEN-502 Pot'!F57*F$7/('GEN-502 Pot'!F$6/1.0645) -> 227.682958 | G57: =+'Compras (p)'!G$11*'GEN-502 Pot'!G57*G$7/('GEN-502 Pot'!G$6/1.0645) -> 164.7437398 | H57: 1207.186666
A58: =+'GEN-502 Pot'!A58 -> FUERZA ELÉCTRICA DEL ISTMO, S.A. No.25-13 | B58: =+'Compras (p)'!B$11*'GEN-502 Pot'!B58*B$7/('GEN-502 Pot'!B$6/1.0645) -> 56.28926167 | C58: =+'Compras (p)'!C$11*'GEN-502 Pot'!C58*C$7/('GEN-502 Pot'!C$6/1.0645) -> 56.01127942 | D58: =+'Compras (p)'!D$11*'GEN-502 Pot'!D58*D$7/('GEN-502 Pot'!D$6/1.0645) -> 55.87626617 | E58: =+'Compras (p)'!E$11*'GEN-502 Pot'!E58*E$7/('GEN-502 Pot'!E$6/1.0645) -> 41.92847844 | F58: =+'Compras (p)'!F$11*'GEN-502 Pot'!F58*F$7/('GEN-502 Pot'!F$6/1.0645) -> 52.22086192 | G58: =+'Compras (p)'!G$11*'GEN-502 Pot'!G58*G$7/('GEN-502 Pot'!G$6/1.0645) -> 56.93908057 | H58: 319.2652282
A59: =+'GEN-502 Pot'!A59 -> CAFÉ DE ELETA, S.A. No.26-13 | B59: =+'Compras (p)'!B$11*'GEN-502 Pot'!B59*B$7/('GEN-502 Pot'!B$6/1.0645) -> 17.26333425 | C59: =+'Compras (p)'!C$11*'GEN-502 Pot'!C59*C$7/('GEN-502 Pot'!C$6/1.0645) -> 18.29701794 | D59: =+'Compras (p)'!D$11*'GEN-502 Pot'!D59*D$7/('GEN-502 Pot'!D$6/1.0645) -> 17.60765323 | E59: =+'Compras (p)'!E$11*'GEN-502 Pot'!E59*E$7/('GEN-502 Pot'!E$6/1.0645) -> 18.06317926 | F59: =+'Compras (p)'!F$11*'GEN-502 Pot'!F59*F$7/('GEN-502 Pot'!F$6/1.0645) -> 25.47156521 | G59: =+'Compras (p)'!G$11*'GEN-502 Pot'!G59*G$7/('GEN-502 Pot'!G$6/1.0645) -> 20.68917488 | H59: 117.3919248
A60: =+'GEN-502 Pot'!A60 -> ENERGÍA Y SERVICIOS DE PANAMÁ, S.A. No.27-13 | B60: =+'Compras (p)'!B$11*'GEN-502 Pot'!B60*B$7/('GEN-502 Pot'!B$6/1.0645) -> 835.9020058 | C60: =+'Compras (p)'!C$11*'GEN-502 Pot'!C60*C$7/('GEN-502 Pot'!C$6/1.0645) -> 996.4252095 | D60: =+'Compras (p)'!D$11*'GEN-502 Pot'!D60*D$7/('GEN-502 Pot'!D$6/1.0645) -> 1023.859023 | E60: =+'Compras (p)'!E$11*'GEN-502 Pot'!E60*E$7/('GEN-502 Pot'!E$6/1.0645) -> 911.9713987 | F60: =+'Compras (p)'!F$11*'GEN-502 Pot'!F60*F$7/('GEN-502 Pot'!F$6/1.0645) -> 1125.15008 | G60: =+'Compras (p)'!G$11*'GEN-502 Pot'!G60*G$7/('GEN-502 Pot'!G$6/1.0645) -> 757.6235524 | H60: 5650.93127
A61: =+'GEN-502 Pot'!A61 -> GENERADORA PEDREGALITO, S.A. No.28-13 | B61: =+'Compras (p)'!B$11*'GEN-502 Pot'!B61*B$7/('GEN-502 Pot'!B$6/1.0645) -> 347.2659243 | C61: =+'Compras (p)'!C$11*'GEN-502 Pot'!C61*C$7/('GEN-502 Pot'!C$6/1.0645) -> 442.6384708 | D61: =+'Compras (p)'!D$11*'GEN-502 Pot'!D61*D$7/('GEN-502 Pot'!D$6/1.0645) -> 441.6460078 | E61: =+'Compras (p)'!E$11*'GEN-502 Pot'!E61*E$7/('GEN-502 Pot'!E$6/1.0645) -> 523.9067496 | F61: =+'Compras (p)'!F$11*'GEN-502 Pot'!F61*F$7/('GEN-502 Pot'!F$6/1.0645) -> 502.0861804 | G61: =+'Compras (p)'!G$11*'GEN-502 Pot'!G61*G$7/('GEN-502 Pot'!G$6/1.0645) -> 257.0609691 | H61: 2514.604302
A62: =+'GEN-502 Pot'!A62 -> GENERADORA RIO CHICO, S.A. No.29-13 | B62: =+'Compras (p)'!B$11*'GEN-502 Pot'!B62*B$7/('GEN-502 Pot'!B$6/1.0645) -> 214.1243514 | C62: =+'Compras (p)'!C$11*'GEN-502 Pot'!C62*C$7/('GEN-502 Pot'!C$6/1.0645) -> 272.7968203 | D62: =+'Compras (p)'!D$11*'GEN-502 Pot'!D62*D$7/('GEN-502 Pot'!D$6/1.0645) -> 272.0612243 | E62: =+'Compras (p)'!E$11*'GEN-502 Pot'!E62*E$7/('GEN-502 Pot'!E$6/1.0645) -> 322.646197 | F62: =+'Compras (p)'!F$11*'GEN-502 Pot'!F62*F$7/('GEN-502 Pot'!F$6/1.0645) -> 309.3075244 | G62: =+'Compras (p)'!G$11*'GEN-502 Pot'!G62*G$7/('GEN-502 Pot'!G$6/1.0645) -> 158.6466769 | H62: 1549.582794
A63: =+'GEN-502 Pot'!A63 -> GENERADORA ALTO VALLE, S.A. No.30-13 | B63: =+'Compras (p)'!B$11*'GEN-502 Pot'!B63*B$7/('GEN-502 Pot'!B$6/1.0645) -> 305.897846 | C63: =+'Compras (p)'!C$11*'GEN-502 Pot'!C63*C$7/('GEN-502 Pot'!C$6/1.0645) -> 398.5595254 | D63: =+'Compras (p)'!D$11*'GEN-502 Pot'!D63*D$7/('GEN-502 Pot'!D$6/1.0645) -> 399.34799 | E63: =+'Compras (p)'!E$11*'GEN-502 Pot'!E63*E$7/('GEN-502 Pot'!E$6/1.0645) -> 427.388986 | F63: =+'Compras (p)'!F$11*'GEN-502 Pot'!F63*F$7/('GEN-502 Pot'!F$6/1.0645) -> 360.7343849 | G63: =+'Compras (p)'!G$11*'GEN-502 Pot'!G63*G$7/('GEN-502 Pot'!G$6/1.0645) -> 198.5498463 | H63: 2090.478579
A64: =+'GEN-502 Pot'!A64 -> HYDRO CAISÁN, S.A. No.31-13 | B64: =+'Compras (p)'!B$11*'GEN-502 Pot'!B64*B$7/('GEN-502 Pot'!B$6/1.0645) -> 760.1897138 | C64: =+'Compras (p)'!C$11*'GEN-502 Pot'!C64*C$7/('GEN-502 Pot'!C$6/1.0645) -> 1306.578334 | D64: =+'Compras (p)'!D$11*'GEN-502 Pot'!D64*D$7/('GEN-502 Pot'!D$6/1.0645) -> 1569.144456 | E64: =+'Compras (p)'!E$11*'GEN-502 Pot'!E64*E$7/('GEN-502 Pot'!E$6/1.0645) -> 666.0766826 | F64: =+'Compras (p)'!F$11*'GEN-502 Pot'!F64*F$7/('GEN-502 Pot'!F$6/1.0645) -> 1366.183256 | G64: =+'Compras (p)'!G$11*'GEN-502 Pot'!G64*G$7/('GEN-502 Pot'!G$6/1.0645) -> 411.4038368 | H64: 6079.576279
A65: =+'GEN-502 Pot'!A65 -> FERSA PANAMÁ, S.A. No 05-14 | B65: =+'Compras (p)'!B$11*'GEN-502 Pot'!B65*B$7/('GEN-502 Pot'!B$6/1.0645) -> 908.3922228 | C65: =+'Compras (p)'!C$11*'GEN-502 Pot'!C65*C$7/('GEN-502 Pot'!C$6/1.0645) -> 772.5693713 | D65: =+'Compras (p)'!D$11*'GEN-502 Pot'!D65*D$7/('GEN-502 Pot'!D$6/1.0645) -> 1007.666902 | E65: =+'Compras (p)'!E$11*'GEN-502 Pot'!E65*E$7/('GEN-502 Pot'!E$6/1.0645) -> 895.896673 | F65: =+'Compras (p)'!F$11*'GEN-502 Pot'!F65*F$7/('GEN-502 Pot'!F$6/1.0645) -> 1352.245477 | G65: =+'Compras (p)'!G$11*'GEN-502 Pot'!G65*G$7/('GEN-502 Pot'!G$6/1.0645) -> 2460.815436 | H65: 7397.586082
A66: =+'GEN-502 Pot'!A66 -> Panama Solar2 No. 07-15 | B66: =+'Compras (p)'!B$11*'GEN-502 Pot'!B66*B$7/('GEN-502 Pot'!B$6/1.0645) -> 327.3835219 | C66: =+'Compras (p)'!C$11*'GEN-502 Pot'!C66*C$7/('GEN-502 Pot'!C$6/1.0645) -> 314.178211 | D66: =+'Compras (p)'!D$11*'GEN-502 Pot'!D66*D$7/('GEN-502 Pot'!D$6/1.0645) -> 313.1596387 | E66: =+'Compras (p)'!E$11*'GEN-502 Pot'!E66*E$7/('GEN-502 Pot'!E$6/1.0645) -> 314.9134647 | F66: =+'Compras (p)'!F$11*'GEN-502 Pot'!F66*F$7/('GEN-502 Pot'!F$6/1.0645) -> 357.9114045 | G66: =+'Compras (p)'!G$11*'GEN-502 Pot'!G66*G$7/('GEN-502 Pot'!G$6/1.0645) -> 469.9110327 | H66: 2097.457273
A67: =+'GEN-502 Pot'!A67 -> Solpac Investment No. 08-15 | B67: =+'Compras (p)'!B$11*'GEN-502 Pot'!B67*B$7/('GEN-502 Pot'!B$6/1.0645) -> 55.64225866 | C67: =+'Compras (p)'!C$11*'GEN-502 Pot'!C67*C$7/('GEN-502 Pot'!C$6/1.0645) -> 54.07985599 | D67: =+'Compras (p)'!D$11*'GEN-502 Pot'!D67*D$7/('GEN-502 Pot'!D$6/1.0645) -> 54.29784058 | E67: =+'Compras (p)'!E$11*'GEN-502 Pot'!E67*E$7/('GEN-502 Pot'!E$6/1.0645) -> 55.27052646 | F67: =+'Compras (p)'!F$11*'GEN-502 Pot'!F67*F$7/('GEN-502 Pot'!F$6/1.0645) -> 54.96932833 | G67: =+'Compras (p)'!G$11*'GEN-502 Pot'!G67*G$7/('GEN-502 Pot'!G$6/1.0645) -> 69.37405219 | H67: 343.6338622
A68: =+'GEN-502 Pot'!A68 -> GAS NATURAL ATLÁNTICO No. 16-15 | B68: =+'Compras (p)'!B$11*'GEN-502 Pot'!B68*B$7/('GEN-502 Pot'!B$6/1.0645) -> 25362.5179 | C68: =+'Compras (p)'!C$11*'GEN-502 Pot'!C68*C$7/('GEN-502 Pot'!C$6/1.0645) -> 25237.26613 | D68: =+'Compras (p)'!D$11*'GEN-502 Pot'!D68*D$7/('GEN-502 Pot'!D$6/1.0645) -> 24749.71338 | E68: =+'Compras (p)'!E$11*'GEN-502 Pot'!E68*E$7/('GEN-502 Pot'!E$6/1.0645) -> 25193.07718 | F68: =+'Compras (p)'!F$11*'GEN-502 Pot'!F68*F$7/('GEN-502 Pot'!F$6/1.0645) -> 23942.19634 | G68: =+'Compras (p)'!G$11*'GEN-502 Pot'!G68*G$7/('GEN-502 Pot'!G$6/1.0645) -> 25655.30987 | H68: 150140.0808
A69: =+'GEN-502 Pot'!A69 -> MARTANO INC No. 18-15 | B69: =+'Compras (p)'!B$11*'GEN-502 Pot'!B69*B$7/('GEN-502 Pot'!B$6/1.0645) -> 25362.5179 | C69: =+'Compras (p)'!C$11*'GEN-502 Pot'!C69*C$7/('GEN-502 Pot'!C$6/1.0645) -> 25237.26613 | D69: =+'Compras (p)'!D$11*'GEN-502 Pot'!D69*D$7/('GEN-502 Pot'!D$6/1.0645) -> 24749.71338 | E69: =+'Compras (p)'!E$11*'GEN-502 Pot'!E69*E$7/('GEN-502 Pot'!E$6/1.0645) -> 25193.07718 | F69: =+'Compras (p)'!F$11*'GEN-502 Pot'!F69*F$7/('GEN-502 Pot'!F$6/1.0645) -> 23942.19634 | G69: =+'Compras (p)'!G$11*'GEN-502 Pot'!G69*G$7/('GEN-502 Pot'!G$6/1.0645) -> 25655.30987 | H69: 150140.0808
A70: =+'GEN-502 Pot'!A70 -> AUTORIDAD DEL CANAL DE PANAMÁ No. 27-21 | H70: =+SUM(B70:G70) -> 0
A71: =+'GEN-502 Pot'!A71 -> GENERADORA DEL ATLÁNTICO, S.A. No. 29-21 | H71: 0
A72: =+'GEN-502 Pot'!A72 -> GENERADORA DEL ATLÁNTICO, S.A. No. 30-21 | H72: 0
A73: =+'GEN-502 Pot'!A73 -> PANAM GENERATING LTD No. 31-21 | H73: 0
A74: =+'GEN-502 Pot'!A74 -> TROPITÉRMICA, S.A. No. 33-21 | H74: 0
A75: =+'GEN-502 Pot'!A75 -> EMPRESA NACIONAL DE ENERGÍA, S.A. No. 02-23 | B75: =+'Compras (p)'!B$11*'GEN-502 Pot'!B75*B$7/('GEN-502 Pot'!B$6/1.0645) -> 25.05195646 | C75: =+'Compras (p)'!C$11*'GEN-502 Pot'!C75*C$7/('GEN-502 Pot'!C$6/1.0645) -> 0 | D75: =+'Compras (p)'!D$11*'GEN-502 Pot'!D75*D$7/('GEN-502 Pot'!D$6/1.0645) -> 8.536125635 | E75: =+'Compras (p)'!E$11*'GEN-502 Pot'!E75*E$7/('GEN-502 Pot'!E$6/1.0645) -> 35.63020915 | F75: =+'Compras (p)'!F$11*'GEN-502 Pot'!F75*F$7/('GEN-502 Pot'!F$6/1.0645) -> 2.528589103 | G75: =+'Compras (p)'!G$11*'GEN-502 Pot'!G75*G$7/('GEN-502 Pot'!G$6/1.0645) -> 0 | H75: 71.74688034
A76: =+'GEN-502 Pot'!A76 -> FOUNTAIN HYDRO POWER CORP No. 03-23 | B76: =+'Compras (p)'!B$11*'GEN-502 Pot'!B76*B$7/('GEN-502 Pot'!B$6/1.0645) -> 292.341839 | C76: =+'Compras (p)'!C$11*'GEN-502 Pot'!C76*C$7/('GEN-502 Pot'!C$6/1.0645) -> 0 | D76: =+'Compras (p)'!D$11*'GEN-502 Pot'!D76*D$7/('GEN-502 Pot'!D$6/1.0645) -> 0 | E76: =+'Compras (p)'!E$11*'GEN-502 Pot'!E76*E$7/('GEN-502 Pot'!E$6/1.0645) -> 0 | F76: =+'Compras (p)'!F$11*'GEN-502 Pot'!F76*F$7/('GEN-502 Pot'!F$6/1.0645) -> 0 | G76: =+'Compras (p)'!G$11*'GEN-502 Pot'!G76*G$7/('GEN-502 Pot'!G$6/1.0645) -> 0 | H76: 292.341839
A77: =+'GEN-502 Pot'!A77 -> GENERADORA DEL ISTMO, S.A. No. 04-23 | B77: =+'Compras (p)'!B$11*'GEN-502 Pot'!B77*B$7/('GEN-502 Pot'!B$6/1.0645) -> 124.2245775 | H77: 124.2245775
A78: =+'GEN-502 Pot'!A78 -> HIDRO BOQUERÓN, S.A. No. 05-23 | B78: =+'Compras (p)'!B$11*'GEN-502 Pot'!B78*B$7/('GEN-502 Pot'!B$6/1.0645) -> 15.13469436 | C78: =+'Compras (p)'!C$11*'GEN-502 Pot'!C78*C$7/('GEN-502 Pot'!C$6/1.0645) -> 13.13367931 | D78: =+'Compras (p)'!D$11*'GEN-502 Pot'!D78*D$7/('GEN-502 Pot'!D$6/1.0645) -> 13.33453945 | E78: =+'Compras (p)'!E$11*'GEN-502 Pot'!E78*E$7/('GEN-502 Pot'!E$6/1.0645) -> 25.84089916 | F78: =+'Compras (p)'!F$11*'GEN-502 Pot'!F78*F$7/('GEN-502 Pot'!F$6/1.0645) -> 6.526691584 | G78: =+'Compras (p)'!G$11*'GEN-502 Pot'!G78*G$7/('GEN-502 Pot'!G$6/1.0645) -> 0 | H78: 73.97050387
A79: =+'GEN-502 Pot'!A79 -> HIDROIBÉRICA No. 06-23 | B79: =+'Compras (p)'!B$11*'GEN-502 Pot'!B79*B$7/('GEN-502 Pot'!B$6/1.0645) -> 7.994369163 | C79: =+'Compras (p)'!C$11*'GEN-502 Pot'!C79*C$7/('GEN-502 Pot'!C$6/1.0645) -> 9.825794788 | D79: =+'Compras (p)'!D$11*'GEN-502 Pot'!D79*D$7/('GEN-502 Pot'!D$6/1.0645) -> 2.975016567 | E79: =+'Compras (p)'!E$11*'GEN-502 Pot'!E79*E$7/('GEN-502 Pot'!E$6/1.0645) -> 3.857368602 | F79: =+'Compras (p)'!F$11*'GEN-502 Pot'!F79*F$7/('GEN-502 Pot'!F$6/1.0645) -> 1.914154167 | G79: =+'Compras (p)'!G$11*'GEN-502 Pot'!G79*G$7/('GEN-502 Pot'!G$6/1.0645) -> 9.616814367 | H79: 36.18351765
A80: =+'GEN-502 Pot'!A80 -> IDEAL PANAMÁ, S.A. No. 08-23 | B80: =+'Compras (p)'!B$11*'GEN-502 Pot'!B80*B$7/('GEN-502 Pot'!B$6/1.0645) -> 207.0409625 | H80: 207.0409625
A81: =+'GEN-502 Pot'!A81 -> SOLAR BOQUERÓN, S.A. No. 12-23 | B81: =+'Compras (p)'!B$11*'GEN-502 Pot'!B81*B$7/('GEN-502 Pot'!B$6/1.0645) -> 5.031095388 | C81: =+'Compras (p)'!C$11*'GEN-502 Pot'!C81*C$7/('GEN-502 Pot'!C$6/1.0645) -> 5.253471725 | D81: =+'Compras (p)'!D$11*'GEN-502 Pot'!D81*D$7/('GEN-502 Pot'!D$6/1.0645) -> 1.272842402 | E81: =+'Compras (p)'!E$11*'GEN-502 Pot'!E81*E$7/('GEN-502 Pot'!E$6/1.0645) -> 2.123416505 | F81: =+'Compras (p)'!F$11*'GEN-502 Pot'!F81*F$7/('GEN-502 Pot'!F$6/1.0645) -> 0.9637955568 | G81: =+'Compras (p)'!G$11*'GEN-502 Pot'!G81*G$7/('GEN-502 Pot'!G$6/1.0645) -> 4.233126128 | H81: 18.8777477
A82: =+'GEN-502 Pot'!A82 -> AUTORIDAD DEL CANAL DE PANAMÁ No. 13-23 | H82: 0
A83: =+'GEN-502 Pot'!A83 -> CELSIA CENTROAMÉRICA, S.A. No. 14-23 | H83: 0
A84: =+'GEN-502 Pot'!A84 -> GENERADORA DEL ATLÁNTICO, S.A. No. 15-23 | H84: 0
A85: =+'GEN-502 Pot'!A85 -> GENERADORA DEL ATLÁNTICO, S.A. No. 16-23 | H85: 0
A86: =+'GEN-502 Pot'!A86 -> PEDREGAL POWER, S. DE R.L. No. 17-23 | H86: 0
A87: =+'GEN-502 Pot'!A87 -> PANAM GENERATING LTD No. 18-23 | H87: 0
A88: =+'GEN-502 Pot'!A88 -> PANAM GENERATING LTD No. 19-23 | H88: 0
A89: =+'GEN-502 Pot'!A89 -> SPARKLE POWER, S.A. No. 20-23 | H89: 0
A90: =+'GEN-502 Pot'!A90 -> TROPITÉRMICA, S.A. No. 21-23 | H90: 0

Sheet GEN-502 Gen_FP
A1: INFORMACION PARA ACTUALIZAR: CARGO POR GENERACION
A2: =+'Compras (p)'!A2 -> EDEMET
A3: Porción de Compra Mensual de Energía en Horas Fuera de Punta para atender Clientes Regulados (MWh)
B4: ESTIMACION DE COMPRA DE ENERGIA HORAS FUERA DE PUNTA
A5: Detalle | B5: 2023-07-01 | C5: 2023-08-01 | D5: 2023-09-01 | E5: 2023-10-01 | F5: 2023-11-01 | G5: 2023-12-01 | H5: Total
A7: Generación Fuera de Punta | B7: 0.7267616272 | C7: 0.7267616272 | D7: 0.7267616272 | E7: 0.7267616272 | F7: 0.7267616272 | G7: 0.7267616272
A8: Total Compra de Energía en Horas de F.Punta | B8: =+B9+B15 -> 266818.4983 | C8: 272591.7438 | D8: 263649.8697 | E8: 268372.8661 | F8: 252105.3609 | G8: 273493.1014 | H8: =+SUM(B8:G8) -> 1597031.44
A9: Generación Propia | B9: 0 | C9: 0 | D9: 0 | E9: 0 | F9: 0 | G9: 0 | H9: 0
A10: 0 | H10: 0
A11: 0 | H11: 0
A12: 0 | H12: 0
A13: 0 | H13: 0
A14: 0 | H14: 0
A15: Sub-Total Mercado Mayorista | B15: =+SUM(B16:B24) -> 266818.4983 | C15: 272591.7438 | D15: 263649.8697 | E15: 268372.8661 | F15: 252105.3609 | G15: 273493.1014 | H15: 1597031.44
A16: Mercado Ocasional | B16: =+('Compras (p)'!B11)*B7-B24 -> -2374.380393 | C16: =+('Compras (p)'!C11)*C7-C24 -> 2924.299233 | D16: =+('Compras (p)'!D11)*D7-D24 -> -3815.83397 | E16: =+('Compras (p)'!E11)*E7-E24 -> -4743.006698 | F16: =+('Compras (p)'!F11)*F7-F24 -> -6847.147297 | G16: =+('Compras (p)'!G11)*G7-G24 -> 3197.733376 | H16: -11658.33575
H17: 0
H18: 0
H19: 0
H20: 0
H21: 0
H22: 0
H23: 0
A24: Sub-Total Contratros | B24: =SUM(B25:B107) -> 269192.8787 | C24: 269667.4446 | D24: 267465.7037 | E24: 273115.8728 | F24: 258952.5082 | G24: 270295.368 | H24: 1608689.776
A25: =+'GEN-502 Pot'!A25 -> Hydro Caisan No. 05-08 (17,048) | B25: =+'Compras (p)'!B$11*'GEN-502 Pot'!B25*B$7/('GEN-502 Pot'!B$6/1.0645) -> 5867.593655 | C25: =+'Compras (p)'!C$11*'GEN-502 Pot'!C25*C$7/('GEN-502 Pot'!C$6/1.0645) -> 5838.61678 | D25: =+'Compras (p)'!D$11*'GEN-502 Pot'!D25*D$7/('GEN-502 Pot'!D$6/1.0645) -> 5725.821929 | E25: =+'Compras (p)'!E$11*'GEN-502 Pot'!E25*E$7/('GEN-502 Pot'!E$6/1.0645) -> 5828.393709 | F25: =+'Compras (p)'!F$11*'GEN-502 Pot'!F25*F$7/('GEN-502 Pot'!F$6/1.0645) -> 5539.003654 | G25: =+'Compras (p)'!G$11*'GEN-502 Pot'!G25*G$7/('GEN-502 Pot'!G$6/1.0645) -> 5935.330789 | H25: 34734.76052
A26: =+'GEN-502 Pot'!A26 -> Electrón Inv. No. 07-08 (34,65) | B26: =+'Compras (p)'!B$11*'GEN-502 Pot'!B26*B$7/('GEN-502 Pot'!B$6/1.0645) -> 11925.86345 | C26: =+'Compras (p)'!C$11*'GEN-502 Pot'!C26*C$7/('GEN-502 Pot'!C$6/1.0645) -> 11866.96806 | D26: =+'Compras (p)'!D$11*'GEN-502 Pot'!D26*D$7/('GEN-502 Pot'!D$6/1.0645) -> 11637.71292 | E26: =+'Compras (p)'!E$11*'GEN-502 Pot'!E26*E$7/('GEN-502 Pot'!E$6/1.0645) -> 11846.1897 | F26: =+'Compras (p)'!F$11*'GEN-502 Pot'!F26*F$7/('GEN-502 Pot'!F$6/1.0645) -> 11258.00543 | G26: =+'Compras (p)'!G$11*'GEN-502 Pot'!G26*G$7/('GEN-502 Pot'!G$6/1.0645) -> 12063.53894 | H26: 70598.2785
A27: =+'GEN-502 Pot'!A27 -> Empresa Nacional de Energía No. 24-11 (Cesión) | B27: =+'Compras (p)'!B$11*'GEN-502 Pot'!B27*B$7/('GEN-502 Pot'!B$6/1.0645) -> 2294.65315 | C27: =+'Compras (p)'!C$11*'GEN-502 Pot'!C27*C$7/('GEN-502 Pot'!C$6/1.0645) -> 2283.321098 | D27: =+'Compras (p)'!D$11*'GEN-502 Pot'!D27*D$7/('GEN-502 Pot'!D$6/1.0645) -> 2239.21016 | E27: =+'Compras (p)'!E$11*'GEN-502 Pot'!E27*E$7/('GEN-502 Pot'!E$6/1.0645) -> 2279.323138 | F27: =+'Compras (p)'!F$11*'GEN-502 Pot'!F27*F$7/('GEN-502 Pot'!F$6/1.0645) -> 2166.150713 | G27: =+'Compras (p)'!G$11*'GEN-502 Pot'!G27*G$7/('GEN-502 Pot'!G$6/1.0645) -> 2321.143264 | H27: =+SUM(B27:G27) -> 13583.80152
A28: =+'GEN-502 Pot'!A28 -> Enel Fortuna No. 25-11 | B28: =+'Compras (p)'!B$11*'GEN-502 Pot'!B28*B$7/('GEN-502 Pot'!B$6/1.0645) -> 6773.814721 | C28: =+'Compras (p)'!C$11*'GEN-502 Pot'!C28*C$7/('GEN-502 Pot'!C$6/1.0645) -> 6740.362511 | D28: =+'Compras (p)'!D$11*'GEN-502 Pot'!D28*D$7/('GEN-502 Pot'!D$6/1.0645) -> 6610.147048 | E28: =+'Compras (p)'!E$11*'GEN-502 Pot'!E28*E$7/('GEN-502 Pot'!E$6/1.0645) -> 6728.560536 | F28: =+'Compras (p)'!F$11*'GEN-502 Pot'!F28*F$7/('GEN-502 Pot'!F$6/1.0645) -> 6394.475606 | G28: =+'Compras (p)'!G$11*'GEN-502 Pot'!G28*G$7/('GEN-502 Pot'!G$6/1.0645) -> 6852.013524 | H28: 40099.37395
A29: =+'GEN-502 Pot'!A29 -> Electrogeneradora del Istmo No. 26-11 | B29: =+'Compras (p)'!B$11*'GEN-502 Pot'!B29*B$7/('GEN-502 Pot'!B$6/1.0645) -> 286.8333646 | C29: =+'Compras (p)'!C$11*'GEN-502 Pot'!C29*C$7/('GEN-502 Pot'!C$6/1.0645) -> 285.4168496 | D29: =+'Compras (p)'!D$11*'GEN-502 Pot'!D29*D$7/('GEN-502 Pot'!D$6/1.0645) -> 279.9029493 | E29: =+'Compras (p)'!E$11*'GEN-502 Pot'!E29*E$7/('GEN-502 Pot'!E$6/1.0645) -> 284.9171017 | F29: =+'Compras (p)'!F$11*'GEN-502 Pot'!F29*F$7/('GEN-502 Pot'!F$6/1.0645) -> 270.7704637 | G29: =+'Compras (p)'!G$11*'GEN-502 Pot'!G29*G$7/('GEN-502 Pot'!G$6/1.0645) -> 290.1446488 | H29: 1697.985378
A30: =+'GEN-502 Pot'!A30 -> ESEPSA No. 27-11 | B30: =+'Compras (p)'!B$11*'GEN-502 Pot'!B30*B$7/('GEN-502 Pot'!B$6/1.0645) -> 1257.471303 | C30: =+'Compras (p)'!C$11*'GEN-502 Pot'!C30*C$7/('GEN-502 Pot'!C$6/1.0645) -> 1251.261332 | D30: =+'Compras (p)'!D$11*'GEN-502 Pot'!D30*D$7/('GEN-502 Pot'!D$6/1.0645) -> 1227.088511 | E30: =+'Compras (p)'!E$11*'GEN-502 Pot'!E30*E$7/('GEN-502 Pot'!E$6/1.0645) -> 1249.070447 | F30: =+'Compras (p)'!F$11*'GEN-502 Pot'!F30*F$7/('GEN-502 Pot'!F$6/1.0645) -> 1187.051891 | G30: =+'Compras (p)'!G$11*'GEN-502 Pot'!G30*G$7/('GEN-502 Pot'!G$6/1.0645) -> 1271.987901 | H30: 7443.931385
A31: =+'GEN-502 Pot'!A31 -> Pedregalito No. 28-11 | B31: =+'Compras (p)'!B$11*'GEN-502 Pot'!B31*B$7/('GEN-502 Pot'!B$6/1.0645) -> 903.6328271 | C31: =+'Compras (p)'!C$11*'GEN-502 Pot'!C31*C$7/('GEN-502 Pot'!C$6/1.0645) -> 899.1702729 | D31: =+'Compras (p)'!D$11*'GEN-502 Pot'!D31*D$7/('GEN-502 Pot'!D$6/1.0645) -> 881.7994159 | E31: =+'Compras (p)'!E$11*'GEN-502 Pot'!E31*E$7/('GEN-502 Pot'!E$6/1.0645) -> 897.5958791 | F31: =+'Compras (p)'!F$11*'GEN-502 Pot'!F31*F$7/('GEN-502 Pot'!F$6/1.0645) -> 853.0286564 | G31: =+'Compras (p)'!G$11*'GEN-502 Pot'!G31*G$7/('GEN-502 Pot'!G$6/1.0645) -> 914.064616 | H31: 5349.291667
A32: =+'GEN-502 Pot'!A32 -> Río Chico No. 29-11 | B32: =+'Compras (p)'!B$11*'GEN-502 Pot'!B32*B$7/('GEN-502 Pot'!B$6/1.0645) -> 554.1585636 | C32: =+'Compras (p)'!C$11*'GEN-502 Pot'!C32*C$7/('GEN-502 Pot'!C$6/1.0645) -> 551.4218739 | D32: =+'Compras (p)'!D$11*'GEN-502 Pot'!D32*D$7/('GEN-502 Pot'!D$6/1.0645) -> 540.7690856 | E32: =+'Compras (p)'!E$11*'GEN-502 Pot'!E32*E$7/('GEN-502 Pot'!E$6/1.0645) -> 550.4563669 | F32: =+'Compras (p)'!F$11*'GEN-502 Pot'!F32*F$7/('GEN-502 Pot'!F$6/1.0645) -> 523.1252348 | G32: =+'Compras (p)'!G$11*'GEN-502 Pot'!G32*G$7/('GEN-502 Pot'!G$6/1.0645) -> 560.5559242 | H32: 3280.487049
A33: =+'GEN-502 Pot'!A33 -> Alto Valle No. 30-11 | B33: =+'Compras (p)'!B$11*'GEN-502 Pot'!B33*B$7/('GEN-502 Pot'!B$6/1.0645) -> 527.312464 | C33: =+'Compras (p)'!C$11*'GEN-502 Pot'!C33*C$7/('GEN-502 Pot'!C$6/1.0645) -> 524.7083527 | D33: =+'Compras (p)'!D$11*'GEN-502 Pot'!D33*D$7/('GEN-502 Pot'!D$6/1.0645) -> 514.5716366 | E33: =+'Compras (p)'!E$11*'GEN-502 Pot'!E33*E$7/('GEN-502 Pot'!E$6/1.0645) -> 523.7896195 | F33: =+'Compras (p)'!F$11*'GEN-502 Pot'!F33*F$7/('GEN-502 Pot'!F$6/1.0645) -> 497.7825386 | G33: =+'Compras (p)'!G$11*'GEN-502 Pot'!G33*G$7/('GEN-502 Pot'!G$6/1.0645) -> 533.3999059 | H33: 3121.564517
A34: =+'GEN-502 Pot'!A34 -> Hidroecológica del Teribe No. 31-11 | B34: =+'Compras (p)'!B$11*'GEN-502 Pot'!B34*B$7/('GEN-502 Pot'!B$6/1.0645) -> 2294.65315 | C34: =+'Compras (p)'!C$11*'GEN-502 Pot'!C34*C$7/('GEN-502 Pot'!C$6/1.0645) -> 2283.321098 | D34: =+'Compras (p)'!D$11*'GEN-502 Pot'!D34*D$7/('GEN-502 Pot'!D$6/1.0645) -> 2239.21016 | E34: =+'Compras (p)'!E$11*'GEN-502 Pot'!E34*E$7/('GEN-502 Pot'!E$6/1.0645) -> 2279.323138 | F34: =+'Compras (p)'!F$11*'GEN-502 Pot'!F34*F$7/('GEN-502 Pot'!F$6/1.0645) -> 2166.150713 | G34: =+'Compras (p)'!G$11*'GEN-502 Pot'!G34*G$7/('GEN-502 Pot'!G$6/1.0645) -> 2321.143264 | H34: 13583.80152
A35: =+'GEN-502 Pot'!A35 -> Desarrollos Hidroeléctricos Corp. No. 32-11 | B35: =+'Compras (p)'!B$11*'GEN-502 Pot'!B35*B$7/('GEN-502 Pot'!B$6/1.0645) -> 436.67246 | C35: =+'Compras (p)'!C$11*'GEN-502 Pot'!C35*C$7/('GEN-502 Pot'!C$6/1.0645) -> 434.5159707 | D35: =+'Compras (p)'!D$11*'GEN-502 Pot'!D35*D$7/('GEN-502 Pot'!D$6/1.0645) -> 426.1216598 | E35: =+'Compras (p)'!E$11*'GEN-502 Pot'!E35*E$7/('GEN-502 Pot'!E$6/1.0645) -> 433.755159 | F35: =+'Compras (p)'!F$11*'GEN-502 Pot'!F35*F$7/('GEN-502 Pot'!F$6/1.0645) -> 412.2184483 | G35: =+'Compras (p)'!G$11*'GEN-502 Pot'!G35*G$7/('GEN-502 Pot'!G$6/1.0645) -> 441.7135284 | H35: 2584.997226
A36: =+'GEN-502 Pot'!A36 -> Las Perlas Norte No. 33-11 | B36: =+'Compras (p)'!B$11*'GEN-502 Pot'!B36*B$7/('GEN-502 Pot'!B$6/1.0645) -> 2730.637248 | C36: =+'Compras (p)'!C$11*'GEN-502 Pot'!C36*C$7/('GEN-502 Pot'!C$6/1.0645) -> 2717.152106 | D36: =+'Compras (p)'!D$11*'GEN-502 Pot'!D36*D$7/('GEN-502 Pot'!D$6/1.0645) -> 2664.66009 | E36: =+'Compras (p)'!E$11*'GEN-502 Pot'!E36*E$7/('GEN-502 Pot'!E$6/1.0645) -> 2712.394534 | F36: =+'Compras (p)'!F$11*'GEN-502 Pot'!F36*F$7/('GEN-502 Pot'!F$6/1.0645) -> 2577.719349 | G36: =+'Compras (p)'!G$11*'GEN-502 Pot'!G36*G$7/('GEN-502 Pot'!G$6/1.0645) -> 2762.160485 | H36: 16164.72381
A37: =+'GEN-502 Pot'!A37 -> Hidroeléctrica San Lorenzo No. 34-11 | B37: =+'Compras (p)'!B$11*'GEN-502 Pot'!B37*B$7/('GEN-502 Pot'!B$6/1.0645) -> 305.8768863 | C37: =+'Compras (p)'!C$11*'GEN-502 Pot'!C37*C$7/('GEN-502 Pot'!C$6/1.0645) -> 304.3663256 | D37: =+'Compras (p)'!D$11*'GEN-502 Pot'!D37*D$7/('GEN-502 Pot'!D$6/1.0645) -> 298.4863448 | E37: =+'Compras (p)'!E$11*'GEN-502 Pot'!E37*E$7/('GEN-502 Pot'!E$6/1.0645) -> 303.8333982 | F37: =+'Compras (p)'!F$11*'GEN-502 Pot'!F37*F$7/('GEN-502 Pot'!F$6/1.0645) -> 288.7475327 | G37: =+'Compras (p)'!G$11*'GEN-502 Pot'!G37*G$7/('GEN-502 Pot'!G$6/1.0645) -> 309.4080142 | H37: 1810.718502
A38: =+'GEN-502 Pot'!A38 -> Caldera Energy Corp. No. 35-11 | B38: =+'Compras (p)'!B$11*'GEN-502 Pot'!B38*B$7/('GEN-502 Pot'!B$6/1.0645) -> 688.3959449 | C38: =+'Compras (p)'!C$11*'GEN-502 Pot'!C38*C$7/('GEN-502 Pot'!C$6/1.0645) -> 684.9963293 | D38: =+'Compras (p)'!D$11*'GEN-502 Pot'!D38*D$7/('GEN-502 Pot'!D$6/1.0645) -> 671.7630479 | E38: =+'Compras (p)'!E$11*'GEN-502 Pot'!E38*E$7/('GEN-502 Pot'!E$6/1.0645) -> 683.7969414 | F38: =+'Compras (p)'!F$11*'GEN-502 Pot'!F38*F$7/('GEN-502 Pot'!F$6/1.0645) -> 649.845214 | G38: =+'Compras (p)'!G$11*'GEN-502 Pot'!G38*G$7/('GEN-502 Pot'!G$6/1.0645) -> 696.3429793 | H38: 4075.140457
A39: =+'GEN-502 Pot'!A39 -> PASO ANCHO No. 86-11 | B39: =+'Compras (p)'!B$11*'GEN-502 Pot'!B39*B$7/('GEN-502 Pot'!B$6/1.0645) -> 715.8959879 | C39: =+'Compras (p)'!C$11*'GEN-502 Pot'!C39*C$7/('GEN-502 Pot'!C$6/1.0645) -> 712.3605645 | D39: =+'Compras (p)'!D$11*'GEN-502 Pot'!D39*D$7/('GEN-502 Pot'!D$6/1.0645) -> 712.0332291 | E39: =+'Compras (p)'!E$11*'GEN-502 Pot'!E39*E$7/('GEN-502 Pot'!E$6/1.0645) -> 738.4637736 | F39: =+'Compras (p)'!F$11*'GEN-502 Pot'!F39*F$7/('GEN-502 Pot'!F$6/1.0645) -> 688.8014868 | G39: =+'Compras (p)'!G$11*'GEN-502 Pot'!G39*G$7/('GEN-502 Pot'!G$6/1.0645) -> 724.1604904 | H39: 4291.715532
A40: =+'GEN-502 Pot'!A40 -> Hidroecológica del Teribe No. 87-11 | B40: =+'Compras (p)'!B$11*'GEN-502 Pot'!B40*B$7/('GEN-502 Pot'!B$6/1.0645) -> 912.0790231 | C40: =+'Compras (p)'!C$11*'GEN-502 Pot'!C40*C$7/('GEN-502 Pot'!C$6/1.0645) -> 890.4507056 | D40: =+'Compras (p)'!D$11*'GEN-502 Pot'!D40*D$7/('GEN-502 Pot'!D$6/1.0645) -> 873.2482999 | E40: =+'Compras (p)'!E$11*'GEN-502 Pot'!E40*E$7/('GEN-502 Pot'!E$6/1.0645) -> 905.9856481 | F40: =+'Compras (p)'!F$11*'GEN-502 Pot'!F40*F$7/('GEN-502 Pot'!F$6/1.0645) -> 844.7565404 | G40: =+'Compras (p)'!G$11*'GEN-502 Pot'!G40*G$7/('GEN-502 Pot'!G$6/1.0645) -> 905.200613 | H40: 5331.72083
A41: =+'GEN-502 Pot'!A41 -> Unión Eólica de Panamá (PE Nuevo Chagres) No. 15-12' | B41: =+'Compras (p)'!B$11*'GEN-502 Pot'!B41*B$7/('GEN-502 Pot'!B$6/1.0645) -> 2024.608923 | C41: =+'Compras (p)'!C$11*'GEN-502 Pot'!C41*C$7/('GEN-502 Pot'!C$6/1.0645) -> 1695.794873 | D41: =+'Compras (p)'!D$11*'GEN-502 Pot'!D41*D$7/('GEN-502 Pot'!D$6/1.0645) -> 1.948015438 | E41: =+'Compras (p)'!E$11*'GEN-502 Pot'!E41*E$7/('GEN-502 Pot'!E$6/1.0645) -> 2.017100122 | F41: =+'Compras (p)'!F$11*'GEN-502 Pot'!F41*F$7/('GEN-502 Pot'!F$6/1.0645) -> 1.884456898 | G41: =+'Compras (p)'!G$11*'GEN-502 Pot'!G41*G$7/('GEN-502 Pot'!G$6/1.0645) -> 2.019293675 | H41: =+SUM(B41:G41) -> 3728.272662
A42: =+'GEN-502 Pot'!A42 -> Unión Eólica de Panamá (PE Rosa de los Vientos) No. 16-12' | B42: =+'Compras (p)'!B$11*'GEN-502 Pot'!B42*B$7/('GEN-502 Pot'!B$6/1.0645) -> 2.030666504 | C42: =+'Compras (p)'!C$11*'GEN-502 Pot'!C42*C$7/('GEN-502 Pot'!C$6/1.0645) -> 1.986390036 | D42: =+'Compras (p)'!D$11*'GEN-502 Pot'!D42*D$7/('GEN-502 Pot'!D$6/1.0645) -> 1.948015438 | E42: =+'Compras (p)'!E$11*'GEN-502 Pot'!E42*E$7/('GEN-502 Pot'!E$6/1.0645) -> 2.017100122 | F42: =+'Compras (p)'!F$11*'GEN-502 Pot'!F42*F$7/('GEN-502 Pot'!F$6/1.0645) -> 1.884456898 | G42: =+'Compras (p)'!G$11*'GEN-502 Pot'!G42*G$7/('GEN-502 Pot'!G$6/1.0645) -> 2.019293675 | H42: 11.88592267
A43: =+'GEN-502 Pot'!A43 -> Unión Eólica de Panamá (PE Portobelo Ballestillas) No. 17-12' | B43: =+'Compras (p)'!B$11*'GEN-502 Pot'!B43*B$7/('GEN-502 Pot'!B$6/1.0645) -> 2.030666504 | C43: =+'Compras (p)'!C$11*'GEN-502 Pot'!C43*C$7/('GEN-502 Pot'!C$6/1.0645) -> 1.986390036 | D43: =+'Compras (p)'!D$11*'GEN-502 Pot'!D43*D$7/('GEN-502 Pot'!D$6/1.0645) -> 1.948015438 | E43: =+'Compras (p)'!E$11*'GEN-502 Pot'!E43*E$7/('GEN-502 Pot'!E$6/1.0645) -> 2.017100122 | F43: =+'Compras (p)'!F$11*'GEN-502 Pot'!F43*F$7/('GEN-502 Pot'!F$6/1.0645) -> 1.884456898 | G43: =+'Compras (p)'!G$11*'GEN-502 Pot'!G43*G$7/('GEN-502 Pot'!G$6/1.0645) -> 2.019293675 | H43: 11.88592267
A44: =+'GEN-502 Pot'!A44 -> Unión Eólica de Panamá (PE Marañon) No. 18-12' | B44: =+'Compras (p)'!B$11*'GEN-502 Pot'!B44*B$7/('GEN-502 Pot'!B$6/1.0645) -> 2.030666504 | C44: =+'Compras (p)'!C$11*'GEN-502 Pot'!C44*C$7/('GEN-502 Pot'!C$6/1.0645) -> 1.986390036 | D44: =+'Compras (p)'!D$11*'GEN-502 Pot'!D44*D$7/('GEN-502 Pot'!D$6/1.0645) -> 1.948015438 | E44: =+'Compras (p)'!E$11*'GEN-502 Pot'!E44*E$7/('GEN-502 Pot'!E$6/1.0645) -> 2.017100122 | F44: =+'Compras (p)'!F$11*'GEN-502 Pot'!F44*F$7/('GEN-502 Pot'!F$6/1.0645) -> 1.884456898 | G44: =+'Compras (p)'!G$11*'GEN-502 Pot'!G44*G$7/('GEN-502 Pot'!G$6/1.0645) -> 2.019293675 | H44: 11.88592267
A45: =+'GEN-502 Pot'!A45 -> AES No. 117-12 | B45: =+'Compras (p)'!B$11*'GEN-502 Pot'!B45*B$7/('GEN-502 Pot'!B$6/1.0645) -> 72277.96032 | C45: =+'Compras (p)'!C$11*'GEN-502 Pot'!C45*C$7/('GEN-502 Pot'!C$6/1.0645) -> 71921.01853 | D45: =+'Compras (p)'!D$11*'GEN-502 Pot'!D45*D$7/('GEN-502 Pot'!D$6/1.0645) -> 70531.59345 | E45: =+'Compras (p)'!E$11*'GEN-502 Pot'!E45*E$7/('GEN-502 Pot'!E$6/1.0645) -> 71795.0891 | F45: =+'Compras (p)'!F$11*'GEN-502 Pot'!F45*F$7/('GEN-502 Pot'!F$6/1.0645) -> 68230.33596 | G45: =+'Compras (p)'!G$11*'GEN-502 Pot'!G45*G$7/('GEN-502 Pot'!G$6/1.0645) -> 73112.35721 | H45: 427868.3546
A46: =+'GEN-502 Pot'!A46 -> HIDRO PIEDRA No. 118-12 | B46: =+'Compras (p)'!B$11*'GEN-502 Pot'!B46*B$7/('GEN-502 Pot'!B$6/1.0645) -> 368.8241061 | C46: =+'Compras (p)'!C$11*'GEN-502 Pot'!C46*C$7/('GEN-502 Pot'!C$6/1.0645) -> 367.0026831 | D46: =+'Compras (p)'!D$11*'GEN-502 Pot'!D46*D$7/('GEN-502 Pot'!D$6/1.0645) -> 359.9126454 | E46: =+'Compras (p)'!E$11*'GEN-502 Pot'!E46*E$7/('GEN-502 Pot'!E$6/1.0645) -> 366.3600832 | F46: =+'Compras (p)'!F$11*'GEN-502 Pot'!F46*F$7/('GEN-502 Pot'!F$6/1.0645) -> 348.1696572 | G46: =+'Compras (p)'!G$11*'GEN-502 Pot'!G46*G$7/('GEN-502 Pot'!G$6/1.0645) -> 373.0819142 | H46: 2183.351089
A47: =+'GEN-502 Pot'!A47 -> Corp. Energ. Del Istmo No. 119-12 | B47: =+'Compras (p)'!B$11*'GEN-502 Pot'!B47*B$7/('GEN-502 Pot'!B$6/1.0645) -> 1819.339515 | C47: =+'Compras (p)'!C$11*'GEN-502 Pot'!C47*C$7/('GEN-502 Pot'!C$6/1.0645) -> 1810.354781 | D47: =+'Compras (p)'!D$11*'GEN-502 Pot'!D47*D$7/('GEN-502 Pot'!D$6/1.0645) -> 1775.380967 | E47: =+'Compras (p)'!E$11*'GEN-502 Pot'!E47*E$7/('GEN-502 Pot'!E$6/1.0645) -> 1807.184957 | F47: =+'Compras (p)'!F$11*'GEN-502 Pot'!F47*F$7/('GEN-502 Pot'!F$6/1.0645) -> 1717.455028 | G47: =+'Compras (p)'!G$11*'GEN-502 Pot'!G47*G$7/('GEN-502 Pot'!G$6/1.0645) -> 1840.342477 | H47: 10770.05772
A48: =+'GEN-502 Pot'!A48 -> Saltos del Francolí No. 121-12 | B48: =+'Compras (p)'!B$11*'GEN-502 Pot'!B48*B$7/('GEN-502 Pot'!B$6/1.0645) -> 190.3319622 | C48: =+'Compras (p)'!C$11*'GEN-502 Pot'!C48*C$7/('GEN-502 Pot'!C$6/1.0645) -> 189.3920155 | D48: =+'Compras (p)'!D$11*'GEN-502 Pot'!D48*D$7/('GEN-502 Pot'!D$6/1.0645) -> 185.7331961 | E48: =+'Compras (p)'!E$11*'GEN-502 Pot'!E48*E$7/('GEN-502 Pot'!E$6/1.0645) -> 189.0604013 | F48: =+'Compras (p)'!F$11*'GEN-502 Pot'!F48*F$7/('GEN-502 Pot'!F$6/1.0645) -> 179.673218 | G48: =+'Compras (p)'!G$11*'GEN-502 Pot'!G48*G$7/('GEN-502 Pot'!G$6/1.0645) -> 192.5292073 | H48: 1126.72
A49: =+'GEN-502 Pot'!A49 -> ISTMUS HYDRO POWER CORP. No.02-13 | B49: =+'Compras (p)'!B$11*'GEN-502 Pot'!B49*B$7/('GEN-502 Pot'!B$6/1.0645) -> 793.9906031 | C49: =+'Compras (p)'!C$11*'GEN-502 Pot'!C49*C$7/('GEN-502 Pot'!C$6/1.0645) -> 752.6020868 | D49: =+'Compras (p)'!D$11*'GEN-502 Pot'!D49*D$7/('GEN-502 Pot'!D$6/1.0645) -> 780.9190854 | E49: =+'Compras (p)'!E$11*'GEN-502 Pot'!E49*E$7/('GEN-502 Pot'!E$6/1.0645) -> 714.737206 | F49: =+'Compras (p)'!F$11*'GEN-502 Pot'!F49*F$7/('GEN-502 Pot'!F$6/1.0645) -> 669.9244272 | G49: =+'Compras (p)'!G$11*'GEN-502 Pot'!G49*G$7/('GEN-502 Pot'!G$6/1.0645) -> 727.3983234 | H49: =+SUM(B49:G49) -> 4439.571732
A50: =+'GEN-502 Pot'!A50 -> CALDERA ENERGY CORP. No.03-13 | B50: =+'Compras (p)'!B$11*'GEN-502 Pot'!B50*B$7/('GEN-502 Pot'!B$6/1.0645) -> 898.3117925 | C50: =+'Compras (p)'!C$11*'GEN-502 Pot'!C50*C$7/('GEN-502 Pot'!C$6/1.0645) -> 1589.112028 | D50: =+'Compras (p)'!D$11*'GEN-502 Pot'!D50*D$7/('GEN-502 Pot'!D$6/1.0645) -> 1882.521816 | E50: =+'Compras (p)'!E$11*'GEN-502 Pot'!E50*E$7/('GEN-502 Pot'!E$6/1.0645) -> 2577.78558 | F50: =+'Compras (p)'!F$11*'GEN-502 Pot'!F50*F$7/('GEN-502 Pot'!F$6/1.0645) -> 1574.171322 | G50: =+'Compras (p)'!G$11*'GEN-502 Pot'!G50*G$7/('GEN-502 Pot'!G$6/1.0645) -> 504.8234188 | H50: 9026.725958
A51: =+'GEN-502 Pot'!A51 -> ELECTROGENERADORA DEL ISTMO, S.A. No.04-13 | B51: =+'Compras (p)'!B$11*'GEN-502 Pot'!B51*B$7/('GEN-502 Pot'!B$6/1.0645) -> 299.4372642 | C51: =+'Compras (p)'!C$11*'GEN-502 Pot'!C51*C$7/('GEN-502 Pot'!C$6/1.0645) -> 496.5975089 | D51: =+'Compras (p)'!D$11*'GEN-502 Pot'!D51*D$7/('GEN-502 Pot'!D$6/1.0645) -> 743.1007167 | E51: =+'Compras (p)'!E$11*'GEN-502 Pot'!E51*E$7/('GEN-502 Pot'!E$6/1.0645) -> 892.3103931 | F51: =+'Compras (p)'!F$11*'GEN-502 Pot'!F51*F$7/('GEN-502 Pot'!F$6/1.0645) -> 601.889035 | G51: =+'Compras (p)'!G$11*'GEN-502 Pot'!G51*G$7/('GEN-502 Pot'!G$6/1.0645) -> 252.4117094 | H51: 3285.746627
A52: =+'GEN-502 Pot'!A52 -> FOUNTAIN INTERTRADE CORP. No.05-13 | B52: =+'Compras (p)'!B$11*'GEN-502 Pot'!B52*B$7/('GEN-502 Pot'!B$6/1.0645) -> 3778.588511 | C52: =+'Compras (p)'!C$11*'GEN-502 Pot'!C52*C$7/('GEN-502 Pot'!C$6/1.0645) -> 4190.871998 | D52: =+'Compras (p)'!D$11*'GEN-502 Pot'!D52*D$7/('GEN-502 Pot'!D$6/1.0645) -> 6057.656283 | E52: =+'Compras (p)'!E$11*'GEN-502 Pot'!E52*E$7/('GEN-502 Pot'!E$6/1.0645) -> 8347.204752 | F52: =+'Compras (p)'!F$11*'GEN-502 Pot'!F52*F$7/('GEN-502 Pot'!F$6/1.0645) -> 5137.939241 | G52: =+'Compras (p)'!G$11*'GEN-502 Pot'!G52*G$7/('GEN-502 Pot'!G$6/1.0645) -> 3133.177845 | H52: 30645.43863
A53: =+'GEN-502 Pot'!A53 -> HIDROIBERICA, S.A. No.06-13 | B53: =+'Compras (p)'!B$11*'GEN-502 Pot'!B53*B$7/('GEN-502 Pot'!B$6/1.0645) -> 81.84618554 | C53: =+'Compras (p)'!C$11*'GEN-502 Pot'!C53*C$7/('GEN-502 Pot'!C$6/1.0645) -> 131.1017423 | D53: =+'Compras (p)'!D$11*'GEN-502 Pot'!D53*D$7/('GEN-502 Pot'!D$6/1.0645) -> 158.5281529 | E53: =+'Compras (p)'!E$11*'GEN-502 Pot'!E53*E$7/('GEN-502 Pot'!E$6/1.0645) -> 200.2741104 | F53: =+'Compras (p)'!F$11*'GEN-502 Pot'!F53*F$7/('GEN-502 Pot'!F$6/1.0645) -> 172.2328623 | G53: =+'Compras (p)'!G$11*'GEN-502 Pot'!G53*G$7/('GEN-502 Pot'!G$6/1.0645) -> 173.6592561 | H53: 917.6423096
A54: =+'GEN-502 Pot'!A54 -> NAVITAS INTERNACIONAL, S.A. No.07-13 | B54: =+'Compras (p)'!B$11*'GEN-502 Pot'!B54*B$7/('GEN-502 Pot'!B$6/1.0645) -> 797.1570662 | C54: =+'Compras (p)'!C$11*'GEN-502 Pot'!C54*C$7/('GEN-502 Pot'!C$6/1.0645) -> 840.2429851 | D54: =+'Compras (p)'!D$11*'GEN-502 Pot'!D54*D$7/('GEN-502 Pot'!D$6/1.0645) -> 1020.256292 | E54: =+'Compras (p)'!E$11*'GEN-502 Pot'!E54*E$7/('GEN-502 Pot'!E$6/1.0645) -> 1049.610014 | F54: =+'Compras (p)'!F$11*'GEN-502 Pot'!F54*F$7/('GEN-502 Pot'!F$6/1.0645) -> 854.796147 | G54: =+'Compras (p)'!G$11*'GEN-502 Pot'!G54*G$7/('GEN-502 Pot'!G$6/1.0645) -> 689.5887901 | H54: 5251.651295
A55: =+'GEN-502 Pot'!A55 -> HIDROECOLÓGICA DEL TERIBE, S.A. No.08-13 | B55: =+'Compras (p)'!B$11*'GEN-502 Pot'!B55*B$7/('GEN-502 Pot'!B$6/1.0645) -> 0 | C55: =+'Compras (p)'!C$11*'GEN-502 Pot'!C55*C$7/('GEN-502 Pot'!C$6/1.0645) -> 0 | D55: =+'Compras (p)'!D$11*'GEN-502 Pot'!D55*D$7/('GEN-502 Pot'!D$6/1.0645) -> 198.1601911 | E55: =+'Compras (p)'!E$11*'GEN-502 Pot'!E55*E$7/('GEN-502 Pot'!E$6/1.0645) -> 991.4559923 | F55: =+'Compras (p)'!F$11*'GEN-502 Pot'!F55*F$7/('GEN-502 Pot'!F$6/1.0645) -> 370.3932523 | G55: =+'Compras (p)'!G$11*'GEN-502 Pot'!G55*G$7/('GEN-502 Pot'!G$6/1.0645) -> 403.858735 | H55: 1963.868171
A56: =+'GEN-502 Pot'!A56 -> HIDRONORTH CORP. No.09-13 | B56: =+'Compras (p)'!B$11*'GEN-502 Pot'!B56*B$7/('GEN-502 Pot'!B$6/1.0645) -> 95.81992454 | C56: =+'Compras (p)'!C$11*'GEN-502 Pot'!C56*C$7/('GEN-502 Pot'!C$6/1.0645) -> 111.237842 | D56: =+'Compras (p)'!D$11*'GEN-502 Pot'!D56*D$7/('GEN-502 Pot'!D$6/1.0645) -> 134.74893 | E56: =+'Compras (p)'!E$11*'GEN-502 Pot'!E56*E$7/('GEN-502 Pot'!E$6/1.0645) -> 134.8380149 | F56: =+'Compras (p)'!F$11*'GEN-502 Pot'!F56*F$7/('GEN-502 Pot'!F$6/1.0645) -> 124.0817395 | G56: =+'Compras (p)'!G$11*'GEN-502 Pot'!G56*G$7/('GEN-502 Pot'!G$6/1.0645) -> 100.9646838 | H56: 701.6911347
A57: =+'GEN-502 Pot'!A57 -> EMPRESA NACIONAL DE ENERGÍA, S.A. No.24-13 | B57: =+'Compras (p)'!B$11*'GEN-502 Pot'!B57*B$7/('GEN-502 Pot'!B$6/1.0645) -> 383.2796982 | C57: =+'Compras (p)'!C$11*'GEN-502 Pot'!C57*C$7/('GEN-502 Pot'!C$6/1.0645) -> 649.5495416 | D57: =+'Compras (p)'!D$11*'GEN-502 Pot'!D57*D$7/('GEN-502 Pot'!D$6/1.0645) -> 647.983825 | E57: =+'Compras (p)'!E$11*'GEN-502 Pot'!E57*E$7/('GEN-502 Pot'!E$6/1.0645) -> 486.2920701 | F57: =+'Compras (p)'!F$11*'GEN-502 Pot'!F57*F$7/('GEN-502 Pot'!F$6/1.0645) -> 605.5929676 | G57: =+'Compras (p)'!G$11*'GEN-502 Pot'!G57*G$7/('GEN-502 Pot'!G$6/1.0645) -> 438.1867275 | H57: 3210.88483
A58: =+'GEN-502 Pot'!A58 -> FUERZA ELÉCTRICA DEL ISTMO, S.A. No.25-13 | B58: =+'Compras (p)'!B$11*'GEN-502 Pot'!B58*B$7/('GEN-502 Pot'!B$6/1.0645) -> 149.7186321 | C58: =+'Compras (p)'!C$11*'GEN-502 Pot'!C58*C$7/('GEN-502 Pot'!C$6/1.0645) -> 148.9792527 | D58: =+'Compras (p)'!D$11*'GEN-502 Pot'!D58*D$7/('GEN-502 Pot'!D$6/1.0645) -> 148.6201433 | E58: =+'Compras (p)'!E$11*'GEN-502 Pot'!E58*E$7/('GEN-502 Pot'!E$6/1.0645) -> 111.5217051 | F58: =+'Compras (p)'!F$11*'GEN-502 Pot'!F58*F$7/('GEN-502 Pot'!F$6/1.0645) -> 138.8974696 | G58: =+'Compras (p)'!G$11*'GEN-502 Pot'!G58*G$7/('GEN-502 Pot'!G$6/1.0645) -> 151.4470256 | H58: 849.1842284
A59: =+'GEN-502 Pot'!A59 -> CAFÉ DE ELETA, S.A. No.26-13 | B59: =+'Compras (p)'!B$11*'GEN-502 Pot'!B59*B$7/('GEN-502 Pot'!B$6/1.0645) -> 45.91715565 | C59: =+'Compras (p)'!C$11*'GEN-502 Pot'!C59*C$7/('GEN-502 Pot'!C$6/1.0645) -> 48.66655587 | D59: =+'Compras (p)'!D$11*'GEN-502 Pot'!D59*D$7/('GEN-502 Pot'!D$6/1.0645) -> 46.83297805 | E59: =+'Compras (p)'!E$11*'GEN-502 Pot'!E59*E$7/('GEN-502 Pot'!E$6/1.0645) -> 48.04458986 | F59: =+'Compras (p)'!F$11*'GEN-502 Pot'!F59*F$7/('GEN-502 Pot'!F$6/1.0645) -> 67.74947454 | G59: =+'Compras (p)'!G$11*'GEN-502 Pot'!G59*G$7/('GEN-502 Pot'!G$6/1.0645) -> 55.02923419 | H59: 312.2399882
A60: =+'GEN-502 Pot'!A60 -> ENERGÍA Y SERVICIOS DE PANAMÁ, S.A. No.27-13 | B60: =+'Compras (p)'!B$11*'GEN-502 Pot'!B60*B$7/('GEN-502 Pot'!B$6/1.0645) -> 2223.338896 | C60: =+'Compras (p)'!C$11*'GEN-502 Pot'!C60*C$7/('GEN-502 Pot'!C$6/1.0645) -> 2650.299807 | D60: =+'Compras (p)'!D$11*'GEN-502 Pot'!D60*D$7/('GEN-502 Pot'!D$6/1.0645) -> 2723.268486 | E60: =+'Compras (p)'!E$11*'GEN-502 Pot'!E60*E$7/('GEN-502 Pot'!E$6/1.0645) -> 2425.66888 | F60: =+'Compras (p)'!F$11*'GEN-502 Pot'!F60*F$7/('GEN-502 Pot'!F$6/1.0645) -> 2992.683256 | G60: =+'Compras (p)'!G$11*'GEN-502 Pot'!G60*G$7/('GEN-502 Pot'!G$6/1.0645) -> 2015.133234 | H60: 15030.39256
A61: =+'GEN-502 Pot'!A61 -> GENERADORA PEDREGALITO, S.A. No.28-13 | B61: =+'Compras (p)'!B$11*'GEN-502 Pot'!B61*B$7/('GEN-502 Pot'!B$6/1.0645) -> 923.6607058 | C61: =+'Compras (p)'!C$11*'GEN-502 Pot'!C61*C$7/('GEN-502 Pot'!C$6/1.0645) -> 1177.333374 | D61: =+'Compras (p)'!D$11*'GEN-502 Pot'!D61*D$7/('GEN-502 Pot'!D$6/1.0645) -> 1174.693613 | E61: =+'Compras (p)'!E$11*'GEN-502 Pot'!E61*E$7/('GEN-502 Pot'!E$6/1.0645) -> 1393.491397 | F61: =+'Compras (p)'!F$11*'GEN-502 Pot'!F61*F$7/('GEN-502 Pot'!F$6/1.0645) -> 1335.452871 | G61: =+'Compras (p)'!G$11*'GEN-502 Pot'!G61*G$7/('GEN-502 Pot'!G$6/1.0645) -> 683.7328384 | H61: 6688.3648
A62: =+'GEN-502 Pot'!A62 -> GENERADORA RIO CHICO, S.A. No.29-13 | B62: =+'Compras (p)'!B$11*'GEN-502 Pot'!B62*B$7/('GEN-502 Pot'!B$6/1.0645) -> 569.5296765 | C62: =+'Compras (p)'!C$11*'GEN-502 Pot'!C62*C$7/('GEN-502 Pot'!C$6/1.0645) -> 725.5871823 | D62: =+'Compras (p)'!D$11*'GEN-502 Pot'!D62*D$7/('GEN-502 Pot'!D$6/1.0645) -> 723.6306383 | E62: =+'Compras (p)'!E$11*'GEN-502 Pot'!E62*E$7/('GEN-502 Pot'!E$6/1.0645) -> 858.1769564 | F62: =+'Compras (p)'!F$11*'GEN-502 Pot'!F62*F$7/('GEN-502 Pot'!F$6/1.0645) -> 822.6986475 | G62: =+'Compras (p)'!G$11*'GEN-502 Pot'!G62*G$7/('GEN-502 Pot'!G$6/1.0645) -> 421.9697104 | H62: 4121.592811
A63: =+'GEN-502 Pot'!A63 -> GENERADORA ALTO VALLE, S.A. No.30-13 | B63: =+'Compras (p)'!B$11*'GEN-502 Pot'!B63*B$7/('GEN-502 Pot'!B$6/1.0645) -> 813.6295575 | C63: =+'Compras (p)'!C$11*'GEN-502 Pot'!C63*C$7/('GEN-502 Pot'!C$6/1.0645) -> 1060.091839 | D63: =+'Compras (p)'!D$11*'GEN-502 Pot'!D63*D$7/('GEN-502 Pot'!D$6/1.0645) -> 1062.189004 | E63: =+'Compras (p)'!E$11*'GEN-502 Pot'!E63*E$7/('GEN-502 Pot'!E$6/1.0645) -> 1136.772671 | F63: =+'Compras (p)'!F$11*'GEN-502 Pot'!F63*F$7/('GEN-502 Pot'!F$6/1.0645) -> 959.4842258 | G63: =+'Compras (p)'!G$11*'GEN-502 Pot'!G63*G$7/('GEN-502 Pot'!G$6/1.0645) -> 528.1044823 | H63: 5560.271781
A64: =+'GEN-502 Pot'!A64 -> HYDRO CAISÁN, S.A. No.31-13 | B64: =+'Compras (p)'!B$11*'GEN-502 Pot'!B64*B$7/('GEN-502 Pot'!B$6/1.0645) -> 2021.958731 | C64: =+'Compras (p)'!C$11*'GEN-502 Pot'!C64*C$7/('GEN-502 Pot'!C$6/1.0645) -> 3475.247589 | D64: =+'Compras (p)'!D$11*'GEN-502 Pot'!D64*D$7/('GEN-502 Pot'!D$6/1.0645) -> 4173.623076 | E64: =+'Compras (p)'!E$11*'GEN-502 Pot'!E64*E$7/('GEN-502 Pot'!E$6/1.0645) -> 1771.636131 | F64: =+'Compras (p)'!F$11*'GEN-502 Pot'!F64*F$7/('GEN-502 Pot'!F$6/1.0645) -> 3633.78524 | G64: =+'Compras (p)'!G$11*'GEN-502 Pot'!G64*G$7/('GEN-502 Pot'!G$6/1.0645) -> 1094.255243 | H64: 16170.50601
A65: =+'GEN-502 Pot'!A65 -> FERSA PANAMÁ, S.A. No 05-14 | B65: =+'Compras (p)'!B$11*'GEN-502 Pot'!B65*B$7/('GEN-502 Pot'!B$6/1.0645) -> 2416.148959 | C65: =+'Compras (p)'!C$11*'GEN-502 Pot'!C65*C$7/('GEN-502 Pot'!C$6/1.0645) -> 2054.886244 | D65: =+'Compras (p)'!D$11*'GEN-502 Pot'!D65*D$7/('GEN-502 Pot'!D$6/1.0645) -> 2680.200551 | E65: =+'Compras (p)'!E$11*'GEN-502 Pot'!E65*E$7/('GEN-502 Pot'!E$6/1.0645) -> 2382.913195 | F65: =+'Compras (p)'!F$11*'GEN-502 Pot'!F65*F$7/('GEN-502 Pot'!F$6/1.0645) -> 3596.713424 | G65: =+'Compras (p)'!G$11*'GEN-502 Pot'!G65*G$7/('GEN-502 Pot'!G$6/1.0645) -> 6545.29674 | H65: 19676.15911
A66: =+'GEN-502 Pot'!A66 -> Panama Solar2 No. 07-15 | B66: =+'Compras (p)'!B$11*'GEN-502 Pot'!B66*B$7/('GEN-502 Pot'!B$6/1.0645) -> 870.7773315 | C66: =+'Compras (p)'!C$11*'GEN-502 Pot'!C66*C$7/('GEN-502 Pot'!C$6/1.0645) -> 835.6537391 | D66: =+'Compras (p)'!D$11*'GEN-502 Pot'!D66*D$7/('GEN-502 Pot'!D$6/1.0645) -> 832.9445322 | E66: =+'Compras (p)'!E$11*'GEN-502 Pot'!E66*E$7/('GEN-502 Pot'!E$6/1.0645) -> 837.6093728 | F66: =+'Compras (p)'!F$11*'GEN-502 Pot'!F66*F$7/('GEN-502 Pot'!F$6/1.0645) -> 951.9756398 | G66: =+'Compras (p)'!G$11*'GEN-502 Pot'!G66*G$7/('GEN-502 Pot'!G$6/1.0645) -> 1249.873154 | H66: 5578.833769
A67: =+'GEN-502 Pot'!A67 -> Solpac Investment No. 08-15 | B67: =+'Compras (p)'!B$11*'GEN-502 Pot'!B67*B$7/('GEN-502 Pot'!B$6/1.0645) -> 147.9977283 | C67: =+'Compras (p)'!C$11*'GEN-502 Pot'!C67*C$7/('GEN-502 Pot'!C$6/1.0645) -> 143.8420371 | D67: =+'Compras (p)'!D$11*'GEN-502 Pot'!D67*D$7/('GEN-502 Pot'!D$6/1.0645) -> 144.4218342 | E67: =+'Compras (p)'!E$11*'GEN-502 Pot'!E67*E$7/('GEN-502 Pot'!E$6/1.0645) -> 147.008992 | F67: =+'Compras (p)'!F$11*'GEN-502 Pot'!F67*F$7/('GEN-502 Pot'!F$6/1.0645) -> 146.2078628 | G67: =+'Compras (p)'!G$11*'GEN-502 Pot'!G67*G$7/('GEN-502 Pot'!G$6/1.0645) -> 184.5216634 | H67: 914.0001177
A68: =+'GEN-502 Pot'!A68 -> GAS NATURAL ATLÁNTICO No. 16-15 | B68: =+'Compras (p)'!B$11*'GEN-502 Pot'!B68*B$7/('GEN-502 Pot'!B$6/1.0645) -> 67459.42963 | C68: =+'Compras (p)'!C$11*'GEN-502 Pot'!C68*C$7/('GEN-502 Pot'!C$6/1.0645) -> 67126.28396 | D68: =+'Compras (p)'!D$11*'GEN-502 Pot'!D68*D$7/('GEN-502 Pot'!D$6/1.0645) -> 65829.48722 | E68: =+'Compras (p)'!E$11*'GEN-502 Pot'!E68*E$7/('GEN-502 Pot'!E$6/1.0645) -> 67008.74982 | F68: =+'Compras (p)'!F$11*'GEN-502 Pot'!F68*F$7/('GEN-502 Pot'!F$6/1.0645) -> 63681.64689 | G68: =+'Compras (p)'!G$11*'GEN-502 Pot'!G68*G$7/('GEN-502 Pot'!G$6/1.0645) -> 68238.20006 | H68: 399343.7976
A69: =+'GEN-502 Pot'!A69 -> MARTANO INC No. 18-15 | B69: =+'Compras (p)'!B$11*'GEN-502 Pot'!B69*B$7/('GEN-502 Pot'!B$6/1.0645) -> 67459.42963 | C69: =+'Compras (p)'!C$11*'GEN-502 Pot'!C69*C$7/('GEN-502 Pot'!C$6/1.0645) -> 67126.28396 | D69: =+'Compras (p)'!D$11*'GEN-502 Pot'!D69*D$7/('GEN-502 Pot'!D$6/1.0645) -> 65829.48722 | E69: =+'Compras (p)'!E$11*'GEN-502 Pot'!E69*E$7/('GEN-502 Pot'!E$6/1.0645) -> 67008.74982 | F69: =+'Compras (p)'!F$11*'GEN-502 Pot'!F69*F$7/('GEN-502 Pot'!F$6/1.0645) -> 63681.64689 | G69: =+'Compras (p)'!G$11*'GEN-502 Pot'!G69*G$7/('GEN-502 Pot'!G$6/1.0645) -> 68238.20006 | H69: 399343.7976
A70: =+'GEN-502 Pot'!A70 -> AUTORIDAD DEL CANAL DE PANAMÁ No. 27-21 | H70: =+SUM(B70:G70) -> 0
A71: =+'GEN-502 Pot'!A71 -> GENERADORA DEL ATLÁNTICO, S.A. No. 29-21 | H71: 0
A72: =+'GEN-502 Pot'!A72 -> GENERADORA DEL ATLÁNTICO, S.A. No. 30-21 | H72: 0
A73: =+'GEN-502 Pot'!A73 -> PANAM GENERATING LTD No. 31-21 | H73: 0
A74: =+'GEN-502 Pot'!A74 -> TROPITÉRMICA, S.A. No. 33-21 | H74: 0
A75: =+'GEN-502 Pot'!A75 -> EMPRESA NACIONAL DE ENERGÍA, S.A. No. 02-23 | B75: =+'Compras (p)'!B$11*'GEN-502 Pot'!B75*B$7/('GEN-502 Pot'!B$6/1.0645) -> 66.6333958 | C75: =+'Compras (p)'!C$11*'GEN-502 Pot'!C75*C$7/('GEN-502 Pot'!C$6/1.0645) -> 0 | D75: =+'Compras (p)'!D$11*'GEN-502 Pot'!D75*D$7/('GEN-502 Pot'!D$6/1.0645) -> 22.7044558 | E75: =+'Compras (p)'!E$11*'GEN-502 Pot'!E75*E$7/('GEN-502 Pot'!E$6/1.0645) -> 94.76951761 | F75: =+'Compras (p)'!F$11*'GEN-502 Pot'!F75*F$7/('GEN-502 Pot'!F$6/1.0645) -> 6.725561687 | G75: =+'Compras (p)'!G$11*'GEN-502 Pot'!G75*G$7/('GEN-502 Pot'!G$6/1.0645) -> 0 | H75: 190.8329309
A76: =+'GEN-502 Pot'!A76 -> FOUNTAIN HYDRO POWER CORP No. 03-23 | B76: =+'Compras (p)'!B$11*'GEN-502 Pot'!B76*B$7/('GEN-502 Pot'!B$6/1.0645) -> 777.5731807 | C76: =+'Compras (p)'!C$11*'GEN-502 Pot'!C76*C$7/('GEN-502 Pot'!C$6/1.0645) -> 0 | D76: =+'Compras (p)'!D$11*'GEN-502 Pot'!D76*D$7/('GEN-502 Pot'!D$6/1.0645) -> 0 | E76: =+'Compras (p)'!E$11*'GEN-502 Pot'!E76*E$7/('GEN-502 Pot'!E$6/1.0645) -> 0 | F76: =+'Compras (p)'!F$11*'GEN-502 Pot'!F76*F$7/('GEN-502 Pot'!F$6/1.0645) -> 0 | G76: =+'Compras (p)'!G$11*'GEN-502 Pot'!G76*G$7/('GEN-502 Pot'!G$6/1.0645) -> 0 | H76: 777.5731807
A77: =+'GEN-502 Pot'!A77 -> GENERADORA DEL ISTMO, S.A. No. 04-23 | B77: =+'Compras (p)'!B$11*'GEN-502 Pot'!B77*B$7/('GEN-502 Pot'!B$6/1.0645) -> 330.4135329 | H77: 330.4135329
A78: =+'GEN-502 Pot'!A78 -> HIDRO BOQUERÓN, S.A. No. 05-23 | B78: =+'Compras (p)'!B$11*'GEN-502 Pot'!B78*B$7/('GEN-502 Pot'!B$6/1.0645) -> 40.25538209 | C78: =+'Compras (p)'!C$11*'GEN-502 Pot'!C78*C$7/('GEN-502 Pot'!C$6/1.0645) -> 34.93306614 | D78: =+'Compras (p)'!D$11*'GEN-502 Pot'!D78*D$7/('GEN-502 Pot'!D$6/1.0645) -> 35.46731556 | E78: =+'Compras (p)'!E$11*'GEN-502 Pot'!E78*E$7/('GEN-502 Pot'!E$6/1.0645) -> 68.73183196 | F78: =+'Compras (p)'!F$11*'GEN-502 Pot'!F78*F$7/('GEN-502 Pot'!F$6/1.0645) -> 17.35974691 | G78: =+'Compras (p)'!G$11*'GEN-502 Pot'!G78*G$7/('GEN-502 Pot'!G$6/1.0645) -> 0 | H78: 196.7473427
A79: =+'GEN-502 Pot'!A79 -> HIDROIBÉRICA No. 06-23 | B79: =+'Compras (p)'!B$11*'GEN-502 Pot'!B79*B$7/('GEN-502 Pot'!B$6/1.0645) -> 21.26348756 | C79: =+'Compras (p)'!C$11*'GEN-502 Pot'!C79*C$7/('GEN-502 Pot'!C$6/1.0645) -> 26.13472821 | D79: =+'Compras (p)'!D$11*'GEN-502 Pot'!D79*D$7/('GEN-502 Pot'!D$6/1.0645) -> 7.912973056 | E79: =+'Compras (p)'!E$11*'GEN-502 Pot'!E79*E$7/('GEN-502 Pot'!E$6/1.0645) -> 10.25986011 | F79: =+'Compras (p)'!F$11*'GEN-502 Pot'!F79*F$7/('GEN-502 Pot'!F$6/1.0645) -> 5.091282688 | G79: =+'Compras (p)'!G$11*'GEN-502 Pot'!G79*G$7/('GEN-502 Pot'!G$6/1.0645) -> 25.5788804 | H79: 96.24121203
A80: =+'GEN-502 Pot'!A80 -> IDEAL PANAMÁ, S.A. No. 08-23 | B80: =+'Compras (p)'!B$11*'GEN-502 Pot'!B80*B$7/('GEN-502 Pot'!B$6/1.0645) -> 550.6892215 | H80: 550.6892215
A81: =+'GEN-502 Pot'!A81 -> SOLAR BOQUERÓN, S.A. No. 12-23 | B81: =+'Compras (p)'!B$11*'GEN-502 Pot'!B81*B$7/('GEN-502 Pot'!B$6/1.0645) -> 13.38174808 | C81: =+'Compras (p)'!C$11*'GEN-502 Pot'!C81*C$7/('GEN-502 Pot'!C$6/1.0645) -> 13.97322646 | D81: =+'Compras (p)'!D$11*'GEN-502 Pot'!D81*D$7/('GEN-502 Pot'!D$6/1.0645) -> 3.385516486 | E81: =+'Compras (p)'!E$11*'GEN-502 Pot'!E81*E$7/('GEN-502 Pot'!E$6/1.0645) -> 5.647880342 | F81: =+'Compras (p)'!F$11*'GEN-502 Pot'!F81*F$7/('GEN-502 Pot'!F$6/1.0645) -> 2.563511194 | G81: =+'Compras (p)'!G$11*'GEN-502 Pot'!G81*G$7/('GEN-502 Pot'!G$6/1.0645) -> 11.25930301 | H81: 50.21118557
A82: =+'GEN-502 Pot'!A82 -> AUTORIDAD DEL CANAL DE PANAMÁ No. 13-23 | H82: 0
A83: =+'GEN-502 Pot'!A83 -> CELSIA CENTROAMÉRICA, S.A. No. 14-23 | H83: 0
A84: =+'GEN-502 Pot'!A84 -> GENERADORA DEL ATLÁNTICO, S.A. No. 15-23 | H84: 0
A85: =+'GEN-502 Pot'!A85 -> GENERADORA DEL ATLÁNTICO, S.A. No. 16-23 | H85: 0
A86: =+'GEN-502 Pot'!A86 -> PEDREGAL POWER, S. DE R.L. No. 17-23 | H86: 0
A87: =+'GEN-502 Pot'!A87 -> PANAM GENERATING LTD No. 18-23 | H87: 0
A88: =+'GEN-502 Pot'!A88 -> PANAM GENERATING LTD No. 19-23 | H88: 0
A89: =+'GEN-502 Pot'!A89 -> SPARKLE POWER, S.A. No. 20-23 | H89: 0
A90: =+'GEN-502 Pot'!A90 -> TROPITÉRMICA, S.A. No. 21-23 | H90: 0

Sheet GEN-502 Pre_Gen_P
A1: INFORMACION PARA ACTUALIZAR: CARGO POR GENERACION
A2: =+'Compras (p)'!A2 -> EDEMET
A3: Precio Mensual de la Energía en Horas de Punta (B/./KWh)
B4: PRECIO ESTIMADO DE ENERGIA EN HORAS DE PUNTA
A5: Detalle | B5: 2023-07-01 | C5: 2023-08-01 | D5: 2023-09-01 | E5: 2023-10-01 | F5: 2023-11-01 | G5: 2023-12-01 | H5: Promedio
A8: TOTAL | B8: =+IF('GEN-502 Gen_P'!B8=0,"",'GEN-502 Cos_Gen_P'!B8/'GEN-502 Gen_P'!B8) -> 64.24408983 | C8: =+IF('GEN-502 Gen_P'!C8=0,"",'GEN-502 Cos_Gen_P'!C8/'GEN-502 Gen_P'!C8) -> 65.52393446 | D8: =+IF('GEN-502 Gen_P'!D8=0,"",'GEN-502 Cos_Gen_P'!D8/'GEN-502 Gen_P'!D8) -> 64.95311292 | E8: =+IF('GEN-502 Gen_P'!E8=0,"",'GEN-502 Cos_Gen_P'!E8/'GEN-502 Gen_P'!E8) -> 65.12970641 | F8: =+IF('GEN-502 Gen_P'!F8=0,"",'GEN-502 Cos_Gen_P'!F8/'GEN-502 Gen_P'!F8) -> 63.50689732 | G8: =+IF('GEN-502 Gen_P'!G8=0,"",'GEN-502 Cos_Gen_P'!G8/'GEN-502 Gen_P'!G8) -> 61.83522228 | H8: =+IF('GEN-502 Gen_P'!H8>0,'GEN-502 Cos_Gen_P'!H8/'GEN-502 Gen_P'!H8,0) -> 64.19952311
A9: Generación Propia | H9: =+IF('GEN-502 Gen_P'!H9>0,'GEN-502 Cos_Gen_P'!H9/'GEN-502 Gen_P'!H9,0) -> 0
A10: 0 | H10: =+IF('GEN-502 Gen_P'!H10>0,'GEN-502 Cos_Gen_P'!H10/'GEN-502 Gen_P'!H10,0) -> 0
A11: 0 | H11: =+IF('GEN-502 Gen_P'!H11>0,'GEN-502 Cos_Gen_P'!H11/'GEN-502 Gen_P'!H11,0) -> 0
A12: 0 | H12: =+IF('GEN-502 Gen_P'!H12>0,'GEN-502 Cos_Gen_P'!H12/'GEN-502 Gen_P'!H12,0) -> 0
A13: 0 | H13: =+IF('GEN-502 Gen_P'!H13>0,'GEN-502 Cos_Gen_P'!H13/'GEN-502 Gen_P'!H13,0) -> 0
A14: 0 | H14: =+IF('GEN-502 Gen_P'!H14>0,'GEN-502 Cos_Gen_P'!H14/'GEN-502 Gen_P'!H14,0) -> 0
A15: Sub-Total Mercado Mayorista | B15: =+IF('GEN-502 Gen_P'!B15=0,"",'GEN-502 Cos_Gen_P'!B15/'GEN-502 Gen_P'!B15) -> 64.24408983 | C15: =+IF('GEN-502 Gen_P'!C15=0,"",'GEN-502 Cos_Gen_P'!C15/'GEN-502 Gen_P'!C15) -> 65.52393446 | D15: =+IF('GEN-502 Gen_P'!D15=0,"",'GEN-502 Cos_Gen_P'!D15/'GEN-502 Gen_P'!D15) -> 64.95311292 | E15: =+IF('GEN-502 Gen_P'!E15=0,"",'GEN-502 Cos_Gen_P'!E15/'GEN-502 Gen_P'!E15) -> 65.12970641 | F15: =+IF('GEN-502 Gen_P'!F15=0,"",'GEN-502 Cos_Gen_P'!F15/'GEN-502 Gen_P'!F15) -> 63.50689732 | G15: =+IF('GEN-502 Gen_P'!G15=0,"",'GEN-502 Cos_Gen_P'!G15/'GEN-502 Gen_P'!G15) -> 61.83522228 | H15: =+IF('GEN-502 Gen_P'!H15>0,'GEN-502 Cos_Gen_P'!H15/'GEN-502 Gen_P'!H15,0) -> 64.19952311
A16: Mercado Ocasional | B16: 100 | C16: =+B16 -> 100 | D16: =+C16 -> 100 | E16: 100 | F16: 100 | G16: 100 | H16: =+IF('GEN-502 Gen_P'!H16<>0,'GEN-502 Cos_Gen_P'!H16/'GEN-502 Gen_P'!H16,0) -> 100
H17: =+IF('GEN-502 Gen_P'!H17>0,'GEN-502 Cos_Gen_P'!H17/'GEN-502 Gen_P'!H17,0) -> 0
H18: =+IF('GEN-502 Gen_P'!H18>0,'GEN-502 Cos_Gen_P'!H18/'GEN-502 Gen_P'!H18,0) -> 0
H19: =+IF('GEN-502 Gen_P'!H19>0,'GEN-502 Cos_Gen_P'!H19/'GEN-502 Gen_P'!H19,0) -> 0
H20: =+IF('GEN-502 Gen_P'!H20>0,'GEN-502 Cos_Gen_P'!H20/'GEN-502 Gen_P'!H20,0) -> 0
H21: =+IF('GEN-502 Gen_P'!H21>0,'GEN-502 Cos_Gen_P'!H21/'GEN-502 Gen_P'!H21,0) -> 0
H22: =+IF('GEN-502 Gen_P'!H22>0,'GEN-502 Cos_Gen_P'!H22/'GEN-502 Gen_P'!H22,0) -> 0
H23: =+IF('GEN-502 Gen_P'!H23>0,'GEN-502 Cos_Gen_P'!H23/'GEN-502 Gen_P'!H23,0) -> 0
A24: Sub-Total Contratos | B24: =+IF('GEN-502 Gen_P'!B24=0,"",'GEN-502 Cos_Gen_P'!B24/'GEN-502 Gen_P'!B24) -> 56.37476657 | C24: =+IF('GEN-502 Gen_P'!C24=0,"",'GEN-502 Cos_Gen_P'!C24/'GEN-502 Gen_P'!C24) -> 57.15429111 | D24: =+IF('GEN-502 Gen_P'!D24=0,"",'GEN-502 Cos_Gen_P'!D24/'GEN-502 Gen_P'!D24) -> 58.07791812 | E24: =+IF('GEN-502 Gen_P'!E24=0,"",'GEN-502 Cos_Gen_P'!E24/'GEN-502 Gen_P'!E24) -> 58.31440368 | F24: =+IF('GEN-502 Gen_P'!F24=0,"",'GEN-502 Cos_Gen_P'!F24/'GEN-502 Gen_P'!F24) -> 58.01533781 | G24: =+IF('GEN-502 Gen_P'!G24=0,"",'GEN-502 Cos_Gen_P'!G24/'GEN-502 Gen_P'!G24) -> 55.72406111 | H24: =+IF('GEN-502 Gen_P'!H24>0,'GEN-502 Cos_Gen_P'!H24/'GEN-502 Gen_P'!H24,0) -> 57.27266503
A25: Hydro Caisan No. 05-08 (17,048) | B25: 30.6 | C25: 30.6 | D25: 30.6 | E25: 30.6 | F25: 30.6 | G25: 30.6 | H25: =+IF('GEN-502 Gen_P'!H25>0,'GEN-502 Cos_Gen_P'!H25/'GEN-502 Gen_P'!H25,0) -> 30.6
A26: Electrón Inv. No. 07-08 (34,65) | B26: 69.5 | C26: 69.5 | D26: 69.5 | E26: 69.5 | F26: 69.5 | G26: 69.5 | H26: =+IF('GEN-502 Gen_P'!H26>0,'GEN-502 Cos_Gen_P'!H26/'GEN-502 Gen_P'!H26,0) -> 69.5
A27: Empresa Nacional de Energía No. 24-11 (Cesión) | B27: 79.7 | C27: 79.7 | D27: 79.7 | E27: 79.7 | F27: 79.7 | G27: 79.7 | H27: =+IF('GEN-502 Gen_P'!H27>0,'GEN-502 Cos_Gen_P'!H27/'GEN-502 Gen_P'!H27,0) -> 79.7
A28: Enel Fortuna No. 25-11 | B28: 95.8 | C28: 95.8 | D28: 95.8 | E28: 95.8 | F28: 95.8 | G28: 95.8 | H28: =+IF('GEN-502 Gen_P'!H28>0,'GEN-502 Cos_Gen_P'!H28/'GEN-502 Gen_P'!H28,0) -> 95.8
A29: Electrogeneradora del Istmo No. 26-11 | B29: 63.3 | C29: 63.3 | D29: 63.3 | E29: 63.3 | F29: 63.3 | G29: 63.3 | H29: =+IF('GEN-502 Gen_P'!H29>0,'GEN-502 Cos_Gen_P'!H29/'GEN-502 Gen_P'!H29,0) -> 63.3
A30: ESEPSA No. 27-11 | B30: 91 | C30: 91 | D30: 91 | E30: 91 | F30: 91 | G30: 91 | H30: =+IF('GEN-502 Gen_P'!H30>0,'GEN-502 Cos_Gen_P'!H30/'GEN-502 Gen_P'!H30,0) -> 91
A31: Pedregalito No. 28-11 | B31: 54.2 | C31: 54.2 | D31: 54.2 | E31: 54.2 | F31: 54.2 | G31: 54.2 | H31: =+IF('GEN-502 Gen_P'!H31>0,'GEN-502 Cos_Gen_P'!H31/'GEN-502 Gen_P'!H31,0) -> 54.2
A32: Río Chico No. 29-11 | B32: 54.2 | C32: 54.2 | D32: 54.2 | E32: 54.2 | F32: 54.2 | G32: 54.2 | H32: =+IF('GEN-502 Gen_P'!H32>0,'GEN-502 Cos_Gen_P'!H32/'GEN-502 Gen_P'!H32,0) -> 54.2
A33: Alto Valle No. 30-11 | B33: 54.2 | C33: 54.2 | D33: 54.2 | E33: 54.2 | F33: 54.2 | G33: 54.2 | H33: =+IF('GEN-502 Gen_P'!H33>0,'GEN-502 Cos_Gen_P'!H33/'GEN-502 Gen_P'!H33,0) -> 54.2
A34: Hidroecológica del Teribe No. 31-11 | B34: 102.1 | C34: 102.1 | D34: 102.1 | E34: 102.1 | F34: 102.1 | G34: 102.1 | H34: =+IF('GEN-502 Gen_P'!H34>0,'GEN-502 Cos_Gen_P'!H34/'GEN-502 Gen_P'!H34,0) -> 102.1
A35: Desarrollos Hidroeléctricos Corp. No. 32-11 | B35: 96.5 | C35: 96.5 | D35: 96.5 | E35: 96.5 | F35: 96.5 | G35: 96.5 | H35: =+IF('GEN-502 Gen_P'!H35>0,'GEN-502 Cos_Gen_P'!H35/'GEN-502 Gen_P'!H35,0) -> 96.5
A36: Las Perlas Norte No. 33-11 | B36: 100.8 | C36: 100.8 | D36: 100.8 | E36: 100.8 | F36: 100.8 | G36: 100.8 | H36: =+IF('GEN-502 Gen_P'!H36>0,'GEN-502 Cos_Gen_P'!H36/'GEN-502 Gen_P'!H36,0) -> 100.8
A37: Hidroeléctrica San Lorenzo No. 34-11 | B37: 89.5 | C37: 89.5 | D37: 89.5 | E37: 89.5 | F37: 89.5 | G37: 89.5 | H37: =+IF('GEN-502 Gen_P'!H37>0,'GEN-502 Cos_Gen_P'!H37/'GEN-502 Gen_P'!H37,0) -> 89.5
A38: Caldera Energy Corp. No. 35-11 | B38: 63.3 | C38: 63.3 | D38: 63.3 | E38: 63.3 | F38: 63.3 | G38: 63.3 | H38: =+IF('GEN-502 Gen_P'!H38>0,'GEN-502 Cos_Gen_P'!H38/'GEN-502 Gen_P'!H38,0) -> 63.3
A39: PASO ANCHO No. 86-11 | B39: 99.9 | C39: 99.9 | D39: 99.9 | E39: 99.9 | F39: 99.9 | G39: 99.9 | H39: =+IF('GEN-502 Gen_P'!H39>0,'GEN-502 Cos_Gen_P'!H39/'GEN-502 Gen_P'!H39,0) -> 99.9
A40: Hidroecológica del Teribe No. 87-11 | B40: 111 | C40: 111 | D40: 111 | E40: 111 | F40: 111 | G40: 111 | H40: =+IF('GEN-502 Gen_P'!H40>0,'GEN-502 Cos_Gen_P'!H40/'GEN-502 Gen_P'!H40,0) -> 111
A41: Unión Eólica de Panamá (PE Nuevo Chagres) No. 15-12' | B41: 95 | C41: 95 | D41: 95 | E41: 95 | F41: 95 | G41: 95 | H41: =+IF('GEN-502 Gen_P'!H41>0,'GEN-502 Cos_Gen_P'!H41/'GEN-502 Gen_P'!H41,0) -> 95
A42: Unión Eólica de Panamá (PE Rosa de los Vientos) No. 16-12' | B42: 98 | C42: 98 | D42: 98 | E42: 98 | F42: 98 | G42: 98 | H42: =+IF('GEN-502 Gen_P'!H42>0,'GEN-502 Cos_Gen_P'!H42/'GEN-502 Gen_P'!H42,0) -> 98
A43: Unión Eólica de Panamá (PE Portobelo Ballestillas) No. 17-12' | B43: 108 | C43: 108 | D43: 108 | E43: 108 | F43: 108 | G43: 108 | H43: =+IF('GEN-502 Gen_P'!H43>0,'GEN-502 Cos_Gen_P'!H43/'GEN-502 Gen_P'!H43,0) -> 108
A44: Unión Eólica de Panamá (PE Marañon) No. 18-12' | B44: 110 | C44: 110 | D44: 110 | E44: 110 | F44: 110 | G44: 110 | H44: =+IF('GEN-502 Gen_P'!H44>0,'GEN-502 Cos_Gen_P'!H44/'GEN-502 Gen_P'!H44,0) -> 110
A45: AES No. 117-12 | B45: 88.7 | C45: 88.7 | D45: 88.7 | E45: 88.7 | F45: 88.7 | G45: 88.7 | H45: =+IF('GEN-502 Gen_P'!H45>0,'GEN-502 Cos_Gen_P'!H45/'GEN-502 Gen_P'!H45,0) -> 88.7
A46: HIDRO PIEDRA No. 118-12 | B46: 100 | C46: 100 | D46: 100 | E46: 100 | F46: 100 | G46: 100 | H46: =+IF('GEN-502 Gen_P'!H46>0,'GEN-502 Cos_Gen_P'!H46/'GEN-502 Gen_P'!H46,0) -> 100
A47: Corp. Energ. Del Istmo No. 119-12 | B47: 100 | C47: 100 | D47: 100 | E47: 100 | F47: 100 | G47: 100 | H47: =+IF('GEN-502 Gen_P'!H47>0,'GEN-502 Cos_Gen_P'!H47/'GEN-502 Gen_P'!H47,0) -> 100
A48: Saltos del Francolí No. 121-12 | B48: 103.5 | C48: 103.5 | D48: 103.5 | E48: 103.5 | F48: 103.5 | G48: 103.5 | H48: =+IF('GEN-502 Gen_P'!H48>0,'GEN-502 Cos_Gen_P'!H48/'GEN-502 Gen_P'!H48,0) -> 103.5
A49: ISTMUS HYDRO POWER CORP. No.02-13 | B49: 120 | C49: 120 | D49: 120 | E49: 120 | F49: 120 | G49: 120 | H49: =+IF('GEN-502 Gen_P'!H49>0,'GEN-502 Cos_Gen_P'!H49/'GEN-502 Gen_P'!H49,0) -> 120
A50: CALDERA ENERGY CORP. No.03-13 | B50: 122.5 | C50: 122.5 | D50: 122.5 | E50: 122.5 | F50: 122.5 | G50: 122.5 | H50: =+IF('GEN-502 Gen_P'!H50>0,'GEN-502 Cos_Gen_P'!H50/'GEN-502 Gen_P'!H50,0) -> 122.5
A51: ELECTROGENERADORA DEL ISTMO, S.A. No.04-13 | B51: 125 | C51: 125 | D51: 125 | E51: 125 | F51: 125 | G51: 125 | H51: =+IF('GEN-502 Gen_P'!H51>0,'GEN-502 Cos_Gen_P'!H51/'GEN-502 Gen_P'!H51,0) -> 125
A52: FOUNTAIN INTERTRADE CORP. No.05-13 | B52: 132.3 | C52: 132.3 | D52: 132.3 | E52: 132.3 | F52: 132.3 | G52: 132.3 | H52: =+IF('GEN-502 Gen_P'!H52>0,'GEN-502 Cos_Gen_P'!H52/'GEN-502 Gen_P'!H52,0) -> 132.3
A53: HIDROIBERICA, S.A. No.06-13 | B53: 90 | C53: 90 | D53: 90 | E53: 90 | F53: 90 | G53: 90 | H53: =+IF('GEN-502 Gen_P'!H53>0,'GEN-502 Cos_Gen_P'!H53/'GEN-502 Gen_P'!H53,0) -> 90
A54: NAVITAS INTERNACIONAL, S.A. No.07-13 | B54: 85 | C54: 85 | D54: 85 | E54: 85 | F54: 85 | G54: 85 | H54: =+IF('GEN-502 Gen_P'!H54>0,'GEN-502 Cos_Gen_P'!H54/'GEN-502 Gen_P'!H54,0) -> 85
A55: HIDROECOLÓGICA DEL TERIBE, S.A. No.08-13 | B55: 0 | C55: 0 | D55: 136 | E55: 136 | F55: 136 | G55: 136 | H55: =+IF('GEN-502 Gen_P'!H55>0,'GEN-502 Cos_Gen_P'!H55/'GEN-502 Gen_P'!H55,0) -> 136
A56: HIDRONORTH CORP. No.09-13 | B56: 140 | C56: 140 | D56: 140 | E56: 140 | F56: 140 | G56: 140 | H56: =+IF('GEN-502 Gen_P'!H56>0,'GEN-502 Cos_Gen_P'!H56/'GEN-502 Gen_P'!H56,0) -> 140
A57: EMPRESA NACIONAL DE ENERGÍA, S.A. No.24-13 | B57: 127.5 | C57: 127.5 | D57: 127.5 | E57: 127.5 | F57: 127.5 | G57: 127.5 | H57: =+IF('GEN-502 Gen_P'!H57>0,'GEN-502 Cos_Gen_P'!H57/'GEN-502 Gen_P'!H57,0) -> 127.5
A58: FUERZA ELÉCTRICA DEL ISTMO, S.A. No.25-13 | B58: 127.6 | C58: 127.6 | D58: 127.6 | E58: 127.6 | F58: 127.6 | G58: 127.6 | H58: =+IF('GEN-502 Gen_P'!H58>0,'GEN-502 Cos_Gen_P'!H58/'GEN-502 Gen_P'!H58,0) -> 127.6
A59: CAFÉ DE ELETA, S.A. No.26-13 | B59: 128 | C59: 128 | D59: 128 | E59: 128 | F59: 128 | G59: 128 | H59: =+IF('GEN-502 Gen_P'!H59>0,'GEN-502 Cos_Gen_P'!H59/'GEN-502 Gen_P'!H59,0) -> 128
A60: ENERGÍA Y SERVICIOS DE PANAMÁ, S.A. No.27-13 | B60: 132.5 | C60: 132.5 | D60: 132.5 | E60: 132.5 | F60: 132.5 | G60: 132.5 | H60: =+IF('GEN-502 Gen_P'!H60>0,'GEN-502 Cos_Gen_P'!H60/'GEN-502 Gen_P'!H60,0) -> 132.5
A61: GENERADORA PEDREGALITO, S.A. No.28-13 | B61: 132 | C61: 132 | D61: 132 | E61: 132 | F61: 132 | G61: 132 | H61: =+IF('GEN-502 Gen_P'!H61>0,'GEN-502 Cos_Gen_P'!H61/'GEN-502 Gen_P'!H61,0) -> 132
A62: GENERADORA RIO CHICO, S.A. No.29-13 | B62: 132 | C62: 132 | D62: 132 | E62: 132 | F62: 132 | G62: 132 | H62: =+IF('GEN-502 Gen_P'!H62>0,'GEN-502 Cos_Gen_P'!H62/'GEN-502 Gen_P'!H62,0) -> 132
A63: GENERADORA ALTO VALLE, S.A. No.30-13 | B63: 132.5 | C63: 132.5 | D63: 132.5 | E63: 132.5 | F63: 132.5 | G63: 132.5 | H63: =+IF('GEN-502 Gen_P'!H63>0,'GEN-502 Cos_Gen_P'!H63/'GEN-502 Gen_P'!H63,0) -> 132.5
A64: HYDRO CAISÁN, S.A. No.31-13 | B64: 132.5 | C64: 132.5 | D64: 132.5 | E64: 132.5 | F64: 132.5 | G64: 132.5 | H64: =+IF('GEN-502 Gen_P'!H64>0,'GEN-502 Cos_Gen_P'!H64/'GEN-502 Gen_P'!H64,0) -> 132.5
A65: FERSA PANAMÁ, S.A. No 05-14 | B65: 95 | C65: 95 | D65: 95 | E65: 95 | F65: 95 | G65: 95 | H65: =+IF('GEN-502 Gen_P'!H65>0,'GEN-502 Cos_Gen_P'!H65/'GEN-502 Gen_P'!H65,0) -> 95
A66: Panama Solar2 No. 07-15 | B66: 86 | C66: 86 | D66: 86 | E66: 86 | F66: 86 | G66: 86 | H66: =+IF('GEN-502 Gen_P'!H66>0,'GEN-502 Cos_Gen_P'!H66/'GEN-502 Gen_P'!H66,0) -> 86
A67: Solpac Investment No. 08-15 | B67: 104.8 | C67: 104.8 | D67: 104.8 | E67: 104.8 | F67: 104.8 | G67: 104.8 | H67: =+IF('GEN-502 Gen_P'!H67>0,'GEN-502 Cos_Gen_P'!H67/'GEN-502 Gen_P'!H67,0) -> 104.8
A68: GAS NATURAL ATLÁNTICO No. 16-15 | B68: =26.8*(1+0.84*('Compras (p)'!B$21/2.8-1)) -> 26.398 | C68: =26.8*(1+0.84*('Compras (p)'!C$21/2.8-1)) -> 26.398 | D68: =26.8*(1+0.84*('Compras (p)'!D$21/2.8-1)) -> 26.398 | E68: =26.8*(1+0.84*('Compras (p)'!E$21/2.8-1)) -> 26.398 | F68: =26.8*(1+0.84*('Compras (p)'!F$21/2.8-1)) -> 26.398 | G68: =26.8*(1+0.84*('Compras (p)'!G$21/2.8-1)) -> 26.398 | H68: =+IF('GEN-502 Gen_P'!H68>0,'GEN-502 Cos_Gen_P'!H68/'GEN-502 Gen_P'!H68,0) -> 26.398
A69: MARTANO INC No. 18-15 | B69: 20.9 | C69: 20.9 | D69: 20.9 | E69: 20.9 | F69: 20.9 | G69: 20.9 | H69: =+IF('GEN-502 Gen_P'!H69>0,'GEN-502 Cos_Gen_P'!H69/'GEN-502 Gen_P'!H69,0) -> 20.9
A70: AUTORIDAD DEL CANAL DE PANAMÁ No. 27-21 | H70: =+IF('GEN-502 Gen_P'!H70>0,'GEN-502 Cos_Gen_P'!H70/'GEN-502 Gen_P'!H70,0) -> 0
A71: GENERADORA DEL ATLÁNTICO, S.A. No. 29-21 | H71: =+IF('GEN-502 Gen_P'!H71>0,'GEN-502 Cos_Gen_P'!H71/'GEN-502 Gen_P'!H71,0) -> 0
A72: GENERADORA DEL ATLÁNTICO, S.A. No. 30-21 | H72: =+IF('GEN-502 Gen_P'!H72>0,'GEN-502 Cos_Gen_P'!H72/'GEN-502 Gen_P'!H72,0) -> 0
A73: PANAM GENERATING LTD No. 31-21 | H73: =+IF('GEN-502 Gen_P'!H73>0,'GEN-502 Cos_Gen_P'!H73/'GEN-502 Gen_P'!H73,0) -> 0
A74: TROPITÉRMICA, S.A. No. 33-21 | H74: =+IF('GEN-502 Gen_P'!H74>0,'GEN-502 Cos_Gen_P'!H74/'GEN-502 Gen_P'!H74,0) -> 0
A75: EMPRESA NACIONAL DE ENERGÍA, S.A. No. 02-23 | B75: 110.7 | C75: 0 | D75: 73.8 | E75: 73.8 | F75: 73.8 | G75: 0 | H75: =+IF('GEN-502 Gen_P'!H75>0,'GEN-502 Cos_Gen_P'!H75/'GEN-502 Gen_P'!H75,0) -> 86.68442353
A76: FOUNTAIN HYDRO POWER CORP No. 03-23 | B76: 105 | C76: 0 | D76: 0 | E76: 0 | F76: 0 | G76: 0 | H76: =+IF('GEN-502 Gen_P'!H76>0,'GEN-502 Cos_Gen_P'!H76/'GEN-502 Gen_P'!H76,0) -> 105
A77: GENERADORA DEL ISTMO, S.A. No. 04-23 | B77: 90.63 | H77: =+IF('GEN-502 Gen_P'!H77>0,'GEN-502 Cos_Gen_P'!H77/'GEN-502 Gen_P'!H77,0) -> 90.63
A78: HIDRO BOQUERÓN, S.A. No. 05-23 | B78: 74.5 | C78: 74.5 | D78: 74.5 | E78: 74.5 | F78: 74.5 | G78: 0 | H78: =+IF('GEN-502 Gen_P'!H78>0,'GEN-502 Cos_Gen_P'!H78/'GEN-502 Gen_P'!H78,0) -> 74.5
A79: HIDROIBÉRICA No. 06-23 | B79: 80 | C79: 80 | D79: 80 | E79: 80 | F79: 80 | G79: 80 | H79: =+IF('GEN-502 Gen_P'!H79>0,'GEN-502 Cos_Gen_P'!H79/'GEN-502 Gen_P'!H79,0) -> 80
A80: IDEAL PANAMÁ, S.A. No. 08-23 | B80: 90 | H80: =+IF('GEN-502 Gen_P'!H80>0,'GEN-502 Cos_Gen_P'!H80/'GEN-502 Gen_P'!H80,0) -> 90
A81: SOLAR BOQUERÓN, S.A. No. 12-23 | B81: 78.5 | C81: 78.5 | D81: 78.5 | E81: 78.5 | F81: 78.5 | G81: 78.5 | H81: =+IF('GEN-502 Gen_P'!H81>0,'GEN-502 Cos_Gen_P'!H81/'GEN-502 Gen_P'!H81,0) -> 78.5
A82: AUTORIDAD DEL CANAL DE PANAMÁ No. 13-23 | H82: =+IF('GEN-502 Gen_P'!H82>0,'GEN-502 Cos_Gen_P'!H82/'GEN-502 Gen_P'!H82,0) -> 0
A83: CELSIA CENTROAMÉRICA, S.A. No. 14-23 | H83: =+IF('GEN-502 Gen_P'!H83>0,'GEN-502 Cos_Gen_P'!H83/'GEN-502 Gen_P'!H83,0) -> 0
A84: GENERADORA DEL ATLÁNTICO, S.A. No. 15-23 | H84: =+IF('GEN-502 Gen_P'!H84>0,'GEN-502 Cos_Gen_P'!H84/'GEN-502 Gen_P'!H84,0) -> 0
A85: GENERADORA DEL ATLÁNTICO, S.A. No. 16-23 | H85: =+IF('GEN-502 Gen_P'!H85>0,'GEN-502 Cos_Gen_P'!H85/'GEN-502 Gen_P'!H85,0) -> 0
A86: PEDREGAL POWER, S. DE R.L. No. 17-23 | H86: =+IF('GEN-502 Gen_P'!H86>0,'GEN-502 Cos_Gen_P'!H86/'GEN-502 Gen_P'!H86,0) -> 0
A87: PANAM GENERATING LTD No. 18-23 | H87: =+IF('GEN-502 Gen_P'!H87>0,'GEN-502 Cos_Gen_P'!H87/'GEN-502 Gen_P'!H87,0) -> 0
A88: PANAM GENERATING LTD No. 19-23 | H88: =+IF('GEN-502 Gen_P'!H88>0,'GEN-502 Cos_Gen_P'!H88/'GEN-502 Gen_P'!H88,0) -> 0
A89: SPARKLE POWER, S.A. No. 20-23 | H89: =+IF('GEN-502 Gen_P'!H89>0,'GEN-502 Cos_Gen_P'!H89/'GEN-502 Gen_P'!H89,0) -> 0
A90: TROPITÉRMICA, S.A. No. 21-23 | H90: =+IF('GEN-502 Gen_P'!H90>0,'GEN-502 Cos_Gen_P'!H90/'GEN-502 Gen_P'!H90,0) -> 0

Sheet GEN-502 Pre_Gen_FP
A1: INFORMACION PARA ACTUALIZAR: CARGO POR GENERACION
A2: =+'Compras (p)'!A2 -> EDEMET
A3: Precio Mensual de la Energía en Horas Fuera de Punta (B/./KWh)
B4: PRECIO ESTIMADO DE ENERGIA EN HORAS FUERA DE PUNTA
A5: Detalle | B5: 2023-07-01 | C5: 2023-08-01 | D5: 2023-09-01 | E5: 2023-10-01 | F5: 2023-11-01 | G5: 2023-12-01 | H5: Promedio
A8: TOTAL | B8: =+IF('GEN-502 Gen_FP'!B8=0,"",'GEN-502 Cos_Gen_FP'!B8/'GEN-502 Gen_FP'!B8) -> 55.98655174 | C8: =+IF('GEN-502 Gen_FP'!C8=0,"",'GEN-502 Cos_Gen_FP'!C8/'GEN-502 Gen_FP'!C8) -> 57.61392966 | D8: =+IF('GEN-502 Gen_FP'!D8=0,"",'GEN-502 Cos_Gen_FP'!D8/'GEN-502 Gen_FP'!D8) -> 57.47117516 | E8: =+IF('GEN-502 Gen_FP'!E8=0,"",'GEN-502 Cos_Gen_FP'!E8/'GEN-502 Gen_FP'!E8) -> 57.5776859 | F8: =+IF('GEN-502 Gen_FP'!F8=0,"",'GEN-502 Cos_Gen_FP'!F8/'GEN-502 Gen_FP'!F8) -> 56.8750401 | G8: =+IF('GEN-502 Gen_FP'!G8=0,"",'GEN-502 Cos_Gen_FP'!G8/'GEN-502 Gen_FP'!G8) -> 56.24174381 | H8: =+IF('GEN-502 Gen_FP'!H8>0,'GEN-502 Cos_Gen_FP'!H8/'GEN-502 Gen_FP'!H8,0) -> 56.96075531
A9: Generación Propia | H9: =+IF('GEN-502 Gen_FP'!H9>0,'GEN-502 Cos_Gen_FP'!H9/'GEN-502 Gen_FP'!H9,0) -> 0
A10: 0 | H10: =+IF('GEN-502 Gen_FP'!H10>0,'GEN-502 Cos_Gen_FP'!H10/'GEN-502 Gen_FP'!H10,0) -> 0
A11: 0 | H11: =+IF('GEN-502 Gen_FP'!H11>0,'GEN-502 Cos_Gen_FP'!H11/'GEN-502 Gen_FP'!H11,0) -> 0
A12: 0 | H12: =+IF('GEN-502 Gen_FP'!H12>0,'GEN-502 Cos_Gen_FP'!H12/'GEN-502 Gen_FP'!H12,0) -> 0
A13: 0 | H13: =+IF('GEN-502 Gen_FP'!H13>0,'GEN-502 Cos_Gen_FP'!H13/'GEN-502 Gen_FP'!H13,0) -> 0
A14: 0 | H14: =+IF('GEN-502 Gen_FP'!H14>0,'GEN-502 Cos_Gen_FP'!H14/'GEN-502 Gen_FP'!H14,0) -> 0
A15: Sub-Total Mercado Mayorista | B15: =+IF('GEN-502 Gen_FP'!B15=0,"",'GEN-502 Cos_Gen_FP'!B15/'GEN-502 Gen_FP'!B15) -> 55.98655174 | C15: =+IF('GEN-502 Gen_FP'!C15=0,"",'GEN-502 Cos_Gen_FP'!C15/'GEN-502 Gen_FP'!C15) -> 57.61392966 | D15: =+IF('GEN-502 Gen_FP'!D15=0,"",'GEN-502 Cos_Gen_FP'!D15/'GEN-502 Gen_FP'!D15) -> 57.47117516 | E15: =+IF('GEN-502 Gen_FP'!E15=0,"",'GEN-502 Cos_Gen_FP'!E15/'GEN-502 Gen_FP'!E15) -> 57.5776859 | F15: =+IF('GEN-502 Gen_FP'!F15=0,"",'GEN-502 Cos_Gen_FP'!F15/'GEN-502 Gen_FP'!F15) -> 56.8750401 | G15: =+IF('GEN-502 Gen_FP'!G15=0,"",'GEN-502 Cos_Gen_FP'!G15/'GEN-502 Gen_FP'!G15) -> 56.24174381 | H15: =+IF('GEN-502 Gen_FP'!H15>0,'GEN-502 Cos_Gen_FP'!H15/'GEN-502 Gen_FP'!H15,0) -> 56.96075531
A16: Mercado Ocasional | B16: 100 | C16: =+B16 -> 100 | D16: =+C16 -> 100 | E16: 100 | F16: 100 | G16: 100 | H16: =+IF('GEN-502 Gen_P'!H16<>0,'GEN-502 Cos_Gen_P'!H16/'GEN-502 Gen_P'!H16,0) -> 100
H17: =+IF('GEN-502 Gen_FP'!H17>0,'GEN-502 Cos_Gen_FP'!H17/'GEN-502 Gen_FP'!H17,0) -> 0
H18: =+IF('GEN-502 Gen_FP'!H18>0,'GEN-502 Cos_Gen_FP'!H18/'GEN-502 Gen_FP'!H18,0) -> 0
H19: =+IF('GEN-502 Gen_FP'!H19>0,'GEN-502 Cos_Gen_FP'!H19/'GEN-502 Gen_FP'!H19,0) -> 0
H20: =+IF('GEN-502 Gen_FP'!H20>0,'GEN-502 Cos_Gen_FP'!H20/'GEN-502 Gen_FP'!H20,0) -> 0
H21: =+IF('GEN-502 Gen_FP'!H21>0,'GEN-502 Cos_Gen_FP'!H21/'GEN-502 Gen_FP'!H21,0) -> 0
H22: =+IF('GEN-502 Gen_FP'!H22>0,'GEN-502 Cos_Gen_FP'!H22/'GEN-502 Gen_FP'!H22,0) -> 0
H23: =+IF('GEN-502 Gen_FP'!H23>0,'GEN-502 Cos_Gen_FP'!H23/'GEN-502 Gen_FP'!H23,0) -> 0
A24: Sub-Total Contratos | B24: =+IF('GEN-502 Gen_FP'!B24=0,"",'GEN-502 Cos_Gen_FP'!B24/'GEN-502 Gen_FP'!B24) -> 56.37476657 | C24: =+IF('GEN-502 Gen_FP'!C24=0,"",'GEN-502 Cos_Gen_FP'!C24/'GEN-502 Gen_FP'!C24) -> 57.15429111 | D24: =+IF('GEN-502 Gen_FP'!D24=0,"",'GEN-502 Cos_Gen_FP'!D24/'GEN-502 Gen_FP'!D24) -> 58.07791812 | E24: =+IF('GEN-502 Gen_FP'!E24=0,"",'GEN-502 Cos_Gen_FP'!E24/'GEN-502 Gen_FP'!E24) -> 58.31440368 | F24: =+IF('GEN-502 Gen_FP'!F24=0,"",'GEN-502 Cos_Gen_FP'!F24/'GEN-502 Gen_FP'!F24) -> 58.01533781 | G24: =+IF('GEN-502 Gen_FP'!G24=0,"",'GEN-502 Cos_Gen_FP'!G24/'GEN-502 Gen_FP'!G24) -> 55.72406111 | H24: =+IF('GEN-502 Gen_FP'!H24>0,'GEN-502 Cos_Gen_FP'!H24/'GEN-502 Gen_FP'!H24,0) -> 57.27266503
A25: Hydro Caisan No. 05-08 (17,048) | B25: 30.6 | C25: 30.6 | D25: 30.6 | E25: 30.6 | F25: 30.6 | G25: 30.6 | H25: =+IF('GEN-502 Gen_FP'!H25>0,'GEN-502 Cos_Gen_FP'!H25/'GEN-502 Gen_FP'!H25,0) -> 30.6
A26: Electrón Inv. No. 07-08 (34,65) | B26: 69.5 | C26: 69.5 | D26: 69.5 | E26: 69.5 | F26: 69.5 | G26: 69.5 | H26: =+IF('GEN-502 Gen_FP'!H26>0,'GEN-502 Cos_Gen_FP'!H26/'GEN-502 Gen_FP'!H26,0) -> 69.5
A27: Empresa Nacional de Energía No. 24-11 (Cesión) | B27: 79.7 | C27: 79.7 | D27: 79.7 | E27: 79.7 | F27: 79.7 | G27: 79.7 | H27: =+IF('GEN-502 Gen_FP'!H27>0,'GEN-502 Cos_Gen_FP'!H27/'GEN-502 Gen_FP'!H27,0) -> 79.7
A28: Enel Fortuna No. 25-11 | B28: 95.8 | C28: 95.8 | D28: 95.8 | E28: 95.8 | F28: 95.8 | G28: 95.8 | H28: =+IF('GEN-502 Gen_FP'!H28>0,'GEN-502 Cos_Gen_FP'!H28/'GEN-502 Gen_FP'!H28,0) -> 95.8
A29: Electrogeneradora del Istmo No. 26-11 | B29: 63.3 | C29: 63.3 | D29: 63.3 | E29: 63.3 | F29: 63.3 | G29: 63.3 | H29: =+IF('GEN-502 Gen_FP'!H29>0,'GEN-502 Cos_Gen_FP'!H29/'GEN-502 Gen_FP'!H29,0) -> 63.3
A30: ESEPSA No. 27-11 | B30: 91 | C30: 91 | D30: 91 | E30: 91 | F30: 91 | G30: 91 | H30: =+IF('GEN-502 Gen_FP'!H30>0,'GEN-502 Cos_Gen_FP'!H30/'GEN-502 Gen_FP'!H30,0) -> 91
A31: Pedregalito No. 28-11 | B31: 54.2 | C31: 54.2 | D31: 54.2 | E31: 54.2 | F31: 54.2 | G31: 54.2 | H31: =+IF('GEN-502 Gen_FP'!H31>0,'GEN-502 Cos_Gen_FP'!H31/'GEN-502 Gen_FP'!H31,0) -> 54.2
A32: Río Chico No. 29-11 | B32: 54.2 | C32: 54.2 | D32: 54.2 | E32: 54.2 | F32: 54.2 | G32: 54.2 | H32: =+IF('GEN-502 Gen_FP'!H32>0,'GEN-502 Cos_Gen_FP'!H32/'GEN-502 Gen_FP'!H32,0) -> 54.2
A33: Alto Valle No. 30-11 | B33: 54.2 | C33: 54.2 | D33: 54.2 | E33: 54.2 | F33: 54.2 | G33: 54.2 | H33: =+IF('GEN-502 Gen_FP'!H33>0,'GEN-502 Cos_Gen_FP'!H33/'GEN-502 Gen_FP'!H33,0) -> 54.2
A34: Hidroecológica del Teribe No. 31-11 | B34: 102.1 | C34: 102.1 | D34: 102.1 | E34: 102.1 | F34: 102.1 | G34: 102.1 | H34: =+IF('GEN-502 Gen_FP'!H34>0,'GEN-502 Cos_Gen_FP'!H34/'GEN-502 Gen_FP'!H34,0) -> 102.1
A35: Desarrollos Hidroeléctricos Corp. No. 32-11 | B35: 96.5 | C35: 96.5 | D35: 96.5 | E35: 96.5 | F35: 96.5 | G35: 96.5 | H35: =+IF('GEN-502 Gen_FP'!H35>0,'GEN-502 Cos_Gen_FP'!H35/'GEN-502 Gen_FP'!H35,0) -> 96.5
A36: Las Perlas Norte No. 33-11 | B36: 100.8 | C36: 100.8 | D36: 100.8 | E36: 100.8 | F36: 100.8 | G36: 100.8 | H36: =+IF('GEN-502 Gen_FP'!H36>0,'GEN-502 Cos_Gen_FP'!H36/'GEN-502 Gen_FP'!H36,0) -> 100.8
A37: Hidroeléctrica San Lorenzo No. 34-11 | B37: 89.5 | C37: 89.5 | D37: 89.5 | E37: 89.5 | F37: 89.5 | G37: 89.5 | H37: =+IF('GEN-502 Gen_FP'!H37>0,'GEN-502 Cos_Gen_FP'!H37/'GEN-502 Gen_FP'!H37,0) -> 89.5
A38: Caldera Energy Corp. No. 35-11 | B38: 63.3 | C38: 63.3 | D38: 63.3 | E38: 63.3 | F38: 63.3 | G38: 63.3 | H38: =+IF('GEN-502 Gen_FP'!H38>0,'GEN-502 Cos_Gen_FP'!H38/'GEN-502 Gen_FP'!H38,0) -> 63.3
A39: PASO ANCHO No. 86-11 | B39: 99.9 | C39: 99.9 | D39: 99.9 | E39: 99.9 | F39: 99.9 | G39: 99.9 | H39: =+IF('GEN-502 Gen_FP'!H39>0,'GEN-502 Cos_Gen_FP'!H39/'GEN-502 Gen_FP'!H39,0) -> 99.9
A40: Hidroecológica del Teribe No. 87-11 | B40: 111 | C40: 111 | D40: 111 | E40: 111 | F40: 111 | G40: 111 | H40: =+IF('GEN-502 Gen_FP'!H40>0,'GEN-502 Cos_Gen_FP'!H40/'GEN-502 Gen_FP'!H40,0) -> 111
A41: Unión Eólica de Panamá (PE Nuevo Chagres) No. 15-12' | B41: 95 | C41: 95 | D41: 95 | E41: 95 | F41: 95 | G41: 95 | H41: =+IF('GEN-502 Gen_FP'!H41>0,'GEN-502 Cos_Gen_FP'!H41/'GEN-502 Gen_FP'!H41,0) -> 95
A42: Unión Eólica de Panamá (PE Rosa de los Vientos) No. 16-12' | B42: 98 | C42: 98 | D42: 98 | E42: 98 | F42: 98 | G42: 98 | H42: =+IF('GEN-502 Gen_FP'!H42>0,'GEN-502 Cos_Gen_FP'!H42/'GEN-502 Gen_FP'!H42,0) -> 98
A43: Unión Eólica de Panamá (PE Portobelo Ballestillas) No. 17-12' | B43: 108 | C43: 108 | D43: 108 | E43: 108 | F43: 108 | G43: 108 | H43: =+IF('GEN-502 Gen_FP'!H43>0,'GEN-502 Cos_Gen_FP'!H43/'GEN-502 Gen_FP'!H43,0) -> 108
A44: Unión Eólica de Panamá (PE Marañon) No. 18-12' | B44: 110 | C44: 110 | D44: 110 | E44: 110 | F44: 110 | G44: 110 | H44: =+IF('GEN-502 Gen_FP'!H44>0,'GEN-502 Cos_Gen_FP'!H44/'GEN-502 Gen_FP'!H44,0) -> 110
A45: AES No. 117-12 | B45: 88.7 | C45: 88.7 | D45: 88.7 | E45: 88.7 | F45: 88.7 | G45: 88.7 | H45: =+IF('GEN-502 Gen_FP'!H45>0,'GEN-502 Cos_Gen_FP'!H45/'GEN-502 Gen_FP'!H45,0) -> 88.7
A46: HIDRO PIEDRA No. 118-12 | B46: 100 | C46: 100 | D46: 100 | E46: 100 | F46: 100 | G46: 100 | H46: =+IF('GEN-502 Gen_FP'!H46>0,'GEN-502 Cos_Gen_FP'!H46/'GEN-502 Gen_FP'!H46,0) -> 100
A47: Corp. Energ. Del Istmo No. 119-12 | B47: 100 | C47: 100 | D47: 100 | E47: 100 | F47: 100 | G47: 100 | H47: =+IF('GEN-502 Gen_FP'!H47>0,'GEN-502 Cos_Gen_FP'!H47/'GEN-502 Gen_FP'!H47,0) -> 100
A48: Saltos del Francolí No. 121-12 | B48: 103.5 | C48: 103.5 | D48: 103.5 | E48: 103.5 | F48: 103.5 | G48: 103.5 | H48: =+IF('GEN-502 Gen_FP'!H48>0,'GEN-502 Cos_Gen_FP'!H48/'GEN-502 Gen_FP'!H48,0) -> 103.5
A49: ISTMUS HYDRO POWER CORP. No.02-13 | B49: 120 | C49: 120 | D49: 120 | E49: 120 | F49: 120 | G49: 120 | H49: =+IF('GEN-502 Gen_FP'!H49>0,'GEN-502 Cos_Gen_FP'!H49/'GEN-502 Gen_FP'!H49,0) -> 120
A50: CALDERA ENERGY CORP. No.03-13 | B50: 122.5 | C50: 122.5 | D50: 122.5 | E50: 122.5 | F50: 122.5 | G50: 122.5 | H50: =+IF('GEN-502 Gen_FP'!H50>0,'GEN-502 Cos_Gen_FP'!H50/'GEN-502 Gen_FP'!H50,0) -> 122.5
A51: ELECTROGENERADORA DEL ISTMO, S.A. No.04-13 | B51: 125 | C51: 125 | D51: 125 | E51: 125 | F51: 125 | G51: 125 | H51: =+IF('GEN-502 Gen_FP'!H51>0,'GEN-502 Cos_Gen_FP'!H51/'GEN-502 Gen_FP'!H51,0) -> 125
A52: FOUNTAIN INTERTRADE CORP. No.05-13 | B52: 132.3 | C52: 132.3 | D52: 132.3 | E52: 132.3 | F52: 132.3 | G52: 132.3 | H52: =+IF('GEN-502 Gen_FP'!H52>0,'GEN-502 Cos_Gen_FP'!H52/'GEN-502 Gen_FP'!H52,0) -> 132.3
A53: HIDROIBERICA, S.A. No.06-13 | B53: 90 | C53: 90 | D53: 90 | E53: 90 | F53: 90 | G53: 90 | H53: =+IF('GEN-502 Gen_FP'!H53>0,'GEN-502 Cos_Gen_FP'!H53/'GEN-502 Gen_FP'!H53,0) -> 90
A54: NAVITAS INTERNACIONAL, S.A. No.07-13 | B54: 85 | C54: 85 | D54: 85 | E54: 85 | F54: 85 | G54: 85 | H54: =+IF('GEN-502 Gen_FP'!H54>0,'GEN-502 Cos_Gen_FP'!H54/'GEN-502 Gen_FP'!H54,0) -> 85
A55: HIDROECOLÓGICA DEL TERIBE, S.A. No.08-13 | B55: 0 | C55: 0 | D55: 136 | E55: 136 | F55: 136 | G55: 136 | H55: =+IF('GEN-502 Gen_FP'!H55>0,'GEN-502 Cos_Gen_FP'!H55/'GEN-502 Gen_FP'!H55,0) -> 136
A56: HIDRONORTH CORP. No.09-13 | B56: 140 | C56: 140 | D56: 140 | E56: 140 | F56: 140 | G56: 140 | H56: =+IF('GEN-502 Gen_FP'!H56>0,'GEN-502 Cos_Gen_FP'!H56/'GEN-502 Gen_FP'!H56,0) -> 140
A57: EMPRESA NACIONAL DE ENERGÍA, S.A. No.24-13 | B57: 127.5 | C57: 127.5 | D57: 127.5 | E57: 127.5 | F57: 127.5 | G57: 127.5 | H57: =+IF('GEN-502 Gen_FP'!H57>0,'GEN-502 Cos_Gen_FP'!H57/'GEN-502 Gen_FP'!H57,0) -> 127.5
A58: FUERZA ELÉCTRICA DEL ISTMO, S.A. No.25-13 | B58: 127.6 | C58: 127.6 | D58: 127.6 | E58: 127.6 | F58: 127.6 | G58: 127.6 | H58: =+IF('GEN-502 Gen_FP'!H58>0,'GEN-502 Cos_Gen_FP'!H58/'GEN-502 Gen_FP'!H58,0) -> 127.6
A59: CAFÉ DE ELETA, S.A. No.26-13 | B59: 128 | C59: 128 | D59: 128 | E59: 128 | F59: 128 | G59: 128 | H59: =+IF('GEN-502 Gen_FP'!H59>0,'GEN-502 Cos_Gen_FP'!H59/'GEN-502 Gen_FP'!H59,0) -> 128
A60: ENERGÍA Y SERVICIOS DE PANAMÁ, S.A. No.27-13 | B60: 132.5 | C60: 132.5 | D60: 132.5 | E60: 132.5 | F60: 132.5 | G60: 132.5 | H60: =+IF('GEN-502 Gen_FP'!H60>0,'GEN-502 Cos_Gen_FP'!H60/'GEN-502 Gen_FP'!H60,0) -> 132.5
A61: GENERADORA PEDREGALITO, S.A. No.28-13 | B61: 132 | C61: 132 | D61: 132 | E61: 132 | F61: 132 | G61: 132 | H61: =+IF('GEN-502 Gen_FP'!H61>0,'GEN-502 Cos_Gen_FP'!H61/'GEN-502 Gen_FP'!H61,0) -> 132
A62: GENERADORA RIO CHICO, S.A. No.29-13 | B62: 132 | C62: 132 | D62: 132 | E62: 132 | F62: 132 | G62: 132 | H62: =+IF('GEN-502 Gen_FP'!H62>0,'GEN-502 Cos_Gen_FP'!H62/'GEN-502 Gen_FP'!H62,0) -> 132
A63: GENERADORA ALTO VALLE, S.A. No.30-13 | B63: 132.5 | C63: 132.5 | D63: 132.5 | E63: 132.5 | F63: 132.5 | G63: 132.5 | H63: =+IF('GEN-502 Gen_FP'!H63>0,'GEN-502 Cos_Gen_FP'!H63/'GEN-502 Gen_FP'!H63,0) -> 132.5
A64: HYDRO CAISÁN, S.A. No.31-13 | B64: 132.5 | C64: 132.5 | D64: 132.5 | E64: 132.5 | F64: 132.5 | G64: 132.5 | H64: =+IF('GEN-502 Gen_FP'!H64>0,'GEN-502 Cos_Gen_FP'!H64/'GEN-502 Gen_FP'!H64,0) -> 132.5
A65: FERSA PANAMÁ, S.A. No 05-14 | B65: 95 | C65: 95 | D65: 95 | E65: 95 | F65: 95 | G65: 95 | H65: =+IF('GEN-502 Gen_FP'!H65>0,'GEN-502 Cos_Gen_FP'!H65/'GEN-502 Gen_FP'!H65,0) -> 95
A66: Panama Solar2 No. 07-15 | B66: 86 | C66: 86 | D66: 86 | E66: 86 | F66: 86 | G66: 86 | H66: =+IF('GEN-502 Gen_FP'!H66>0,'GEN-502 Cos_Gen_FP'!H66/'GEN-502 Gen_FP'!H66,0) -> 86
A67: Solpac Investment No. 08-15 | B67: 104.8 | C67: 104.8 | D67: 104.8 | E67: 104.8 | F67: 104.8 | G67: 104.8 | H67: =+IF('GEN-502 Gen_FP'!H67>0,'GEN-502 Cos_Gen_FP'!H67/'GEN-502 Gen_FP'!H67,0) -> 104.8
A68: GAS NATURAL ATLÁNTICO No. 16-15 | B68: =26.8*(1+0.84*('Compras (p)'!B$21/2.8-1)) -> 26.398 | C68: =26.8*(1+0.84*('Compras (p)'!C$21/2.8-1)) -> 26.398 | D68: =26.8*(1+0.84*('Compras (p)'!D$21/2.8-1)) -> 26.398 | E68: =26.8*(1+0.84*('Compras (p)'!E$21/2.8-1)) -> 26.398 | F68: =26.8*(1+0.84*('Compras (p)'!F$21/2.8-1)) -> 26.398 | G68: =26.8*(1+0.84*('Compras (p)'!G$21/2.8-1)) -> 26.398 | H68: =+IF('GEN-502 Gen_FP'!H68>0,'GEN-502 Cos_Gen_FP'!H68/'GEN-502 Gen_FP'!H68,0) -> 26.398
A69: MARTANO INC No. 18-15 | B69: 20.9 | C69: 20.9 | D69: 20.9 | E69: 20.9 | F69: 20.9 | G69: 20.9 | H69: =+IF('GEN-502 Gen_FP'!H69>0,'GEN-502 Cos_Gen_FP'!H69/'GEN-502 Gen_FP'!H69,0) -> 20.9
A70: AUTORIDAD DEL CANAL DE PANAMÁ No. 27-21 | H70: =+IF('GEN-502 Gen_FP'!H70>0,'GEN-502 Cos_Gen_FP'!H70/'GEN-502 Gen_FP'!H70,0) -> 0
A71: GENERADORA DEL ATLÁNTICO, S.A. No. 29-21 | H71: =+IF('GEN-502 Gen_FP'!H71>0,'GEN-502 Cos_Gen_FP'!H71/'GEN-502 Gen_FP'!H71,0) -> 0
A72: GENERADORA DEL ATLÁNTICO, S.A. No. 30-21 | H72: =+IF('GEN-502 Gen_FP'!H72>0,'GEN-502 Cos_Gen_FP'!H72/'GEN-502 Gen_FP'!H72,0) -> 0
A73: PANAM GENERATING LTD No. 31-21 | H73: =+IF('GEN-502 Gen_FP'!H73>0,'GEN-502 Cos_Gen_FP'!H73/'GEN-502 Gen_FP'!H73,0) -> 0
A74: TROPITÉRMICA, S.A. No. 33-21 | H74: =+IF('GEN-502 Gen_FP'!H74>0,'GEN-502 Cos_Gen_FP'!H74/'GEN-502 Gen_FP'!H74,0) -> 0
A75: EMPRESA NACIONAL DE ENERGÍA, S.A. No. 02-23 | B75: 110.7 | C75: 0 | D75: 73.8 | E75: 73.8 | F75: 73.8 | G75: 0 | H75: =+IF('GEN-502 Gen_FP'!H75>0,'GEN-502 Cos_Gen_FP'!H75/'GEN-502 Gen_FP'!H75,0) -> 86.68442353
A76: FOUNTAIN HYDRO POWER CORP No. 03-23 | B76: 105 | C76: 0 | D76: 0 | E76: 0 | F76: 0 | G76: 0 | H76: =+IF('GEN-502 Gen_FP'!H76>0,'GEN-502 Cos_Gen_FP'!H76/'GEN-502 Gen_FP'!H76,0) -> 105
A77: GENERADORA DEL ISTMO, S.A. No. 04-23 | B77: 90.63 | H77: =+IF('GEN-502 Gen_FP'!H77>0,'GEN-502 Cos_Gen_FP'!H77/'GEN-502 Gen_FP'!H77,0) -> 90.63
A78: HIDRO BOQUERÓN, S.A. No. 05-23 | B78: 74.5 | C78: 74.5 | D78: 74.5 | E78: 74.5 | F78: 74.5 | G78: 0 | H78: =+IF('GEN-502 Gen_FP'!H78>0,'GEN-502 Cos_Gen_FP'!H78/'GEN-502 Gen_FP'!H78,0) -> 74.5
A79: HIDROIBÉRICA No. 06-23 | B79: 80 | C79: 80 | D79: 80 | E79: 80 | F79: 80 | G79: 80 | H79: =+IF('GEN-502 Gen_FP'!H79>0,'GEN-502 Cos_Gen_FP'!H79/'GEN-502 Gen_FP'!H79,0) -> 80
A80: IDEAL PANAMÁ, S.A. No. 08-23 | B80: 90 | H80: =+IF('GEN-502 Gen_FP'!H80>0,'GEN-502 Cos_Gen_FP'!H80/'GEN-502 Gen_FP'!H80,0) -> 90
A81: SOLAR BOQUERÓN, S.A. No. 12-23 | B81: 78.5 | C81: 78.5 | D81: 78.5 | E81: 78.5 | F81: 78.5 | G81: 78.5 | H81: =+IF('GEN-502 Gen_FP'!H81>0,'GEN-502 Cos_Gen_FP'!H81/'GEN-502 Gen_FP'!H81,0) -> 78.5
A82: AUTORIDAD DEL CANAL DE PANAMÁ No. 13-23 | H82: =+IF('GEN-502 Gen_FP'!H82>0,'GEN-502 Cos_Gen_FP'!H82/'GEN-502 Gen_FP'!H82,0) -> 0
A83: CELSIA CENTROAMÉRICA, S.A. No. 14-23 | H83: =+IF('GEN-502 Gen_FP'!H83>0,'GEN-502 Cos_Gen_FP'!H83/'GEN-502 Gen_FP'!H83,0) -> 0
A84: GENERADORA DEL ATLÁNTICO, S.A. No. 15-23 | H84: =+IF('GEN-502 Gen_FP'!H84>0,'GEN-502 Cos_Gen_FP'!H84/'GEN-502 Gen_FP'!H84,0) -> 0
A85: GENERADORA DEL ATLÁNTICO, S.A. No. 16-23 | H85: =+IF('GEN-502 Gen_FP'!H85>0,'GEN-502 Cos_Gen_FP'!H85/'GEN-502 Gen_FP'!H85,0) -> 0
A86: PEDREGAL POWER, S. DE R.L. No. 17-23 | H86: =+IF('GEN-502 Gen_FP'!H86>0,'GEN-502 Cos_Gen_FP'!H86/'GEN-502 Gen_FP'!H86,0) -> 0
A87: PANAM GENERATING LTD No. 18-23 | H87: =+IF('GEN-502 Gen_FP'!H87>0,'GEN-502 Cos_Gen_FP'!H87/'GEN-502 Gen_FP'!H87,0) -> 0
A88: PANAM GENERATING LTD No. 19-23 | H88: =+IF('GEN-502 Gen_FP'!H88>0,'GEN-502 Cos_Gen_FP'!H88/'GEN-502 Gen_FP'!H88,0) -> 0
A89: SPARKLE POWER, S.A. No. 20-23 | H89: =+IF('GEN-502 Gen_FP'!H89>0,'GEN-502 Cos_Gen_FP'!H89/'GEN-502 Gen_FP'!H89,0) -> 0
A90: TROPITÉRMICA, S.A. No. 21-23 | H90: =+IF('GEN-502 Gen_FP'!H90>0,'GEN-502 Cos_Gen_FP'!H90/'GEN-502 Gen_FP'!H90,0) -> 0

Sheet GEN-502 Cos_Gen_P
A1: INFORMACION PARA ACTUALIZAR: CARGO POR GENERACION
A2: =+'Compras (p)'!A2 -> EDEMET
A3: Estimación de Facturación Mensual de Energía en Horas de Punta para suministrar Clientes Regulados (B/.)
B4: ESTIMACION DEL COSTO DE ENERGIA EN HORAS DE PUNTA
A5: Detalle | B5: 2023-07-01 | C5: 2023-08-01 | D5: 2023-09-01 | E5: 2023-10-01 | F5: 2023-11-01 | G5: 2023-12-01 | H5: Total
A8: TOTAL COSTO DE ENERGIA EN PUNTA | B8: =+B9+B15 -> 6444642.305 | C8: =+C9+C15 -> 6715252.803 | D8: 6438389.292 | E8: 6571544.096 | F8: 6019392.709 | G8: 6358168.075 | H8: =+SUM(B8:G8) -> 38547389.28
A9: Generación Propia | B9: 0 | C9: 0 | D9: 0 | E9: 0 | F9: 0 | G9: 0 | H9: 0
A10: 0 | B10: 0 | C10: 0 | D10: 0 | E10: 0 | F10: 0 | G10: 0 | H10: 0
A11: 0 | B11: 0 | C11: 0 | D11: 0 | E11: 0 | F11: 0 | G11: 0 | H11: 0
A12: 0 | B12: 0 | C12: 0 | D12: 0 | E12: 0 | F12: 0 | G12: 0 | H12: 0
A13: 0 | H13: 0
A14: 0 | H14: 0
A15: Sub-Total Mercado Mayorista | B15: =+SUM(B16:B22,-B23,B24) -> 6444642.305 | C15: 6715252.803 | D15: 6438389.292 | E15: 6571544.096 | F15: 6019392.709 | G15: 6358168.075 | H15: 38547389.28
A16: Mercado Ocasional | B16: =+'GEN-502 Pre_Gen_P'!B16*'GEN-502 Gen_P'!B16 -> -89268.8621 | C16: =+'GEN-502 Pre_Gen_P'!C16*'GEN-502 Gen_P'!C16 -> 109943.9946 | D16: =+'GEN-502 Pre_Gen_P'!D16*'GEN-502 Gen_P'!D16 -> -143462.7566 | E16: =+'GEN-502 Pre_Gen_P'!E16*'GEN-502 Gen_P'!E16 -> -178321.3895 | F16: =+'GEN-502 Pre_Gen_P'!F16*'GEN-502 Gen_P'!F16 -> -257430.1278 | G16: =+'GEN-502 Pre_Gen_P'!G16*'GEN-502 Gen_P'!G16 -> 120224.2154 | H16: -438314.9261
A17: Servicios Auxiliares de Corto Plazo | B17: 279620.7619 | C17: 284243.2076 | D17: 289635.1341 | E17: 304389.6511 | F17: 304371.4412 | G17: 305354.4888 | H17: 1767614.685
A18: Generación Obligada | B18: 70196.95 | C18: 52000.44174 | D18: 42840.97174 | E18: 34886.5584 | F18: 49963.17977 | G18: 65805.94602 | H18: 315694.0477
A19: Costos relacionados con el Mercado Regional | B19: 0 | C19: 0 | D19: 0 | E19: 0 | F19: 0 | G19: 0 | H19: 0
A20: Otros Costos | B20: 490975.22 | C20: 486855.5583 | D20: 421599.2917 | E20: 435156.0975 | F20: 286693.0858 | G20: 216423.9491 | H20: 2337703.202
A21: Costos de Fianzas | H21: 0
A22: Costos de Autoabastecimiento autorizados por ASEP | H22: 0
A23: Menos - Transacciones Esporádicas (CUSPT) | B23: 12438.45625 | C23: 12438.45625 | D23: 12438.45625 | E23: 12438.45625 | F23: 12438.45625 | G23: 12438.45625 | H23: 74630.7375
A24: Sub-Total Contratos | B24: =SUM(B25:B107) -> 5705556.691 | C24: 5794648.057 | D24: 5840215.108 | E24: 5987871.634 | F24: 5648233.586 | G24: 5662797.932 | H24: 34639323.01
A25: =+'GEN-502 Pot'!A25 -> Hydro Caisan No. 05-08 (17,048) | B25: =+'GEN-502 Pre_Gen_P'!B25*'GEN-502 Gen_P'!B25 -> 67504.25652 | C25: =+'GEN-502 Pre_Gen_P'!C25*'GEN-502 Gen_P'!C25 -> 67170.88948 | D25: =+'GEN-502 Pre_Gen_P'!D25*'GEN-502 Gen_P'!D25 -> 65873.23101 | E25: =+'GEN-502 Pre_Gen_P'!E25*'GEN-502 Gen_P'!E25 -> 67053.27724 | F25: =+'GEN-502 Pre_Gen_P'!F25*'GEN-502 Gen_P'!F25 -> 63723.96344 | G25: =+'GEN-502 Pre_Gen_P'!G25*'GEN-502 Gen_P'!G25 -> 68283.54445 | H25: 399609.1621
A26: =+'GEN-502 Pot'!A26 -> Electrón Inv. No. 07-08 (34,65) | B26: =+'GEN-502 Pre_Gen_P'!B26*'GEN-502 Gen_P'!B26 -> 311619.2936 | C26: =+'GEN-502 Pre_Gen_P'!C26*'GEN-502 Gen_P'!C26 -> 310080.3743 | D26: =+'GEN-502 Pre_Gen_P'!D26*'GEN-502 Gen_P'!D26 -> 304090.0052 | E26: =+'GEN-502 Pre_Gen_P'!E26*'GEN-502 Gen_P'!E26 -> 309537.442 | F26: =+'GEN-502 Pre_Gen_P'!F26*'GEN-502 Gen_P'!F26 -> 294168.3606 | G26: =+'GEN-502 Pre_Gen_P'!G26*'GEN-502 Gen_P'!G26 -> 315216.7134 | H26: 1844712.189
A27: =+'GEN-502 Pot'!A27 -> Empresa Nacional de Energía No. 24-11 (Cesión) | B27: =+'GEN-502 Pre_Gen_P'!B27*'GEN-502 Gen_P'!B27 -> 68758.29069 | C27: =+'GEN-502 Pre_Gen_P'!C27*'GEN-502 Gen_P'!C27 -> 68418.73065 | D27: =+'GEN-502 Pre_Gen_P'!D27*'GEN-502 Gen_P'!D27 -> 67096.96544 | E27: =+'GEN-502 Pre_Gen_P'!E27*'GEN-502 Gen_P'!E27 -> 68298.93351 | F27: =+'GEN-502 Pre_Gen_P'!F27*'GEN-502 Gen_P'!F27 -> 64907.77068 | G27: =+'GEN-502 Pre_Gen_P'!G27*'GEN-502 Gen_P'!G27 -> 69552.05553 | H27: =+SUM(B27:G27) -> 407032.7465
A28: =+'GEN-502 Pot'!A28 -> Enel Fortuna No. 25-11 | B28: =+'GEN-502 Pre_Gen_P'!B28*'GEN-502 Gen_P'!B28 -> 243976.7963 | C28: =+'GEN-502 Pre_Gen_P'!C28*'GEN-502 Gen_P'!C28 -> 242771.9268 | D28: =+'GEN-502 Pre_Gen_P'!D28*'GEN-502 Gen_P'!D28 -> 238081.8736 | E28: =+'GEN-502 Pre_Gen_P'!E28*'GEN-502 Gen_P'!E28 -> 242346.8476 | F28: =+'GEN-502 Pre_Gen_P'!F28*'GEN-502 Gen_P'!F28 -> 230313.898 | G28: =+'GEN-502 Pre_Gen_P'!G28*'GEN-502 Gen_P'!G28 -> 246793.3324 | H28: 1444284.675
A29: =+'GEN-502 Pot'!A29 -> Electrogeneradora del Istmo No. 26-11 | B29: =+'GEN-502 Pre_Gen_P'!B29*'GEN-502 Gen_P'!B29 -> 6826.26398 | C29: =+'GEN-502 Pre_Gen_P'!C29*'GEN-502 Gen_P'!C29 -> 6792.552751 | D29: =+'GEN-502 Pre_Gen_P'!D29*'GEN-502 Gen_P'!D29 -> 6661.329038 | E29: =+'GEN-502 Pre_Gen_P'!E29*'GEN-502 Gen_P'!E29 -> 6780.659395 | F29: =+'GEN-502 Pre_Gen_P'!F29*'GEN-502 Gen_P'!F29 -> 6443.987665 | G29: =+'GEN-502 Pre_Gen_P'!G29*'GEN-502 Gen_P'!G29 -> 6905.068271 | H29: 40409.8611
A30: =+'GEN-502 Pot'!A30 -> ESEPSA No. 27-11 | B30: =+'GEN-502 Pre_Gen_P'!B30*'GEN-502 Gen_P'!B30 -> 43021.8594 | C30: =+'GEN-502 Pre_Gen_P'!C30*'GEN-502 Gen_P'!C30 -> 42809.39769 | D30: =+'GEN-502 Pre_Gen_P'!D30*'GEN-502 Gen_P'!D30 -> 41982.3731 | E30: =+'GEN-502 Pre_Gen_P'!E30*'GEN-502 Gen_P'!E30 -> 42734.44097 | F30: =+'GEN-502 Pre_Gen_P'!F30*'GEN-502 Gen_P'!F30 -> 40612.6004 | G30: =+'GEN-502 Pre_Gen_P'!G30*'GEN-502 Gen_P'!G30 -> 43518.51572 | H30: 254679.1873
A31: =+'GEN-502 Pot'!A31 -> Pedregalito No. 28-11 | B31: =+'GEN-502 Pre_Gen_P'!B31*'GEN-502 Gen_P'!B31 -> 18413.6968 | C31: =+'GEN-502 Pre_Gen_P'!C31*'GEN-502 Gen_P'!C31 -> 18322.7615 | D31: =+'GEN-502 Pre_Gen_P'!D31*'GEN-502 Gen_P'!D31 -> 17968.78842 | E31: =+'GEN-502 Pre_Gen_P'!E31*'GEN-502 Gen_P'!E31 -> 18290.67943 | F31: =+'GEN-502 Pre_Gen_P'!F31*'GEN-502 Gen_P'!F31 -> 17382.51485 | G31: =+'GEN-502 Pre_Gen_P'!G31*'GEN-502 Gen_P'!G31 -> 18626.26964 | H31: 109004.7106
A32: =+'GEN-502 Pot'!A32 -> Río Chico No. 29-11 | B32: =+'GEN-502 Pre_Gen_P'!B32*'GEN-502 Gen_P'!B32 -> 11292.31637 | C32: =+'GEN-502 Pre_Gen_P'!C32*'GEN-502 Gen_P'!C32 -> 11236.54972 | D32: =+'GEN-502 Pre_Gen_P'!D32*'GEN-502 Gen_P'!D32 -> 11019.47349 | E32: =+'GEN-502 Pre_Gen_P'!E32*'GEN-502 Gen_P'!E32 -> 11216.87519 | F32: =+'GEN-502 Pre_Gen_P'!F32*'GEN-502 Gen_P'!F32 -> 10659.9375 | G32: =+'GEN-502 Pre_Gen_P'!G32*'GEN-502 Gen_P'!G32 -> 11422.67801 | H32: 66847.83029
A33: =+'GEN-502 Pot'!A33 -> Alto Valle No. 30-11 | B33: =+'GEN-502 Pre_Gen_P'!B33*'GEN-502 Gen_P'!B33 -> 10745.26239 | C33: =+'GEN-502 Pre_Gen_P'!C33*'GEN-502 Gen_P'!C33 -> 10692.19734 | D33: =+'GEN-502 Pre_Gen_P'!D33*'GEN-502 Gen_P'!D33 -> 10485.63732 | E33: =+'GEN-502 Pre_Gen_P'!E33*'GEN-502 Gen_P'!E33 -> 10673.47594 | F33: =+'GEN-502 Pre_Gen_P'!F33*'GEN-502 Gen_P'!F33 -> 10143.51899 | G33: =+'GEN-502 Pre_Gen_P'!G33*'GEN-502 Gen_P'!G33 -> 10869.30869 | H33: 63609.40067
A34: =+'GEN-502 Pot'!A34 -> Hidroecológica del Teribe No. 31-11 | B34: =+'GEN-502 Pre_Gen_P'!B34*'GEN-502 Gen_P'!B34 -> 88083.08005 | C34: =+'GEN-502 Pre_Gen_P'!C34*'GEN-502 Gen_P'!C34 -> 87648.08531 | D34: =+'GEN-502 Pre_Gen_P'!D34*'GEN-502 Gen_P'!D34 -> 85954.83276 | E34: =+'GEN-502 Pre_Gen_P'!E34*'GEN-502 Gen_P'!E34 -> 87494.61872 | F34: =+'GEN-502 Pre_Gen_P'!F34*'GEN-502 Gen_P'!F34 -> 83150.35617 | G34: =+'GEN-502 Pre_Gen_P'!G34*'GEN-502 Gen_P'!G34 -> 89099.93563 | H34: 521430.9086
A35: =+'GEN-502 Pot'!A35 -> Desarrollos Hidroeléctricos Corp. No. 32-11 | B35: =+'GEN-502 Pre_Gen_P'!B35*'GEN-502 Gen_P'!B35 -> 15842.83203 | C35: =+'GEN-502 Pre_Gen_P'!C35*'GEN-502 Gen_P'!C35 -> 15764.59284 | D35: =+'GEN-502 Pre_Gen_P'!D35*'GEN-502 Gen_P'!D35 -> 15460.04042 | E35: =+'GEN-502 Pre_Gen_P'!E35*'GEN-502 Gen_P'!E35 -> 15736.98998 | F35: =+'GEN-502 Pre_Gen_P'!F35*'GEN-502 Gen_P'!F35 -> 14955.6206 | G35: =+'GEN-502 Pre_Gen_P'!G35*'GEN-502 Gen_P'!G35 -> 16025.72609 | H35: 93785.80196
A36: =+'GEN-502 Pot'!A36 -> Las Perlas Norte No. 33-11 | B36: =+'GEN-502 Pre_Gen_P'!B36*'GEN-502 Gen_P'!B36 -> 103484.247 | C36: =+'GEN-502 Pre_Gen_P'!C36*'GEN-502 Gen_P'!C36 -> 102973.1942 | D36: =+'GEN-502 Pre_Gen_P'!D36*'GEN-502 Gen_P'!D36 -> 100983.8795 | E36: =+'GEN-502 Pre_Gen_P'!E36*'GEN-502 Gen_P'!E36 -> 102792.8943 | F36: =+'GEN-502 Pre_Gen_P'!F36*'GEN-502 Gen_P'!F36 -> 97689.04528 | G36: =+'GEN-502 Pre_Gen_P'!G36*'GEN-502 Gen_P'!G36 -> 104678.8979 | H36: 612602.1582
A37: =+'GEN-502 Pot'!A37 -> Hidroeléctrica San Lorenzo No. 34-11 | B37: =+'GEN-502 Pre_Gen_P'!B37*'GEN-502 Gen_P'!B37 -> 10292.46497 | C37: =+'GEN-502 Pre_Gen_P'!C37*'GEN-502 Gen_P'!C37 -> 10241.63605 | D37: =+'GEN-502 Pre_Gen_P'!D37*'GEN-502 Gen_P'!D37 -> 10043.78031 | E37: =+'GEN-502 Pre_Gen_P'!E37*'GEN-502 Gen_P'!E37 -> 10223.70355 | F37: =+'GEN-502 Pre_Gen_P'!F37*'GEN-502 Gen_P'!F37 -> 9716.078588 | G37: =+'GEN-502 Pre_Gen_P'!G37*'GEN-502 Gen_P'!G37 -> 10411.28405 | H37: 60928.94751
A38: =+'GEN-502 Pot'!A38 -> Caldera Energy Corp. No. 35-11 | B38: =+'GEN-502 Pre_Gen_P'!B38*'GEN-502 Gen_P'!B38 -> 16382.93526 | C38: =+'GEN-502 Pre_Gen_P'!C38*'GEN-502 Gen_P'!C38 -> 16302.0288 | D38: =+'GEN-502 Pre_Gen_P'!D38*'GEN-502 Gen_P'!D38 -> 15987.09377 | E38: =+'GEN-502 Pre_Gen_P'!E38*'GEN-502 Gen_P'!E38 -> 16273.48491 | F38: =+'GEN-502 Pre_Gen_P'!F38*'GEN-502 Gen_P'!F38 -> 15465.47761 | G38: =+'GEN-502 Pre_Gen_P'!G38*'GEN-502 Gen_P'!G38 -> 16572.06442 | H38: 96983.08477
A39: =+'GEN-502 Pot'!A39 -> PASO ANCHO No. 86-11 | B39: =+'GEN-502 Pre_Gen_P'!B39*'GEN-502 Gen_P'!B39 -> 26888.40979 | C39: =+'GEN-502 Pre_Gen_P'!C39*'GEN-502 Gen_P'!C39 -> 26755.62247 | D39: =+'GEN-502 Pre_Gen_P'!D39*'GEN-502 Gen_P'!D39 -> 26743.32805 | E39: =+'GEN-502 Pre_Gen_P'!E39*'GEN-502 Gen_P'!E39 -> 27736.03554 | F39: =+'GEN-502 Pre_Gen_P'!F39*'GEN-502 Gen_P'!F39 -> 25870.76469 | G39: =+'GEN-502 Pre_Gen_P'!G39*'GEN-502 Gen_P'!G39 -> 27198.81708 | H39: 161192.9776
A40: =+'GEN-502 Pot'!A40 -> Hidroecológica del Teribe No. 87-11 | B40: =+'GEN-502 Pre_Gen_P'!B40*'GEN-502 Gen_P'!B40 -> 38063.18694 | C40: =+'GEN-502 Pre_Gen_P'!C40*'GEN-502 Gen_P'!C40 -> 37160.58676 | D40: =+'GEN-502 Pre_Gen_P'!D40*'GEN-502 Gen_P'!D40 -> 36442.69021 | E40: =+'GEN-502 Pre_Gen_P'!E40*'GEN-502 Gen_P'!E40 -> 37808.89618 | F40: =+'GEN-502 Pre_Gen_P'!F40*'GEN-502 Gen_P'!F40 -> 35253.66257 | G40: =+'GEN-502 Pre_Gen_P'!G40*'GEN-502 Gen_P'!G40 -> 37776.13483 | H40: 222505.1575
A41: =+'GEN-502 Pot'!A41 -> Unión Eólica de Panamá (PE Nuevo Chagres) No. 15-12' | B41: =+'GEN-502 Pre_Gen_P'!B41*'GEN-502 Gen_P'!B41 -> 72312.67936 | C41: =+'GEN-502 Pre_Gen_P'!C41*'GEN-502 Gen_P'!C41 -> 60568.473 | D41: =+'GEN-502 Pre_Gen_P'!D41*'GEN-502 Gen_P'!D41 -> 69.57700037 | E41: =+'GEN-502 Pre_Gen_P'!E41*'GEN-502 Gen_P'!E41 -> 72.04448856 | F41: =+'GEN-502 Pre_Gen_P'!F41*'GEN-502 Gen_P'!F41 -> 67.30688869 | G41: =+'GEN-502 Pre_Gen_P'!G41*'GEN-502 Gen_P'!G41 -> 72.12283539 | H41: =+SUM(B41:G41) -> 133162.2036
A42: =+'GEN-502 Pot'!A42 -> Unión Eólica de Panamá (PE Rosa de los Vientos) No. 16-12' | B42: =+'GEN-502 Pre_Gen_P'!B42*'GEN-502 Gen_P'!B42 -> 74.81942781 | C42: =+'GEN-502 Pre_Gen_P'!C42*'GEN-502 Gen_P'!C42 -> 73.18807178 | D42: =+'GEN-502 Pre_Gen_P'!D42*'GEN-502 Gen_P'!D42 -> 71.7741688 | E42: =+'GEN-502 Pre_Gen_P'!E42*'GEN-502 Gen_P'!E42 -> 74.31957767 | F42: =+'GEN-502 Pre_Gen_P'!F42*'GEN-502 Gen_P'!F42 -> 69.43236939 | G42: =+'GEN-502 Pre_Gen_P'!G42*'GEN-502 Gen_P'!G42 -> 74.40039861 | H42: 437.9340141
A43: =+'GEN-502 Pot'!A43 -> Unión Eólica de Panamá (PE Portobelo Ballestillas) No. 17-12' | B43: =+'GEN-502 Pre_Gen_P'!B43*'GEN-502 Gen_P'!B43 -> 82.4540633 | C43: =+'GEN-502 Pre_Gen_P'!C43*'GEN-502 Gen_P'!C43 -> 80.65624237 | D43: =+'GEN-502 Pre_Gen_P'!D43*'GEN-502 Gen_P'!D43 -> 79.09806357 | E43: =+'GEN-502 Pre_Gen_P'!E43*'GEN-502 Gen_P'!E43 -> 81.90320804 | F43: =+'GEN-502 Pre_Gen_P'!F43*'GEN-502 Gen_P'!F43 -> 76.51730504 | G43: =+'GEN-502 Pre_Gen_P'!G43*'GEN-502 Gen_P'!G43 -> 81.99227602 | H43: 482.6211583
A44: =+'GEN-502 Pot'!A44 -> Unión Eólica de Panamá (PE Marañon) No. 18-12' | B44: =+'GEN-502 Pre_Gen_P'!B44*'GEN-502 Gen_P'!B44 -> 83.9809904 | C44: =+'GEN-502 Pre_Gen_P'!C44*'GEN-502 Gen_P'!C44 -> 82.14987649 | D44: =+'GEN-502 Pre_Gen_P'!D44*'GEN-502 Gen_P'!D44 -> 80.56284253 | E44: =+'GEN-502 Pre_Gen_P'!E44*'GEN-502 Gen_P'!E44 -> 83.41993412 | F44: =+'GEN-502 Pre_Gen_P'!F44*'GEN-502 Gen_P'!F44 -> 77.93429217 | G44: =+'GEN-502 Pre_Gen_P'!G44*'GEN-502 Gen_P'!G44 -> 83.5106515 | H44: 491.5585872
A45: =+'GEN-502 Pot'!A45 -> AES No. 117-12 | B45: =+'GEN-502 Pre_Gen_P'!B45*'GEN-502 Gen_P'!B45 -> 2410345.005 | C45: =+'GEN-502 Pre_Gen_P'!C45*'GEN-502 Gen_P'!C45 -> 2398441.613 | D45: =+'GEN-502 Pre_Gen_P'!D45*'GEN-502 Gen_P'!D45 -> 2352106.689 | E45: =+'GEN-502 Pre_Gen_P'!E45*'GEN-502 Gen_P'!E45 -> 2394242.084 | F45: =+'GEN-502 Pre_Gen_P'!F45*'GEN-502 Gen_P'!F45 -> 2275363.731 | G45: =+'GEN-502 Pre_Gen_P'!G45*'GEN-502 Gen_P'!G45 -> 2438170.698 | H45: 14268669.82
A46: =+'GEN-502 Pot'!A46 -> HIDRO PIEDRA No. 118-12 | B46: =+'GEN-502 Pre_Gen_P'!B46*'GEN-502 Gen_P'!B46 -> 13866.56846 | C46: =+'GEN-502 Pre_Gen_P'!C46*'GEN-502 Gen_P'!C46 -> 13798.08897 | D46: =+'GEN-502 Pre_Gen_P'!D46*'GEN-502 Gen_P'!D46 -> 13531.52697 | E46: =+'GEN-502 Pre_Gen_P'!E46*'GEN-502 Gen_P'!E46 -> 13773.92934 | F46: =+'GEN-502 Pre_Gen_P'!F46*'GEN-502 Gen_P'!F46 -> 13090.02939 | G46: =+'GEN-502 Pre_Gen_P'!G46*'GEN-502 Gen_P'!G46 -> 14026.64799 | H46: 82086.79111
A47: =+'GEN-502 Pot'!A47 -> Corp. Energ. Del Istmo No. 119-12 | B47: =+'GEN-502 Pre_Gen_P'!B47*'GEN-502 Gen_P'!B47 -> 68401.15797 | C47: =+'GEN-502 Pre_Gen_P'!C47*'GEN-502 Gen_P'!C47 -> 68063.36162 | D47: =+'GEN-502 Pre_Gen_P'!D47*'GEN-502 Gen_P'!D47 -> 66748.46169 | E47: =+'GEN-502 Pre_Gen_P'!E47*'GEN-502 Gen_P'!E47 -> 67944.18671 | F47: =+'GEN-502 Pre_Gen_P'!F47*'GEN-502 Gen_P'!F47 -> 64570.63768 | G47: =+'GEN-502 Pre_Gen_P'!G47*'GEN-502 Gen_P'!G47 -> 69190.79997 | H47: 404918.6056
A48: =+'GEN-502 Pot'!A48 -> Saltos del Francolí No. 121-12 | B48: =+'GEN-502 Pre_Gen_P'!B48*'GEN-502 Gen_P'!B48 -> 7406.308129 | C48: =+'GEN-502 Pre_Gen_P'!C48*'GEN-502 Gen_P'!C48 -> 7369.732376 | D48: =+'GEN-502 Pre_Gen_P'!D48*'GEN-502 Gen_P'!D48 -> 7227.358266 | E48: =+'GEN-502 Pre_Gen_P'!E48*'GEN-502 Gen_P'!E48 -> 7356.828412 | F48: =+'GEN-502 Pre_Gen_P'!F48*'GEN-502 Gen_P'!F48 -> 6991.548871 | G48: =+'GEN-502 Pre_Gen_P'!G48*'GEN-502 Gen_P'!G48 -> 7491.808611 | H48: 43843.58466
A49: =+'GEN-502 Pot'!A49 -> ISTMUS HYDRO POWER CORP. No.02-13 | B49: =+'GEN-502 Pre_Gen_P'!B49*'GEN-502 Gen_P'!B49 -> 35821.70972 | C49: =+'GEN-502 Pre_Gen_P'!C49*'GEN-502 Gen_P'!C49 -> 33954.42387 | D49: =+'GEN-502 Pre_Gen_P'!D49*'GEN-502 Gen_P'!D49 -> 35231.97464 | E49: =+'GEN-502 Pre_Gen_P'!E49*'GEN-502 Gen_P'!E49 -> 32246.1105 | F49: =+'GEN-502 Pre_Gen_P'!F49*'GEN-502 Gen_P'!F49 -> 30224.33549 | G49: =+'GEN-502 Pre_Gen_P'!G49*'GEN-502 Gen_P'!G49 -> 32817.32994 | H49: =+SUM(B49:G49) -> 200295.8842
A50: =+'GEN-502 Pot'!A50 -> CALDERA ENERGY CORP. No.03-13 | B50: =+'GEN-502 Pre_Gen_P'!B50*'GEN-502 Gen_P'!B50 -> 41372.60733 | C50: =+'GEN-502 Pre_Gen_P'!C50*'GEN-502 Gen_P'!C50 -> 73188.07178 | D50: =+'GEN-502 Pre_Gen_P'!D50*'GEN-502 Gen_P'!D50 -> 86701.33968 | E50: =+'GEN-502 Pre_Gen_P'!E50*'GEN-502 Gen_P'!E50 -> 118722.3762 | F50: =+'GEN-502 Pre_Gen_P'!F50*'GEN-502 Gen_P'!F50 -> 72499.9633 | G50: =+'GEN-502 Pre_Gen_P'!G50*'GEN-502 Gen_P'!G50 -> 23250.12457 | H50: 415734.4828
A51: =+'GEN-502 Pot'!A51 -> ELECTROGENERADORA DEL ISTMO, S.A. No.04-13 | B51: =+'GEN-502 Pre_Gen_P'!B51*'GEN-502 Gen_P'!B51 -> 14072.31542 | C51: =+'GEN-502 Pre_Gen_P'!C51*'GEN-502 Gen_P'!C51 -> 23338.03309 | D51: =+'GEN-502 Pre_Gen_P'!D51*'GEN-502 Gen_P'!D51 -> 34922.66636 | E51: =+'GEN-502 Pre_Gen_P'!E51*'GEN-502 Gen_P'!E51 -> 41934.90525 | F51: =+'GEN-502 Pre_Gen_P'!F51*'GEN-502 Gen_P'!F51 -> 28286.30021 | G51: =+'GEN-502 Pre_Gen_P'!G51*'GEN-502 Gen_P'!G51 -> 11862.30845 | H51: 154416.5288
A52: =+'GEN-502 Pot'!A52 -> FOUNTAIN INTERTRADE CORP. No.05-13 | B52: =+'GEN-502 Pre_Gen_P'!B52*'GEN-502 Gen_P'!B52 -> 187948.6219 | C52: =+'GEN-502 Pre_Gen_P'!C52*'GEN-502 Gen_P'!C52 -> 208455.7803 | D52: =+'GEN-502 Pre_Gen_P'!D52*'GEN-502 Gen_P'!D52 -> 301310.4356 | E52: =+'GEN-502 Pre_Gen_P'!E52*'GEN-502 Gen_P'!E52 -> 415193.5637 | F52: =+'GEN-502 Pre_Gen_P'!F52*'GEN-502 Gen_P'!F52 -> 255563.3133 | G52: =+'GEN-502 Pre_Gen_P'!G52*'GEN-502 Gen_P'!G52 -> 155845.617 | H52: 1524317.332
A53: =+'GEN-502 Pot'!A53 -> HIDROIBERICA, S.A. No.06-13 | B53: =+'GEN-502 Pre_Gen_P'!B53*'GEN-502 Gen_P'!B53 -> 2769.431674 | C53: =+'GEN-502 Pre_Gen_P'!C53*'GEN-502 Gen_P'!C53 -> 4436.09333 | D53: =+'GEN-502 Pre_Gen_P'!D53*'GEN-502 Gen_P'!D53 -> 5364.121553 | E53: =+'GEN-502 Pre_Gen_P'!E53*'GEN-502 Gen_P'!E53 -> 6776.680688 | F53: =+'GEN-502 Pre_Gen_P'!F53*'GEN-502 Gen_P'!F53 -> 5827.84819 | G53: =+'GEN-502 Pre_Gen_P'!G53*'GEN-502 Gen_P'!G53 -> 5876.113115 | H53: 31050.28855
A54: =+'GEN-502 Pot'!A54 -> NAVITAS INTERNACIONAL, S.A. No.07-13 | B54: =+'GEN-502 Pre_Gen_P'!B54*'GEN-502 Gen_P'!B54 -> 25474.90232 | C54: =+'GEN-502 Pre_Gen_P'!C54*'GEN-502 Gen_P'!C54 -> 26851.80735 | D54: =+'GEN-502 Pre_Gen_P'!D54*'GEN-502 Gen_P'!D54 -> 32604.52739 | E54: =+'GEN-502 Pre_Gen_P'!E54*'GEN-502 Gen_P'!E54 -> 33542.58995 | F54: =+'GEN-502 Pre_Gen_P'!F54*'GEN-502 Gen_P'!F54 -> 27316.88556 | G54: =+'GEN-502 Pre_Gen_P'!G54*'GEN-502 Gen_P'!G54 -> 22037.32215 | H54: 167828.0347
A55: =+'GEN-502 Pot'!A55 -> HIDROECOLÓGICA DEL TERIBE, S.A. No.08-13 | B55: =+'GEN-502 Pre_Gen_P'!B55*'GEN-502 Gen_P'!B55 -> 0 | C55: =+'GEN-502 Pre_Gen_P'!C55*'GEN-502 Gen_P'!C55 -> 0 | D55: =+'GEN-502 Pre_Gen_P'!D55*'GEN-502 Gen_P'!D55 -> 10132.2296 | E55: =+'GEN-502 Pre_Gen_P'!E55*'GEN-502 Gen_P'!E55 -> 50694.64101 | F55: =+'GEN-502 Pre_Gen_P'!F55*'GEN-502 Gen_P'!F55 -> 18938.76592 | G55: =+'GEN-502 Pre_Gen_P'!G55*'GEN-502 Gen_P'!G55 -> 20649.90655 | H55: 100415.5431
A56: =+'GEN-502 Pot'!A56 -> HIDRONORTH CORP. No.09-13 | B56: =+'GEN-502 Pre_Gen_P'!B56*'GEN-502 Gen_P'!B56 -> 5043.517845 | C56: =+'GEN-502 Pre_Gen_P'!C56*'GEN-502 Gen_P'!C56 -> 5855.045742 | D56: =+'GEN-502 Pre_Gen_P'!D56*'GEN-502 Gen_P'!D56 -> 7092.56072 | E56: =+'GEN-502 Pre_Gen_P'!E56*'GEN-502 Gen_P'!E56 -> 7097.249741 | F56: =+'GEN-502 Pre_Gen_P'!F56*'GEN-502 Gen_P'!F56 -> 6531.08913 | G56: =+'GEN-502 Pre_Gen_P'!G56*'GEN-502 Gen_P'!G56 -> 5314.314186 | H56: 36933.77737
A57: =+'GEN-502 Pot'!A57 -> EMPRESA NACIONAL DE ENERGÍA, S.A. No.24-13 | B57: =+'GEN-502 Pre_Gen_P'!B57*'GEN-502 Gen_P'!B57 -> 18372.81501 | C57: =+'GEN-502 Pre_Gen_P'!C57*'GEN-502 Gen_P'!C57 -> 31136.67023 | D57: =+'GEN-502 Pre_Gen_P'!D57*'GEN-502 Gen_P'!D57 -> 31061.61637 | E57: =+'GEN-502 Pre_Gen_P'!E57*'GEN-502 Gen_P'!E57 -> 23310.79441 | F57: =+'GEN-502 Pre_Gen_P'!F57*'GEN-502 Gen_P'!F57 -> 29029.57714 | G57: =+'GEN-502 Pre_Gen_P'!G57*'GEN-502 Gen_P'!G57 -> 21004.82682 | H57: 153916.3
A58: =+'GEN-502 Pot'!A58 -> FUERZA ELÉCTRICA DEL ISTMO, S.A. No.25-13 | B58: =+'GEN-502 Pre_Gen_P'!B58*'GEN-502 Gen_P'!B58 -> 7182.509789 | C58: =+'GEN-502 Pre_Gen_P'!C58*'GEN-502 Gen_P'!C58 -> 7147.039254 | D58: =+'GEN-502 Pre_Gen_P'!D58*'GEN-502 Gen_P'!D58 -> 7129.811564 | E58: =+'GEN-502 Pre_Gen_P'!E58*'GEN-502 Gen_P'!E58 -> 5350.073849 | F58: =+'GEN-502 Pre_Gen_P'!F58*'GEN-502 Gen_P'!F58 -> 6663.381981 | G58: =+'GEN-502 Pre_Gen_P'!G58*'GEN-502 Gen_P'!G58 -> 7265.426681 | H58: 40738.24312
A59: =+'GEN-502 Pot'!A59 -> CAFÉ DE ELETA, S.A. No.26-13 | B59: =+'GEN-502 Pre_Gen_P'!B59*'GEN-502 Gen_P'!B59 -> 2209.706784 | C59: =+'GEN-502 Pre_Gen_P'!C59*'GEN-502 Gen_P'!C59 -> 2342.018297 | D59: =+'GEN-502 Pre_Gen_P'!D59*'GEN-502 Gen_P'!D59 -> 2253.779614 | E59: =+'GEN-502 Pre_Gen_P'!E59*'GEN-502 Gen_P'!E59 -> 2312.086946 | F59: =+'GEN-502 Pre_Gen_P'!F59*'GEN-502 Gen_P'!F59 -> 3260.360347 | G59: =+'GEN-502 Pre_Gen_P'!G59*'GEN-502 Gen_P'!G59 -> 2648.214385 | H59: 15026.16637
A60: =+'GEN-502 Pot'!A60 -> ENERGÍA Y SERVICIOS DE PANAMÁ, S.A. No.27-13 | B60: =+'GEN-502 Pre_Gen_P'!B60*'GEN-502 Gen_P'!B60 -> 110757.0158 | C60: =+'GEN-502 Pre_Gen_P'!C60*'GEN-502 Gen_P'!C60 -> 132026.3403 | D60: =+'GEN-502 Pre_Gen_P'!D60*'GEN-502 Gen_P'!D60 -> 135661.3205 | E60: =+'GEN-502 Pre_Gen_P'!E60*'GEN-502 Gen_P'!E60 -> 120836.2103 | F60: =+'GEN-502 Pre_Gen_P'!F60*'GEN-502 Gen_P'!F60 -> 149082.3856 | G60: =+'GEN-502 Pre_Gen_P'!G60*'GEN-502 Gen_P'!G60 -> 100385.1207 | H60: 748748.3932
A61: =+'GEN-502 Pot'!A61 -> GENERADORA PEDREGALITO, S.A. No.28-13 | B61: =+'GEN-502 Pre_Gen_P'!B61*'GEN-502 Gen_P'!B61 -> 45839.10201 | C61: =+'GEN-502 Pre_Gen_P'!C61*'GEN-502 Gen_P'!C61 -> 58428.27815 | D61: =+'GEN-502 Pre_Gen_P'!D61*'GEN-502 Gen_P'!D61 -> 58297.27303 | E61: =+'GEN-502 Pre_Gen_P'!E61*'GEN-502 Gen_P'!E61 -> 69155.69094 | F61: =+'GEN-502 Pre_Gen_P'!F61*'GEN-502 Gen_P'!F61 -> 66275.37581 | G61: =+'GEN-502 Pre_Gen_P'!G61*'GEN-502 Gen_P'!G61 -> 33932.04792 | H61: 331927.7679
A62: =+'GEN-502 Pot'!A62 -> GENERADORA RIO CHICO, S.A. No.29-13 | B62: =+'GEN-502 Pre_Gen_P'!B62*'GEN-502 Gen_P'!B62 -> 28264.41438 | C62: =+'GEN-502 Pre_Gen_P'!C62*'GEN-502 Gen_P'!C62 -> 36009.18027 | D62: =+'GEN-502 Pre_Gen_P'!D62*'GEN-502 Gen_P'!D62 -> 35912.08161 | E62: =+'GEN-502 Pre_Gen_P'!E62*'GEN-502 Gen_P'!E62 -> 42589.298 | F62: =+'GEN-502 Pre_Gen_P'!F62*'GEN-502 Gen_P'!F62 -> 40828.59322 | G62: =+'GEN-502 Pre_Gen_P'!G62*'GEN-502 Gen_P'!G62 -> 20941.36134 | H62: 204544.9288
A63: =+'GEN-502 Pot'!A63 -> GENERADORA ALTO VALLE, S.A. No.30-13 | B63: =+'GEN-502 Pre_Gen_P'!B63*'GEN-502 Gen_P'!B63 -> 40531.4646 | C63: =+'GEN-502 Pre_Gen_P'!C63*'GEN-502 Gen_P'!C63 -> 52809.13711 | D63: =+'GEN-502 Pre_Gen_P'!D63*'GEN-502 Gen_P'!D63 -> 52913.60868 | E63: =+'GEN-502 Pre_Gen_P'!E63*'GEN-502 Gen_P'!E63 -> 56629.04065 | F63: =+'GEN-502 Pre_Gen_P'!F63*'GEN-502 Gen_P'!F63 -> 47797.306 | G63: =+'GEN-502 Pre_Gen_P'!G63*'GEN-502 Gen_P'!G63 -> 26307.85464 | H63: 276988.4117
A64: =+'GEN-502 Pot'!A64 -> HYDRO CAISÁN, S.A. No.31-13 | B64: =+'GEN-502 Pre_Gen_P'!B64*'GEN-502 Gen_P'!B64 -> 100725.1371 | C64: =+'GEN-502 Pre_Gen_P'!C64*'GEN-502 Gen_P'!C64 -> 173121.6293 | D64: =+'GEN-502 Pre_Gen_P'!D64*'GEN-502 Gen_P'!D64 -> 207911.6404 | E64: =+'GEN-502 Pre_Gen_P'!E64*'GEN-502 Gen_P'!E64 -> 88255.16044 | F64: =+'GEN-502 Pre_Gen_P'!F64*'GEN-502 Gen_P'!F64 -> 181019.2814 | G64: =+'GEN-502 Pre_Gen_P'!G64*'GEN-502 Gen_P'!G64 -> 54511.00838 | H64: 805543.8569
A65: =+'GEN-502 Pot'!A65 -> FERSA PANAMÁ, S.A. No 05-14 | B65: =+'GEN-502 Pre_Gen_P'!B65*'GEN-502 Gen_P'!B65 -> 86297.26116 | C65: =+'GEN-502 Pre_Gen_P'!C65*'GEN-502 Gen_P'!C65 -> 73394.09028 | D65: =+'GEN-502 Pre_Gen_P'!D65*'GEN-502 Gen_P'!D65 -> 95728.35567 | E65: =+'GEN-502 Pre_Gen_P'!E65*'GEN-502 Gen_P'!E65 -> 85110.18394 | F65: =+'GEN-502 Pre_Gen_P'!F65*'GEN-502 Gen_P'!F65 -> 128463.3203 | G65: =+'GEN-502 Pre_Gen_P'!G65*'GEN-502 Gen_P'!G65 -> 233777.4664 | H65: 702770.6778
A66: =+'GEN-502 Pot'!A66 -> Panama Solar2 No. 07-15 | B66: =+'GEN-502 Pre_Gen_P'!B66*'GEN-502 Gen_P'!B66 -> 28154.98288 | C66: =+'GEN-502 Pre_Gen_P'!C66*'GEN-502 Gen_P'!C66 -> 27019.32615 | D66: =+'GEN-502 Pre_Gen_P'!D66*'GEN-502 Gen_P'!D66 -> 26931.72893 | E66: =+'GEN-502 Pre_Gen_P'!E66*'GEN-502 Gen_P'!E66 -> 27082.55796 | F66: =+'GEN-502 Pre_Gen_P'!F66*'GEN-502 Gen_P'!F66 -> 30780.38079 | G66: =+'GEN-502 Pre_Gen_P'!G66*'GEN-502 Gen_P'!G66 -> 40412.34882 | H66: 180381.3255
A67: =+'GEN-502 Pot'!A67 -> Solpac Investment No. 08-15 | B67: =+'GEN-502 Pre_Gen_P'!B67*'GEN-502 Gen_P'!B67 -> 5831.308708 | C67: =+'GEN-502 Pre_Gen_P'!C67*'GEN-502 Gen_P'!C67 -> 5667.568908 | D67: =+'GEN-502 Pre_Gen_P'!D67*'GEN-502 Gen_P'!D67 -> 5690.413692 | E67: =+'GEN-502 Pre_Gen_P'!E67*'GEN-502 Gen_P'!E67 -> 5792.351173 | F67: =+'GEN-502 Pre_Gen_P'!F67*'GEN-502 Gen_P'!F67 -> 5760.785609 | G67: =+'GEN-502 Pre_Gen_P'!G67*'GEN-502 Gen_P'!G67 -> 7270.400669 | H67: 36012.82876
A68: =+'GEN-502 Pot'!A68 -> GAS NATURAL ATLÁNTICO No. 16-15 | B68: =+'GEN-502 Pre_Gen_P'!B68*'GEN-502 Gen_P'!B68 -> 669519.7476 | C68: =+'GEN-502 Pre_Gen_P'!C68*'GEN-502 Gen_P'!C68 -> 666213.3513 | D68: =+'GEN-502 Pre_Gen_P'!D68*'GEN-502 Gen_P'!D68 -> 653342.9338 | E68: =+'GEN-502 Pre_Gen_P'!E68*'GEN-502 Gen_P'!E68 -> 665046.8513 | F68: =+'GEN-502 Pre_Gen_P'!F68*'GEN-502 Gen_P'!F68 -> 632026.099 | G68: =+'GEN-502 Pre_Gen_P'!G68*'GEN-502 Gen_P'!G68 -> 677248.8698 | H68: 3963397.853
A69: =+'GEN-502 Pot'!A69 -> MARTANO INC No. 18-15 | B69: =+'GEN-502 Pre_Gen_P'!B69*'GEN-502 Gen_P'!B69 -> 530076.6241 | C69: =+'GEN-502 Pre_Gen_P'!C69*'GEN-502 Gen_P'!C69 -> 527458.8621 | D69: =+'GEN-502 Pre_Gen_P'!D69*'GEN-502 Gen_P'!D69 -> 517269.0096 | E69: =+'GEN-502 Pre_Gen_P'!E69*'GEN-502 Gen_P'!E69 -> 526535.313 | F69: =+'GEN-502 Pre_Gen_P'!F69*'GEN-502 Gen_P'!F69 -> 500391.9035 | G69: =+'GEN-502 Pre_Gen_P'!G69*'GEN-502 Gen_P'!G69 -> 536195.9762 | H69: 3137927.689
A70: =+'GEN-502 Pot'!A70 -> AUTORIDAD DEL CANAL DE PANAMÁ No. 27-21 | H70: =+SUM(B70:G70) -> 0
A71: =+'GEN-502 Pot'!A71 -> GENERADORA DEL ATLÁNTICO, S.A. No. 29-21 | H71: 0
A72: =+'GEN-502 Pot'!A72 -> GENERADORA DEL ATLÁNTICO, S.A. No. 30-21 | H72: 0
A73: =+'GEN-502 Pot'!A73 -> PANAM GENERATING LTD No. 31-21 | H73: 0
A74: =+'GEN-502 Pot'!A74 -> TROPITÉRMICA, S.A. No. 33-21 | H74: 0
A75: =+'GEN-502 Pot'!A75 -> EMPRESA NACIONAL DE ENERGÍA, S.A. No. 02-23 | B75: =+'GEN-502 Pre_Gen_P'!B75*'GEN-502 Gen_P'!B75 -> 2773.25158 | C75: =+'GEN-502 Pre_Gen_P'!C75*'GEN-502 Gen_P'!C75 -> 0 | D75: =+'GEN-502 Pre_Gen_P'!D75*'GEN-502 Gen_P'!D75 -> 629.9660718 | E75: =+'GEN-502 Pre_Gen_P'!E75*'GEN-502 Gen_P'!E75 -> 2629.509435 | F75: =+'GEN-502 Pre_Gen_P'!F75*'GEN-502 Gen_P'!F75 -> 186.6098758 | G75: =+'GEN-502 Pre_Gen_P'!G75*'GEN-502 Gen_P'!G75 -> 0 | H75: 6219.336963
A76: =+'GEN-502 Pot'!A76 -> FOUNTAIN HYDRO POWER CORP No. 03-23 | B76: =+'GEN-502 Pre_Gen_P'!B76*'GEN-502 Gen_P'!B76 -> 30695.89309 | C76: =+'GEN-502 Pre_Gen_P'!C76*'GEN-502 Gen_P'!C76 -> 0 | D76: =+'GEN-502 Pre_Gen_P'!D76*'GEN-502 Gen_P'!D76 -> 0 | E76: =+'GEN-502 Pre_Gen_P'!E76*'GEN-502 Gen_P'!E76 -> 0 | F76: =+'GEN-502 Pre_Gen_P'!F76*'GEN-502 Gen_P'!F76 -> 0 | G76: =+'GEN-502 Pre_Gen_P'!G76*'GEN-502 Gen_P'!G76 -> 0 | H76: 30695.89309
A77: =+'GEN-502 Pot'!A77 -> GENERADORA DEL ISTMO, S.A. No. 04-23 | B77: =+'GEN-502 Pre_Gen_P'!B77*'GEN-502 Gen_P'!B77 -> 11258.47346 | H77: 11258.47346
A78: =+'GEN-502 Pot'!A78 -> HIDRO BOQUERÓN, S.A. No. 05-23 | B78: =+'GEN-502 Pre_Gen_P'!B78*'GEN-502 Gen_P'!B78 -> 1127.53473 | C78: =+'GEN-502 Pre_Gen_P'!C78*'GEN-502 Gen_P'!C78 -> 978.4591088 | D78: =+'GEN-502 Pre_Gen_P'!D78*'GEN-502 Gen_P'!D78 -> 993.4231892 | E78: =+'GEN-502 Pre_Gen_P'!E78*'GEN-502 Gen_P'!E78 -> 1925.146987 | F78: =+'GEN-502 Pre_Gen_P'!F78*'GEN-502 Gen_P'!F78 -> 486.238523 | G78: =+'GEN-502 Pre_Gen_P'!G78*'GEN-502 Gen_P'!G78 -> 0 | H78: 5510.802538
A79: =+'GEN-502 Pot'!A79 -> HIDROIBÉRICA No. 06-23 | B79: =+'GEN-502 Pre_Gen_P'!B79*'GEN-502 Gen_P'!B79 -> 639.549533 | C79: =+'GEN-502 Pre_Gen_P'!C79*'GEN-502 Gen_P'!C79 -> 786.063583 | D79: =+'GEN-502 Pre_Gen_P'!D79*'GEN-502 Gen_P'!D79 -> 238.0013254 | E79: =+'GEN-502 Pre_Gen_P'!E79*'GEN-502 Gen_P'!E79 -> 308.5894882 | F79: =+'GEN-502 Pre_Gen_P'!F79*'GEN-502 Gen_P'!F79 -> 153.1323333 | G79: =+'GEN-502 Pre_Gen_P'!G79*'GEN-502 Gen_P'!G79 -> 769.3451493 | H79: 2894.681412
A80: =+'GEN-502 Pot'!A80 -> IDEAL PANAMÁ, S.A. No. 08-23 | B80: =+'GEN-502 Pre_Gen_P'!B80*'GEN-502 Gen_P'!B80 -> 18633.68662 | H80: 18633.68662
A81: =+'GEN-502 Pot'!A81 -> SOLAR BOQUERÓN, S.A. No. 12-23 | B81: =+'GEN-502 Pre_Gen_P'!B81*'GEN-502 Gen_P'!B81 -> 394.9409879 | C81: =+'GEN-502 Pre_Gen_P'!C81*'GEN-502 Gen_P'!C81 -> 412.3975304 | D81: =+'GEN-502 Pre_Gen_P'!D81*'GEN-502 Gen_P'!D81 -> 99.91812858 | E81: =+'GEN-502 Pre_Gen_P'!E81*'GEN-502 Gen_P'!E81 -> 166.6881956 | F81: =+'GEN-502 Pre_Gen_P'!F81*'GEN-502 Gen_P'!F81 -> 75.65795121 | G81: =+'GEN-502 Pre_Gen_P'!G81*'GEN-502 Gen_P'!G81 -> 332.300401 | H81: 1481.903195
A82: =+'GEN-502 Pot'!A82 -> AUTORIDAD DEL CANAL DE PANAMÁ No. 13-23 | H82: 0
A83: =+'GEN-502 Pot'!A83 -> CELSIA CENTROAMÉRICA, S.A. No. 14-23 | H83: 0
A84: =+'GEN-502 Pot'!A84 -> GENERADORA DEL ATLÁNTICO, S.A. No. 15-23 | H84: 0
A85: =+'GEN-502 Pot'!A85 -> GENERADORA DEL ATLÁNTICO, S.A. No. 16-23 | H85: 0
A86: =+'GEN-502 Pot'!A86 -> PEDREGAL POWER, S. DE R.L. No. 17-23 | H86: 0
A87: =+'GEN-502 Pot'!A87 -> PANAM GENERATING LTD No. 18-23 | H87: 0
A88: =+'GEN-502 Pot'!A88 -> PANAM GENERATING LTD No. 19-23 | H88: 0
A89: =+'GEN-502 Pot'!A89 -> SPARKLE POWER, S.A. No. 20-23 | H89: 0
A90: =+'GEN-502 Pot'!A90 -> TROPITÉRMICA, S.A. No. 21-23 | H90: 0

Sheet GEN-502 Cos_Gen_FP
A1: INFORMACION PARA ACTUALIZAR: CARGO POR GENERACION
A2: =+'Compras (p)'!A2 -> EDEMET
A3: Estimación de Facturación Mensual de Energía en Fuera de Punta para suministrar Clientes Regulados (B/.)
B4: ESTIMACION DEL COSTO DE ENERGIA EN HORAS FUERA DE PUNTA
A5: Detalle | B5: 2023-07-01 | C5: 2023-08-01 | D5: 2023-09-01 | E5: 2023-10-01 | F5: 2023-11-01 | G5: 2023-12-01 | H5: Total
A8: TOTAL COSTO DE ENERGIA F DE PUNTA | B8: =+B9+B15 -> 14938247.66 | C8: 15705081.55 | D8: 15152267.84 | E8: 15452288.59 | F8: 14338502.51 | G8: 15381728.94 | H8: =+SUM(B8:G8) -> 90968117.09
A9: Generación Propia | B9: 0 | C9: 0 | D9: 0 | E9: 0 | F9: 0 | G9: 0 | H9: 0
A10: 0 | H10: 0
A11: 0 | H11: 0
A12: 0 | H12: 0
A13: 0 | H13: 0
A14: 0 | H14: 0
A15: Sub-Total Mercado Mayorista | B15: =+SUM(B16:B24) -> 14938247.66 | C15: 15705081.55 | D15: 15152267.84 | E15: 15452288.59 | F15: 14338502.51 | G15: 15381728.94 | H15: 90968117.09
A16: Mercado Ocasional | B16: =+'GEN-502 Pre_Gen_FP'!B16*'GEN-502 Gen_FP'!B16 -> -237438.0393 | C16: =+'GEN-502 Pre_Gen_FP'!C16*'GEN-502 Gen_FP'!C16 -> 292429.9233 | D16: =+'GEN-502 Pre_Gen_FP'!D16*'GEN-502 Gen_FP'!D16 -> -381583.397 | E16: =+'GEN-502 Pre_Gen_FP'!E16*'GEN-502 Gen_FP'!E16 -> -474300.6698 | F16: =+'GEN-502 Pre_Gen_FP'!F16*'GEN-502 Gen_FP'!F16 -> -684714.7297 | G16: =+'GEN-502 Pre_Gen_FP'!G16*'GEN-502 Gen_FP'!G16 -> 319773.3376 | H16: -1165833.575
H17: 0
H18: 0
H19: 0
H20: 0
H21: 0
H22: 0
H23: 0
A24: Sub-Total Contratos | B24: =SUM(B25:B107) -> 15175685.7 | C24: 15412651.63 | D24: 15533851.24 | E24: 15926589.26 | F24: 15023217.24 | G24: 15061955.6 | H24: 92133950.66
A25: =+'GEN-502 Pot'!A25 -> Hydro Caisan No. 05-08 (17,048) | B25: =+'GEN-502 Pre_Gen_FP'!B25*'GEN-502 Gen_FP'!B25 -> 179548.3658 | C25: =+'GEN-502 Pre_Gen_FP'!C25*'GEN-502 Gen_FP'!C25 -> 178661.6735 | D25: =+'GEN-502 Pre_Gen_FP'!D25*'GEN-502 Gen_FP'!D25 -> 175210.151 | E25: =+'GEN-502 Pre_Gen_FP'!E25*'GEN-502 Gen_FP'!E25 -> 178348.8475 | F25: =+'GEN-502 Pre_Gen_FP'!F25*'GEN-502 Gen_FP'!F25 -> 169493.5118 | G25: =+'GEN-502 Pre_Gen_FP'!G25*'GEN-502 Gen_FP'!G25 -> 181621.1221 | H25: 1062883.672
A26: =+'GEN-502 Pot'!A26 -> Electrón Inv. No. 07-08 (34,65) | B26: =+'GEN-502 Pre_Gen_FP'!B26*'GEN-502 Gen_FP'!B26 -> 828847.51 | C26: =+'GEN-502 Pre_Gen_FP'!C26*'GEN-502 Gen_FP'!C26 -> 824754.28 | D26: =+'GEN-502 Pre_Gen_FP'!D26*'GEN-502 Gen_FP'!D26 -> 808821.0479 | E26: =+'GEN-502 Pre_Gen_FP'!E26*'GEN-502 Gen_FP'!E26 -> 823310.1842 | F26: =+'GEN-502 Pre_Gen_FP'!F26*'GEN-502 Gen_FP'!F26 -> 782431.3776 | G26: =+'GEN-502 Pre_Gen_FP'!G26*'GEN-502 Gen_FP'!G26 -> 838415.9563 | H26: 4906580.356
A27: =+'GEN-502 Pot'!A27 -> Empresa Nacional de Energía No. 24-11 (Cesión) | B27: =+'GEN-502 Pre_Gen_FP'!B27*'GEN-502 Gen_FP'!B27 -> 182883.856 | C27: =+'GEN-502 Pre_Gen_FP'!C27*'GEN-502 Gen_FP'!C27 -> 181980.6915 | D27: =+'GEN-502 Pre_Gen_FP'!D27*'GEN-502 Gen_FP'!D27 -> 178465.0497 | E27: =+'GEN-502 Pre_Gen_FP'!E27*'GEN-502 Gen_FP'!E27 -> 181662.0541 | F27: =+'GEN-502 Pre_Gen_FP'!F27*'GEN-502 Gen_FP'!F27 -> 172642.2119 | G27: =+'GEN-502 Pre_Gen_FP'!G27*'GEN-502 Gen_FP'!G27 -> 184995.1182 | H27: =+SUM(B27:G27) -> 1082628.981
A28: =+'GEN-502 Pot'!A28 -> Enel Fortuna No. 25-11 | B28: =+'GEN-502 Pre_Gen_FP'!B28*'GEN-502 Gen_FP'!B28 -> 648931.4503 | C28: =+'GEN-502 Pre_Gen_FP'!C28*'GEN-502 Gen_FP'!C28 -> 645726.7285 | D28: =+'GEN-502 Pre_Gen_FP'!D28*'GEN-502 Gen_FP'!D28 -> 633252.0872 | E28: =+'GEN-502 Pre_Gen_FP'!E28*'GEN-502 Gen_FP'!E28 -> 644596.0994 | F28: =+'GEN-502 Pre_Gen_FP'!F28*'GEN-502 Gen_FP'!F28 -> 612590.7631 | G28: =+'GEN-502 Pre_Gen_FP'!G28*'GEN-502 Gen_FP'!G28 -> 656422.8956 | H28: 3841520.024
A29: =+'GEN-502 Pot'!A29 -> Electrogeneradora del Istmo No. 26-11 | B29: =+'GEN-502 Pre_Gen_FP'!B29*'GEN-502 Gen_FP'!B29 -> 18156.55198 | C29: =+'GEN-502 Pre_Gen_FP'!C29*'GEN-502 Gen_FP'!C29 -> 18066.88658 | D29: =+'GEN-502 Pre_Gen_FP'!D29*'GEN-502 Gen_FP'!D29 -> 17717.85669 | E29: =+'GEN-502 Pre_Gen_FP'!E29*'GEN-502 Gen_FP'!E29 -> 18035.25254 | F29: =+'GEN-502 Pre_Gen_FP'!F29*'GEN-502 Gen_FP'!F29 -> 17139.77035 | G29: =+'GEN-502 Pre_Gen_FP'!G29*'GEN-502 Gen_FP'!G29 -> 18366.15627 | H29: 107482.4744
A30: =+'GEN-502 Pot'!A30 -> ESEPSA No. 27-11 | B30: =+'GEN-502 Pre_Gen_FP'!B30*'GEN-502 Gen_FP'!B30 -> 114429.8886 | C30: =+'GEN-502 Pre_Gen_FP'!C30*'GEN-502 Gen_FP'!C30 -> 113864.7812 | D30: =+'GEN-502 Pre_Gen_FP'!D30*'GEN-502 Gen_FP'!D30 -> 111665.0545 | E30: =+'GEN-502 Pre_Gen_FP'!E30*'GEN-502 Gen_FP'!E30 -> 113665.4107 | F30: =+'GEN-502 Pre_Gen_FP'!F30*'GEN-502 Gen_FP'!F30 -> 108021.722 | G30: =+'GEN-502 Pre_Gen_FP'!G30*'GEN-502 Gen_FP'!G30 -> 115750.899 | H30: 677397.756
A31: =+'GEN-502 Pot'!A31 -> Pedregalito No. 28-11 | B31: =+'GEN-502 Pre_Gen_FP'!B31*'GEN-502 Gen_FP'!B31 -> 48976.89923 | C31: =+'GEN-502 Pre_Gen_FP'!C31*'GEN-502 Gen_FP'!C31 -> 48735.02879 | D31: =+'GEN-502 Pre_Gen_FP'!D31*'GEN-502 Gen_FP'!D31 -> 47793.52834 | E31: =+'GEN-502 Pre_Gen_FP'!E31*'GEN-502 Gen_FP'!E31 -> 48649.69665 | F31: =+'GEN-502 Pre_Gen_FP'!F31*'GEN-502 Gen_FP'!F31 -> 46234.15318 | G31: =+'GEN-502 Pre_Gen_FP'!G31*'GEN-502 Gen_FP'!G31 -> 49542.30219 | H31: 289931.6084
A32: =+'GEN-502 Pot'!A32 -> Río Chico No. 29-11 | B32: =+'GEN-502 Pre_Gen_FP'!B32*'GEN-502 Gen_FP'!B32 -> 30035.39415 | C32: =+'GEN-502 Pre_Gen_FP'!C32*'GEN-502 Gen_FP'!C32 -> 29887.06556 | D32: =+'GEN-502 Pre_Gen_FP'!D32*'GEN-502 Gen_FP'!D32 -> 29309.68444 | E32: =+'GEN-502 Pre_Gen_FP'!E32*'GEN-502 Gen_FP'!E32 -> 29834.73509 | F32: =+'GEN-502 Pre_Gen_FP'!F32*'GEN-502 Gen_FP'!F32 -> 28353.38773 | G32: =+'GEN-502 Pre_Gen_FP'!G32*'GEN-502 Gen_FP'!G32 -> 30382.13109 | H32: 177802.3981
A33: =+'GEN-502 Pot'!A33 -> Alto Valle No. 30-11 | B33: =+'GEN-502 Pre_Gen_FP'!B33*'GEN-502 Gen_FP'!B33 -> 28580.33555 | C33: =+'GEN-502 Pre_Gen_FP'!C33*'GEN-502 Gen_FP'!C33 -> 28439.19272 | D33: =+'GEN-502 Pre_Gen_FP'!D33*'GEN-502 Gen_FP'!D33 -> 27889.78271 | E33: =+'GEN-502 Pre_Gen_FP'!E33*'GEN-502 Gen_FP'!E33 -> 28389.39738 | F33: =+'GEN-502 Pre_Gen_FP'!F33*'GEN-502 Gen_FP'!F33 -> 26979.81359 | G33: =+'GEN-502 Pre_Gen_FP'!G33*'GEN-502 Gen_FP'!G33 -> 28910.2749 | H33: 169188.7968
A34: =+'GEN-502 Pot'!A34 -> Hidroecológica del Teribe No. 31-11 | B34: =+'GEN-502 Pre_Gen_FP'!B34*'GEN-502 Gen_FP'!B34 -> 234284.0866 | C34: =+'GEN-502 Pre_Gen_FP'!C34*'GEN-502 Gen_FP'!C34 -> 233127.0841 | D34: =+'GEN-502 Pre_Gen_FP'!D34*'GEN-502 Gen_FP'!D34 -> 228623.3573 | E34: =+'GEN-502 Pre_Gen_FP'!E34*'GEN-502 Gen_FP'!E34 -> 232718.8924 | F34: =+'GEN-502 Pre_Gen_FP'!F34*'GEN-502 Gen_FP'!F34 -> 221163.9878 | G34: =+'GEN-502 Pre_Gen_FP'!G34*'GEN-502 Gen_FP'!G34 -> 236988.7273 | H34: 1386906.136
A35: =+'GEN-502 Pot'!A35 -> Desarrollos Hidroeléctricos Corp. No. 32-11 | B35: =+'GEN-502 Pre_Gen_FP'!B35*'GEN-502 Gen_FP'!B35 -> 42138.89239 | C35: =+'GEN-502 Pre_Gen_FP'!C35*'GEN-502 Gen_FP'!C35 -> 41930.79117 | D35: =+'GEN-502 Pre_Gen_FP'!D35*'GEN-502 Gen_FP'!D35 -> 41120.74017 | E35: =+'GEN-502 Pre_Gen_FP'!E35*'GEN-502 Gen_FP'!E35 -> 41857.37284 | F35: =+'GEN-502 Pre_Gen_FP'!F35*'GEN-502 Gen_FP'!F35 -> 39779.08026 | G35: =+'GEN-502 Pre_Gen_FP'!G35*'GEN-502 Gen_FP'!G35 -> 42625.35549 | H35: 249452.2323
A36: =+'GEN-502 Pot'!A36 -> Las Perlas Norte No. 33-11 | B36: =+'GEN-502 Pre_Gen_FP'!B36*'GEN-502 Gen_FP'!B36 -> 275248.2346 | C36: =+'GEN-502 Pre_Gen_FP'!C36*'GEN-502 Gen_FP'!C36 -> 273888.9323 | D36: =+'GEN-502 Pre_Gen_FP'!D36*'GEN-502 Gen_FP'!D36 -> 268597.7371 | E36: =+'GEN-502 Pre_Gen_FP'!E36*'GEN-502 Gen_FP'!E36 -> 273409.3691 | F36: =+'GEN-502 Pre_Gen_FP'!F36*'GEN-502 Gen_FP'!F36 -> 259834.1104 | G36: =+'GEN-502 Pre_Gen_FP'!G36*'GEN-502 Gen_FP'!G36 -> 278425.7768 | H36: 1629404.16
A37: =+'GEN-502 Pot'!A37 -> Hidroeléctrica San Lorenzo No. 34-11 | B37: =+'GEN-502 Pre_Gen_FP'!B37*'GEN-502 Gen_FP'!B37 -> 27375.98132 | C37: =+'GEN-502 Pre_Gen_FP'!C37*'GEN-502 Gen_FP'!C37 -> 27240.78614 | D37: =+'GEN-502 Pre_Gen_FP'!D37*'GEN-502 Gen_FP'!D37 -> 26714.52786 | E37: =+'GEN-502 Pre_Gen_FP'!E37*'GEN-502 Gen_FP'!E37 -> 27193.08914 | F37: =+'GEN-502 Pre_Gen_FP'!F37*'GEN-502 Gen_FP'!F37 -> 25842.90418 | G37: =+'GEN-502 Pre_Gen_FP'!G37*'GEN-502 Gen_FP'!G37 -> 27692.01727 | H37: 162059.3059
A38: =+'GEN-502 Pot'!A38 -> Caldera Energy Corp. No. 35-11 | B38: =+'GEN-502 Pre_Gen_FP'!B38*'GEN-502 Gen_FP'!B38 -> 43575.46331 | C38: =+'GEN-502 Pre_Gen_FP'!C38*'GEN-502 Gen_FP'!C38 -> 43360.26765 | D38: =+'GEN-502 Pre_Gen_FP'!D38*'GEN-502 Gen_FP'!D38 -> 42522.60093 | E38: =+'GEN-502 Pre_Gen_FP'!E38*'GEN-502 Gen_FP'!E38 -> 43284.34639 | F38: =+'GEN-502 Pre_Gen_FP'!F38*'GEN-502 Gen_FP'!F38 -> 41135.20205 | G38: =+'GEN-502 Pre_Gen_FP'!G38*'GEN-502 Gen_FP'!G38 -> 44078.51059 | H38: 257956.3909
A39: =+'GEN-502 Pot'!A39 -> PASO ANCHO No. 86-11 | B39: =+'GEN-502 Pre_Gen_FP'!B39*'GEN-502 Gen_FP'!B39 -> 71518.00919 | C39: =+'GEN-502 Pre_Gen_FP'!C39*'GEN-502 Gen_FP'!C39 -> 71164.82039 | D39: =+'GEN-502 Pre_Gen_FP'!D39*'GEN-502 Gen_FP'!D39 -> 71132.11959 | E39: =+'GEN-502 Pre_Gen_FP'!E39*'GEN-502 Gen_FP'!E39 -> 73772.53098 | F39: =+'GEN-502 Pre_Gen_FP'!F39*'GEN-502 Gen_FP'!F39 -> 68811.26853 | G39: =+'GEN-502 Pre_Gen_FP'!G39*'GEN-502 Gen_FP'!G39 -> 72343.63299 | H39: 428742.3817
A40: =+'GEN-502 Pot'!A40 -> Hidroecológica del Teribe No. 87-11 | B40: =+'GEN-502 Pre_Gen_FP'!B40*'GEN-502 Gen_FP'!B40 -> 101240.7716 | C40: =+'GEN-502 Pre_Gen_FP'!C40*'GEN-502 Gen_FP'!C40 -> 98840.02832 | D40: =+'GEN-502 Pre_Gen_FP'!D40*'GEN-502 Gen_FP'!D40 -> 96930.56128 | E40: =+'GEN-502 Pre_Gen_FP'!E40*'GEN-502 Gen_FP'!E40 -> 100564.4069 | F40: =+'GEN-502 Pre_Gen_FP'!F40*'GEN-502 Gen_FP'!F40 -> 93767.97599 | G40: =+'GEN-502 Pre_Gen_FP'!G40*'GEN-502 Gen_FP'!G40 -> 100477.268 | H40: 591821.0121
A41: =+'GEN-502 Pot'!A41 -> Unión Eólica de Panamá (PE Nuevo Chagres) No. 15-12' | B41: =+'GEN-502 Pre_Gen_FP'!B41*'GEN-502 Gen_FP'!B41 -> 192337.8477 | C41: =+'GEN-502 Pre_Gen_FP'!C41*'GEN-502 Gen_FP'!C41 -> 161100.5129 | D41: =+'GEN-502 Pre_Gen_FP'!D41*'GEN-502 Gen_FP'!D41 -> 185.0614666 | E41: =+'GEN-502 Pre_Gen_FP'!E41*'GEN-502 Gen_FP'!E41 -> 191.6245116 | F41: =+'GEN-502 Pre_Gen_FP'!F41*'GEN-502 Gen_FP'!F41 -> 179.0234053 | G41: =+'GEN-502 Pre_Gen_FP'!G41*'GEN-502 Gen_FP'!G41 -> 191.8328991 | H41: =+SUM(B41:G41) -> 354185.9028
A42: =+'GEN-502 Pot'!A42 -> Unión Eólica de Panamá (PE Rosa de los Vientos) No. 16-12' | B42: =+'GEN-502 Pre_Gen_FP'!B42*'GEN-502 Gen_FP'!B42 -> 199.0053174 | C42: =+'GEN-502 Pre_Gen_FP'!C42*'GEN-502 Gen_FP'!C42 -> 194.6662235 | D42: =+'GEN-502 Pre_Gen_FP'!D42*'GEN-502 Gen_FP'!D42 -> 190.9055129 | E42: =+'GEN-502 Pre_Gen_FP'!E42*'GEN-502 Gen_FP'!E42 -> 197.675812 | F42: =+'GEN-502 Pre_Gen_FP'!F42*'GEN-502 Gen_FP'!F42 -> 184.676776 | G42: =+'GEN-502 Pre_Gen_FP'!G42*'GEN-502 Gen_FP'!G42 -> 197.8907802 | H42: 1164.820422
A43: =+'GEN-502 Pot'!A43 -> Unión Eólica de Panamá (PE Portobelo Ballestillas) No. 17-12' | B43: =+'GEN-502 Pre_Gen_FP'!B43*'GEN-502 Gen_FP'!B43 -> 219.3119825 | C43: =+'GEN-502 Pre_Gen_FP'!C43*'GEN-502 Gen_FP'!C43 -> 214.5301238 | D43: =+'GEN-502 Pre_Gen_FP'!D43*'GEN-502 Gen_FP'!D43 -> 210.3856673 | E43: =+'GEN-502 Pre_Gen_FP'!E43*'GEN-502 Gen_FP'!E43 -> 217.8468132 | F43: =+'GEN-502 Pre_Gen_FP'!F43*'GEN-502 Gen_FP'!F43 -> 203.521345 | G43: =+'GEN-502 Pre_Gen_FP'!G43*'GEN-502 Gen_FP'!G43 -> 218.0837169 | H43: 1283.679649
A44: =+'GEN-502 Pot'!A44 -> Unión Eólica de Panamá (PE Marañon) No. 18-12' | B44: =+'GEN-502 Pre_Gen_FP'!B44*'GEN-502 Gen_FP'!B44 -> 223.3733155 | C44: =+'GEN-502 Pre_Gen_FP'!C44*'GEN-502 Gen_FP'!C44 -> 218.5029039 | D44: =+'GEN-502 Pre_Gen_FP'!D44*'GEN-502 Gen_FP'!D44 -> 214.2816982 | E44: =+'GEN-502 Pre_Gen_FP'!E44*'GEN-502 Gen_FP'!E44 -> 221.8810134 | F44: =+'GEN-502 Pre_Gen_FP'!F44*'GEN-502 Gen_FP'!F44 -> 207.2902588 | G44: =+'GEN-502 Pre_Gen_FP'!G44*'GEN-502 Gen_FP'!G44 -> 222.1223043 | H44: 1307.451494
A45: =+'GEN-502 Pot'!A45 -> AES No. 117-12 | B45: =+'GEN-502 Pre_Gen_FP'!B45*'GEN-502 Gen_FP'!B45 -> 6411055.08 | C45: =+'GEN-502 Pre_Gen_FP'!C45*'GEN-502 Gen_FP'!C45 -> 6379394.344 | D45: =+'GEN-502 Pre_Gen_FP'!D45*'GEN-502 Gen_FP'!D45 -> 6256152.339 | E45: =+'GEN-502 Pre_Gen_FP'!E45*'GEN-502 Gen_FP'!E45 -> 6368224.403 | F45: =+'GEN-502 Pre_Gen_FP'!F45*'GEN-502 Gen_FP'!F45 -> 6052030.799 | G45: =+'GEN-502 Pre_Gen_FP'!G45*'GEN-502 Gen_FP'!G45 -> 6485066.084 | H45: 37951923.05
A46: =+'GEN-502 Pot'!A46 -> HIDRO PIEDRA No. 118-12 | B46: =+'GEN-502 Pre_Gen_FP'!B46*'GEN-502 Gen_FP'!B46 -> 36882.41061 | C46: =+'GEN-502 Pre_Gen_FP'!C46*'GEN-502 Gen_FP'!C46 -> 36700.26831 | D46: =+'GEN-502 Pre_Gen_FP'!D46*'GEN-502 Gen_FP'!D46 -> 35991.26454 | E46: =+'GEN-502 Pre_Gen_FP'!E46*'GEN-502 Gen_FP'!E46 -> 36636.00832 | F46: =+'GEN-502 Pre_Gen_FP'!F46*'GEN-502 Gen_FP'!F46 -> 34816.96572 | G46: =+'GEN-502 Pre_Gen_FP'!G46*'GEN-502 Gen_FP'!G46 -> 37308.19142 | H46: 218335.1089
A47: =+'GEN-502 Pot'!A47 -> Corp. Energ. Del Istmo No. 119-12 | B47: =+'GEN-502 Pre_Gen_FP'!B47*'GEN-502 Gen_FP'!B47 -> 181933.9515 | C47: =+'GEN-502 Pre_Gen_FP'!C47*'GEN-502 Gen_FP'!C47 -> 181035.4781 | D47: =+'GEN-502 Pre_Gen_FP'!D47*'GEN-502 Gen_FP'!D47 -> 177538.0967 | E47: =+'GEN-502 Pre_Gen_FP'!E47*'GEN-502 Gen_FP'!E47 -> 180718.4957 | F47: =+'GEN-502 Pre_Gen_FP'!F47*'GEN-502 Gen_FP'!F47 -> 171745.5028 | G47: =+'GEN-502 Pre_Gen_FP'!G47*'GEN-502 Gen_FP'!G47 -> 184034.2477 | H47: 1077005.772
